Workbook

Sheet Age profile chart

Sheet Forecast Ch1

Sheet Age profile summary
A1: Asset calcs | R1: Remaining life | W1: RC ($ millions) | AB1: RC (%)
R2: Very old | S2: Old | T2: moderate | U2: young | V2: new | W2: =R2 -> Very old | X2: =S2 -> Old | Y2: moderate | Z2: young | AA2: new | AB2: Very old | AC2: Old | AD2: moderate | AE2: young | AF2: new
M3: WARL | O3: WAL | Q3: WAA | R3: > | S3: > | T3: > | U3: > | V3: <=0.2 | W3: =R3 -> > | X3: > | Y3: > | Z3: > | AA3: <=0.2 | AB3: > | AC3: > | AD3: > | AE3: > | AF3: <=0.2
F4: Quantity | G4: Unit | H4: RC | I4: prop total | J4: Rank | K4: prop cat | L4: RC / unit | M4: (Rep life) | O4: Rep life | Q4: % Rep life | R4: =W4 -> 0.9 | S4: =X4 -> 0.8 | T4: =Y4 -> 0.4 | U4: =Z4 -> 0.2 | W4: 0.9 | X4: 0.8 | Y4: 0.4 | Z4: 0.2 | AA4: 0 | AB4: 0.9 | AC4: 0.8 | AD4: 0.4 | AE4: 0.2 | AF4: 0 | AG4: Std life | AH4: Std life | AI4: rep life
G5: Cost | H5: $ millions | I5: % | J5: total | K5: % | L5: $ ('000) | AG5: max | AH5: min
A6: 1 | D6: =VLOOKUP(A6,IDtable,2) -> POLES | F6: =SUMIF($A$21:$A$205,$A6,F$21:F$205) -> 377455 | H6: =SUMIF($A$21:$A$205,$A6,H$21:H$205)/1000 -> 3390.286773 | I6: =H6/($H$18) -> 0.3321506266 | J6: =RANK(I6,I$6:I$17) -> 1 | L6: =H6*1000/(F6+0.001) -> 8.981962787 | M6: =SUMIF($A$21:$A$205,$A6,N$21:N$205)/(H6*1000+0.000001) -> 22.93117136 | O6: =SUMIF($A$21:$A$205,$A6,P$21:P$205)/(H6*1000+0.000001) -> 47.58774129 | Q6: =(O6-M6)/(O6+0.000001) -> 0.5181285925 | R6: =$O6-R$4*$O6 -> 4.758774129 | S6: =$O6-S$4*$O6 -> 9.517548258 | T6: =$O6-T$4*$O6 -> 28.55264478 | U6: =$O6-U$4*$O6 -> 38.07019303 | V6: =$O6-V$4*$O6 -> 47.58774129 | W6: =SUMIF($A$21:$A$205,$A6,W$21:W$205)/1000 -> 124.2543827 | X6: 283.8375835 | Y6: 1991.332156 | Z6: 417.098926 | AA6: 573.7637242 | AB6: =IF($H6=0,0,W6/$H6) -> 0.03665010987 | AC6: =IF($H6=0,0,X6/$H6) -> 0.08372081847 | AD6: =IF($H6=0,0,Y6/$H6) -> 0.5873639281 | AE6: =IF($H6=0,0,Z6/$H6) -> 0.1230276239 | AF6: =IF($H6=0,0,AA6/$H6) -> 0.1692375196 | AG6: =MAX(IF($A$21:$A$205=$A6,$O$21:$O$205)) -> 86.23680571 | AH6: =MIN(IF($A$21:$A$205=$A6,$O$21:$O$205)) -> 28.61407677 | AI6: =IF(H6=0,0,SUMIF($A$21:$A$205,$A6,$AJ$21:$AJ$205)/(H6*1000)) -> 47.58774129
A7: 2 | D7: OVERHEAD CONDUCTORS | F7: =SUMIF($A$21:$A$205,$A7,F$21:F$205) -> 39113.7403 | H7: =SUMIF($A$21:$A$205,$A7,H$21:H$205)/1000 -> 3205.361061 | I7: =H7/($H$18) -> 0.3140332239 | J7: 2 | L7: 81.94974336 | M7: 37.12421803 | O7: 81.49031969 | Q7: 0.544434005 | R7: =$O7-R$4*$O7 -> 8.149031969 | S7: 16.29806394 | T7: 48.89419182 | U7: 65.19225576 | V7: 81.49031969 | W7: 159.1268422 | X7: 188.3392742 | Y7: 1919.816393 | Z7: 553.8562666 | AA7: 384.2222856 | AB7: =IF($H7=0,0,W7/$H7) -> 0.04964396807 | AC7: =IF($H7=0,0,X7/$H7) -> 0.05875758475 | AD7: =IF($H7=0,0,Y7/$H7) -> 0.5989392009 | AE7: =IF($H7=0,0,Z7/$H7) -> 0.1727906017 | AF7: =IF($H7=0,0,AA7/$H7) -> 0.1198686445 | AG7: =MAX(IF($A$21:$A$205=$A7,$O$21:$O$205)) -> 114.7720837 | AH7: =MIN(IF($A$21:$A$205=$A7,$O$21:$O$205)) -> 67.24101639 | AI7: =IF(H7=0,0,SUMIF($A$21:$A$205,$A7,$AJ$21:$AJ$205)/(H7*1000)) -> 81.49031969
A8: 3 | D8: UNDERGROUND CABLES | F8: 5728.1501 | H8: 1758.026743 | I8: 0.1722360743 | J8: 3 | L8: 306.9099806 | M8: 59.13999288 | O8: 86.08382465 | Q8: 0.3129952876 | R8: 8.608382465 | S8: 17.21676493 | T8: 51.65029479 | U8: 68.86705972 | V8: 86.08382465 | W8: 196.3967138 | X8: 0 | Y8: 497.3432598 | Z8: 161.4707006 | AA8: 902.8160689 | AB8: 0.1117142925 | AC8: 0 | AD8: 0.2828985746 | AE8: 0.09184769303 | AF8: 0.5135394398 | AG8: =MAX(IF($A$21:$A$205=$A8,$O$21:$O$205)) -> 92.19234785 | AH8: =MIN(IF($A$21:$A$205=$A8,$O$21:$O$205)) -> 86.07551659 | AI8: 86.08382465
A9: 4 | D9: SERVICE LINES | F9: 12628 | H9: 415.557823 | I9: 0.04071271859 | J9: 6 | L9: 32.90764888 | M9: 49.21561733 | O9: 95.42600085 | Q9: 0.4842535853 | R9: 9.542600085 | S9: 19.08520017 | T9: 57.25560051 | U9: 76.34080068 | V9: 95.42600085 | W9: 146.5323826 | X9: 0 | Y9: 14.2843373 | Z9: 105.9954123 | AA9: 148.7456908 | AB9: 0.352616109 | AC9: 0 | AD9: 0.03437388616 | AE9: 0.2550677823 | AF9: 0.3579422225 | AG9: =MAX(IF($A$21:$A$205=$A9,$O$21:$O$205)) -> 95.47117493 | AH9: =MIN(IF($A$21:$A$205=$A9,$O$21:$O$205)) -> 94.98228087 | AI9: 95.42600085
A10: 5 | D10: TRANSFORMERS | F10: 60979 | H10: 687.013637 | I10: 0.0673075835 | J10: 5 | L10: 11.26639705 | M10: 46.34002034 | O10: 76.27186356 | Q10: 0.3924362332 | R10: 7.627186356 | S10: 15.25437271 | T10: 45.76311814 | U10: 61.01749085 | V10: 76.27186356 | W10: 39.45944443 | X10: 19.094205 | Y10: 241.9783311 | Z10: 203.3292826 | AA10: 183.1523739 | AB10: 0.05743618802 | AC10: 0.02779305093 | AD10: 0.3522176534 | AE10: 0.2959610576 | AF10: 0.2665920501 | AG10: =MAX(IF($A$21:$A$205=$A10,$O$21:$O$205)) -> 88.71760404 | AH10: =MIN(IF($A$21:$A$205=$A10,$O$21:$O$205)) -> 14.44921429 | AI10: 76.27186356
A11: 6 | D11: SWITCHGEAR | F11: 113521 | H11: 750.8302135 | I11: 0.07355977315 | J11: 4 | L11: 6.614020374 | M11: 54.33378304 | O11: 84.00243144 | Q11: 0.3531879678 | R11: 8.400243144 | S11: 16.80048629 | T11: 50.40145886 | U11: 67.20194515 | V11: 84.00243144 | W11: 58.42585319 | X11: 7.9424602 | Y11: 167.5473101 | Z11: 294.9275955 | AA11: 221.9869945 | AB11: 0.07781500016 | AC11: 0.01057823734 | AD11: 0.2231493979 | AE11: 0.3928019813 | AF11: 0.2956553833 | AG11: =MAX(IF($A$21:$A$205=$A11,$O$21:$O$205)) -> 91.47635476 | AH11: =MIN(IF($A$21:$A$205=$A11,$O$21:$O$205)) -> 64.05559302 | AI11: 84.00243144
A12: 7 | D12: PUBLIC LIGHTING | F12: 0 | H12: 0 | I12: 0 | J12: 7 | L12: 0 | M12: 0 | O12: 0 | Q12: 0 | R12: 0 | S12: 0 | T12: 0 | U12: 0 | V12: 0 | W12: 0 | X12: 0 | Y12: 0 | Z12: 0 | AA12: 0 | AB12: 0 | AC12: 0 | AD12: 0 | AE12: 0 | AF12: 0 | AG12: =MAX(IF($A$21:$A$205=$A12,$O$21:$O$205)) -> 0 | AH12: =MIN(IF($A$21:$A$205=$A12,$O$21:$O$205)) -> 0 | AI12: 0
A13: 8 | D13: SCADA, NETWORK CONTROL AND PROTECTION | F13: 0 | H13: 0 | I13: 0 | J13: 7 | L13: 0 | M13: 0 | O13: 0 | Q13: 0 | R13: 0 | S13: 0 | T13: 0 | U13: 0 | V13: 0 | W13: 0 | X13: 0 | Y13: 0 | Z13: 0 | AA13: 0 | AB13: 0 | AC13: 0 | AD13: 0 | AE13: 0 | AF13: 0 | AG13: =MAX(IF($A$21:$A$205=$A13,$O$21:$O$205)) -> 0 | AH13: =MIN(IF($A$21:$A$205=$A13,$O$21:$O$205)) -> 0 | AI13: 0
A14: 9 | D14: =VLOOKUP(A14,IDtable,2) -> OTHER | F14: =SUMIF($A$21:$A$205,$A14,F$21:F$205) -> 0 | H14: =SUMIF($A$21:$A$205,$A14,H$21:H$205)/1000 -> 0 | I14: =H14/($H$18) -> 0 | J14: 7 | L14: 0 | M14: 0 | O14: 0 | Q14: 0 | R14: =$O14-R$4*$O14 -> 0 | S14: 0 | T14: 0 | U14: 0 | V14: 0 | W14: 0 | X14: 0 | Y14: 0 | Z14: 0 | AA14: 0 | AB14: 0 | AC14: 0 | AD14: 0 | AE14: 0 | AF14: 0 | AG14: =MAX(IF($A$21:$A$205=$A14,$O$21:$O$205)) -> 0 | AH14: =MIN(IF($A$21:$A$205=$A14,$O$21:$O$205)) -> 0 | AI14: 0
A15: 10 | D15: =VLOOKUP(A15,IDtable,2) -> unused | F15: =SUMIF($A$21:$A$205,$A15,F$21:F$205) -> 0 | H15: =SUMIF($A$21:$A$205,$A15,H$21:H$205)/1000 -> 0 | I15: =H15/($H$18) -> 0 | J15: 7 | L15: 0 | M15: 0 | O15: 0 | Q15: 0 | R15: 0 | S15: 0 | T15: 0 | U15: 0 | V15: 0 | W15: 0 | X15: 0 | Y15: 0 | Z15: 0 | AA15: 0 | AB15: 0 | AC15: 0 | AD15: 0 | AE15: 0 | AF15: 0 | AG15: =MAX(IF($A$21:$A$205=$A15,$O$21:$O$205)) -> 0 | AH15: =MIN(IF($A$21:$A$205=$A15,$O$21:$O$205)) -> 0 | AI15: 0
A16: 11 | D16: =VLOOKUP(A16,IDtable,2) -> unused | F16: =SUMIF($A$21:$A$205,$A16,F$21:F$205) -> 0 | H16: =SUMIF($A$21:$A$205,$A16,H$21:H$205)/1000 -> 0 | I16: =H16/($H$18) -> 0 | J16: 7 | L16: 0 | M16: 0 | O16: 0 | Q16: 0 | R16: 0 | S16: 0 | T16: 0 | U16: 0 | V16: 0 | W16: 0 | X16: 0 | Y16: 0 | Z16: 0 | AA16: 0 | AB16: 0 | AC16: 0 | AD16: 0 | AE16: 0 | AF16: 0 | AG16: =MAX(IF($A$21:$A$205=$A16,$O$21:$O$205)) -> 0 | AH16: =MIN(IF($A$21:$A$205=$A16,$O$21:$O$205)) -> 0 | AI16: 0
A17: 12 | D17: =VLOOKUP(A17,IDtable,2) -> unused | F17: =SUMIF($A$21:$A$205,$A17,F$21:F$205) -> 0 | H17: =SUMIF($A$21:$A$205,$A17,H$21:H$205)/1000 -> 0 | I17: =H17/($H$18) -> 0 | J17: =RANK(I17,I$6:I$17) -> 7 | L17: =H17*1000/(F17+0.001) -> 0 | M17: =SUMIF($A$21:$A$205,$A17,N$21:N$205)/(H17*1000+0.000001) -> 0 | O17: =SUMIF($A$21:$A$205,$A17,P$21:P$205)/(H17*1000+0.000001) -> 0 | Q17: =(O17-M17)/(O17+0.000001) -> 0 | R17: 0 | S17: 0 | T17: 0 | U17: 0 | V17: 0 | W17: 0 | X17: 0 | Y17: 0 | Z17: 0 | AA17: 0 | AB17: 0 | AC17: 0 | AD17: 0 | AE17: 0 | AF17: 0 | AG17: =MAX(IF($A$21:$A$205=$A17,$O$21:$O$205)) -> 0 | AH17: =MIN(IF($A$21:$A$205=$A17,$O$21:$O$205)) -> 0 | AI17: 0
D18: Total | H18: =SUM(H6:H17) -> 10207.07625 | M18: =SUMPRODUCT(M6:M17,$H6:$H17)/$H18 -> 38.58039813 | O18: =SUMPRODUCT(O6:O17,$H6:$H17)/$H18 -> 71.42163246 | Q18: =SUMPRODUCT(Q6:Q17,$H6:$H17)/$H18 -> 0.4690858233 | W18: =SUM(W6:W17) -> 724.1956189 | X18: =SUM(X6:X17) -> 499.2135229 | Y18: =SUM(Y6:Y17) -> 4832.301787 | Z18: =SUM(Z6:Z17) -> 1736.678184 | AA18: =SUM(AA6:AA17) -> 2414.687138 | AB18: =W18/$H18 -> 0.07095034867 | AC18: =X18/$H18 -> 0.04890857192 | AD18: =Y18/$H18 -> 0.4734266374 | AE18: =Z18/$H18 -> 0.1701445292 | AF18: =AA18/$H18 -> 0.2365699127
D20: EDB categories
A21: ='Asset data'!A21 -> 1 | B21: ='Asset data'!B21 -> 0 | C21: ='Asset data'!C21 -> 0 | D21: ='Asset data'!E21 -> Staking of a wooden pole | E21: =IF(A21>0,VLOOKUP(A21,IDtable,2),0) -> POLES | F21: =IF(A21>0,SUM('Asset data'!J21:CV21),0) -> 35174 | G21: =IF(A21>0,'Asset data'!F21,0) -> 11.83500536 | H21: =IF(A21>0,SUM('Asset data'!CX21:GJ21),0) -> 416284.4785 | I21: =H21/$H$18/1000 -> 0.04078390993 | J21: =IF(RANK(0,I$21:I$205)=RANK(I21,I$21:I$205),0,RANK(I21,I$21:I$205)) -> 8 | K21: =IF(A21>0,H21/(VLOOKUP(A21,$A$6:$H$17,8)*1000),0) -> 0.1227873942 | L21: =IF($A21>0,H21/F21,0) -> 11.83500536 | M21: =IF($A21>0,SUMPRODUCT('Age profile (years)'!$CT21:$GF21,'Asset data'!$CX21:$GJ21)/H21-0.5,0) -> 12.91974185 | N21: =IF($A21>0,M21*H21,0) -> 5378288 | O21: =IF($A21>0,'Asset data'!G21,0) -> 28.61407677 | P21: =IF($A21>0,H21*O21,0) -> 11911596.03 | Q21: =IF($A21>0,(O21-M21)/O21,0) -> 0.5484830087 | R21: =IF($A21>0,$O21-R$4*$O21,0) -> 2.861407677 | S21: 5.722815355 | T21: 17.16844606 | U21: 22.89126142 | W21: =IF($A21>0,SUMIF('Age profile (years)'!$CT21:$GF21,"<" & R21+0.5,'Asset data'!$CX21:$GJ21),0) -> 15574.86705 | X21: =IF($A21>0,SUMIF('Age profile (years)'!$CT21:$GF21,"<" & S21+0.5,'Asset data'!$CX21:$GJ21)-W21,0) -> 90821.83112 | Y21: =IF($A21>0,SUMIF('Age profile (years)'!$CT21:$GF21,"<" & T21+0.5,'Asset data'!$CX21:$GJ21)-X21-W21,0) -> 192520.0322 | Z21: =IF($A21>0,SUMIF('Age profile (years)'!$CT21:$GF21,"<" & U21+0.5,'Asset data'!$CX21:$GJ21)-Y21-X21-W21,0) -> 53068.16402 | AA21: =IF($A21>0,H21-Z21-Y21-X21-W21,0) -> 64299.58411 | AB21: =IF($A21>0,W21/$H21,0) -> 0.03741399898 | AC21: 0.2181725138 | AD21: 0.4624722807 | AE21: 0.1274805254 | AF21: 0.1544606812 | AI21: =IF($A21>0,'RRR hist-forc'!K21,0) -> 28.61407677 | AJ21: =IF($A21>0,AI21*H21,0) -> 11911596.03
A22: ='Asset data'!A22 -> 1 | B22: ='Asset data'!B22 -> 0 | C22: ='Asset data'!C22 -> 0 | D22: ='Asset data'!E22 -> ˂ = 1 kV; Wood | E22: POLES | F22: =IF(A22>0,SUM('Asset data'!J22:CV22),0) -> 54143 | G22: =IF(A22>0,'Asset data'!F22,0) -> 5.760911369 | H22: =IF(A22>0,SUM('Asset data'!CX22:GJ22),0) -> 311913.0242 | I22: 0.03055850829 | J22: 11 | K22: =IF(A22>0,H22/(VLOOKUP(A22,$A$6:$H$17,8)*1000),0) -> 0.09200195888 | L22: =IF($A22>0,H22/F22,0) -> 5.760911369 | M22: =IF($A22>0,SUMPRODUCT('Age profile (years)'!$CT22:$GF22,'Asset data'!$CX22:$GJ22)/H22-0.5,0) -> 34.50701845 | N22: =IF($A22>0,M22*H22,0) -> 10763188.48 | O22: =IF($A22>0,'Asset data'!G22,0) -> 75.17768036 | P22: =IF($A22>0,H22*O22,0) -> 23448897.64 | Q22: =IF($A22>0,(O22-M22)/O22,0) -> 0.540993839 | R22: 7.517768036 | S22: 15.03553607 | T22: 45.10660821 | U22: 60.14214428 | W22: =IF($A22>0,SUMIF('Age profile (years)'!$CT22:$GF22,"<" & R22+0.5,'Asset data'!$CX22:$GJ22),0) -> 16827.62211 | X22: =IF($A22>0,SUMIF('Age profile (years)'!$CT22:$GF22,"<" & S22+0.5,'Asset data'!$CX22:$GJ22)-W22,0) -> 6400.372531 | Y22: =IF($A22>0,SUMIF('Age profile (years)'!$CT22:$GF22,"<" & T22+0.5,'Asset data'!$CX22:$GJ22)-X22-W22,0) -> 225983.2703 | Z22: =IF($A22>0,SUMIF('Age profile (years)'!$CT22:$GF22,"<" & U22+0.5,'Asset data'!$CX22:$GJ22)-Y22-X22-W22,0) -> 36783.41909 | AA22: =IF($A22>0,H22-Z22-Y22-X22-W22,0) -> 25918.34025 | AB22: 0.05394972573 | AC22: 0.02051973478 | AD22: 0.7245073232 | AE22: 0.1179284487 | AF22: 0.08309476756 | AI22: =IF($A22>0,'RRR hist-forc'!K22,0) -> 75.17768036 | AJ22: =IF($A22>0,AI22*H22,0) -> 23448897.64
A23: ='Asset data'!A23 -> 1 | B23: ='Asset data'!B23 -> 0 | C23: ='Asset data'!C23 -> 0 | D23: ='Asset data'!E23 -> > 1 kV & < = 11 kV; Wood | E23: =IF(A23>0,VLOOKUP(A23,IDtable,2),0) -> POLES | F23: =IF(A23>0,SUM('Asset data'!J23:CV23),0) -> 1058 | G23: =IF(A23>0,'Asset data'!F23,0) -> 5.7591419 | H23: =IF(A23>0,SUM('Asset data'!CX23:GJ23),0) -> 6093.17213 | I23: =H23/$H$18/1000 -> 0.0005969556787 | J23: =IF(RANK(0,I$21:I$205)=RANK(I23,I$21:I$205),0,RANK(I23,I$21:I$205)) -> 29 | K23: =IF(A23>0,H23/(VLOOKUP(A23,$A$6:$H$17,8)*1000),0) -> 0.001797243873 | L23: =IF($A23>0,H23/F23,0) -> 5.7591419 | M23: =IF($A23>0,SUMPRODUCT('Age profile (years)'!$CT23:$GF23,'Asset data'!$CX23:$GJ23)/H23-0.5,0) -> 42.69848771 | N23: =IF($A23>0,M23*H23,0) -> 260169.2353 | O23: =IF($A23>0,'Asset data'!G23,0) -> 85.03587891 | P23: =IF($A23>0,H23*O23,0) -> 518138.2474 | Q23: =IF($A23>0,(O23-M23)/O23,0) -> 0.4978767991 | R23: 8.503587891 | S23: 17.00717578 | T23: 51.02152735 | U23: 68.02870313 | W23: =IF($A23>0,SUMIF('Age profile (years)'!$CT23:$GF23,"<" & R23+0.5,'Asset data'!$CX23:$GJ23),0) -> 460.731352 | X23: =IF($A23>0,SUMIF('Age profile (years)'!$CT23:$GF23,"<" & S23+0.5,'Asset data'!$CX23:$GJ23)-W23,0) -> 414.6582168 | Y23: =IF($A23>0,SUMIF('Age profile (years)'!$CT23:$GF23,"<" & T23+0.5,'Asset data'!$CX23:$GJ23)-X23-W23,0) -> 3069.622633 | Z23: =IF($A23>0,SUMIF('Age profile (years)'!$CT23:$GF23,"<" & U23+0.5,'Asset data'!$CX23:$GJ23)-Y23-X23-W23,0) -> 1768.056563 | AA23: =IF($A23>0,H23-Z23-Y23-X23-W23,0) -> 380.1033654 | AB23: =IF($A23>0,W23/$H23,0) -> 0.07561436673 | AC23: =IF($A23>0,X23/$H23,0) -> 0.06805293006 | AD23: =IF($A23>0,Y23/$H23,0) -> 0.5037807183 | AE23: =IF($A23>0,Z23/$H23,0) -> 0.2901701323 | AF23: =IF($A23>0,AA23/$H23,0) -> 0.06238185255 | AI23: =IF($A23>0,'RRR hist-forc'!K23,0) -> 85.03587891 | AJ23: =IF($A23>0,AI23*H23,0) -> 518138.2474
A24: ='Asset data'!A24 -> 1 | B24: ='Asset data'!B24 -> 0 | C24: ='Asset data'!C24 -> 0 | D24: ='Asset data'!E24 -> ˃ 11 kV & < = 22 kV; Wood | E24: POLES | F24: =IF(A24>0,SUM('Asset data'!J24:CV24),0) -> 106735 | G24: =IF(A24>0,'Asset data'!F24,0) -> 5.762061216 | H24: =IF(A24>0,SUM('Asset data'!CX24:GJ24),0) -> 615013.6039 | I24: 0.06025365039 | J24: 6 | K24: 0.1814045965 | L24: 5.762061216 | M24: =IF($A24>0,SUMPRODUCT('Age profile (years)'!$CT24:$GF24,'Asset data'!$CX24:$GJ24)/H24-0.5,0) -> 37.67045018 | N24: 23167839.32 | O24: =IF($A24>0,'Asset data'!G24,0) -> 74.79332049 | P24: 45998909.58 | Q24: 0.4963393798 | R24: 7.479332049 | S24: 14.9586641 | T24: 44.87599229 | U24: 59.83465639 | W24: =IF($A24>0,SUMIF('Age profile (years)'!$CT24:$GF24,"<" & R24+0.5,'Asset data'!$CX24:$GJ24),0) -> 25831.32043 | X24: =IF($A24>0,SUMIF('Age profile (years)'!$CT24:$GF24,"<" & S24+0.5,'Asset data'!$CX24:$GJ24)-W24,0) -> 14226.52914 | Y24: =IF($A24>0,SUMIF('Age profile (years)'!$CT24:$GF24,"<" & T24+0.5,'Asset data'!$CX24:$GJ24)-X24-W24,0) -> 404974.9484 | Z24: =IF($A24>0,SUMIF('Age profile (years)'!$CT24:$GF24,"<" & U24+0.5,'Asset data'!$CX24:$GJ24)-Y24-X24-W24,0) -> 95200.77541 | AA24: 74780.03046 | AB24: 0.04200121797 | AC24: 0.02313205603 | AD24: 0.6584812854 | AE24: 0.1547945847 | AF24: 0.1215908559 | AI24: =IF($A24>0,'RRR hist-forc'!K24,0) -> 74.79332049 | AJ24: 45998909.58
A25: ='Asset data'!A25 -> 1 | B25: ='Asset data'!B25 -> 0 | C25: ='Asset data'!C25 -> 0 | D25: ='Asset data'!E25 -> > 22 kV & < = 66 kV; Wood | E25: POLES | F25: =IF(A25>0,SUM('Asset data'!J25:CV25),0) -> 8881 | G25: =IF(A25>0,'Asset data'!F25,0) -> 5.769616127 | H25: =IF(A25>0,SUM('Asset data'!CX25:GJ25),0) -> 51239.96082 | I25: 0.005020042916 | J25: 24 | K25: 0.01511375416 | L25: 5.769616127 | M25: =IF($A25>0,SUMPRODUCT('Age profile (years)'!$CT25:$GF25,'Asset data'!$CX25:$GJ25)/H25-0.5,0) -> 34.76629884 | N25: 1781423.791 | O25: =IF($A25>0,'Asset data'!G25,0) -> 71.51633892 | P25: 3664494.404 | Q25: 0.513869147 | R25: 7.151633892 | S25: 14.30326778 | T25: 42.90980335 | U25: 57.21307113 | W25: =IF($A25>0,SUMIF('Age profile (years)'!$CT25:$GF25,"<" & R25+0.5,'Asset data'!$CX25:$GJ25),0) -> 2255.919906 | X25: =IF($A25>0,SUMIF('Age profile (years)'!$CT25:$GF25,"<" & S25+0.5,'Asset data'!$CX25:$GJ25)-W25,0) -> 1384.70787 | Y25: =IF($A25>0,SUMIF('Age profile (years)'!$CT25:$GF25,"<" & T25+0.5,'Asset data'!$CX25:$GJ25)-X25-W25,0) -> 39141.0758 | Z25: =IF($A25>0,SUMIF('Age profile (years)'!$CT25:$GF25,"<" & U25+0.5,'Asset data'!$CX25:$GJ25)-Y25-X25-W25,0) -> 2711.71958 | AA25: 5746.537662 | AB25: 0.04402657358 | AC25: 0.02702398379 | AD25: 0.7638779417 | AE25: 0.05292196825 | AF25: 0.1121495327 | AI25: =IF($A25>0,'RRR hist-forc'!K25,0) -> 71.51633892 | AJ25: 3664494.404
A26: ='Asset data'!A26 -> 0 | B26: ='Asset data'!B26 -> 0 | C26: ='Asset data'!C26 -> 0 | D26: ='Asset data'!E26 -> > 66 kV & < = 132 kV; Wood | E26: 0 | F26: =IF(A26>0,SUM('Asset data'!J26:CV26),0) -> 0 | G26: =IF(A26>0,'Asset data'!F26,0) -> 0 | H26: =IF(A26>0,SUM('Asset data'!CX26:GJ26),0) -> 0 | I26: 0 | J26: 0 | K26: 0 | L26: 0 | M26: =IF($A26>0,SUMPRODUCT('Age profile (years)'!$CT26:$GF26,'Asset data'!$CX26:$GJ26)/H26-0.5,0) -> 0 | N26: 0 | O26: =IF($A26>0,'Asset data'!G26,0) -> 0 | P26: 0 | Q26: 0 | R26: 0 | S26: 0 | T26: 0 | U26: 0 | W26: =IF($A26>0,SUMIF('Age profile (years)'!$CT26:$GF26,"<" & R26+0.5,'Asset data'!$CX26:$GJ26),0) -> 0 | X26: =IF($A26>0,SUMIF('Age profile (years)'!$CT26:$GF26,"<" & S26+0.5,'Asset data'!$CX26:$GJ26)-W26,0) -> 0 | Y26: =IF($A26>0,SUMIF('Age profile (years)'!$CT26:$GF26,"<" & T26+0.5,'Asset data'!$CX26:$GJ26)-X26-W26,0) -> 0 | Z26: =IF($A26>0,SUMIF('Age profile (years)'!$CT26:$GF26,"<" & U26+0.5,'Asset data'!$CX26:$GJ26)-Y26-X26-W26,0) -> 0 | AA26: 0 | AB26: 0 | AC26: 0 | AD26: 0 | AE26: 0 | AF26: 0 | AI26: =IF($A26>0,'RRR hist-forc'!K26,0) -> 0 | AJ26: 0
A27: ='Asset data'!A27 -> 0 | B27: ='Asset data'!B27 -> 0 | C27: ='Asset data'!C27 -> 0 | D27: ='Asset data'!E27 -> > 132 kV; Wood | E27: 0 | F27: =IF(A27>0,SUM('Asset data'!J27:CV27),0) -> 0 | G27: =IF(A27>0,'Asset data'!F27,0) -> 0 | H27: =IF(A27>0,SUM('Asset data'!CX27:GJ27),0) -> 0 | I27: 0 | J27: 0 | K27: 0 | L27: 0 | M27: =IF($A27>0,SUMPRODUCT('Age profile (years)'!$CT27:$GF27,'Asset data'!$CX27:$GJ27)/H27-0.5,0) -> 0 | N27: 0 | O27: =IF($A27>0,'Asset data'!G27,0) -> 0 | P27: 0 | Q27: 0 | R27: 0 | S27: 0 | T27: 0 | U27: 0 | W27: =IF($A27>0,SUMIF('Age profile (years)'!$CT27:$GF27,"<" & R27+0.5,'Asset data'!$CX27:$GJ27),0) -> 0 | X27: =IF($A27>0,SUMIF('Age profile (years)'!$CT27:$GF27,"<" & S27+0.5,'Asset data'!$CX27:$GJ27)-W27,0) -> 0 | Y27: =IF($A27>0,SUMIF('Age profile (years)'!$CT27:$GF27,"<" & T27+0.5,'Asset data'!$CX27:$GJ27)-X27-W27,0) -> 0 | Z27: =IF($A27>0,SUMIF('Age profile (years)'!$CT27:$GF27,"<" & U27+0.5,'Asset data'!$CX27:$GJ27)-Y27-X27-W27,0) -> 0 | AA27: 0 | AB27: 0 | AC27: 0 | AD27: 0 | AE27: 0 | AF27: 0 | AI27: =IF($A27>0,'RRR hist-forc'!K27,0) -> 0 | AJ27: 0
A28: ='Asset data'!A28 -> 1 | B28: ='Asset data'!B28 -> 0 | C28: ='Asset data'!C28 -> 0 | D28: ='Asset data'!E28 -> ˂ = 1 kV; Concrete | E28: POLES | F28: =IF(A28>0,SUM('Asset data'!J28:CV28),0) -> 23787 | G28: =IF(A28>0,'Asset data'!F28,0) -> 10.21225459 | H28: =IF(A28>0,SUM('Asset data'!CX28:GJ28),0) -> 242918.8999 | I28: 0.02379906782 | J28: 15 | K28: 0.07165143134 | L28: 10.21225459 | M28: =IF($A28>0,SUMPRODUCT('Age profile (years)'!$CT28:$GF28,'Asset data'!$CX28:$GJ28)/H28-0.5,0) -> 18.38056501 | N28: 4464986.633 | O28: =IF($A28>0,'Asset data'!G28,0) -> 43.80402189 | P28: 10640824.81 | Q28: 0.5803909271 | R28: 4.380402189 | S28: 8.760804378 | T28: 26.28241314 | U28: 35.04321751 | W28: =IF($A28>0,SUMIF('Age profile (years)'!$CT28:$GF28,"<" & R28+0.5,'Asset data'!$CX28:$GJ28),0) -> 2818.582267 | X28: =IF($A28>0,SUMIF('Age profile (years)'!$CT28:$GF28,"<" & S28+0.5,'Asset data'!$CX28:$GJ28)-W28,0) -> 22916.2993 | Y28: =IF($A28>0,SUMIF('Age profile (years)'!$CT28:$GF28,"<" & T28+0.5,'Asset data'!$CX28:$GJ28)-X28-W28,0) -> 190468.7604 | Z28: =IF($A28>0,SUMIF('Age profile (years)'!$CT28:$GF28,"<" & U28+0.5,'Asset data'!$CX28:$GJ28)-Y28-X28-W28,0) -> 7097.51694 | AA28: 19617.74107 | AB28: 0.01160297642 | AC28: 0.09433724303 | AD28: 0.7840837432 | AE28: 0.02921763989 | AF28: 0.08075839744 | AI28: =IF($A28>0,'RRR hist-forc'!K28,0) -> 43.80402189 | AJ28: 10640824.81
A29: ='Asset data'!A29 -> 1 | B29: ='Asset data'!B29 -> 0 | C29: ='Asset data'!C29 -> 0 | D29: ='Asset data'!E29 -> > 1 kV & < = 11 kV; Concrete | E29: POLES | F29: =IF(A29>0,SUM('Asset data'!J29:CV29),0) -> 331 | G29: =IF(A29>0,'Asset data'!F29,0) -> 12.23133165 | H29: =IF(A29>0,SUM('Asset data'!CX29:GJ29),0) -> 4048.570777 | I29: 0.0003966435321 | J29: 32 | K29: 0.001194167647 | L29: 12.23133165 | M29: =IF($A29>0,SUMPRODUCT('Age profile (years)'!$CT29:$GF29,'Asset data'!$CX29:$GJ29)/H29-0.5,0) -> 30.66012085 | N29: 124129.6693 | O29: =IF($A29>0,'Asset data'!G29,0) -> 54.76363746 | P29: 221714.4622 | Q29: 0.4401372467 | R29: 5.476363746 | S29: 10.95272749 | T29: 32.85818247 | U29: 43.81090997 | W29: =IF($A29>0,SUMIF('Age profile (years)'!$CT29:$GF29,"<" & R29+0.5,'Asset data'!$CX29:$GJ29),0) -> 73.38798991 | X29: =IF($A29>0,SUMIF('Age profile (years)'!$CT29:$GF29,"<" & S29+0.5,'Asset data'!$CX29:$GJ29)-W29,0) -> 61.15665826 | Y29: =IF($A29>0,SUMIF('Age profile (years)'!$CT29:$GF29,"<" & T29+0.5,'Asset data'!$CX29:$GJ29)-X29-W29,0) -> 2495.191657 | Z29: =IF($A29>0,SUMIF('Age profile (years)'!$CT29:$GF29,"<" & U29+0.5,'Asset data'!$CX29:$GJ29)-Y29-X29-W29,0) -> 758.3425624 | AA29: 660.4919092 | AB29: 0.01812688822 | AC29: 0.01510574018 | AD29: 0.6163141994 | AE29: 0.1873111782 | AF29: 0.163141994 | AI29: =IF($A29>0,'RRR hist-forc'!K29,0) -> 54.76363746 | AJ29: 221714.4622
A30: ='Asset data'!A30 -> 1 | B30: ='Asset data'!B30 -> 0 | C30: ='Asset data'!C30 -> 0 | D30: ='Asset data'!E30 -> ˃ 11 kV & < = 22 kV; Concrete | E30: POLES | F30: =IF(A30>0,SUM('Asset data'!J30:CV30),0) -> 80208 | G30: =IF(A30>0,'Asset data'!F30,0) -> 11.83434519 | H30: =IF(A30>0,SUM('Asset data'!CX30:GJ30),0) -> 949209.1587 | I30: 0.09299520601 | J30: 2 | K30: 0.2799790172 | L30: 11.83434519 | M30: =IF($A30>0,SUMPRODUCT('Age profile (years)'!$CT30:$GF30,'Asset data'!$CX30:$GJ30)/H30-0.5,0) -> 16.62832885 | N30: 15783762.03 | O30: =IF($A30>0,'Asset data'!G30,0) -> 40.08560116 | P30: 38049619.75 | Q30: 0.5851795068 | R30: 4.008560116 | S30: 8.017120232 | T30: 24.0513607 | U30: 32.06848093 | W30: =IF($A30>0,SUMIF('Age profile (years)'!$CT30:$GF30,"<" & R30+0.5,'Asset data'!$CX30:$GJ30),0) -> 37834.40156 | X30: =IF($A30>0,SUMIF('Age profile (years)'!$CT30:$GF30,"<" & S30+0.5,'Asset data'!$CX30:$GJ30)-W30,0) -> 81372.9575 | Y30: =IF($A30>0,SUMIF('Age profile (years)'!$CT30:$GF30,"<" & T30+0.5,'Asset data'!$CX30:$GJ30)-X30-W30,0) -> 674711.5221 | Z30: =IF($A30>0,SUMIF('Age profile (years)'!$CT30:$GF30,"<" & U30+0.5,'Asset data'!$CX30:$GJ30)-Y30-X30-W30,0) -> 41384.70512 | AA30: 113905.5724 | AB30: 0.03985886695 | AC30: 0.08572710952 | AD30: 0.7108143826 | AE30: 0.04359914223 | AF30: 0.1200004987 | AI30: =IF($A30>0,'RRR hist-forc'!K30,0) -> 40.08560116 | AJ30: 38049619.75
A31: ='Asset data'!A31 -> 1 | B31: ='Asset data'!B31 -> 0 | C31: ='Asset data'!C31 -> 0 | D31: ='Asset data'!E31 -> > 22 kV & < = 66 kV; Concrete | E31: POLES | F31: =IF(A31>0,SUM('Asset data'!J31:CV31),0) -> 11350 | G31: =IF(A31>0,'Asset data'!F31,0) -> 11.836 | H31: =IF(A31>0,SUM('Asset data'!CX31:GJ31),0) -> 134338.6 | I31: 0.01316132031 | J31: 20 | K31: 0.03962455362 | L31: 11.836 | M31: =IF($A31>0,SUMPRODUCT('Age profile (years)'!$CT31:$GF31,'Asset data'!$CX31:$GJ31)/H31-0.5,0) -> 18.57427313 | N31: 2495241.848 | O31: =IF($A31>0,'Asset data'!G31,0) -> 40.98169491 | P31: 5505423.52 | Q31: 0.546766595 | R31: 4.098169491 | S31: 8.196338983 | T31: 24.58901695 | U31: 32.78535593 | W31: =IF($A31>0,SUMIF('Age profile (years)'!$CT31:$GF31,"<" & R31+0.5,'Asset data'!$CX31:$GJ31),0) -> 3479.784 | X31: =IF($A31>0,SUMIF('Age profile (years)'!$CT31:$GF31,"<" & S31+0.5,'Asset data'!$CX31:$GJ31)-W31,0) -> 17990.72 | Y31: =IF($A31>0,SUMIF('Age profile (years)'!$CT31:$GF31,"<" & T31+0.5,'Asset data'!$CX31:$GJ31)-X31-W31,0) -> 75442.664 | Z31: =IF($A31>0,SUMIF('Age profile (years)'!$CT31:$GF31,"<" & U31+0.5,'Asset data'!$CX31:$GJ31)-Y31-X31-W31,0) -> 11469.084 | AA31: 25956.348 | AB31: 0.0259030837 | AC31: 0.1339207048 | AD31: 0.5615859031 | AE31: 0.08537444934 | AF31: 0.193215859 | AI31: =IF($A31>0,'RRR hist-forc'!K31,0) -> 40.98169491 | AJ31: 5505423.52
A32: ='Asset data'!A32 -> 0 | B32: ='Asset data'!B32 -> 0 | C32: ='Asset data'!C32 -> 0 | D32: ='Asset data'!E32 -> > 66 kV & < = 132 kV; Concrete | E32: 0 | F32: =IF(A32>0,SUM('Asset data'!J32:CV32),0) -> 0 | G32: =IF(A32>0,'Asset data'!F32,0) -> 0 | H32: =IF(A32>0,SUM('Asset data'!CX32:GJ32),0) -> 0 | I32: 0 | J32: 0 | K32: 0 | L32: 0 | M32: =IF($A32>0,SUMPRODUCT('Age profile (years)'!$CT32:$GF32,'Asset data'!$CX32:$GJ32)/H32-0.5,0) -> 0 | N32: 0 | O32: =IF($A32>0,'Asset data'!G32,0) -> 0 | P32: 0 | Q32: 0 | R32: 0 | S32: 0 | T32: 0 | U32: 0 | W32: =IF($A32>0,SUMIF('Age profile (years)'!$CT32:$GF32,"<" & R32+0.5,'Asset data'!$CX32:$GJ32),0) -> 0 | X32: =IF($A32>0,SUMIF('Age profile (years)'!$CT32:$GF32,"<" & S32+0.5,'Asset data'!$CX32:$GJ32)-W32,0) -> 0 | Y32: =IF($A32>0,SUMIF('Age profile (years)'!$CT32:$GF32,"<" & T32+0.5,'Asset data'!$CX32:$GJ32)-X32-W32,0) -> 0 | Z32: =IF($A32>0,SUMIF('Age profile (years)'!$CT32:$GF32,"<" & U32+0.5,'Asset data'!$CX32:$GJ32)-Y32-X32-W32,0) -> 0 | AA32: 0 | AB32: 0 | AC32: 0 | AD32: 0 | AE32: 0 | AF32: 0 | AI32: =IF($A32>0,'RRR hist-forc'!K32,0) -> 0 | AJ32: 0
A33: ='Asset data'!A33 -> 0 | B33: ='Asset data'!B33 -> 0 | C33: ='Asset data'!C33 -> 0 | D33: ='Asset data'!E33 -> > 132 kV; Concrete | E33: 0 | F33: =IF(A33>0,SUM('Asset data'!J33:CV33),0) -> 0 | G33: =IF(A33>0,'Asset data'!F33,0) -> 0 | H33: =IF(A33>0,SUM('Asset data'!CX33:GJ33),0) -> 0 | I33: 0 | J33: 0 | K33: 0 | L33: 0 | M33: =IF($A33>0,SUMPRODUCT('Age profile (years)'!$CT33:$GF33,'Asset data'!$CX33:$GJ33)/H33-0.5,0) -> 0 | N33: 0 | O33: =IF($A33>0,'Asset data'!G33,0) -> 0 | P33: 0 | Q33: 0 | R33: 0 | S33: 0 | T33: 0 | U33: 0 | W33: =IF($A33>0,SUMIF('Age profile (years)'!$CT33:$GF33,"<" & R33+0.5,'Asset data'!$CX33:$GJ33),0) -> 0 | X33: =IF($A33>0,SUMIF('Age profile (years)'!$CT33:$GF33,"<" & S33+0.5,'Asset data'!$CX33:$GJ33)-W33,0) -> 0 | Y33: =IF($A33>0,SUMIF('Age profile (years)'!$CT33:$GF33,"<" & T33+0.5,'Asset data'!$CX33:$GJ33)-X33-W33,0) -> 0 | Z33: =IF($A33>0,SUMIF('Age profile (years)'!$CT33:$GF33,"<" & U33+0.5,'Asset data'!$CX33:$GJ33)-Y33-X33-W33,0) -> 0 | AA33: 0 | AB33: 0 | AC33: 0 | AD33: 0 | AE33: 0 | AF33: 0 | AI33: =IF($A33>0,'RRR hist-forc'!K33,0) -> 0 | AJ33: 0
A34: ='Asset data'!A34 -> 1 | B34: ='Asset data'!B34 -> 0 | C34: ='Asset data'!C34 -> 0 | D34: ='Asset data'!E34 -> ˂ = 1 kV; Steel | E34: POLES | F34: =IF(A34>0,SUM('Asset data'!J34:CV34),0) -> 44187 | G34: =IF(A34>0,'Asset data'!F34,0) -> 11.81211019 | H34: =IF(A34>0,SUM('Asset data'!CX34:GJ34),0) -> 521941.7128 | I34: 0.05113528106 | J34: 7 | K34: 0.1539520837 | L34: 11.81211019 | M34: =IF($A34>0,SUMPRODUCT('Age profile (years)'!$CT34:$GF34,'Asset data'!$CX34:$GJ34)/H34-0.5,0) -> 21.0414941 | N34: 10982433.47 | O34: =IF($A34>0,'Asset data'!G34,0) -> 32.73621523 | P34: 17086396.25 | Q34: 0.3572410874 | R34: 3.273621523 | S34: 6.547243046 | T34: 19.64172914 | U34: 26.18897219 | W34: =IF($A34>0,SUMIF('Age profile (years)'!$CT34:$GF34,"<" & R34+0.5,'Asset data'!$CX34:$GJ34),0) -> 8079.483368 | X34: =IF($A34>0,SUMIF('Age profile (years)'!$CT34:$GF34,"<" & S34+0.5,'Asset data'!$CX34:$GJ34)-W34,0) -> 37846.00104 | Y34: =IF($A34>0,SUMIF('Age profile (years)'!$CT34:$GF34,"<" & T34+0.5,'Asset data'!$CX34:$GJ34)-X34-W34,0) -> 148182.9223 | Z34: =IF($A34>0,SUMIF('Age profile (years)'!$CT34:$GF34,"<" & U34+0.5,'Asset data'!$CX34:$GJ34)-Y34-X34-W34,0) -> 128374.0135 | AA34: 199459.2926 | AB34: 0.01547966597 | AC34: 0.07251001426 | AD34: 0.2839070315 | AE34: 0.2459546926 | AF34: 0.3821485957 | AI34: =IF($A34>0,'RRR hist-forc'!K34,0) -> 32.73621523 | AJ34: 17086396.25
A35: ='Asset data'!A35 -> 1 | B35: ='Asset data'!B35 -> 0 | C35: ='Asset data'!C35 -> 0 | D35: ='Asset data'!E35 -> > 1 kV & < = 11 kV; Steel | E35: POLES | F35: =IF(A35>0,SUM('Asset data'!J35:CV35),0) -> 3 | G35: =IF(A35>0,'Asset data'!F35,0) -> 12.18181818 | H35: =IF(A35>0,SUM('Asset data'!CX35:GJ35),0) -> 36.54545455 | I35: 3.580403795e-06 | J35: 45 | K35: 1.07794582e-05 | L35: 12.18181818 | M35: =IF($A35>0,SUMPRODUCT('Age profile (years)'!$CT35:$GF35,'Asset data'!$CX35:$GJ35)/H35-0.5,0) -> 25.5 | N35: 931.9090909 | O35: =IF($A35>0,'Asset data'!G35,0) -> 86.23680571 | P35: 3151.563263 | Q35: 0.7043025911 | R35: 8.623680571 | S35: 17.24736114 | T35: 51.74208343 | U35: 68.98944457 | W35: =IF($A35>0,SUMIF('Age profile (years)'!$CT35:$GF35,"<" & R35+0.5,'Asset data'!$CX35:$GJ35),0) -> 24.36363636 | X35: =IF($A35>0,SUMIF('Age profile (years)'!$CT35:$GF35,"<" & S35+0.5,'Asset data'!$CX35:$GJ35)-W35,0) -> 0 | Y35: =IF($A35>0,SUMIF('Age profile (years)'!$CT35:$GF35,"<" & T35+0.5,'Asset data'!$CX35:$GJ35)-X35-W35,0) -> 0 | Z35: =IF($A35>0,SUMIF('Age profile (years)'!$CT35:$GF35,"<" & U35+0.5,'Asset data'!$CX35:$GJ35)-Y35-X35-W35,0) -> 0 | AA35: 12.18181818 | AB35: 0.6666666667 | AC35: 0 | AD35: 0 | AE35: 0 | AF35: 0.3333333333 | AI35: =IF($A35>0,'RRR hist-forc'!K35,0) -> 86.23680571 | AJ35: 3151.563263
A36: ='Asset data'!A36 -> 1 | B36: ='Asset data'!B36 -> 0 | C36: ='Asset data'!C36 -> 0 | D36: ='Asset data'!E36 -> ˃ 11 kV & < = 22 kV; Steel | E36: POLES | F36: =IF(A36>0,SUM('Asset data'!J36:CV36),0) -> 11421 | G36: =IF(A36>0,'Asset data'!F36,0) -> 11.83430045 | H36: =IF(A36>0,SUM('Asset data'!CX36:GJ36),0) -> 135159.5455 | I36: 0.01324174936 | J36: 19 | K36: 0.03986669993 | L36: 11.83430045 | M36: =IF($A36>0,SUMPRODUCT('Age profile (years)'!$CT36:$GF36,'Asset data'!$CX36:$GJ36)/H36-0.5,0) -> 18.38801331 | N36: 2485315.521 | O36: =IF($A36>0,'Asset data'!G36,0) -> 31.10793796 | P36: 4204534.754 | Q36: 0.4088964259 | R36: 3.110793796 | S36: 6.221587591 | T36: 18.66476277 | U36: 24.88635037 | W36: =IF($A36>0,SUMIF('Age profile (years)'!$CT36:$GF36,"<" & R36+0.5,'Asset data'!$CX36:$GJ36),0) -> 10934.89362 | X36: =IF($A36>0,SUMIF('Age profile (years)'!$CT36:$GF36,"<" & S36+0.5,'Asset data'!$CX36:$GJ36)-W36,0) -> 10402.3501 | Y36: =IF($A36>0,SUMIF('Age profile (years)'!$CT36:$GF36,"<" & T36+0.5,'Asset data'!$CX36:$GJ36)-X36-W36,0) -> 33940.77369 | Z36: =IF($A36>0,SUMIF('Age profile (years)'!$CT36:$GF36,"<" & U36+0.5,'Asset data'!$CX36:$GJ36)-Y36-X36-W36,0) -> 37668.57834 | AA36: 42212.94971 | AB36: 0.08090359863 | AC36: 0.07696348831 | AD36: 0.2511163646 | AE36: 0.2786971369 | AF36: 0.3123194116 | AI36: =IF($A36>0,'RRR hist-forc'!K36,0) -> 31.10793796 | AJ36: 4204534.754
A37: ='Asset data'!A37 -> 1 | B37: ='Asset data'!B37 -> 0 | C37: ='Asset data'!C37 -> 0 | D37: ='Asset data'!E37 -> > 22 kV & < = 66 kV; Steel | E37: POLES | F37: =IF(A37>0,SUM('Asset data'!J37:CV37),0) -> 177 | G37: =IF(A37>0,'Asset data'!F37,0) -> 11.80508475 | H37: =IF(A37>0,SUM('Asset data'!CX37:GJ37),0) -> 2089.5 | I37: 0.000204710923 | J37: 35 | K37: 0.0006163195447 | L37: 11.80508475 | M37: =IF($A37>0,SUMPRODUCT('Age profile (years)'!$CT37:$GF37,'Asset data'!$CX37:$GJ37)/H37-0.5,0) -> 26.57909605 | N37: 55537.02119 | O37: =IF($A37>0,'Asset data'!G37,0) -> 39.42992959 | P37: 82388.83787 | Q37: 0.3259157111 | R37: =IF($A37>0,$O37-R$4*$O37,0) -> 3.942992959 | S37: 7.885985917 | T37: 23.65795775 | U37: 31.54394367 | W37: =IF($A37>0,SUMIF('Age profile (years)'!$CT37:$GF37,"<" & R37+0.5,'Asset data'!$CX37:$GJ37),0) -> 59.02542373 | X37: =IF($A37>0,SUMIF('Age profile (years)'!$CT37:$GF37,"<" & S37+0.5,'Asset data'!$CX37:$GJ37)-W37,0) -> 0 | Y37: =IF($A37>0,SUMIF('Age profile (years)'!$CT37:$GF37,"<" & T37+0.5,'Asset data'!$CX37:$GJ37)-X37-W37,0) -> 401.3728814 | Z37: =IF($A37>0,SUMIF('Age profile (years)'!$CT37:$GF37,"<" & U37+0.5,'Asset data'!$CX37:$GJ37)-Y37-X37-W37,0) -> 814.5508475 | AA37: 814.5508475 | AB37: 0.02824858757 | AC37: 0 | AD37: 0.1920903955 | AE37: 0.3898305085 | AF37: 0.3898305085 | AI37: =IF($A37>0,'RRR hist-forc'!K37,0) -> 39.42992959 | AJ37: 82388.83787
A38: ='Asset data'!A38 -> 0 | B38: ='Asset data'!B38 -> 0 | C38: ='Asset data'!C38 -> 0 | D38: ='Asset data'!E38 -> > 66 kV & < = 132 kV; Steel | E38: 0 | F38: =IF(A38>0,SUM('Asset data'!J38:CV38),0) -> 0 | G38: =IF(A38>0,'Asset data'!F38,0) -> 0 | H38: =IF(A38>0,SUM('Asset data'!CX38:GJ38),0) -> 0 | I38: 0 | J38: 0 | K38: 0 | L38: 0 | M38: =IF($A38>0,SUMPRODUCT('Age profile (years)'!$CT38:$GF38,'Asset data'!$CX38:$GJ38)/H38-0.5,0) -> 0 | N38: 0 | O38: =IF($A38>0,'Asset data'!G38,0) -> 0 | P38: 0 | Q38: 0 | R38: 0 | S38: 0 | T38: 0 | U38: 0 | W38: =IF($A38>0,SUMIF('Age profile (years)'!$CT38:$GF38,"<" & R38+0.5,'Asset data'!$CX38:$GJ38),0) -> 0 | X38: =IF($A38>0,SUMIF('Age profile (years)'!$CT38:$GF38,"<" & S38+0.5,'Asset data'!$CX38:$GJ38)-W38,0) -> 0 | Y38: =IF($A38>0,SUMIF('Age profile (years)'!$CT38:$GF38,"<" & T38+0.5,'Asset data'!$CX38:$GJ38)-X38-W38,0) -> 0 | Z38: =IF($A38>0,SUMIF('Age profile (years)'!$CT38:$GF38,"<" & U38+0.5,'Asset data'!$CX38:$GJ38)-Y38-X38-W38,0) -> 0 | AA38: 0 | AB38: 0 | AC38: 0 | AD38: 0 | AE38: 0 | AF38: 0 | AI38: =IF($A38>0,'RRR hist-forc'!K38,0) -> 0 | AJ38: 0
A39: ='Asset data'!A39 -> 0 | B39: ='Asset data'!B39 -> 0 | C39: ='Asset data'!C39 -> 0 | D39: ='Asset data'!E39 -> > 132 kV; Steel | E39: 0 | F39: =IF(A39>0,SUM('Asset data'!J39:CV39),0) -> 0 | G39: =IF(A39>0,'Asset data'!F39,0) -> 0 | H39: =IF(A39>0,SUM('Asset data'!CX39:GJ39),0) -> 0 | I39: 0 | J39: 0 | K39: 0 | L39: 0 | M39: =IF($A39>0,SUMPRODUCT('Age profile (years)'!$CT39:$GF39,'Asset data'!$CX39:$GJ39)/H39-0.5,0) -> 0 | N39: 0 | O39: =IF($A39>0,'Asset data'!G39,0) -> 0 | P39: 0 | Q39: 0 | R39: 0 | S39: 0 | T39: 0 | U39: 0 | W39: =IF($A39>0,SUMIF('Age profile (years)'!$CT39:$GF39,"<" & R39+0.5,'Asset data'!$CX39:$GJ39),0) -> 0 | X39: =IF($A39>0,SUMIF('Age profile (years)'!$CT39:$GF39,"<" & S39+0.5,'Asset data'!$CX39:$GJ39)-W39,0) -> 0 | Y39: =IF($A39>0,SUMIF('Age profile (years)'!$CT39:$GF39,"<" & T39+0.5,'Asset data'!$CX39:$GJ39)-X39-W39,0) -> 0 | Z39: =IF($A39>0,SUMIF('Age profile (years)'!$CT39:$GF39,"<" & U39+0.5,'Asset data'!$CX39:$GJ39)-Y39-X39-W39,0) -> 0 | AA39: 0 | AB39: 0 | AC39: 0 | AD39: 0 | AE39: 0 | AF39: 0 | AI39: =IF($A39>0,'RRR hist-forc'!K39,0) -> 0 | AJ39: 0
A40: ='Asset data'!A40 -> 0 | B40: ='Asset data'!B40 -> 0 | C40: ='Asset data'!C40 -> 0 | D40: ='Asset data'!E40 -> Other | E40: 0 | F40: =IF(A40>0,SUM('Asset data'!J40:CV40),0) -> 0 | G40: =IF(A40>0,'Asset data'!F40,0) -> 0 | H40: =IF(A40>0,SUM('Asset data'!CX40:GJ40),0) -> 0 | I40: 0 | J40: 0 | K40: 0 | L40: 0 | M40: =IF($A40>0,SUMPRODUCT('Age profile (years)'!$CT40:$GF40,'Asset data'!$CX40:$GJ40)/H40-0.5,0) -> 0 | N40: 0 | O40: =IF($A40>0,'Asset data'!G40,0) -> 0 | P40: 0 | Q40: 0 | R40: 0 | S40: 0 | T40: 0 | U40: 0 | W40: =IF($A40>0,SUMIF('Age profile (years)'!$CT40:$GF40,"<" & R40+0.5,'Asset data'!$CX40:$GJ40),0) -> 0 | X40: =IF($A40>0,SUMIF('Age profile (years)'!$CT40:$GF40,"<" & S40+0.5,'Asset data'!$CX40:$GJ40)-W40,0) -> 0 | Y40: =IF($A40>0,SUMIF('Age profile (years)'!$CT40:$GF40,"<" & T40+0.5,'Asset data'!$CX40:$GJ40)-X40-W40,0) -> 0 | Z40: =IF($A40>0,SUMIF('Age profile (years)'!$CT40:$GF40,"<" & U40+0.5,'Asset data'!$CX40:$GJ40)-Y40-X40-W40,0) -> 0 | AA40: 0 | AB40: 0 | AC40: 0 | AD40: 0 | AE40: 0 | AF40: 0 | AI40: =IF($A40>0,'RRR hist-forc'!K40,0) -> 0 | AJ40: 0
A41: ='Asset data'!A41 -> 2 | B41: ='Asset data'!B41 -> 0 | C41: ='Asset data'!C41 -> 0 | D41: ='Asset data'!E41 -> ˂ = 1 kV | E41: OVERHEAD CONDUCTORS | F41: =IF(A41>0,SUM('Asset data'!J41:CV41),0) -> 6739.8665 | G41: =IF(A41>0,'Asset data'!F41,0) -> 40.64137931 | H41: =IF(A41>0,SUM('Asset data'!CX41:GJ41),0) -> 273917.4709 | I41: 0.02683603651 | J41: 13 | K41: 0.08545604245 | L41: 40.64137931 | M41: =IF($A41>0,SUMPRODUCT('Age profile (years)'!$CT41:$GF41,'Asset data'!$CX41:$GJ41)/H41-0.5,0) -> 24.75211048 | N41: 6780035.504 | O41: =IF($A41>0,'Asset data'!G41,0) -> 114.7720837 | P41: 31438078.9 | Q41: 0.784336838 | R41: 11.47720837 | S41: 22.95441674 | T41: 68.86325022 | U41: 91.81766696 | W41: =IF($A41>0,SUMIF('Age profile (years)'!$CT41:$GF41,"<" & R41+0.5,'Asset data'!$CX41:$GJ41),0) -> 0 | X41: =IF($A41>0,SUMIF('Age profile (years)'!$CT41:$GF41,"<" & S41+0.5,'Asset data'!$CX41:$GJ41)-W41,0) -> 0 | Y41: =IF($A41>0,SUMIF('Age profile (years)'!$CT41:$GF41,"<" & T41+0.5,'Asset data'!$CX41:$GJ41)-X41-W41,0) -> 273150.1658 | Z41: =IF($A41>0,SUMIF('Age profile (years)'!$CT41:$GF41,"<" & U41+0.5,'Asset data'!$CX41:$GJ41)-Y41-X41-W41,0) -> 0 | AA41: 767.3051772 | AB41: 0 | AC41: 0 | AD41: 0.9971987724 | AE41: 0 | AF41: 0.002801227591 | AI41: =IF($A41>0,'RRR hist-forc'!K41,0) -> 114.7720837 | AJ41: 31438078.9
A42: ='Asset data'!A42 -> 2 | B42: ='Asset data'!B42 -> 0 | C42: ='Asset data'!C42 -> 0 | D42: ='Asset data'!E42 -> > 1 kV & < = 11 kV | E42: OVERHEAD CONDUCTORS | F42: =IF(A42>0,SUM('Asset data'!J42:CV42),0) -> 77.7817 | G42: =IF(A42>0,'Asset data'!F42,0) -> 71.62414072 | H42: =IF(A42>0,SUM('Asset data'!CX42:GJ42),0) -> 5571.047426 | I42: 0.0005458024697 | J42: 30 | K42: 0.001738040526 | L42: 71.62414072 | M42: =IF($A42>0,SUMPRODUCT('Age profile (years)'!$CT42:$GF42,'Asset data'!$CX42:$GJ42)/H42-0.5,0) -> 52.05611796 | N42: 290007.102 | O42: =IF($A42>0,'Asset data'!G42,0) -> 90.86897213 | P42: 506235.3533 | Q42: 0.4271298912 | R42: 9.086897213 | S42: 18.17379443 | T42: 54.52138328 | U42: 72.69517771 | W42: =IF($A42>0,SUMIF('Age profile (years)'!$CT42:$GF42,"<" & R42+0.5,'Asset data'!$CX42:$GJ42),0) -> 698.0703627 | X42: =IF($A42>0,SUMIF('Age profile (years)'!$CT42:$GF42,"<" & S42+0.5,'Asset data'!$CX42:$GJ42)-W42,0) -> 259.5157491 | Y42: =IF($A42>0,SUMIF('Age profile (years)'!$CT42:$GF42,"<" & T42+0.5,'Asset data'!$CX42:$GJ42)-X42-W42,0) -> 1601.143341 | Z42: =IF($A42>0,SUMIF('Age profile (years)'!$CT42:$GF42,"<" & U42+0.5,'Asset data'!$CX42:$GJ42)-Y42-X42-W42,0) -> 1830.261805 | AA42: 1182.056169 | AB42: 0.1253032526 | AC42: 0.0465829366 | AD42: 0.2874043638 | AE42: 0.3285310041 | AF42: 0.212178443 | AI42: =IF($A42>0,'RRR hist-forc'!K42,0) -> 90.86897213 | AJ42: 506235.3533
A43: ='Asset data'!A43 -> 2 | B43: ='Asset data'!B43 -> 0 | C43: ='Asset data'!C43 -> 0 | D43: ='Asset data'!E43 -> ˃ 11 kV & < = 22 kV ; SWER | E43: OVERHEAD CONDUCTORS | F43: =IF(A43>0,SUM('Asset data'!J43:CV43),0) -> 6553.8956 | G43: =IF(A43>0,'Asset data'!F43,0) -> 48.6061674 | H43: =IF(A43>0,SUM('Asset data'!CX43:GJ43),0) -> 318559.7467 | I43: 0.03120969598 | J43: 10 | K43: 0.09938342064 | L43: 48.6061674 | M43: =IF($A43>0,SUMPRODUCT('Age profile (years)'!$CT43:$GF43,'Asset data'!$CX43:$GJ43)/H43-0.5,0) -> 26.73086254 | N43: 8515376.8 | O43: =IF($A43>0,'Asset data'!G43,0) -> 67.24101639 | P43: 21420281.15 | Q43: 0.6024619499 | R43: 6.724101639 | S43: 13.44820328 | T43: 40.34460983 | U43: 53.79281311 | W43: =IF($A43>0,SUMIF('Age profile (years)'!$CT43:$GF43,"<" & R43+0.5,'Asset data'!$CX43:$GJ43),0) -> 8271.155967 | X43: =IF($A43>0,SUMIF('Age profile (years)'!$CT43:$GF43,"<" & S43+0.5,'Asset data'!$CX43:$GJ43)-W43,0) -> 48485.62411 | Y43: =IF($A43>0,SUMIF('Age profile (years)'!$CT43:$GF43,"<" & T43+0.5,'Asset data'!$CX43:$GJ43)-X43-W43,0) -> 193304.5842 | Z43: =IF($A43>0,SUMIF('Age profile (years)'!$CT43:$GF43,"<" & U43+0.5,'Asset data'!$CX43:$GJ43)-Y43-X43-W43,0) -> 40511.9233 | AA43: 27986.45907 | AB43: 0.02596422195 | AC43: 0.1522026076 | AD43: 0.6068079418 | AE43: 0.1271721356 | AF43: 0.08785309305 | AI43: =IF($A43>0,'RRR hist-forc'!K43,0) -> 67.24101639 | AJ43: 21420281.15
A44: ='Asset data'!A44 -> 0 | B44: ='Asset data'!B44 -> 0 | C44: ='Asset data'!C44 -> 0 | D44: ='Asset data'!E44 -> ˃ 11 kV & < = 22 kV ; Single-Phase | E44: 0 | F44: =IF(A44>0,SUM('Asset data'!J44:CV44),0) -> 0 | G44: =IF(A44>0,'Asset data'!F44,0) -> 0 | H44: =IF(A44>0,SUM('Asset data'!CX44:GJ44),0) -> 0 | I44: 0 | J44: 0 | K44: 0 | L44: 0 | M44: =IF($A44>0,SUMPRODUCT('Age profile (years)'!$CT44:$GF44,'Asset data'!$CX44:$GJ44)/H44-0.5,0) -> 0 | N44: 0 | O44: =IF($A44>0,'Asset data'!G44,0) -> 0 | P44: 0 | Q44: 0 | R44: 0 | S44: 0 | T44: 0 | U44: 0 | W44: =IF($A44>0,SUMIF('Age profile (years)'!$CT44:$GF44,"<" & R44+0.5,'Asset data'!$CX44:$GJ44),0) -> 0 | X44: =IF($A44>0,SUMIF('Age profile (years)'!$CT44:$GF44,"<" & S44+0.5,'Asset data'!$CX44:$GJ44)-W44,0) -> 0 | Y44: =IF($A44>0,SUMIF('Age profile (years)'!$CT44:$GF44,"<" & T44+0.5,'Asset data'!$CX44:$GJ44)-X44-W44,0) -> 0 | Z44: =IF($A44>0,SUMIF('Age profile (years)'!$CT44:$GF44,"<" & U44+0.5,'Asset data'!$CX44:$GJ44)-Y44-X44-W44,0) -> 0 | AA44: 0 | AB44: 0 | AC44: 0 | AD44: 0 | AE44: 0 | AF44: 0 | AI44: =IF($A44>0,'RRR hist-forc'!K44,0) -> 0 | AJ44: 0
A45: ='Asset data'!A45 -> 2 | B45: ='Asset data'!B45 -> 0 | C45: ='Asset data'!C45 -> 0 | D45: ='Asset data'!E45 -> ˃ 11 kV & < = 22 kV ; Multiple-Phase | E45: OVERHEAD CONDUCTORS | F45: =IF(A45>0,SUM('Asset data'!J45:CV45),0) -> 23012.4521 | G45: =IF(A45>0,'Asset data'!F45,0) -> 73.53952991 | H45: =IF(A45>0,SUM('Asset data'!CX45:GJ45),0) -> 1692324.91 | I45: 0.1657991836 | J45: 1 | K45: 0.5279670144 | L45: 73.53952991 | M45: =IF($A45>0,SUMPRODUCT('Age profile (years)'!$CT45:$GF45,'Asset data'!$CX45:$GJ45)/H45-0.5,0) -> 37.63630868 | N45: 63692862.68 | O45: =IF($A45>0,'Asset data'!G45,0) -> 74.60048119 | P45: 126248252.6 | Q45: 0.495495095 | R45: 7.460048119 | S45: 14.92009624 | T45: 44.76028871 | U45: 59.68038495 | W45: =IF($A45>0,SUMIF('Age profile (years)'!$CT45:$GF45,"<" & R45+0.5,'Asset data'!$CX45:$GJ45),0) -> 56554.70771 | X45: =IF($A45>0,SUMIF('Age profile (years)'!$CT45:$GF45,"<" & S45+0.5,'Asset data'!$CX45:$GJ45)-W45,0) -> 104343.4226 | Y45: =IF($A45>0,SUMIF('Age profile (years)'!$CT45:$GF45,"<" & T45+0.5,'Asset data'!$CX45:$GJ45)-X45-W45,0) -> 946535.2465 | Z45: =IF($A45>0,SUMIF('Age profile (years)'!$CT45:$GF45,"<" & U45+0.5,'Asset data'!$CX45:$GJ45)-Y45-X45-W45,0) -> 373593.1887 | AA45: 211298.3442 | AB45: 0.03341835093 | AC45: 0.06165684968 | AD45: 0.5593105917 | AE45: 0.2207573655 | AF45: 0.1248568422 | AI45: =IF($A45>0,'RRR hist-forc'!K45,0) -> 74.60048119 | AJ45: 126248252.6
A46: ='Asset data'!A46 -> 2 | B46: ='Asset data'!B46 -> 0 | C46: ='Asset data'!C46 -> 0 | D46: ='Asset data'!E46 -> > 22 kV & < = 66 kV | E46: OVERHEAD CONDUCTORS | F46: =IF(A46>0,SUM('Asset data'!J46:CV46),0) -> 2729.7444 | G46: =IF(A46>0,'Asset data'!F46,0) -> 335.1917808 | H46: =IF(A46>0,SUM('Asset data'!CX46:GJ46),0) -> 914987.8866 | I46: 0.08964250527 | J46: 3 | K46: 0.285455482 | L46: 335.1917808 | M46: =IF($A46>0,SUMPRODUCT('Age profile (years)'!$CT46:$GF46,'Asset data'!$CX46:$GJ46)/H46-0.5,0) -> 43.40848814 | N46: 39718240.82 | O46: =IF($A46>0,'Asset data'!G46,0) -> 89.17391238 | P46: 81593049.63 | Q46: 0.5132153903 | R46: 8.917391238 | S46: 17.83478248 | T46: 53.50434743 | U46: 71.33912991 | W46: =IF($A46>0,SUMIF('Age profile (years)'!$CT46:$GF46,"<" & R46+0.5,'Asset data'!$CX46:$GJ46),0) -> 93602.90814 | X46: =IF($A46>0,SUMIF('Age profile (years)'!$CT46:$GF46,"<" & S46+0.5,'Asset data'!$CX46:$GJ46)-W46,0) -> 35250.71178 | Y46: =IF($A46>0,SUMIF('Age profile (years)'!$CT46:$GF46,"<" & T46+0.5,'Asset data'!$CX46:$GJ46)-X46-W46,0) -> 505225.2529 | Z46: =IF($A46>0,SUMIF('Age profile (years)'!$CT46:$GF46,"<" & U46+0.5,'Asset data'!$CX46:$GJ46)-Y46-X46-W46,0) -> 137920.8928 | AA46: 142988.121 | AB46: 0.1022996146 | AC46: 0.0385258781 | AD46: 0.5521660563 | AE46: 0.1507352117 | AF46: 0.1562732394 | AI46: =IF($A46>0,'RRR hist-forc'!K46,0) -> 89.17391238 | AJ46: 81593049.63
A47: ='Asset data'!A47 -> 0 | B47: ='Asset data'!B47 -> 0 | C47: ='Asset data'!C47 -> 0 | D47: ='Asset data'!E47 -> > 66 kV & < = 132 kV | E47: 0 | F47: =IF(A47>0,SUM('Asset data'!J47:CV47),0) -> 0 | G47: =IF(A47>0,'Asset data'!F47,0) -> 0 | H47: =IF(A47>0,SUM('Asset data'!CX47:GJ47),0) -> 0 | I47: 0 | J47: 0 | K47: 0 | L47: 0 | M47: =IF($A47>0,SUMPRODUCT('Age profile (years)'!$CT47:$GF47,'Asset data'!$CX47:$GJ47)/H47-0.5,0) -> 0 | N47: 0 | O47: =IF($A47>0,'Asset data'!G47,0) -> 0 | P47: 0 | Q47: 0 | R47: 0 | S47: 0 | T47: 0 | U47: 0 | W47: =IF($A47>0,SUMIF('Age profile (years)'!$CT47:$GF47,"<" & R47+0.5,'Asset data'!$CX47:$GJ47),0) -> 0 | X47: =IF($A47>0,SUMIF('Age profile (years)'!$CT47:$GF47,"<" & S47+0.5,'Asset data'!$CX47:$GJ47)-W47,0) -> 0 | Y47: =IF($A47>0,SUMIF('Age profile (years)'!$CT47:$GF47,"<" & T47+0.5,'Asset data'!$CX47:$GJ47)-X47-W47,0) -> 0 | Z47: =IF($A47>0,SUMIF('Age profile (years)'!$CT47:$GF47,"<" & U47+0.5,'Asset data'!$CX47:$GJ47)-Y47-X47-W47,0) -> 0 | AA47: 0 | AB47: 0 | AC47: 0 | AD47: 0 | AE47: 0 | AF47: 0 | AI47: =IF($A47>0,'RRR hist-forc'!K47,0) -> 0 | AJ47: 0
A48: ='Asset data'!A48 -> 0 | B48: ='Asset data'!B48 -> 0 | C48: ='Asset data'!C48 -> 0 | D48: ='Asset data'!E48 -> > 132 kV | E48: 0 | F48: =IF(A48>0,SUM('Asset data'!J48:CV48),0) -> 0 | G48: =IF(A48>0,'Asset data'!F48,0) -> 0 | H48: =IF(A48>0,SUM('Asset data'!CX48:GJ48),0) -> 0 | I48: 0 | J48: 0 | K48: 0 | L48: 0 | M48: =IF($A48>0,SUMPRODUCT('Age profile (years)'!$CT48:$GF48,'Asset data'!$CX48:$GJ48)/H48-0.5,0) -> 0 | N48: 0 | O48: =IF($A48>0,'Asset data'!G48,0) -> 0 | P48: 0 | Q48: 0 | R48: 0 | S48: 0 | T48: 0 | U48: 0 | W48: =IF($A48>0,SUMIF('Age profile (years)'!$CT48:$GF48,"<" & R48+0.5,'Asset data'!$CX48:$GJ48),0) -> 0 | X48: =IF($A48>0,SUMIF('Age profile (years)'!$CT48:$GF48,"<" & S48+0.5,'Asset data'!$CX48:$GJ48)-W48,0) -> 0 | Y48: =IF($A48>0,SUMIF('Age profile (years)'!$CT48:$GF48,"<" & T48+0.5,'Asset data'!$CX48:$GJ48)-X48-W48,0) -> 0 | Z48: =IF($A48>0,SUMIF('Age profile (years)'!$CT48:$GF48,"<" & U48+0.5,'Asset data'!$CX48:$GJ48)-Y48-X48-W48,0) -> 0 | AA48: 0 | AB48: 0 | AC48: 0 | AD48: 0 | AE48: 0 | AF48: 0 | AI48: =IF($A48>0,'RRR hist-forc'!K48,0) -> 0 | AJ48: 0
A49: ='Asset data'!A49 -> 0 | B49: ='Asset data'!B49 -> 0 | C49: ='Asset data'!C49 -> 0 | D49: ='Asset data'!E49 -> Other | E49: 0 | F49: =IF(A49>0,SUM('Asset data'!J49:CV49),0) -> 0 | G49: =IF(A49>0,'Asset data'!F49,0) -> 0 | H49: =IF(A49>0,SUM('Asset data'!CX49:GJ49),0) -> 0 | I49: 0 | J49: 0 | K49: 0 | L49: 0 | M49: =IF($A49>0,SUMPRODUCT('Age profile (years)'!$CT49:$GF49,'Asset data'!$CX49:$GJ49)/H49-0.5,0) -> 0 | N49: 0 | O49: =IF($A49>0,'Asset data'!G49,0) -> 0 | P49: 0 | Q49: 0 | R49: 0 | S49: 0 | T49: 0 | U49: 0 | W49: =IF($A49>0,SUMIF('Age profile (years)'!$CT49:$GF49,"<" & R49+0.5,'Asset data'!$CX49:$GJ49),0) -> 0 | X49: =IF($A49>0,SUMIF('Age profile (years)'!$CT49:$GF49,"<" & S49+0.5,'Asset data'!$CX49:$GJ49)-W49,0) -> 0 | Y49: =IF($A49>0,SUMIF('Age profile (years)'!$CT49:$GF49,"<" & T49+0.5,'Asset data'!$CX49:$GJ49)-X49-W49,0) -> 0 | Z49: =IF($A49>0,SUMIF('Age profile (years)'!$CT49:$GF49,"<" & U49+0.5,'Asset data'!$CX49:$GJ49)-Y49-X49-W49,0) -> 0 | AA49: 0 | AB49: 0 | AC49: 0 | AD49: 0 | AE49: 0 | AF49: 0 | AI49: =IF($A49>0,'RRR hist-forc'!K49,0) -> 0 | AJ49: 0
A50: ='Asset data'!A50 -> 3 | B50: ='Asset data'!B50 -> 0 | C50: ='Asset data'!C50 -> 0 | D50: ='Asset data'!E50 -> ˂ = 1 kV | E50: UNDERGROUND CABLES | F50: =IF(A50>0,SUM('Asset data'!J50:CV50),0) -> 3881.0032 | G50: =IF(A50>0,'Asset data'!F50,0) -> 220.9071552 | H50: =IF(A50>0,SUM('Asset data'!CX50:GJ50),0) -> 857341.3764 | I50: 0.08399480471 | J50: 5 | K50: 0.4876725452 | L50: 220.9071552 | M50: =IF($A50>0,SUMPRODUCT('Age profile (years)'!$CT50:$GF50,'Asset data'!$CX50:$GJ50)/H50-0.5,0) -> 59.90418367 | N50: 51358335.27 | O50: =IF($A50>0,'Asset data'!G50,0) -> 86.07935865 | P50: 73799395.82 | Q50: 0.3040819006 | R50: 8.607935865 | S50: 17.21587173 | T50: 51.64761519 | U50: 68.86348692 | W50: =IF($A50>0,SUMIF('Age profile (years)'!$CT50:$GF50,"<" & R50+0.5,'Asset data'!$CX50:$GJ50),0) -> 89772.73574 | X50: =IF($A50>0,SUMIF('Age profile (years)'!$CT50:$GF50,"<" & S50+0.5,'Asset data'!$CX50:$GJ50)-W50,0) -> 0 | Y50: =IF($A50>0,SUMIF('Age profile (years)'!$CT50:$GF50,"<" & T50+0.5,'Asset data'!$CX50:$GJ50)-X50-W50,0) -> 259282.0196 | Z50: =IF($A50>0,SUMIF('Age profile (years)'!$CT50:$GF50,"<" & U50+0.5,'Asset data'!$CX50:$GJ50)-Y50-X50-W50,0) -> 67638.56778 | AA50: 440648.0532 | AB50: 0.1047106068 | AC50: 0 | AD50: 0.302425646 | AE50: 0.07889339025 | AF50: 0.5139703569 | AI50: =IF($A50>0,'RRR hist-forc'!K50,0) -> 86.07935865 | AJ50: 73799395.82
A51: ='Asset data'!A51 -> 3 | B51: ='Asset data'!B51 -> 0 | C51: ='Asset data'!C51 -> 0 | D51: ='Asset data'!E51 -> > 1 kV & < = 11 kV | E51: UNDERGROUND CABLES | F51: =IF(A51>0,SUM('Asset data'!J51:CV51),0) -> 4.3314 | G51: =IF(A51>0,'Asset data'!F51,0) -> 610.1107977 | H51: =IF(A51>0,SUM('Asset data'!CX51:GJ51),0) -> 2642.633909 | I51: 0.0002589021424 | J51: 34 | K51: 0.00150318186 | L51: 610.1107977 | M51: =IF($A51>0,SUMPRODUCT('Age profile (years)'!$CT51:$GF51,'Asset data'!$CX51:$GJ51)/H51-0.5,0) -> 36.31562543 | N51: 95968.9032 | O51: =IF($A51>0,'Asset data'!G51,0) -> 86.08382465 | P51: 227488.034 | Q51: 0.5781364782 | R51: 8.608382465 | S51: 17.21676493 | T51: 51.65029479 | U51: 68.86705972 | W51: =IF($A51>0,SUMIF('Age profile (years)'!$CT51:$GF51,"<" & R51+0.5,'Asset data'!$CX51:$GJ51),0) -> 509.4425161 | X51: =IF($A51>0,SUMIF('Age profile (years)'!$CT51:$GF51,"<" & S51+0.5,'Asset data'!$CX51:$GJ51)-W51,0) -> 0 | Y51: =IF($A51>0,SUMIF('Age profile (years)'!$CT51:$GF51,"<" & T51+0.5,'Asset data'!$CX51:$GJ51)-X51-W51,0) -> 2097.926989 | Z51: =IF($A51>0,SUMIF('Age profile (years)'!$CT51:$GF51,"<" & U51+0.5,'Asset data'!$CX51:$GJ51)-Y51-X51-W51,0) -> -1.705302566e-13 | AA51: 35.26440411 | AB51: 0.1927783165 | AC51: 0 | AD51: 0.7938772683 | AE51: -6.453041263e-17 | AF51: 0.0133444152 | AI51: =IF($A51>0,'RRR hist-forc'!K51,0) -> 86.08382465 | AJ51: 227488.034
A52: ='Asset data'!A52 -> 3 | B52: ='Asset data'!B52 -> 0 | C52: ='Asset data'!C52 -> 0 | D52: ='Asset data'!E52 -> > 11 kV & < = 22 kV | E52: UNDERGROUND CABLES | F52: =IF(A52>0,SUM('Asset data'!J52:CV52),0) -> 1831.0571 | G52: =IF(A52>0,'Asset data'!F52,0) -> 489.4424242 | H52: =IF(A52>0,SUM('Asset data'!CX52:GJ52),0) -> 896197.026 | I52: 0.0878015412 | J52: 4 | K52: 0.5097743987 | L52: 489.4424242 | M52: =IF($A52>0,SUMPRODUCT('Age profile (years)'!$CT52:$GF52,'Asset data'!$CX52:$GJ52)/H52-0.5,0) -> 58.51729695 | N52: 52443027.49 | O52: =IF($A52>0,'Asset data'!G52,0) -> 86.07551659 | P52: 77140621.97 | Q52: 0.3201632791 | R52: 8.607551659 | S52: 17.21510332 | T52: 51.64530995 | U52: 68.86041327 | W52: =IF($A52>0,SUMIF('Age profile (years)'!$CT52:$GF52,"<" & R52+0.5,'Asset data'!$CX52:$GJ52),0) -> 105215.6827 | X52: =IF($A52>0,SUMIF('Age profile (years)'!$CT52:$GF52,"<" & S52+0.5,'Asset data'!$CX52:$GJ52)-W52,0) -> 0 | Y52: =IF($A52>0,SUMIF('Age profile (years)'!$CT52:$GF52,"<" & T52+0.5,'Asset data'!$CX52:$GJ52)-X52-W52,0) -> 235823.7362 | Z52: =IF($A52>0,SUMIF('Age profile (years)'!$CT52:$GF52,"<" & U52+0.5,'Asset data'!$CX52:$GJ52)-Y52-X52-W52,0) -> 93832.13287 | AA52: 461325.4742 | AB52: 0.1174024011 | AC52: 0 | AD52: 0.2631382713 | AE52: 0.1047003395 | AF52: 0.5147589881 | AI52: =IF($A52>0,'RRR hist-forc'!K52,0) -> 86.07551659 | AJ52: 77140621.97
A53: ='Asset data'!A53 -> 0 | B53: ='Asset data'!B53 -> 0 | C53: ='Asset data'!C53 -> 0 | D53: ='Asset data'!E53 -> > 22 kV & < = 33 kV | E53: 0 | F53: =IF(A53>0,SUM('Asset data'!J53:CV53),0) -> 0 | G53: =IF(A53>0,'Asset data'!F53,0) -> 0 | H53: =IF(A53>0,SUM('Asset data'!CX53:GJ53),0) -> 0 | I53: 0 | J53: 0 | K53: 0 | L53: 0 | M53: =IF($A53>0,SUMPRODUCT('Age profile (years)'!$CT53:$GF53,'Asset data'!$CX53:$GJ53)/H53-0.5,0) -> 0 | N53: 0 | O53: =IF($A53>0,'Asset data'!G53,0) -> 0 | P53: 0 | Q53: 0 | R53: 0 | S53: 0 | T53: 0 | U53: 0 | W53: =IF($A53>0,SUMIF('Age profile (years)'!$CT53:$GF53,"<" & R53+0.5,'Asset data'!$CX53:$GJ53),0) -> 0 | X53: =IF($A53>0,SUMIF('Age profile (years)'!$CT53:$GF53,"<" & S53+0.5,'Asset data'!$CX53:$GJ53)-W53,0) -> 0 | Y53: =IF($A53>0,SUMIF('Age profile (years)'!$CT53:$GF53,"<" & T53+0.5,'Asset data'!$CX53:$GJ53)-X53-W53,0) -> 0 | Z53: =IF($A53>0,SUMIF('Age profile (years)'!$CT53:$GF53,"<" & U53+0.5,'Asset data'!$CX53:$GJ53)-Y53-X53-W53,0) -> 0 | AA53: 0 | AB53: 0 | AC53: 0 | AD53: 0 | AE53: 0 | AF53: 0 | AI53: =IF($A53>0,'RRR hist-forc'!K53,0) -> 0 | AJ53: 0
A54: ='Asset data'!A54 -> 3 | B54: ='Asset data'!B54 -> 0 | C54: ='Asset data'!C54 -> 0 | D54: ='Asset data'!E54 -> > 33 kV & < = 66 kV | E54: UNDERGROUND CABLES | F54: =IF(A54>0,SUM('Asset data'!J54:CV54),0) -> 11.7584 | G54: =IF(A54>0,'Asset data'!F54,0) -> 156.9692204 | H54: =IF(A54>0,SUM('Asset data'!CX54:GJ54),0) -> 1845.706881 | I54: 0.0001808262068 | J54: 36 | K54: 0.001049874177 | L54: 156.9692204 | M54: =IF($A54>0,SUMPRODUCT('Age profile (years)'!$CT54:$GF54,'Asset data'!$CX54:$GJ54)/H54-0.5,0) -> 39.20308035 | N54: 72357.39515 | O54: =IF($A54>0,'Asset data'!G54,0) -> 92.19234785 | P54: 170160.0508 | Q54: 0.5747686086 | R54: 9.219234785 | S54: 18.43846957 | T54: 55.31540871 | U54: 73.75387828 | W54: =IF($A54>0,SUMIF('Age profile (years)'!$CT54:$GF54,"<" & R54+0.5,'Asset data'!$CX54:$GJ54),0) -> 898.8528465 | X54: =IF($A54>0,SUMIF('Age profile (years)'!$CT54:$GF54,"<" & S54+0.5,'Asset data'!$CX54:$GJ54)-W54,0) -> 0 | Y54: =IF($A54>0,SUMIF('Age profile (years)'!$CT54:$GF54,"<" & T54+0.5,'Asset data'!$CX54:$GJ54)-X54-W54,0) -> 139.5770307 | Z54: =IF($A54>0,SUMIF('Age profile (years)'!$CT54:$GF54,"<" & U54+0.5,'Asset data'!$CX54:$GJ54)-Y54-X54-W54,0) -> 0 | AA54: 807.2770034 | AB54: 0.4869965301 | AC54: 0 | AD54: 0.07562253368 | AE54: 0 | AF54: 0.4373809362 | AI54: =IF($A54>0,'RRR hist-forc'!K54,0) -> 92.19234785 | AJ54: 170160.0508
A55: ='Asset data'!A55 -> 0 | B55: ='Asset data'!B55 -> 0 | C55: ='Asset data'!C55 -> 0 | D55: ='Asset data'!E55 -> > 66 kV & < = 132 kV | E55: 0 | F55: =IF(A55>0,SUM('Asset data'!J55:CV55),0) -> 0 | G55: =IF(A55>0,'Asset data'!F55,0) -> 0 | H55: =IF(A55>0,SUM('Asset data'!CX55:GJ55),0) -> 0 | I55: 0 | J55: 0 | K55: 0 | L55: 0 | M55: =IF($A55>0,SUMPRODUCT('Age profile (years)'!$CT55:$GF55,'Asset data'!$CX55:$GJ55)/H55-0.5,0) -> 0 | N55: 0 | O55: =IF($A55>0,'Asset data'!G55,0) -> 0 | P55: 0 | Q55: 0 | R55: 0 | S55: 0 | T55: 0 | U55: 0 | W55: =IF($A55>0,SUMIF('Age profile (years)'!$CT55:$GF55,"<" & R55+0.5,'Asset data'!$CX55:$GJ55),0) -> 0 | X55: =IF($A55>0,SUMIF('Age profile (years)'!$CT55:$GF55,"<" & S55+0.5,'Asset data'!$CX55:$GJ55)-W55,0) -> 0 | Y55: =IF($A55>0,SUMIF('Age profile (years)'!$CT55:$GF55,"<" & T55+0.5,'Asset data'!$CX55:$GJ55)-X55-W55,0) -> 0 | Z55: =IF($A55>0,SUMIF('Age profile (years)'!$CT55:$GF55,"<" & U55+0.5,'Asset data'!$CX55:$GJ55)-Y55-X55-W55,0) -> 0 | AA55: 0 | AB55: 0 | AC55: 0 | AD55: 0 | AE55: 0 | AF55: 0 | AI55: =IF($A55>0,'RRR hist-forc'!K55,0) -> 0 | AJ55: 0
A56: ='Asset data'!A56 -> 0 | B56: ='Asset data'!B56 -> 0 | C56: ='Asset data'!C56 -> 0 | D56: ='Asset data'!E56 -> > 132 kV | E56: 0 | F56: =IF(A56>0,SUM('Asset data'!J56:CV56),0) -> 0 | G56: =IF(A56>0,'Asset data'!F56,0) -> 0 | H56: =IF(A56>0,SUM('Asset data'!CX56:GJ56),0) -> 0 | I56: 0 | J56: 0 | K56: 0 | L56: 0 | M56: =IF($A56>0,SUMPRODUCT('Age profile (years)'!$CT56:$GF56,'Asset data'!$CX56:$GJ56)/H56-0.5,0) -> 0 | N56: 0 | O56: =IF($A56>0,'Asset data'!G56,0) -> 0 | P56: 0 | Q56: 0 | R56: 0 | S56: 0 | T56: 0 | U56: 0 | W56: =IF($A56>0,SUMIF('Age profile (years)'!$CT56:$GF56,"<" & R56+0.5,'Asset data'!$CX56:$GJ56),0) -> 0 | X56: =IF($A56>0,SUMIF('Age profile (years)'!$CT56:$GF56,"<" & S56+0.5,'Asset data'!$CX56:$GJ56)-W56,0) -> 0 | Y56: =IF($A56>0,SUMIF('Age profile (years)'!$CT56:$GF56,"<" & T56+0.5,'Asset data'!$CX56:$GJ56)-X56-W56,0) -> 0 | Z56: =IF($A56>0,SUMIF('Age profile (years)'!$CT56:$GF56,"<" & U56+0.5,'Asset data'!$CX56:$GJ56)-Y56-X56-W56,0) -> 0 | AA56: 0 | AB56: 0 | AC56: 0 | AD56: 0 | AE56: 0 | AF56: 0 | AI56: =IF($A56>0,'RRR hist-forc'!K56,0) -> 0 | AJ56: 0
A57: ='Asset data'!A57 -> 0 | B57: ='Asset data'!B57 -> 0 | C57: ='Asset data'!C57 -> 0 | D57: ='Asset data'!E57 -> Other | E57: 0 | F57: =IF(A57>0,SUM('Asset data'!J57:CV57),0) -> 0 | G57: =IF(A57>0,'Asset data'!F57,0) -> 0 | H57: =IF(A57>0,SUM('Asset data'!CX57:GJ57),0) -> 0 | I57: 0 | J57: 0 | K57: 0 | L57: 0 | M57: =IF($A57>0,SUMPRODUCT('Age profile (years)'!$CT57:$GF57,'Asset data'!$CX57:$GJ57)/H57-0.5,0) -> 0 | N57: 0 | O57: =IF($A57>0,'Asset data'!G57,0) -> 0 | P57: 0 | Q57: 0 | R57: 0 | S57: 0 | T57: 0 | U57: 0 | W57: =IF($A57>0,SUMIF('Age profile (years)'!$CT57:$GF57,"<" & R57+0.5,'Asset data'!$CX57:$GJ57),0) -> 0 | X57: =IF($A57>0,SUMIF('Age profile (years)'!$CT57:$GF57,"<" & S57+0.5,'Asset data'!$CX57:$GJ57)-W57,0) -> 0 | Y57: =IF($A57>0,SUMIF('Age profile (years)'!$CT57:$GF57,"<" & T57+0.5,'Asset data'!$CX57:$GJ57)-X57-W57,0) -> 0 | Z57: =IF($A57>0,SUMIF('Age profile (years)'!$CT57:$GF57,"<" & U57+0.5,'Asset data'!$CX57:$GJ57)-Y57-X57-W57,0) -> 0 | AA57: 0 | AB57: 0 | AC57: 0 | AD57: 0 | AE57: 0 | AF57: 0 | AI57: =IF($A57>0,'RRR hist-forc'!K57,0) -> 0 | AJ57: 0
A58: ='Asset data'!A58 -> 4 | B58: ='Asset data'!B58 -> 0 | C58: ='Asset data'!C58 -> 0 | D58: ='Asset data'!E58 -> ˂ = 11 kV ; Residential ; Simple Type | E58: SERVICE LINES | F58: =IF(A58>0,SUM('Asset data'!J58:CV58),0) -> 11354 | G58: =IF(A58>0,'Asset data'!F58,0) -> 33.21825397 | H58: =IF(A58>0,SUM('Asset data'!CX58:GJ58),0) -> 377160.0556 | I58: 0.03695084139 | J58: 9 | K58: 0.9075994595 | L58: 33.21825397 | M58: =IF($A58>0,SUMPRODUCT('Age profile (years)'!$CT58:$GF58,'Asset data'!$CX58:$GJ58)/H58-0.5,0) -> 49.22494275 | N58: 18565682.14 | O58: =IF($A58>0,'Asset data'!G58,0) -> 95.47117493 | P58: 36007913.64 | Q58: 0.4843999481 | R58: 9.547117493 | S58: 19.09423499 | T58: 57.28270496 | U58: 76.37693994 | W58: =IF($A58>0,SUMIF('Age profile (years)'!$CT58:$GF58,"<" & R58+0.5,'Asset data'!$CX58:$GJ58),0) -> 132939.4524 | X58: =IF($A58>0,SUMIF('Age profile (years)'!$CT58:$GF58,"<" & S58+0.5,'Asset data'!$CX58:$GJ58)-W58,0) -> 0 | Y58: =IF($A58>0,SUMIF('Age profile (years)'!$CT58:$GF58,"<" & T58+0.5,'Asset data'!$CX58:$GJ58)-X58-W58,0) -> 12988.3373 | Z58: =IF($A58>0,SUMIF('Age profile (years)'!$CT58:$GF58,"<" & U58+0.5,'Asset data'!$CX58:$GJ58)-Y58-X58-W58,0) -> 96200.06349 | AA58: 135032.2024 | AB58: 0.3524748987 | AC58: 0 | AD58: 0.03443720275 | AE58: 0.2550642945 | AF58: 0.358023604 | AI58: =IF($A58>0,'RRR hist-forc'!K58,0) -> 95.47117493 | AJ58: 36007913.64
A59: ='Asset data'!A59 -> 4 | B59: ='Asset data'!B59 -> 0 | C59: ='Asset data'!C59 -> 0 | D59: ='Asset data'!E59 -> ˂ = 11 kV ; Commercial & Industrial ; Simple Type | E59: SERVICE LINES | F59: =IF(A59>0,SUM('Asset data'!J59:CV59),0) -> 1274 | G59: =IF(A59>0,'Asset data'!F59,0) -> 30.13953488 | H59: =IF(A59>0,SUM('Asset data'!CX59:GJ59),0) -> 38397.76744 | I59: 0.003761877202 | J59: 26 | K59: 0.09240054047 | L59: 30.13953488 | M59: =IF($A59>0,SUMPRODUCT('Age profile (years)'!$CT59:$GF59,'Asset data'!$CX59:$GJ59)/H59-0.5,0) -> 49.12401884 | N59: 1886252.651 | O59: =IF($A59>0,'Asset data'!G59,0) -> 94.98228087 | P59: 3647107.532 | Q59: 0.4828085998 | R59: 9.498228087 | S59: 18.99645617 | T59: 56.98936852 | U59: 75.98582469 | W59: =IF($A59>0,SUMIF('Age profile (years)'!$CT59:$GF59,"<" & R59+0.5,'Asset data'!$CX59:$GJ59),0) -> 13592.93023 | X59: =IF($A59>0,SUMIF('Age profile (years)'!$CT59:$GF59,"<" & S59+0.5,'Asset data'!$CX59:$GJ59)-W59,0) -> 0 | Y59: =IF($A59>0,SUMIF('Age profile (years)'!$CT59:$GF59,"<" & T59+0.5,'Asset data'!$CX59:$GJ59)-X59-W59,0) -> 1296 | Z59: =IF($A59>0,SUMIF('Age profile (years)'!$CT59:$GF59,"<" & U59+0.5,'Asset data'!$CX59:$GJ59)-Y59-X59-W59,0) -> 9795.348837 | AA59: 13713.48837 | AB59: 0.3540031397 | AC59: 0 | AD59: 0.03375196232 | AE59: 0.2551020408 | AF59: 0.3571428571 | AI59: =IF($A59>0,'RRR hist-forc'!K59,0) -> 94.98228087 | AJ59: 3647107.532
A60: ='Asset data'!A60 -> 0 | B60: ='Asset data'!B60 -> 0 | C60: ='Asset data'!C60 -> 0 | D60: ='Asset data'!E60 -> ˂ = 11 kV ; Residential ; Complex Type | E60: 0 | F60: =IF(A60>0,SUM('Asset data'!J60:CV60),0) -> 0 | G60: =IF(A60>0,'Asset data'!F60,0) -> 0 | H60: =IF(A60>0,SUM('Asset data'!CX60:GJ60),0) -> 0 | I60: 0 | J60: 0 | K60: 0 | L60: 0 | M60: =IF($A60>0,SUMPRODUCT('Age profile (years)'!$CT60:$GF60,'Asset data'!$CX60:$GJ60)/H60-0.5,0) -> 0 | N60: 0 | O60: =IF($A60>0,'Asset data'!G60,0) -> 0 | P60: 0 | Q60: 0 | R60: 0 | S60: 0 | T60: 0 | U60: 0 | W60: =IF($A60>0,SUMIF('Age profile (years)'!$CT60:$GF60,"<" & R60+0.5,'Asset data'!$CX60:$GJ60),0) -> 0 | X60: =IF($A60>0,SUMIF('Age profile (years)'!$CT60:$GF60,"<" & S60+0.5,'Asset data'!$CX60:$GJ60)-W60,0) -> 0 | Y60: =IF($A60>0,SUMIF('Age profile (years)'!$CT60:$GF60,"<" & T60+0.5,'Asset data'!$CX60:$GJ60)-X60-W60,0) -> 0 | Z60: =IF($A60>0,SUMIF('Age profile (years)'!$CT60:$GF60,"<" & U60+0.5,'Asset data'!$CX60:$GJ60)-Y60-X60-W60,0) -> 0 | AA60: 0 | AB60: 0 | AC60: 0 | AD60: 0 | AE60: 0 | AF60: 0 | AI60: =IF($A60>0,'RRR hist-forc'!K60,0) -> 0 | AJ60: 0
A61: ='Asset data'!A61 -> 0 | B61: ='Asset data'!B61 -> 0 | C61: ='Asset data'!C61 -> 0 | D61: ='Asset data'!E61 -> ˂ = 11 kV ; Commercial & Industrial ; Complex Type | E61: 0 | F61: =IF(A61>0,SUM('Asset data'!J61:CV61),0) -> 0 | G61: =IF(A61>0,'Asset data'!F61,0) -> 0 | H61: =IF(A61>0,SUM('Asset data'!CX61:GJ61),0) -> 0 | I61: 0 | J61: 0 | K61: 0 | L61: 0 | M61: =IF($A61>0,SUMPRODUCT('Age profile (years)'!$CT61:$GF61,'Asset data'!$CX61:$GJ61)/H61-0.5,0) -> 0 | N61: 0 | O61: =IF($A61>0,'Asset data'!G61,0) -> 0 | P61: 0 | Q61: 0 | R61: 0 | S61: 0 | T61: 0 | U61: 0 | W61: =IF($A61>0,SUMIF('Age profile (years)'!$CT61:$GF61,"<" & R61+0.5,'Asset data'!$CX61:$GJ61),0) -> 0 | X61: =IF($A61>0,SUMIF('Age profile (years)'!$CT61:$GF61,"<" & S61+0.5,'Asset data'!$CX61:$GJ61)-W61,0) -> 0 | Y61: =IF($A61>0,SUMIF('Age profile (years)'!$CT61:$GF61,"<" & T61+0.5,'Asset data'!$CX61:$GJ61)-X61-W61,0) -> 0 | Z61: =IF($A61>0,SUMIF('Age profile (years)'!$CT61:$GF61,"<" & U61+0.5,'Asset data'!$CX61:$GJ61)-Y61-X61-W61,0) -> 0 | AA61: 0 | AB61: 0 | AC61: 0 | AD61: 0 | AE61: 0 | AF61: 0 | AI61: =IF($A61>0,'RRR hist-forc'!K61,0) -> 0 | AJ61: 0
A62: ='Asset data'!A62 -> 0 | B62: ='Asset data'!B62 -> 0 | C62: ='Asset data'!C62 -> 0 | D62: ='Asset data'!E62 -> ˂ = 11 kV ; Subdivision ; Complex Type | E62: 0 | F62: =IF(A62>0,SUM('Asset data'!J62:CV62),0) -> 0 | G62: =IF(A62>0,'Asset data'!F62,0) -> 0 | H62: =IF(A62>0,SUM('Asset data'!CX62:GJ62),0) -> 0 | I62: 0 | J62: 0 | K62: 0 | L62: 0 | M62: =IF($A62>0,SUMPRODUCT('Age profile (years)'!$CT62:$GF62,'Asset data'!$CX62:$GJ62)/H62-0.5,0) -> 0 | N62: 0 | O62: =IF($A62>0,'Asset data'!G62,0) -> 0 | P62: 0 | Q62: 0 | R62: 0 | S62: 0 | T62: 0 | U62: 0 | W62: =IF($A62>0,SUMIF('Age profile (years)'!$CT62:$GF62,"<" & R62+0.5,'Asset data'!$CX62:$GJ62),0) -> 0 | X62: =IF($A62>0,SUMIF('Age profile (years)'!$CT62:$GF62,"<" & S62+0.5,'Asset data'!$CX62:$GJ62)-W62,0) -> 0 | Y62: =IF($A62>0,SUMIF('Age profile (years)'!$CT62:$GF62,"<" & T62+0.5,'Asset data'!$CX62:$GJ62)-X62-W62,0) -> 0 | Z62: =IF($A62>0,SUMIF('Age profile (years)'!$CT62:$GF62,"<" & U62+0.5,'Asset data'!$CX62:$GJ62)-Y62-X62-W62,0) -> 0 | AA62: 0 | AB62: 0 | AC62: 0 | AD62: 0 | AE62: 0 | AF62: 0 | AI62: =IF($A62>0,'RRR hist-forc'!K62,0) -> 0 | AJ62: 0
A63: ='Asset data'!A63 -> 0 | B63: ='Asset data'!B63 -> 0 | C63: ='Asset data'!C63 -> 0 | D63: ='Asset data'!E63 -> > 11 kV & < = 22 kV ; Commercial & Industrial | E63: 0 | F63: =IF(A63>0,SUM('Asset data'!J63:CV63),0) -> 0 | G63: =IF(A63>0,'Asset data'!F63,0) -> 0 | H63: =IF(A63>0,SUM('Asset data'!CX63:GJ63),0) -> 0 | I63: 0 | J63: 0 | K63: 0 | L63: 0 | M63: =IF($A63>0,SUMPRODUCT('Age profile (years)'!$CT63:$GF63,'Asset data'!$CX63:$GJ63)/H63-0.5,0) -> 0 | N63: 0 | O63: =IF($A63>0,'Asset data'!G63,0) -> 0 | P63: 0 | Q63: 0 | R63: 0 | S63: 0 | T63: 0 | U63: 0 | W63: =IF($A63>0,SUMIF('Age profile (years)'!$CT63:$GF63,"<" & R63+0.5,'Asset data'!$CX63:$GJ63),0) -> 0 | X63: =IF($A63>0,SUMIF('Age profile (years)'!$CT63:$GF63,"<" & S63+0.5,'Asset data'!$CX63:$GJ63)-W63,0) -> 0 | Y63: =IF($A63>0,SUMIF('Age profile (years)'!$CT63:$GF63,"<" & T63+0.5,'Asset data'!$CX63:$GJ63)-X63-W63,0) -> 0 | Z63: =IF($A63>0,SUMIF('Age profile (years)'!$CT63:$GF63,"<" & U63+0.5,'Asset data'!$CX63:$GJ63)-Y63-X63-W63,0) -> 0 | AA63: 0 | AB63: 0 | AC63: 0 | AD63: 0 | AE63: 0 | AF63: 0 | AI63: =IF($A63>0,'RRR hist-forc'!K63,0) -> 0 | AJ63: 0
A64: ='Asset data'!A64 -> 0 | B64: ='Asset data'!B64 -> 0 | C64: ='Asset data'!C64 -> 0 | D64: ='Asset data'!E64 -> > 11 kV & < = 22 kV ; Subdivision | E64: 0 | F64: =IF(A64>0,SUM('Asset data'!J64:CV64),0) -> 0 | G64: =IF(A64>0,'Asset data'!F64,0) -> 0 | H64: =IF(A64>0,SUM('Asset data'!CX64:GJ64),0) -> 0 | I64: 0 | J64: 0 | K64: 0 | L64: 0 | M64: =IF($A64>0,SUMPRODUCT('Age profile (years)'!$CT64:$GF64,'Asset data'!$CX64:$GJ64)/H64-0.5,0) -> 0 | N64: 0 | O64: =IF($A64>0,'Asset data'!G64,0) -> 0 | P64: 0 | Q64: 0 | R64: 0 | S64: 0 | T64: 0 | U64: 0 | W64: =IF($A64>0,SUMIF('Age profile (years)'!$CT64:$GF64,"<" & R64+0.5,'Asset data'!$CX64:$GJ64),0) -> 0 | X64: =IF($A64>0,SUMIF('Age profile (years)'!$CT64:$GF64,"<" & S64+0.5,'Asset data'!$CX64:$GJ64)-W64,0) -> 0 | Y64: =IF($A64>0,SUMIF('Age profile (years)'!$CT64:$GF64,"<" & T64+0.5,'Asset data'!$CX64:$GJ64)-X64-W64,0) -> 0 | Z64: =IF($A64>0,SUMIF('Age profile (years)'!$CT64:$GF64,"<" & U64+0.5,'Asset data'!$CX64:$GJ64)-Y64-X64-W64,0) -> 0 | AA64: 0 | AB64: 0 | AC64: 0 | AD64: 0 | AE64: 0 | AF64: 0 | AI64: =IF($A64>0,'RRR hist-forc'!K64,0) -> 0 | AJ64: 0
A65: ='Asset data'!A65 -> 0 | B65: ='Asset data'!B65 -> 0 | C65: ='Asset data'!C65 -> 0 | D65: ='Asset data'!E65 -> > 22 kV & < = 33 kV ; Commercial & Industrial | E65: 0 | F65: =IF(A65>0,SUM('Asset data'!J65:CV65),0) -> 0 | G65: =IF(A65>0,'Asset data'!F65,0) -> 0 | H65: =IF(A65>0,SUM('Asset data'!CX65:GJ65),0) -> 0 | I65: 0 | J65: 0 | K65: 0 | L65: 0 | M65: =IF($A65>0,SUMPRODUCT('Age profile (years)'!$CT65:$GF65,'Asset data'!$CX65:$GJ65)/H65-0.5,0) -> 0 | N65: 0 | O65: =IF($A65>0,'Asset data'!G65,0) -> 0 | P65: 0 | Q65: 0 | R65: 0 | S65: 0 | T65: 0 | U65: 0 | W65: =IF($A65>0,SUMIF('Age profile (years)'!$CT65:$GF65,"<" & R65+0.5,'Asset data'!$CX65:$GJ65),0) -> 0 | X65: =IF($A65>0,SUMIF('Age profile (years)'!$CT65:$GF65,"<" & S65+0.5,'Asset data'!$CX65:$GJ65)-W65,0) -> 0 | Y65: =IF($A65>0,SUMIF('Age profile (years)'!$CT65:$GF65,"<" & T65+0.5,'Asset data'!$CX65:$GJ65)-X65-W65,0) -> 0 | Z65: =IF($A65>0,SUMIF('Age profile (years)'!$CT65:$GF65,"<" & U65+0.5,'Asset data'!$CX65:$GJ65)-Y65-X65-W65,0) -> 0 | AA65: 0 | AB65: 0 | AC65: 0 | AD65: 0 | AE65: 0 | AF65: 0 | AI65: =IF($A65>0,'RRR hist-forc'!K65,0) -> 0 | AJ65: 0
A66: ='Asset data'!A66 -> 0 | B66: ='Asset data'!B66 -> 0 | C66: ='Asset data'!C66 -> 0 | D66: ='Asset data'!E66 -> > 22 kV & < = 33 kV ; Subdivision | E66: 0 | F66: =IF(A66>0,SUM('Asset data'!J66:CV66),0) -> 0 | G66: =IF(A66>0,'Asset data'!F66,0) -> 0 | H66: =IF(A66>0,SUM('Asset data'!CX66:GJ66),0) -> 0 | I66: 0 | J66: 0 | K66: 0 | L66: 0 | M66: =IF($A66>0,SUMPRODUCT('Age profile (years)'!$CT66:$GF66,'Asset data'!$CX66:$GJ66)/H66-0.5,0) -> 0 | N66: 0 | O66: =IF($A66>0,'Asset data'!G66,0) -> 0 | P66: 0 | Q66: 0 | R66: 0 | S66: 0 | T66: 0 | U66: 0 | W66: =IF($A66>0,SUMIF('Age profile (years)'!$CT66:$GF66,"<" & R66+0.5,'Asset data'!$CX66:$GJ66),0) -> 0 | X66: =IF($A66>0,SUMIF('Age profile (years)'!$CT66:$GF66,"<" & S66+0.5,'Asset data'!$CX66:$GJ66)-W66,0) -> 0 | Y66: =IF($A66>0,SUMIF('Age profile (years)'!$CT66:$GF66,"<" & T66+0.5,'Asset data'!$CX66:$GJ66)-X66-W66,0) -> 0 | Z66: =IF($A66>0,SUMIF('Age profile (years)'!$CT66:$GF66,"<" & U66+0.5,'Asset data'!$CX66:$GJ66)-Y66-X66-W66,0) -> 0 | AA66: 0 | AB66: 0 | AC66: 0 | AD66: 0 | AE66: 0 | AF66: 0 | AI66: =IF($A66>0,'RRR hist-forc'!K66,0) -> 0 | AJ66: 0
A67: ='Asset data'!A67 -> 0 | B67: ='Asset data'!B67 -> 0 | C67: ='Asset data'!C67 -> 0 | D67: ='Asset data'!E67 -> > 33 kV & < = 66 kV ; Commercial & Industrial | E67: 0 | F67: =IF(A67>0,SUM('Asset data'!J67:CV67),0) -> 0 | G67: =IF(A67>0,'Asset data'!F67,0) -> 0 | H67: =IF(A67>0,SUM('Asset data'!CX67:GJ67),0) -> 0 | I67: 0 | J67: 0 | K67: 0 | L67: 0 | M67: =IF($A67>0,SUMPRODUCT('Age profile (years)'!$CT67:$GF67,'Asset data'!$CX67:$GJ67)/H67-0.5,0) -> 0 | N67: 0 | O67: =IF($A67>0,'Asset data'!G67,0) -> 0 | P67: 0 | Q67: 0 | R67: 0 | S67: 0 | T67: 0 | U67: 0 | W67: =IF($A67>0,SUMIF('Age profile (years)'!$CT67:$GF67,"<" & R67+0.5,'Asset data'!$CX67:$GJ67),0) -> 0 | X67: =IF($A67>0,SUMIF('Age profile (years)'!$CT67:$GF67,"<" & S67+0.5,'Asset data'!$CX67:$GJ67)-W67,0) -> 0 | Y67: =IF($A67>0,SUMIF('Age profile (years)'!$CT67:$GF67,"<" & T67+0.5,'Asset data'!$CX67:$GJ67)-X67-W67,0) -> 0 | Z67: =IF($A67>0,SUMIF('Age profile (years)'!$CT67:$GF67,"<" & U67+0.5,'Asset data'!$CX67:$GJ67)-Y67-X67-W67,0) -> 0 | AA67: 0 | AB67: 0 | AC67: 0 | AD67: 0 | AE67: 0 | AF67: 0 | AI67: =IF($A67>0,'RRR hist-forc'!K67,0) -> 0 | AJ67: 0
A68: ='Asset data'!A68 -> 0 | B68: ='Asset data'!B68 -> 0 | C68: ='Asset data'!C68 -> 0 | D68: ='Asset data'!E68 -> > 33 kV & < = 66 kV ; Subdivision | E68: 0 | F68: =IF(A68>0,SUM('Asset data'!J68:CV68),0) -> 0 | G68: =IF(A68>0,'Asset data'!F68,0) -> 0 | H68: =IF(A68>0,SUM('Asset data'!CX68:GJ68),0) -> 0 | I68: 0 | J68: 0 | K68: 0 | L68: 0 | M68: =IF($A68>0,SUMPRODUCT('Age profile (years)'!$CT68:$GF68,'Asset data'!$CX68:$GJ68)/H68-0.5,0) -> 0 | N68: 0 | O68: =IF($A68>0,'Asset data'!G68,0) -> 0 | P68: 0 | Q68: 0 | R68: 0 | S68: 0 | T68: 0 | U68: 0 | W68: =IF($A68>0,SUMIF('Age profile (years)'!$CT68:$GF68,"<" & R68+0.5,'Asset data'!$CX68:$GJ68),0) -> 0 | X68: =IF($A68>0,SUMIF('Age profile (years)'!$CT68:$GF68,"<" & S68+0.5,'Asset data'!$CX68:$GJ68)-W68,0) -> 0 | Y68: =IF($A68>0,SUMIF('Age profile (years)'!$CT68:$GF68,"<" & T68+0.5,'Asset data'!$CX68:$GJ68)-X68-W68,0) -> 0 | Z68: =IF($A68>0,SUMIF('Age profile (years)'!$CT68:$GF68,"<" & U68+0.5,'Asset data'!$CX68:$GJ68)-Y68-X68-W68,0) -> 0 | AA68: 0 | AB68: 0 | AC68: 0 | AD68: 0 | AE68: 0 | AF68: 0 | AI68: =IF($A68>0,'RRR hist-forc'!K68,0) -> 0 | AJ68: 0
A69: ='Asset data'!A69 -> 0 | B69: ='Asset data'!B69 -> 0 | C69: ='Asset data'!C69 -> 0 | D69: ='Asset data'!E69 -> > 66 kV & < = 132 kV ; Commercial & Industrial | E69: 0 | F69: =IF(A69>0,SUM('Asset data'!J69:CV69),0) -> 0 | G69: =IF(A69>0,'Asset data'!F69,0) -> 0 | H69: =IF(A69>0,SUM('Asset data'!CX69:GJ69),0) -> 0 | I69: 0 | J69: 0 | K69: 0 | L69: 0 | M69: =IF($A69>0,SUMPRODUCT('Age profile (years)'!$CT69:$GF69,'Asset data'!$CX69:$GJ69)/H69-0.5,0) -> 0 | N69: 0 | O69: =IF($A69>0,'Asset data'!G69,0) -> 0 | P69: 0 | Q69: 0 | R69: 0 | S69: 0 | T69: 0 | U69: 0 | W69: =IF($A69>0,SUMIF('Age profile (years)'!$CT69:$GF69,"<" & R69+0.5,'Asset data'!$CX69:$GJ69),0) -> 0 | X69: =IF($A69>0,SUMIF('Age profile (years)'!$CT69:$GF69,"<" & S69+0.5,'Asset data'!$CX69:$GJ69)-W69,0) -> 0 | Y69: =IF($A69>0,SUMIF('Age profile (years)'!$CT69:$GF69,"<" & T69+0.5,'Asset data'!$CX69:$GJ69)-X69-W69,0) -> 0 | Z69: =IF($A69>0,SUMIF('Age profile (years)'!$CT69:$GF69,"<" & U69+0.5,'Asset data'!$CX69:$GJ69)-Y69-X69-W69,0) -> 0 | AA69: 0 | AB69: 0 | AC69: 0 | AD69: 0 | AE69: 0 | AF69: 0 | AI69: =IF($A69>0,'RRR hist-forc'!K69,0) -> 0 | AJ69: 0
A70: ='Asset data'!A70 -> 0 | B70: ='Asset data'!B70 -> 0 | C70: ='Asset data'!C70 -> 0 | D70: ='Asset data'!E70 -> > 66 kV & < = 132 kV ; Subdivision | E70: 0 | F70: =IF(A70>0,SUM('Asset data'!J70:CV70),0) -> 0 | G70: =IF(A70>0,'Asset data'!F70,0) -> 0 | H70: =IF(A70>0,SUM('Asset data'!CX70:GJ70),0) -> 0 | I70: 0 | J70: 0 | K70: 0 | L70: 0 | M70: =IF($A70>0,SUMPRODUCT('Age profile (years)'!$CT70:$GF70,'Asset data'!$CX70:$GJ70)/H70-0.5,0) -> 0 | N70: 0 | O70: =IF($A70>0,'Asset data'!G70,0) -> 0 | P70: 0 | Q70: 0 | R70: 0 | S70: 0 | T70: 0 | U70: 0 | W70: =IF($A70>0,SUMIF('Age profile (years)'!$CT70:$GF70,"<" & R70+0.5,'Asset data'!$CX70:$GJ70),0) -> 0 | X70: =IF($A70>0,SUMIF('Age profile (years)'!$CT70:$GF70,"<" & S70+0.5,'Asset data'!$CX70:$GJ70)-W70,0) -> 0 | Y70: =IF($A70>0,SUMIF('Age profile (years)'!$CT70:$GF70,"<" & T70+0.5,'Asset data'!$CX70:$GJ70)-X70-W70,0) -> 0 | Z70: =IF($A70>0,SUMIF('Age profile (years)'!$CT70:$GF70,"<" & U70+0.5,'Asset data'!$CX70:$GJ70)-Y70-X70-W70,0) -> 0 | AA70: 0 | AB70: 0 | AC70: 0 | AD70: 0 | AE70: 0 | AF70: 0 | AI70: =IF($A70>0,'RRR hist-forc'!K70,0) -> 0 | AJ70: 0
A71: ='Asset data'!A71 -> 0 | B71: ='Asset data'!B71 -> 0 | C71: ='Asset data'!C71 -> 0 | D71: ='Asset data'!E71 -> > 132 kV ; Commercial & Industrial | E71: 0 | F71: =IF(A71>0,SUM('Asset data'!J71:CV71),0) -> 0 | G71: =IF(A71>0,'Asset data'!F71,0) -> 0 | H71: =IF(A71>0,SUM('Asset data'!CX71:GJ71),0) -> 0 | I71: 0 | J71: 0 | K71: 0 | L71: 0 | M71: =IF($A71>0,SUMPRODUCT('Age profile (years)'!$CT71:$GF71,'Asset data'!$CX71:$GJ71)/H71-0.5,0) -> 0 | N71: 0 | O71: =IF($A71>0,'Asset data'!G71,0) -> 0 | P71: 0 | Q71: 0 | R71: 0 | S71: 0 | T71: 0 | U71: 0 | W71: =IF($A71>0,SUMIF('Age profile (years)'!$CT71:$GF71,"<" & R71+0.5,'Asset data'!$CX71:$GJ71),0) -> 0 | X71: =IF($A71>0,SUMIF('Age profile (years)'!$CT71:$GF71,"<" & S71+0.5,'Asset data'!$CX71:$GJ71)-W71,0) -> 0 | Y71: =IF($A71>0,SUMIF('Age profile (years)'!$CT71:$GF71,"<" & T71+0.5,'Asset data'!$CX71:$GJ71)-X71-W71,0) -> 0 | Z71: =IF($A71>0,SUMIF('Age profile (years)'!$CT71:$GF71,"<" & U71+0.5,'Asset data'!$CX71:$GJ71)-Y71-X71-W71,0) -> 0 | AA71: 0 | AB71: 0 | AC71: 0 | AD71: 0 | AE71: 0 | AF71: 0 | AI71: =IF($A71>0,'RRR hist-forc'!K71,0) -> 0 | AJ71: 0
A72: ='Asset data'!A72 -> 0 | B72: ='Asset data'!B72 -> 0 | C72: ='Asset data'!C72 -> 0 | D72: ='Asset data'!E72 -> > 132 kV ; Subdivision | E72: 0 | F72: =IF(A72>0,SUM('Asset data'!J72:CV72),0) -> 0 | G72: =IF(A72>0,'Asset data'!F72,0) -> 0 | H72: =IF(A72>0,SUM('Asset data'!CX72:GJ72),0) -> 0 | I72: 0 | J72: 0 | K72: 0 | L72: 0 | M72: =IF($A72>0,SUMPRODUCT('Age profile (years)'!$CT72:$GF72,'Asset data'!$CX72:$GJ72)/H72-0.5,0) -> 0 | N72: 0 | O72: =IF($A72>0,'Asset data'!G72,0) -> 0 | P72: 0 | Q72: 0 | R72: 0 | S72: 0 | T72: 0 | U72: 0 | W72: =IF($A72>0,SUMIF('Age profile (years)'!$CT72:$GF72,"<" & R72+0.5,'Asset data'!$CX72:$GJ72),0) -> 0 | X72: =IF($A72>0,SUMIF('Age profile (years)'!$CT72:$GF72,"<" & S72+0.5,'Asset data'!$CX72:$GJ72)-W72,0) -> 0 | Y72: =IF($A72>0,SUMIF('Age profile (years)'!$CT72:$GF72,"<" & T72+0.5,'Asset data'!$CX72:$GJ72)-X72-W72,0) -> 0 | Z72: =IF($A72>0,SUMIF('Age profile (years)'!$CT72:$GF72,"<" & U72+0.5,'Asset data'!$CX72:$GJ72)-Y72-X72-W72,0) -> 0 | AA72: 0 | AB72: 0 | AC72: 0 | AD72: 0 | AE72: 0 | AF72: 0 | AI72: =IF($A72>0,'RRR hist-forc'!K72,0) -> 0 | AJ72: 0
A73: ='Asset data'!A73 -> 0 | B73: ='Asset data'!B73 -> 0 | C73: ='Asset data'!C73 -> 0 | D73: ='Asset data'!E73 -> Other | E73: 0 | F73: =IF(A73>0,SUM('Asset data'!J73:CV73),0) -> 0 | G73: =IF(A73>0,'Asset data'!F73,0) -> 0 | H73: =IF(A73>0,SUM('Asset data'!CX73:GJ73),0) -> 0 | I73: 0 | J73: 0 | K73: 0 | L73: 0 | M73: =IF($A73>0,SUMPRODUCT('Age profile (years)'!$CT73:$GF73,'Asset data'!$CX73:$GJ73)/H73-0.5,0) -> 0 | N73: 0 | O73: =IF($A73>0,'Asset data'!G73,0) -> 0 | P73: 0 | Q73: 0 | R73: 0 | S73: 0 | T73: 0 | U73: 0 | W73: =IF($A73>0,SUMIF('Age profile (years)'!$CT73:$GF73,"<" & R73+0.5,'Asset data'!$CX73:$GJ73),0) -> 0 | X73: =IF($A73>0,SUMIF('Age profile (years)'!$CT73:$GF73,"<" & S73+0.5,'Asset data'!$CX73:$GJ73)-W73,0) -> 0 | Y73: =IF($A73>0,SUMIF('Age profile (years)'!$CT73:$GF73,"<" & T73+0.5,'Asset data'!$CX73:$GJ73)-X73-W73,0) -> 0 | Z73: =IF($A73>0,SUMIF('Age profile (years)'!$CT73:$GF73,"<" & U73+0.5,'Asset data'!$CX73:$GJ73)-Y73-X73-W73,0) -> 0 | AA73: 0 | AB73: 0 | AC73: 0 | AD73: 0 | AE73: 0 | AF73: 0 | AI73: =IF($A73>0,'RRR hist-forc'!K73,0) -> 0 | AJ73: 0
A74: ='Asset data'!A74 -> 5 | B74: ='Asset data'!B74 -> 0 | C74: ='Asset data'!C74 -> 0 | D74: ='Asset data'!E74 -> Pole Mounted ; < = 22kV ; < = 60 kVA ; Single Phase | E74: TRANSFORMERS | F74: =IF(A74>0,SUM('Asset data'!J74:CV74),0) -> 39232 | G74: =IF(A74>0,'Asset data'!F74,0) -> 7.742372881 | H74: =IF(A74>0,SUM('Asset data'!CX74:GJ74),0) -> 303748.7729 | I74: 0.0297586464 | J74: 12 | K74: 0.4421291755 | L74: 7.742372881 | M74: =IF($A74>0,SUMPRODUCT('Age profile (years)'!$CT74:$GF74,'Asset data'!$CX74:$GJ74)/H74-0.5,0) -> 58.70664254 | N74: 17832070.63 | O74: =IF($A74>0,'Asset data'!G74,0) -> 88.71760404 | P74: 26947863.36 | Q74: 0.3382751577 | R74: 8.871760404 | S74: 17.74352081 | T74: 53.23056242 | U74: 70.97408323 | W74: =IF($A74>0,SUMIF('Age profile (years)'!$CT74:$GF74,"<" & R74+0.5,'Asset data'!$CX74:$GJ74),0) -> 16073.1661 | X74: =IF($A74>0,SUMIF('Age profile (years)'!$CT74:$GF74,"<" & S74+0.5,'Asset data'!$CX74:$GJ74)-W74,0) -> 46.45423729 | Y74: =IF($A74>0,SUMIF('Age profile (years)'!$CT74:$GF74,"<" & T74+0.5,'Asset data'!$CX74:$GJ74)-X74-W74,0) -> 68372.89492 | Z74: =IF($A74>0,SUMIF('Age profile (years)'!$CT74:$GF74,"<" & U74+0.5,'Asset data'!$CX74:$GJ74)-Y74-X74-W74,0) -> 141089.261 | AA74: 78166.99661 | AB74: 0.05291598695 | AC74: 0.0001529363785 | AD74: 0.2250968597 | AE74: 0.4644932708 | AF74: 0.2573409462 | AI74: =IF($A74>0,'RRR hist-forc'!K74,0) -> 88.71760404 | AJ74: 26947863.36
A75: ='Asset data'!A75 -> 5 | B75: ='Asset data'!B75 -> 0 | C75: ='Asset data'!C75 -> 0 | D75: ='Asset data'!E75 -> Pole Mounted ; < = 22kV ; > 60 kVA and < = 600 kVA ; Single Phase | E75: TRANSFORMERS | F75: =IF(A75>0,SUM('Asset data'!J75:CV75),0) -> 159 | G75: =IF(A75>0,'Asset data'!F75,0) -> 7.76 | H75: =IF(A75>0,SUM('Asset data'!CX75:GJ75),0) -> 1233.84 | I75: 0.0001208808448 | J75: 37 | K75: 0.001795946883 | L75: 7.76 | M75: =IF($A75>0,SUMPRODUCT('Age profile (years)'!$CT75:$GF75,'Asset data'!$CX75:$GJ75)/H75-0.5,0) -> 63.68867925 | N75: 78581.64 | O75: =IF($A75>0,'Asset data'!G75,0) -> 76.58350183 | P75: 94491.78789 | Q75: 0.1683759853 | R75: 7.658350183 | S75: 15.31670037 | T75: 45.9501011 | U75: 61.26680146 | W75: =IF($A75>0,SUMIF('Age profile (years)'!$CT75:$GF75,"<" & R75+0.5,'Asset data'!$CX75:$GJ75),0) -> 38.8 | X75: =IF($A75>0,SUMIF('Age profile (years)'!$CT75:$GF75,"<" & S75+0.5,'Asset data'!$CX75:$GJ75)-W75,0) -> 0 | Y75: =IF($A75>0,SUMIF('Age profile (years)'!$CT75:$GF75,"<" & T75+0.5,'Asset data'!$CX75:$GJ75)-X75-W75,0) -> 131.92 | Z75: =IF($A75>0,SUMIF('Age profile (years)'!$CT75:$GF75,"<" & U75+0.5,'Asset data'!$CX75:$GJ75)-Y75-X75-W75,0) -> 116.4 | AA75: 946.72 | AB75: 0.03144654088 | AC75: 0 | AD75: 0.106918239 | AE75: 0.09433962264 | AF75: 0.7672955975 | AI75: =IF($A75>0,'RRR hist-forc'!K75,0) -> 76.58350183 | AJ75: 94491.78789
A76: ='Asset data'!A76 -> 5 | B76: ='Asset data'!B76 -> 0 | C76: ='Asset data'!C76 -> 0 | D76: ='Asset data'!E76 -> Pole Mounted ; < = 22kV ; > 600 kVA ; Single Phase | E76: TRANSFORMERS | F76: =IF(A76>0,SUM('Asset data'!J76:CV76),0) -> 4 | G76: =IF(A76>0,'Asset data'!F76,0) -> 0.0001 | H76: =IF(A76>0,SUM('Asset data'!CX76:GJ76),0) -> 0.0004 | I76: 3.918849925e-11 | J76: 46 | K76: 5.82230073e-10 | L76: 0.0001 | M76: =IF($A76>0,SUMPRODUCT('Age profile (years)'!$CT76:$GF76,'Asset data'!$CX76:$GJ76)/H76-0.5,0) -> 6.25 | N76: 0.0025 | O76: =IF($A76>0,'Asset data'!G76,0) -> 14.44921429 | P76: 0.005779685717 | Q76: 0.5674505289 | R76: 1.444921429 | S76: 2.889842859 | T76: 8.669528576 | U76: 11.55937143 | W76: =IF($A76>0,SUMIF('Age profile (years)'!$CT76:$GF76,"<" & R76+0.5,'Asset data'!$CX76:$GJ76),0) -> 0.0001 | X76: =IF($A76>0,SUMIF('Age profile (years)'!$CT76:$GF76,"<" & S76+0.5,'Asset data'!$CX76:$GJ76)-W76,0) -> 0 | Y76: =IF($A76>0,SUMIF('Age profile (years)'!$CT76:$GF76,"<" & T76+0.5,'Asset data'!$CX76:$GJ76)-X76-W76,0) -> 0.0002 | Z76: =IF($A76>0,SUMIF('Age profile (years)'!$CT76:$GF76,"<" & U76+0.5,'Asset data'!$CX76:$GJ76)-Y76-X76-W76,0) -> 0.0001 | AA76: -1.355252716e-20 | AB76: 0.25 | AC76: 0 | AD76: 0.5 | AE76: 0.25 | AF76: -3.388131789e-17 | AI76: =IF($A76>0,'RRR hist-forc'!K76,0) -> 14.44921429 | AJ76: 0.005779685717
A77: ='Asset data'!A77 -> 5 | B77: ='Asset data'!B77 -> 0 | C77: ='Asset data'!C77 -> 0 | D77: ='Asset data'!E77 -> Pole Mounted ; < = 22kV ; < = 60 kVA ; Multiple Phase | E77: TRANSFORMERS | F77: =IF(A77>0,SUM('Asset data'!J77:CV77),0) -> 6166 | G77: =IF(A77>0,'Asset data'!F77,0) -> 7.727272727 | H77: =IF(A77>0,SUM('Asset data'!CX77:GJ77),0) -> 47646.36364 | I77: 0.004667973714 | J77: 25 | K77: 0.06935286444 | L77: 7.727272727 | M77: =IF($A77>0,SUMPRODUCT('Age profile (years)'!$CT77:$GF77,'Asset data'!$CX77:$GJ77)/H77-0.5,0) -> 62.85825495 | N77: 2994967.273 | O77: =IF($A77>0,'Asset data'!G77,0) -> 87.61729169 | P77: 4174645.341 | Q77: 0.2825816259 | R77: 8.761729169 | S77: 17.52345834 | T77: 52.57037502 | U77: 70.09383335 | W77: =IF($A77>0,SUMIF('Age profile (years)'!$CT77:$GF77,"<" & R77+0.5,'Asset data'!$CX77:$GJ77),0) -> 741.8181818 | X77: =IF($A77>0,SUMIF('Age profile (years)'!$CT77:$GF77,"<" & S77+0.5,'Asset data'!$CX77:$GJ77)-W77,0) -> 0 | Y77: =IF($A77>0,SUMIF('Age profile (years)'!$CT77:$GF77,"<" & T77+0.5,'Asset data'!$CX77:$GJ77)-X77-W77,0) -> 7541.818182 | Z77: =IF($A77>0,SUMIF('Age profile (years)'!$CT77:$GF77,"<" & U77+0.5,'Asset data'!$CX77:$GJ77)-Y77-X77-W77,0) -> 24155.45455 | AA77: 15207.27273 | AB77: 0.01556925073 | AC77: 0 | AD77: 0.1582873824 | AE77: 0.5069737269 | AF77: 0.31916964 | AI77: =IF($A77>0,'RRR hist-forc'!K77,0) -> 87.61729169 | AJ77: 4174645.341
A78: ='Asset data'!A78 -> 5 | B78: ='Asset data'!B78 -> 0 | C78: ='Asset data'!C78 -> 0 | D78: ='Asset data'!E78 -> Pole Mounted ; < = 22kV ; > 60 kVA and < = 600 kVA ; Multiple Phase | E78: TRANSFORMERS | F78: =IF(A78>0,SUM('Asset data'!J78:CV78),0) -> 12426 | G78: =IF(A78>0,'Asset data'!F78,0) -> 7.741935484 | H78: =IF(A78>0,SUM('Asset data'!CX78:GJ78),0) -> 96201.29032 | I78: 0.009424960484 | J78: 21 | K78: 0.1400282107 | L78: 7.741935484 | M78: =IF($A78>0,SUMPRODUCT('Age profile (years)'!$CT78:$GF78,'Asset data'!$CX78:$GJ78)/H78-0.5,0) -> 38.21060679 | N78: 3675909.677 | O78: =IF($A78>0,'Asset data'!G78,0) -> 57.87096909 | P78: 5567261.899 | Q78: 0.3397275458 | R78: 5.787096909 | S78: 11.57419382 | T78: 34.72258146 | U78: 46.29677528 | W78: =IF($A78>0,SUMIF('Age profile (years)'!$CT78:$GF78,"<" & R78+0.5,'Asset data'!$CX78:$GJ78),0) -> 1858.064516 | X78: =IF($A78>0,SUMIF('Age profile (years)'!$CT78:$GF78,"<" & S78+0.5,'Asset data'!$CX78:$GJ78)-W78,0) -> 1765.16129 | Y78: =IF($A78>0,SUMIF('Age profile (years)'!$CT78:$GF78,"<" & T78+0.5,'Asset data'!$CX78:$GJ78)-X78-W78,0) -> 34892.90323 | Z78: =IF($A78>0,SUMIF('Age profile (years)'!$CT78:$GF78,"<" & U78+0.5,'Asset data'!$CX78:$GJ78)-Y78-X78-W78,0) -> 17272.25806 | AA78: 40412.90323 | AB78: 0.0193143409 | AC78: 0.01834862385 | AD78: 0.3627072268 | AE78: 0.1795428939 | AF78: 0.4200869145 | AI78: =IF($A78>0,'RRR hist-forc'!K78,0) -> 57.87096909 | AJ78: 5567261.899
A79: ='Asset data'!A79 -> 5 | B79: ='Asset data'!B79 -> 0 | C79: ='Asset data'!C79 -> 0 | D79: ='Asset data'!E79 -> Pole Mounted ; < = 22kV ; > 600 kVA ; Multiple Phase | E79: TRANSFORMERS | F79: =IF(A79>0,SUM('Asset data'!J79:CV79),0) -> 615 | G79: =IF(A79>0,'Asset data'!F79,0) -> 7.766666667 | H79: =IF(A79>0,SUM('Asset data'!CX79:GJ79),0) -> 4776.5 | I79: 0.0004679596667 | J79: 31 | K79: 0.006952554859 | L79: 7.766666667 | M79: =IF($A79>0,SUMPRODUCT('Age profile (years)'!$CT79:$GF79,'Asset data'!$CX79:$GJ79)/H79-0.5,0) -> 35.08861789 | N79: 167600.7833 | O79: =IF($A79>0,'Asset data'!G79,0) -> 51.42641742 | P79: 245638.2828 | Q79: 0.3176927414 | R79: 5.142641742 | S79: 10.28528348 | T79: 30.85585045 | U79: 41.14113393 | W79: =IF($A79>0,SUMIF('Age profile (years)'!$CT79:$GF79,"<" & R79+0.5,'Asset data'!$CX79:$GJ79),0) -> 77.66666667 | X79: =IF($A79>0,SUMIF('Age profile (years)'!$CT79:$GF79,"<" & S79+0.5,'Asset data'!$CX79:$GJ79)-W79,0) -> 62.13333333 | Y79: =IF($A79>0,SUMIF('Age profile (years)'!$CT79:$GF79,"<" & T79+0.5,'Asset data'!$CX79:$GJ79)-X79-W79,0) -> 1102.866667 | Z79: =IF($A79>0,SUMIF('Age profile (years)'!$CT79:$GF79,"<" & U79+0.5,'Asset data'!$CX79:$GJ79)-Y79-X79-W79,0) -> 1553.333333 | AA79: 1980.5 | AB79: 0.0162601626 | AC79: 0.01300813008 | AD79: 0.2308943089 | AE79: 0.325203252 | AF79: 0.4146341463 | AI79: =IF($A79>0,'RRR hist-forc'!K79,0) -> 51.42641742 | AJ79: 245638.2828
A80: ='Asset data'!A80 -> 5 | B80: ='Asset data'!B80 -> 0 | C80: ='Asset data'!C80 -> 0 | D80: ='Asset data'!E80 -> Kiosk Mounted ; < = 22kV ; < = 60 kVA ; Single Phase | E80: TRANSFORMERS | F80: =IF(A80>0,SUM('Asset data'!J80:CV80),0) -> 22 | G80: =IF(A80>0,'Asset data'!F80,0) -> 30.08150727 | H80: =IF(A80>0,SUM('Asset data'!CX80:GJ80),0) -> 661.7931599 | I80: 6.483670188e-05 | J80: 42 | K80: 0.0009632896994 | L80: 30.08150727 | M80: =IF($A80>0,SUMPRODUCT('Age profile (years)'!$CT80:$GF80,'Asset data'!$CX80:$GJ80)/H80-0.5,0) -> 63.09090909 | N80: 41753.13209 | O80: =IF($A80>0,'Asset data'!G80,0) -> 76.27186356 | P80: 50476.1976 | Q80: 0.1728154244 | R80: 7.627186356 | S80: 15.25437271 | T80: 45.76311814 | U80: 61.01749085 | W80: =IF($A80>0,SUMIF('Age profile (years)'!$CT80:$GF80,"<" & R80+0.5,'Asset data'!$CX80:$GJ80),0) -> 0 | X80: =IF($A80>0,SUMIF('Age profile (years)'!$CT80:$GF80,"<" & S80+0.5,'Asset data'!$CX80:$GJ80)-W80,0) -> 0 | Y80: =IF($A80>0,SUMIF('Age profile (years)'!$CT80:$GF80,"<" & T80+0.5,'Asset data'!$CX80:$GJ80)-X80-W80,0) -> 0 | Z80: =IF($A80>0,SUMIF('Age profile (years)'!$CT80:$GF80,"<" & U80+0.5,'Asset data'!$CX80:$GJ80)-Y80-X80-W80,0) -> 270.7335654 | AA80: 391.0595945 | AB80: 0 | AC80: 0 | AD80: 0 | AE80: 0.4090909091 | AF80: 0.5909090909 | AI80: =IF($A80>0,'RRR hist-forc'!K80,0) -> 76.27186356 | AJ80: 50476.1976
A81: ='Asset data'!A81 -> 0 | B81: ='Asset data'!B81 -> 0 | C81: ='Asset data'!C81 -> 0 | D81: ='Asset data'!E81 -> Kiosk Mounted ; < = 22kV ; > 60 kVA and < = 600 kVA ; Single Phase | E81: 0 | F81: =IF(A81>0,SUM('Asset data'!J81:CV81),0) -> 0 | G81: =IF(A81>0,'Asset data'!F81,0) -> 0 | H81: =IF(A81>0,SUM('Asset data'!CX81:GJ81),0) -> 0 | I81: 0 | J81: 0 | K81: 0 | L81: 0 | M81: =IF($A81>0,SUMPRODUCT('Age profile (years)'!$CT81:$GF81,'Asset data'!$CX81:$GJ81)/H81-0.5,0) -> 0 | N81: 0 | O81: =IF($A81>0,'Asset data'!G81,0) -> 0 | P81: 0 | Q81: 0 | R81: 0 | S81: 0 | T81: 0 | U81: 0 | W81: =IF($A81>0,SUMIF('Age profile (years)'!$CT81:$GF81,"<" & R81+0.5,'Asset data'!$CX81:$GJ81),0) -> 0 | X81: =IF($A81>0,SUMIF('Age profile (years)'!$CT81:$GF81,"<" & S81+0.5,'Asset data'!$CX81:$GJ81)-W81,0) -> 0 | Y81: =IF($A81>0,SUMIF('Age profile (years)'!$CT81:$GF81,"<" & T81+0.5,'Asset data'!$CX81:$GJ81)-X81-W81,0) -> 0 | Z81: =IF($A81>0,SUMIF('Age profile (years)'!$CT81:$GF81,"<" & U81+0.5,'Asset data'!$CX81:$GJ81)-Y81-X81-W81,0) -> 0 | AA81: 0 | AB81: 0 | AC81: 0 | AD81: 0 | AE81: 0 | AF81: 0 | AI81: =IF($A81>0,'RRR hist-forc'!K81,0) -> 0 | AJ81: 0
A82: ='Asset data'!A82 -> 5 | B82: ='Asset data'!B82 -> 0 | C82: ='Asset data'!C82 -> 0 | D82: ='Asset data'!E82 -> Kiosk Mounted ; < = 22kV ; > 600 kVA ; Single Phase | E82: TRANSFORMERS | F82: =IF(A82>0,SUM('Asset data'!J82:CV82),0) -> 1 | G82: =IF(A82>0,'Asset data'!F82,0) -> 0.0001 | H82: =IF(A82>0,SUM('Asset data'!CX82:GJ82),0) -> 0.0001 | I82: 9.797124813e-12 | J82: 47 | K82: 1.455575182e-10 | L82: 0.0001 | M82: =IF($A82>0,SUMPRODUCT('Age profile (years)'!$CT82:$GF82,'Asset data'!$CX82:$GJ82)/H82-0.5,0) -> 63.5 | N82: 0.00635 | O82: =IF($A82>0,'Asset data'!G82,0) -> 76.27186356 | P82: 0.007627186356 | Q82: 0.1674518357 | R82: 7.627186356 | S82: 15.25437271 | T82: 45.76311814 | U82: 61.01749085 | W82: =IF($A82>0,SUMIF('Age profile (years)'!$CT82:$GF82,"<" & R82+0.5,'Asset data'!$CX82:$GJ82),0) -> 0 | X82: =IF($A82>0,SUMIF('Age profile (years)'!$CT82:$GF82,"<" & S82+0.5,'Asset data'!$CX82:$GJ82)-W82,0) -> 0 | Y82: =IF($A82>0,SUMIF('Age profile (years)'!$CT82:$GF82,"<" & T82+0.5,'Asset data'!$CX82:$GJ82)-X82-W82,0) -> 0 | Z82: =IF($A82>0,SUMIF('Age profile (years)'!$CT82:$GF82,"<" & U82+0.5,'Asset data'!$CX82:$GJ82)-Y82-X82-W82,0) -> 0 | AA82: 0.0001 | AB82: 0 | AC82: 0 | AD82: 0 | AE82: 0 | AF82: 1 | AI82: =IF($A82>0,'RRR hist-forc'!K82,0) -> 76.27186356 | AJ82: 0.007627186356
A83: ='Asset data'!A83 -> 5 | B83: ='Asset data'!B83 -> 0 | C83: ='Asset data'!C83 -> 0 | D83: ='Asset data'!E83 -> Kiosk Mounted ; < = 22kV ; < = 60 kVA ; Multiple Phase | E83: TRANSFORMERS | F83: =IF(A83>0,SUM('Asset data'!J83:CV83),0) -> 14 | G83: =IF(A83>0,'Asset data'!F83,0) -> 61.27796189 | H83: =IF(A83>0,SUM('Asset data'!CX83:GJ83),0) -> 857.8914664 | I83: 8.404869773e-05 | J83: 41 | K83: 0.001248725528 | L83: 61.27796189 | M83: =IF($A83>0,SUMPRODUCT('Age profile (years)'!$CT83:$GF83,'Asset data'!$CX83:$GJ83)/H83-0.5,0) -> 9.571428571 | N83: 8211.246893 | O83: =IF($A83>0,'Asset data'!G83,0) -> 18.05857428 | P83: 15492.29677 | Q83: 0.4699787247 | R83: 1.805857428 | S83: 3.611714856 | T83: 10.83514457 | U83: 14.44685943 | W83: =IF($A83>0,SUMIF('Age profile (years)'!$CT83:$GF83,"<" & R83+0.5,'Asset data'!$CX83:$GJ83),0) -> 0 | X83: =IF($A83>0,SUMIF('Age profile (years)'!$CT83:$GF83,"<" & S83+0.5,'Asset data'!$CX83:$GJ83)-W83,0) -> 245.1118476 | Y83: =IF($A83>0,SUMIF('Age profile (years)'!$CT83:$GF83,"<" & T83+0.5,'Asset data'!$CX83:$GJ83)-X83-W83,0) -> 183.8338857 | Z83: =IF($A83>0,SUMIF('Age profile (years)'!$CT83:$GF83,"<" & U83+0.5,'Asset data'!$CX83:$GJ83)-Y83-X83-W83,0) -> 245.1118476 | AA83: 183.8338857 | AB83: 0 | AC83: 0.2857142857 | AD83: 0.2142857143 | AE83: 0.2857142857 | AF83: 0.2142857143 | AI83: =IF($A83>0,'RRR hist-forc'!K83,0) -> 18.05857428 | AJ83: 15492.29677
A84: ='Asset data'!A84 -> 5 | B84: ='Asset data'!B84 -> 0 | C84: ='Asset data'!C84 -> 0 | D84: ='Asset data'!E84 -> Kiosk Mounted ; < = 22kV ; > 60 kVA and < = 600 kVA ; Multiple Phase | E84: TRANSFORMERS | F84: =IF(A84>0,SUM('Asset data'!J84:CV84),0) -> 2065 | G84: =IF(A84>0,'Asset data'!F84,0) -> 7.741935484 | H84: =IF(A84>0,SUM('Asset data'!CX84:GJ84),0) -> 15987.09677 | I84: 0.001566275825 | J84: 27 | K84: 0.0232704213 | L84: 7.741935484 | M84: =IF($A84>0,SUMPRODUCT('Age profile (years)'!$CT84:$GF84,'Asset data'!$CX84:$GJ84)/H84-0.5,0) -> 41.14213075 | N84: 657743.2258 | O84: =IF($A84>0,'Asset data'!G84,0) -> 53.78449511 | P84: 859857.9282 | Q84: 0.235055927 | R84: 5.378449511 | S84: 10.75689902 | T84: 32.27069706 | U84: 43.02759609 | W84: =IF($A84>0,SUMIF('Age profile (years)'!$CT84:$GF84,"<" & R84+0.5,'Asset data'!$CX84:$GJ84),0) -> 139.3548387 | X84: =IF($A84>0,SUMIF('Age profile (years)'!$CT84:$GF84,"<" & S84+0.5,'Asset data'!$CX84:$GJ84)-W84,0) -> 7.741935484 | Y84: =IF($A84>0,SUMIF('Age profile (years)'!$CT84:$GF84,"<" & T84+0.5,'Asset data'!$CX84:$GJ84)-X84-W84,0) -> 3429.677419 | Z84: =IF($A84>0,SUMIF('Age profile (years)'!$CT84:$GF84,"<" & U84+0.5,'Asset data'!$CX84:$GJ84)-Y84-X84-W84,0) -> 3065.806452 | AA84: 9344.516129 | AB84: 0.008716707022 | AC84: 0.0004842615012 | AD84: 0.214527845 | AE84: 0.1917675545 | AF84: 0.584503632 | AI84: =IF($A84>0,'RRR hist-forc'!K84,0) -> 53.78449511 | AJ84: 859857.9282
A85: ='Asset data'!A85 -> 5 | B85: ='Asset data'!B85 -> 0 | C85: ='Asset data'!C85 -> 0 | D85: ='Asset data'!E85 -> Kiosk Mounted ; < = 22kV ; > 600 kVA ; Multiple Phase | E85: TRANSFORMERS | F85: =IF(A85>0,SUM('Asset data'!J85:CV85),0) -> 120 | G85: =IF(A85>0,'Asset data'!F85,0) -> 7.8 | H85: =IF(A85>0,SUM('Asset data'!CX85:GJ85),0) -> 936 | I85: 9.170108825e-05 | J85: 39 | K85: 0.001362418371 | L85: 7.8 | M85: =IF($A85>0,SUMPRODUCT('Age profile (years)'!$CT85:$GF85,'Asset data'!$CX85:$GJ85)/H85-0.5,0) -> 75.5 | N85: 70668 | O85: =IF($A85>0,'Asset data'!G85,0) -> 87.78698887 | P85: 82168.62158 | Q85: 0.1399636669 | R85: 8.778698887 | S85: 17.55739777 | T85: 52.67219332 | U85: 70.22959109 | W85: =IF($A85>0,SUMIF('Age profile (years)'!$CT85:$GF85,"<" & R85+0.5,'Asset data'!$CX85:$GJ85),0) -> 15.6 | X85: =IF($A85>0,SUMIF('Age profile (years)'!$CT85:$GF85,"<" & S85+0.5,'Asset data'!$CX85:$GJ85)-W85,0) -> 15.6 | Y85: =IF($A85>0,SUMIF('Age profile (years)'!$CT85:$GF85,"<" & T85+0.5,'Asset data'!$CX85:$GJ85)-X85-W85,0) -> 7.8 | Z85: =IF($A85>0,SUMIF('Age profile (years)'!$CT85:$GF85,"<" & U85+0.5,'Asset data'!$CX85:$GJ85)-Y85-X85-W85,0) -> 179.4 | AA85: 717.6 | AB85: 0.01666666667 | AC85: 0.01666666667 | AD85: 0.008333333333 | AE85: 0.1916666667 | AF85: 0.7666666667 | AI85: =IF($A85>0,'RRR hist-forc'!K85,0) -> 87.78698887 | AJ85: 82168.62158
A86: ='Asset data'!A86 -> 0 | B86: ='Asset data'!B86 -> 0 | C86: ='Asset data'!C86 -> 0 | D86: ='Asset data'!E86 -> Ground Outdoor / Indoor Chamber Mounted; ˂ 22 kV ; < = 60 kVA ; Single Phase | E86: 0 | F86: =IF(A86>0,SUM('Asset data'!J86:CV86),0) -> 0 | G86: =IF(A86>0,'Asset data'!F86,0) -> 0 | H86: =IF(A86>0,SUM('Asset data'!CX86:GJ86),0) -> 0 | I86: 0 | J86: 0 | K86: 0 | L86: 0 | M86: =IF($A86>0,SUMPRODUCT('Age profile (years)'!$CT86:$GF86,'Asset data'!$CX86:$GJ86)/H86-0.5,0) -> 0 | N86: 0 | O86: =IF($A86>0,'Asset data'!G86,0) -> 0 | P86: 0 | Q86: 0 | R86: 0 | S86: 0 | T86: 0 | U86: 0 | W86: =IF($A86>0,SUMIF('Age profile (years)'!$CT86:$GF86,"<" & R86+0.5,'Asset data'!$CX86:$GJ86),0) -> 0 | X86: =IF($A86>0,SUMIF('Age profile (years)'!$CT86:$GF86,"<" & S86+0.5,'Asset data'!$CX86:$GJ86)-W86,0) -> 0 | Y86: =IF($A86>0,SUMIF('Age profile (years)'!$CT86:$GF86,"<" & T86+0.5,'Asset data'!$CX86:$GJ86)-X86-W86,0) -> 0 | Z86: =IF($A86>0,SUMIF('Age profile (years)'!$CT86:$GF86,"<" & U86+0.5,'Asset data'!$CX86:$GJ86)-Y86-X86-W86,0) -> 0 | AA86: 0 | AB86: 0 | AC86: 0 | AD86: 0 | AE86: 0 | AF86: 0 | AI86: =IF($A86>0,'RRR hist-forc'!K86,0) -> 0 | AJ86: 0
A87: ='Asset data'!A87 -> 0 | B87: ='Asset data'!B87 -> 0 | C87: ='Asset data'!C87 -> 0 | D87: ='Asset data'!E87 -> Ground Outdoor / Indoor Chamber Mounted; ˂ 22 kV ; > 60 kVA and < = 600 kVA ; Single Phase | E87: =IF(A87>0,VLOOKUP(A87,IDtable,2),0) -> 0 | F87: =IF(A87>0,SUM('Asset data'!J87:CV87),0) -> 0 | G87: =IF(A87>0,'Asset data'!F87,0) -> 0 | H87: =IF(A87>0,SUM('Asset data'!CX87:GJ87),0) -> 0 | I87: =H87/$H$18/1000 -> 0 | J87: =IF(RANK(0,I$21:I$205)=RANK(I87,I$21:I$205),0,RANK(I87,I$21:I$205)) -> 0 | K87: =IF(A87>0,H87/(VLOOKUP(A87,$A$6:$H$17,8)*1000),0) -> 0 | L87: =IF($A87>0,H87/F87,0) -> 0 | M87: =IF($A87>0,SUMPRODUCT('Age profile (years)'!$CT87:$GF87,'Asset data'!$CX87:$GJ87)/H87-0.5,0) -> 0 | N87: =IF($A87>0,M87*H87,0) -> 0 | O87: =IF($A87>0,'Asset data'!G87,0) -> 0 | P87: =IF($A87>0,H87*O87,0) -> 0 | Q87: =IF($A87>0,(O87-M87)/O87,0) -> 0 | R87: 0 | S87: 0 | T87: 0 | U87: 0 | W87: =IF($A87>0,SUMIF('Age profile (years)'!$CT87:$GF87,"<" & R87+0.5,'Asset data'!$CX87:$GJ87),0) -> 0 | X87: =IF($A87>0,SUMIF('Age profile (years)'!$CT87:$GF87,"<" & S87+0.5,'Asset data'!$CX87:$GJ87)-W87,0) -> 0 | Y87: =IF($A87>0,SUMIF('Age profile (years)'!$CT87:$GF87,"<" & T87+0.5,'Asset data'!$CX87:$GJ87)-X87-W87,0) -> 0 | Z87: =IF($A87>0,SUMIF('Age profile (years)'!$CT87:$GF87,"<" & U87+0.5,'Asset data'!$CX87:$GJ87)-Y87-X87-W87,0) -> 0 | AA87: =IF($A87>0,H87-Z87-Y87-X87-W87,0) -> 0 | AB87: =IF($A87>0,W87/$H87,0) -> 0 | AC87: =IF($A87>0,X87/$H87,0) -> 0 | AD87: =IF($A87>0,Y87/$H87,0) -> 0 | AE87: =IF($A87>0,Z87/$H87,0) -> 0 | AF87: =IF($A87>0,AA87/$H87,0) -> 0 | AI87: =IF($A87>0,'RRR hist-forc'!K87,0) -> 0 | AJ87: =IF($A87>0,AI87*H87,0) -> 0
A88: ='Asset data'!A88 -> 0 | B88: ='Asset data'!B88 -> 0 | C88: ='Asset data'!C88 -> 0 | D88: ='Asset data'!E88 -> Ground Outdoor / Indoor Chamber Mounted; ˂ 22 kV ; > 600 kVA ; Single Phase | E88: 0 | F88: =IF(A88>0,SUM('Asset data'!J88:CV88),0) -> 0 | G88: =IF(A88>0,'Asset data'!F88,0) -> 0 | H88: =IF(A88>0,SUM('Asset data'!CX88:GJ88),0) -> 0 | I88: 0 | J88: 0 | K88: 0 | L88: 0 | M88: =IF($A88>0,SUMPRODUCT('Age profile (years)'!$CT88:$GF88,'Asset data'!$CX88:$GJ88)/H88-0.5,0) -> 0 | N88: 0 | O88: =IF($A88>0,'Asset data'!G88,0) -> 0 | P88: 0 | Q88: 0 | R88: 0 | S88: 0 | T88: 0 | U88: 0 | W88: =IF($A88>0,SUMIF('Age profile (years)'!$CT88:$GF88,"<" & R88+0.5,'Asset data'!$CX88:$GJ88),0) -> 0 | X88: =IF($A88>0,SUMIF('Age profile (years)'!$CT88:$GF88,"<" & S88+0.5,'Asset data'!$CX88:$GJ88)-W88,0) -> 0 | Y88: =IF($A88>0,SUMIF('Age profile (years)'!$CT88:$GF88,"<" & T88+0.5,'Asset data'!$CX88:$GJ88)-X88-W88,0) -> 0 | Z88: =IF($A88>0,SUMIF('Age profile (years)'!$CT88:$GF88,"<" & U88+0.5,'Asset data'!$CX88:$GJ88)-Y88-X88-W88,0) -> 0 | AA88: 0 | AB88: 0 | AC88: 0 | AD88: 0 | AE88: 0 | AF88: 0 | AI88: =IF($A88>0,'RRR hist-forc'!K88,0) -> 0 | AJ88: 0
A89: ='Asset data'!A89 -> 5 | B89: ='Asset data'!B89 -> 0 | C89: ='Asset data'!C89 -> 0 | D89: ='Asset data'!E89 -> Ground Outdoor / Indoor Chamber Mounted; ˂ 22 kV ; < = 60 kVA ; Multiple Phase | E89: TRANSFORMERS | F89: =IF(A89>0,SUM('Asset data'!J89:CV89),0) -> 4 | G89: =IF(A89>0,'Asset data'!F89,0) -> 108.9735123 | H89: =IF(A89>0,SUM('Asset data'!CX89:GJ89),0) -> 435.8940491 | I89: 4.270508404e-05 | J89: 43 | K89: 0.00063447656 | L89: 108.9735123 | M89: =IF($A89>0,SUMPRODUCT('Age profile (years)'!$CT89:$GF89,'Asset data'!$CX89:$GJ89)/H89-0.5,0) -> 22 | N89: 9589.66908 | O89: =IF($A89>0,'Asset data'!G89,0) -> 76.27186356 | P89: 33246.45144 | Q89: 0.7115581163 | R89: 7.627186356 | S89: 15.25437271 | T89: 45.76311814 | U89: 61.01749085 | W89: =IF($A89>0,SUMIF('Age profile (years)'!$CT89:$GF89,"<" & R89+0.5,'Asset data'!$CX89:$GJ89),0) -> 0 | X89: =IF($A89>0,SUMIF('Age profile (years)'!$CT89:$GF89,"<" & S89+0.5,'Asset data'!$CX89:$GJ89)-W89,0) -> 0 | Y89: =IF($A89>0,SUMIF('Age profile (years)'!$CT89:$GF89,"<" & T89+0.5,'Asset data'!$CX89:$GJ89)-X89-W89,0) -> 435.8940491 | Z89: =IF($A89>0,SUMIF('Age profile (years)'!$CT89:$GF89,"<" & U89+0.5,'Asset data'!$CX89:$GJ89)-Y89-X89-W89,0) -> 0 | AA89: 0 | AB89: 0 | AC89: 0 | AD89: 1 | AE89: 0 | AF89: 0 | AI89: =IF($A89>0,'RRR hist-forc'!K89,0) -> 76.27186356 | AJ89: 33246.45144
A90: ='Asset data'!A90 -> 0 | B90: ='Asset data'!B90 -> 0 | C90: ='Asset data'!C90 -> 0 | D90: ='Asset data'!E90 -> Ground Outdoor / Indoor Chamber Mounted; ˂ 22 kV ; > 60 kVA and < = 600 kVA ; Multiple Phase | E90: 0 | F90: =IF(A90>0,SUM('Asset data'!J90:CV90),0) -> 0 | G90: =IF(A90>0,'Asset data'!F90,0) -> 0 | H90: =IF(A90>0,SUM('Asset data'!CX90:GJ90),0) -> 0 | I90: 0 | J90: 0 | K90: 0 | L90: 0 | M90: =IF($A90>0,SUMPRODUCT('Age profile (years)'!$CT90:$GF90,'Asset data'!$CX90:$GJ90)/H90-0.5,0) -> 0 | N90: 0 | O90: =IF($A90>0,'Asset data'!G90,0) -> 0 | P90: 0 | Q90: 0 | R90: 0 | S90: 0 | T90: 0 | U90: 0 | W90: =IF($A90>0,SUMIF('Age profile (years)'!$CT90:$GF90,"<" & R90+0.5,'Asset data'!$CX90:$GJ90),0) -> 0 | X90: =IF($A90>0,SUMIF('Age profile (years)'!$CT90:$GF90,"<" & S90+0.5,'Asset data'!$CX90:$GJ90)-W90,0) -> 0 | Y90: =IF($A90>0,SUMIF('Age profile (years)'!$CT90:$GF90,"<" & T90+0.5,'Asset data'!$CX90:$GJ90)-X90-W90,0) -> 0 | Z90: =IF($A90>0,SUMIF('Age profile (years)'!$CT90:$GF90,"<" & U90+0.5,'Asset data'!$CX90:$GJ90)-Y90-X90-W90,0) -> 0 | AA90: 0 | AB90: 0 | AC90: 0 | AD90: 0 | AE90: 0 | AF90: 0 | AI90: =IF($A90>0,'RRR hist-forc'!K90,0) -> 0 | AJ90: 0
A91: ='Asset data'!A91 -> 0 | B91: ='Asset data'!B91 -> 0 | C91: ='Asset data'!C91 -> 0 | D91: ='Asset data'!E91 -> Ground Outdoor / Indoor Chamber Mounted; ˂ 22 kV ; > 600 kVA ; Multiple Phase | E91: 0 | F91: =IF(A91>0,SUM('Asset data'!J91:CV91),0) -> 0 | G91: =IF(A91>0,'Asset data'!F91,0) -> 0 | H91: =IF(A91>0,SUM('Asset data'!CX91:GJ91),0) -> 0 | I91: 0 | J91: 0 | K91: 0 | L91: 0 | M91: =IF($A91>0,SUMPRODUCT('Age profile (years)'!$CT91:$GF91,'Asset data'!$CX91:$GJ91)/H91-0.5,0) -> 0 | N91: 0 | O91: =IF($A91>0,'Asset data'!G91,0) -> 0 | P91: 0 | Q91: 0 | R91: 0 | S91: 0 | T91: 0 | U91: 0 | W91: =IF($A91>0,SUMIF('Age profile (years)'!$CT91:$GF91,"<" & R91+0.5,'Asset data'!$CX91:$GJ91),0) -> 0 | X91: =IF($A91>0,SUMIF('Age profile (years)'!$CT91:$GF91,"<" & S91+0.5,'Asset data'!$CX91:$GJ91)-W91,0) -> 0 | Y91: =IF($A91>0,SUMIF('Age profile (years)'!$CT91:$GF91,"<" & T91+0.5,'Asset data'!$CX91:$GJ91)-X91-W91,0) -> 0 | Z91: =IF($A91>0,SUMIF('Age profile (years)'!$CT91:$GF91,"<" & U91+0.5,'Asset data'!$CX91:$GJ91)-Y91-X91-W91,0) -> 0 | AA91: 0 | AB91: 0 | AC91: 0 | AD91: 0 | AE91: 0 | AF91: 0 | AI91: =IF($A91>0,'RRR hist-forc'!K91,0) -> 0 | AJ91: 0
A92: ='Asset data'!A92 -> 5 | B92: ='Asset data'!B92 -> 0 | C92: ='Asset data'!C92 -> 0 | D92: ='Asset data'!E92 -> Ground Outdoor / Indoor Chamber Mounted; > = 22 kV & < = 33 kV ; < = 15 MVA | E92: TRANSFORMERS | F92: =IF(A92>0,SUM('Asset data'!J92:CV92),0) -> 10 | G92: =IF(A92>0,'Asset data'!F92,0) -> 373.0151742 | H92: =IF(A92>0,SUM('Asset data'!CX92:GJ92),0) -> 3730.151742 | I92: 0.0003654476219 | J92: 33 | K92: 0.005429516302 | L92: 373.0151742 | M92: =IF($A92>0,SUMPRODUCT('Age profile (years)'!$CT92:$GF92,'Asset data'!$CX92:$GJ92)/H92-0.5,0) -> 49.8 | N92: 185761.5568 | O92: =IF($A92>0,'Asset data'!G92,0) -> 76.27186356 | P92: 284505.6247 | Q92: 0.3470724632 | R92: 7.627186356 | S92: 15.25437271 | T92: 45.76311814 | U92: 61.01749085 | W92: =IF($A92>0,SUMIF('Age profile (years)'!$CT92:$GF92,"<" & R92+0.5,'Asset data'!$CX92:$GJ92),0) -> 0 | X92: =IF($A92>0,SUMIF('Age profile (years)'!$CT92:$GF92,"<" & S92+0.5,'Asset data'!$CX92:$GJ92)-W92,0) -> 0 | Y92: =IF($A92>0,SUMIF('Age profile (years)'!$CT92:$GF92,"<" & T92+0.5,'Asset data'!$CX92:$GJ92)-X92-W92,0) -> 0 | Z92: =IF($A92>0,SUMIF('Age profile (years)'!$CT92:$GF92,"<" & U92+0.5,'Asset data'!$CX92:$GJ92)-Y92-X92-W92,0) -> 3730.151742 | AA92: 0 | AB92: 0 | AC92: 0 | AD92: 0 | AE92: 1 | AF92: 0 | AI92: =IF($A92>0,'RRR hist-forc'!K92,0) -> 76.27186356 | AJ92: 284505.6247
A93: ='Asset data'!A93 -> 0 | B93: ='Asset data'!B93 -> 0 | C93: ='Asset data'!C93 -> 0 | D93: ='Asset data'!E93 -> Ground Outdoor / Indoor Chamber Mounted; > = 22 kV & < = 33 kV ; > 15 MVA and < = 40 MVA | E93: 0 | F93: =IF(A93>0,SUM('Asset data'!J93:CV93),0) -> 0 | G93: =IF(A93>0,'Asset data'!F93,0) -> 0 | H93: =IF(A93>0,SUM('Asset data'!CX93:GJ93),0) -> 0 | I93: 0 | J93: 0 | K93: 0 | L93: 0 | M93: =IF($A93>0,SUMPRODUCT('Age profile (years)'!$CT93:$GF93,'Asset data'!$CX93:$GJ93)/H93-0.5,0) -> 0 | N93: 0 | O93: =IF($A93>0,'Asset data'!G93,0) -> 0 | P93: 0 | Q93: 0 | R93: 0 | S93: 0 | T93: 0 | U93: 0 | W93: =IF($A93>0,SUMIF('Age profile (years)'!$CT93:$GF93,"<" & R93+0.5,'Asset data'!$CX93:$GJ93),0) -> 0 | X93: =IF($A93>0,SUMIF('Age profile (years)'!$CT93:$GF93,"<" & S93+0.5,'Asset data'!$CX93:$GJ93)-W93,0) -> 0 | Y93: =IF($A93>0,SUMIF('Age profile (years)'!$CT93:$GF93,"<" & T93+0.5,'Asset data'!$CX93:$GJ93)-X93-W93,0) -> 0 | Z93: =IF($A93>0,SUMIF('Age profile (years)'!$CT93:$GF93,"<" & U93+0.5,'Asset data'!$CX93:$GJ93)-Y93-X93-W93,0) -> 0 | AA93: 0 | AB93: 0 | AC93: 0 | AD93: 0 | AE93: 0 | AF93: 0 | AI93: =IF($A93>0,'RRR hist-forc'!K93,0) -> 0 | AJ93: 0
A94: ='Asset data'!A94 -> 0 | B94: ='Asset data'!B94 -> 0 | C94: ='Asset data'!C94 -> 0 | D94: ='Asset data'!E94 -> Ground Outdoor / Indoor Chamber Mounted; > = 22 kV & < = 33 kV ; > 40 MVA | E94: 0 | F94: =IF(A94>0,SUM('Asset data'!J94:CV94),0) -> 0 | G94: =IF(A94>0,'Asset data'!F94,0) -> 0 | H94: =IF(A94>0,SUM('Asset data'!CX94:GJ94),0) -> 0 | I94: 0 | J94: 0 | K94: 0 | L94: 0 | M94: =IF($A94>0,SUMPRODUCT('Age profile (years)'!$CT94:$GF94,'Asset data'!$CX94:$GJ94)/H94-0.5,0) -> 0 | N94: 0 | O94: =IF($A94>0,'Asset data'!G94,0) -> 0 | P94: 0 | Q94: 0 | R94: 0 | S94: 0 | T94: 0 | U94: 0 | W94: =IF($A94>0,SUMIF('Age profile (years)'!$CT94:$GF94,"<" & R94+0.5,'Asset data'!$CX94:$GJ94),0) -> 0 | X94: =IF($A94>0,SUMIF('Age profile (years)'!$CT94:$GF94,"<" & S94+0.5,'Asset data'!$CX94:$GJ94)-W94,0) -> 0 | Y94: =IF($A94>0,SUMIF('Age profile (years)'!$CT94:$GF94,"<" & T94+0.5,'Asset data'!$CX94:$GJ94)-X94-W94,0) -> 0 | Z94: =IF($A94>0,SUMIF('Age profile (years)'!$CT94:$GF94,"<" & U94+0.5,'Asset data'!$CX94:$GJ94)-Y94-X94-W94,0) -> 0 | AA94: 0 | AB94: 0 | AC94: 0 | AD94: 0 | AE94: 0 | AF94: 0 | AI94: =IF($A94>0,'RRR hist-forc'!K94,0) -> 0 | AJ94: 0
A95: ='Asset data'!A95 -> 5 | B95: ='Asset data'!B95 -> 0 | C95: ='Asset data'!C95 -> 0 | D95: ='Asset data'!E95 -> Ground Outdoor / Indoor Chamber Mounted; > 33 kV & < = 66 kV ; < = 15 MVA | E95: TRANSFORMERS | F95: =IF(A95>0,SUM('Asset data'!J95:CV95),0) -> 59 | G95: =IF(A95>0,'Asset data'!F95,0) -> 1236.257379 | H95: =IF(A95>0,SUM('Asset data'!CX95:GJ95),0) -> 72939.18534 | I95: 0.007145943025 | J95: 22 | K95: 0.106168468 | L95: 1236.257379 | M95: =IF($A95>0,SUMPRODUCT('Age profile (years)'!$CT95:$GF95,'Asset data'!$CX95:$GJ95)/H95-0.5,0) -> 22.26271186 | N95: 1623824.067 | O95: =IF($A95>0,'Asset data'!G95,0) -> 76.27186356 | P95: 5563207.593 | Q95: 0.7081137024 | R95: 7.627186356 | S95: 15.25437271 | T95: 45.76311814 | U95: 61.01749085 | W95: =IF($A95>0,SUMIF('Age profile (years)'!$CT95:$GF95,"<" & R95+0.5,'Asset data'!$CX95:$GJ95),0) -> 13598.83117 | X95: =IF($A95>0,SUMIF('Age profile (years)'!$CT95:$GF95,"<" & S95+0.5,'Asset data'!$CX95:$GJ95)-W95,0) -> 12362.57379 | Y95: =IF($A95>0,SUMIF('Age profile (years)'!$CT95:$GF95,"<" & T95+0.5,'Asset data'!$CX95:$GJ95)-X95-W95,0) -> 43269.00825 | Z95: =IF($A95>0,SUMIF('Age profile (years)'!$CT95:$GF95,"<" & U95+0.5,'Asset data'!$CX95:$GJ95)-Y95-X95-W95,0) -> 2472.514757 | AA95: 1236.257379 | AB95: 0.186440678 | AC95: 0.1694915254 | AD95: 0.593220339 | AE95: 0.03389830508 | AF95: 0.01694915254 | AI95: =IF($A95>0,'RRR hist-forc'!K95,0) -> 76.27186356 | AJ95: 5563207.593
A96: ='Asset data'!A96 -> 5 | B96: ='Asset data'!B96 -> 0 | C96: ='Asset data'!C96 -> 0 | D96: ='Asset data'!E96 -> Ground Outdoor / Indoor Chamber Mounted; > 33 kV & < = 66 kV ; > 15 MVA and < = 40 MVA | E96: TRANSFORMERS | F96: =IF(A96>0,SUM('Asset data'!J96:CV96),0) -> 60 | G96: =IF(A96>0,'Asset data'!F96,0) -> 2294.714286 | H96: =IF(A96>0,SUM('Asset data'!CX96:GJ96),0) -> 137682.8571 | I96: 0.01348896136 | J96: 18 | K96: 0.2004077499 | L96: 2294.714286 | M96: =IF($A96>0,SUMPRODUCT('Age profile (years)'!$CT96:$GF96,'Asset data'!$CX96:$GJ96)/H96-0.5,0) -> 32.55 | N96: 4481577 | O96: =IF($A96>0,'Asset data'!G96,0) -> 61.51995238 | P96: 8470242.815 | Q96: 0.4709033616 | R96: 6.151995238 | S96: 12.30399048 | T96: 36.91197143 | U96: 49.21596191 | W96: =IF($A96>0,SUMIF('Age profile (years)'!$CT96:$GF96,"<" & R96+0.5,'Asset data'!$CX96:$GJ96),0) -> 6884.142857 | X96: =IF($A96>0,SUMIF('Age profile (years)'!$CT96:$GF96,"<" & S96+0.5,'Asset data'!$CX96:$GJ96)-W96,0) -> 4589.428571 | Y96: =IF($A96>0,SUMIF('Age profile (years)'!$CT96:$GF96,"<" & T96+0.5,'Asset data'!$CX96:$GJ96)-X96-W96,0) -> 82609.71429 | Z96: =IF($A96>0,SUMIF('Age profile (years)'!$CT96:$GF96,"<" & U96+0.5,'Asset data'!$CX96:$GJ96)-Y96-X96-W96,0) -> 9178.857143 | AA96: 34420.71429 | AB96: 0.05 | AC96: 0.03333333333 | AD96: 0.6 | AE96: 0.06666666667 | AF96: 0.25 | AI96: =IF($A96>0,'RRR hist-forc'!K96,0) -> 61.51995238 | AJ96: 8470242.815
A97: ='Asset data'!A97 -> 5 | B97: ='Asset data'!B97 -> 0 | C97: ='Asset data'!C97 -> 0 | D97: ='Asset data'!E97 -> Ground Outdoor / Indoor Chamber Mounted; > 33 kV & < = 66 kV ; > 40 MVA | E97: TRANSFORMERS | F97: =IF(A97>0,SUM('Asset data'!J97:CV97),0) -> 22 | G97: =IF(A97>0,'Asset data'!F97,0) -> 8 | H97: =IF(A97>0,SUM('Asset data'!CX97:GJ97),0) -> 176 | I97: 1.724293967e-05 | J97: 44 | K97: 0.0002561812321 | L97: 8 | M97: =IF($A97>0,SUMPRODUCT('Age profile (years)'!$CT97:$GF97,'Asset data'!$CX97:$GJ97)/H97-0.5,0) -> 45.27272727 | N97: 7968 | O97: =IF($A97>0,'Asset data'!G97,0) -> 60.86464034 | P97: 10712.1767 | Q97: 0.2561735842 | R97: 6.086464034 | S97: 12.17292807 | T97: 36.51878421 | U97: 48.69171227 | W97: =IF($A97>0,SUMIF('Age profile (years)'!$CT97:$GF97,"<" & R97+0.5,'Asset data'!$CX97:$GJ97),0) -> 32 | X97: =IF($A97>0,SUMIF('Age profile (years)'!$CT97:$GF97,"<" & S97+0.5,'Asset data'!$CX97:$GJ97)-W97,0) -> 0 | Y97: =IF($A97>0,SUMIF('Age profile (years)'!$CT97:$GF97,"<" & T97+0.5,'Asset data'!$CX97:$GJ97)-X97-W97,0) -> 0 | Z97: =IF($A97>0,SUMIF('Age profile (years)'!$CT97:$GF97,"<" & U97+0.5,'Asset data'!$CX97:$GJ97)-Y97-X97-W97,0) -> 0 | AA97: 144 | AB97: 0.1818181818 | AC97: 0 | AD97: 0 | AE97: 0 | AF97: 0.8181818182 | AI97: =IF($A97>0,'RRR hist-forc'!K97,0) -> 60.86464034 | AJ97: 10712.1767
A98: ='Asset data'!A98 -> 0 | B98: ='Asset data'!B98 -> 0 | C98: ='Asset data'!C98 -> 0 | D98: ='Asset data'!E98 -> Ground Outdoor / Indoor Chamber Mounted; > 66 kV & < = 132 kV ; < = 100 MVA | E98: 0 | F98: =IF(A98>0,SUM('Asset data'!J98:CV98),0) -> 0 | G98: =IF(A98>0,'Asset data'!F98,0) -> 0 | H98: =IF(A98>0,SUM('Asset data'!CX98:GJ98),0) -> 0 | I98: 0 | J98: 0 | K98: 0 | L98: 0 | M98: =IF($A98>0,SUMPRODUCT('Age profile (years)'!$CT98:$GF98,'Asset data'!$CX98:$GJ98)/H98-0.5,0) -> 0 | N98: 0 | O98: =IF($A98>0,'Asset data'!G98,0) -> 0 | P98: 0 | Q98: 0 | R98: 0 | S98: 0 | T98: 0 | U98: 0 | W98: =IF($A98>0,SUMIF('Age profile (years)'!$CT98:$GF98,"<" & R98+0.5,'Asset data'!$CX98:$GJ98),0) -> 0 | X98: =IF($A98>0,SUMIF('Age profile (years)'!$CT98:$GF98,"<" & S98+0.5,'Asset data'!$CX98:$GJ98)-W98,0) -> 0 | Y98: =IF($A98>0,SUMIF('Age profile (years)'!$CT98:$GF98,"<" & T98+0.5,'Asset data'!$CX98:$GJ98)-X98-W98,0) -> 0 | Z98: =IF($A98>0,SUMIF('Age profile (years)'!$CT98:$GF98,"<" & U98+0.5,'Asset data'!$CX98:$GJ98)-Y98-X98-W98,0) -> 0 | AA98: 0 | AB98: 0 | AC98: 0 | AD98: 0 | AE98: 0 | AF98: 0 | AI98: =IF($A98>0,'RRR hist-forc'!K98,0) -> 0 | AJ98: 0
A99: ='Asset data'!A99 -> 0 | B99: ='Asset data'!B99 -> 0 | C99: ='Asset data'!C99 -> 0 | D99: ='Asset data'!E99 -> Ground Outdoor / Indoor Chamber Mounted; > 66 kV & < = 132 kV ; > 100 MVA | E99: 0 | F99: =IF(A99>0,SUM('Asset data'!J99:CV99),0) -> 0 | G99: =IF(A99>0,'Asset data'!F99,0) -> 0 | H99: =IF(A99>0,SUM('Asset data'!CX99:GJ99),0) -> 0 | I99: 0 | J99: 0 | K99: 0 | L99: 0 | M99: =IF($A99>0,SUMPRODUCT('Age profile (years)'!$CT99:$GF99,'Asset data'!$CX99:$GJ99)/H99-0.5,0) -> 0 | N99: 0 | O99: =IF($A99>0,'Asset data'!G99,0) -> 0 | P99: 0 | Q99: 0 | R99: 0 | S99: 0 | T99: 0 | U99: 0 | W99: =IF($A99>0,SUMIF('Age profile (years)'!$CT99:$GF99,"<" & R99+0.5,'Asset data'!$CX99:$GJ99),0) -> 0 | X99: =IF($A99>0,SUMIF('Age profile (years)'!$CT99:$GF99,"<" & S99+0.5,'Asset data'!$CX99:$GJ99)-W99,0) -> 0 | Y99: =IF($A99>0,SUMIF('Age profile (years)'!$CT99:$GF99,"<" & T99+0.5,'Asset data'!$CX99:$GJ99)-X99-W99,0) -> 0 | Z99: =IF($A99>0,SUMIF('Age profile (years)'!$CT99:$GF99,"<" & U99+0.5,'Asset data'!$CX99:$GJ99)-Y99-X99-W99,0) -> 0 | AA99: 0 | AB99: 0 | AC99: 0 | AD99: 0 | AE99: 0 | AF99: 0 | AI99: =IF($A99>0,'RRR hist-forc'!K99,0) -> 0 | AJ99: 0
A100: ='Asset data'!A100 -> 0 | B100: ='Asset data'!B100 -> 0 | C100: ='Asset data'!C100 -> 0 | D100: ='Asset data'!E100 -> Ground Outdoor / Indoor Chamber Mounted; > 132 kV ; < = 100 MVA | E100: 0 | F100: =IF(A100>0,SUM('Asset data'!J100:CV100),0) -> 0 | G100: =IF(A100>0,'Asset data'!F100,0) -> 0 | H100: =IF(A100>0,SUM('Asset data'!CX100:GJ100),0) -> 0 | I100: 0 | J100: 0 | K100: 0 | L100: 0 | M100: =IF($A100>0,SUMPRODUCT('Age profile (years)'!$CT100:$GF100,'Asset data'!$CX100:$GJ100)/H100-0.5,0) -> 0 | N100: 0 | O100: =IF($A100>0,'Asset data'!G100,0) -> 0 | P100: 0 | Q100: 0 | R100: 0 | S100: 0 | T100: 0 | U100: =IF($A100>0,$O100-U$4*$O100,0) -> 0 | W100: =IF($A100>0,SUMIF('Age profile (years)'!$CT100:$GF100,"<" & R100+0.5,'Asset data'!$CX100:$GJ100),0) -> 0 | X100: =IF($A100>0,SUMIF('Age profile (years)'!$CT100:$GF100,"<" & S100+0.5,'Asset data'!$CX100:$GJ100)-W100,0) -> 0 | Y100: =IF($A100>0,SUMIF('Age profile (years)'!$CT100:$GF100,"<" & T100+0.5,'Asset data'!$CX100:$GJ100)-X100-W100,0) -> 0 | Z100: =IF($A100>0,SUMIF('Age profile (years)'!$CT100:$GF100,"<" & U100+0.5,'Asset data'!$CX100:$GJ100)-Y100-X100-W100,0) -> 0 | AA100: 0 | AB100: 0 | AC100: 0 | AD100: 0 | AE100: 0 | AF100: 0 | AI100: =IF($A100>0,'RRR hist-forc'!K100,0) -> 0 | AJ100: 0
A101: ='Asset data'!A101 -> 0 | B101: ='Asset data'!B101 -> 0 | C101: ='Asset data'!C101 -> 0 | D101: ='Asset data'!E101 -> Ground Outdoor / Indoor Chamber Mounted; > 132 kV ; > 100 MVA | E101: 0 | F101: =IF(A101>0,SUM('Asset data'!J101:CV101),0) -> 0 | G101: =IF(A101>0,'Asset data'!F101,0) -> 0 | H101: =IF(A101>0,SUM('Asset data'!CX101:GJ101),0) -> 0 | I101: 0 | J101: 0 | K101: 0 | L101: 0 | M101: =IF($A101>0,SUMPRODUCT('Age profile (years)'!$CT101:$GF101,'Asset data'!$CX101:$GJ101)/H101-0.5,0) -> 0 | N101: 0 | O101: =IF($A101>0,'Asset data'!G101,0) -> 0 | P101: 0 | Q101: 0 | R101: 0 | S101: 0 | T101: 0 | U101: 0 | W101: =IF($A101>0,SUMIF('Age profile (years)'!$CT101:$GF101,"<" & R101+0.5,'Asset data'!$CX101:$GJ101),0) -> 0 | X101: =IF($A101>0,SUMIF('Age profile (years)'!$CT101:$GF101,"<" & S101+0.5,'Asset data'!$CX101:$GJ101)-W101,0) -> 0 | Y101: =IF($A101>0,SUMIF('Age profile (years)'!$CT101:$GF101,"<" & T101+0.5,'Asset data'!$CX101:$GJ101)-X101-W101,0) -> 0 | Z101: =IF($A101>0,SUMIF('Age profile (years)'!$CT101:$GF101,"<" & U101+0.5,'Asset data'!$CX101:$GJ101)-Y101-X101-W101,0) -> 0 | AA101: 0 | AB101: 0 | AC101: 0 | AD101: 0 | AE101: 0 | AF101: 0 | AI101: =IF($A101>0,'RRR hist-forc'!K101,0) -> 0 | AJ101: 0
A102: ='Asset data'!A102 -> 0 | B102: ='Asset data'!B102 -> 0 | C102: ='Asset data'!C102 -> 0 | D102: ='Asset data'!E102 -> Other | E102: 0 | F102: =IF(A102>0,SUM('Asset data'!J102:CV102),0) -> 0 | G102: =IF(A102>0,'Asset data'!F102,0) -> 0 | H102: =IF(A102>0,SUM('Asset data'!CX102:GJ102),0) -> 0 | I102: 0 | J102: 0 | K102: 0 | L102: 0 | M102: =IF($A102>0,SUMPRODUCT('Age profile (years)'!$CT102:$GF102,'Asset data'!$CX102:$GJ102)/H102-0.5,0) -> 0 | N102: 0 | O102: =IF($A102>0,'Asset data'!G102,0) -> 0 | P102: 0 | Q102: 0 | R102: 0 | S102: 0 | T102: 0 | U102: 0 | W102: =IF($A102>0,SUMIF('Age profile (years)'!$CT102:$GF102,"<" & R102+0.5,'Asset data'!$CX102:$GJ102),0) -> 0 | X102: =IF($A102>0,SUMIF('Age profile (years)'!$CT102:$GF102,"<" & S102+0.5,'Asset data'!$CX102:$GJ102)-W102,0) -> 0 | Y102: =IF($A102>0,SUMIF('Age profile (years)'!$CT102:$GF102,"<" & T102+0.5,'Asset data'!$CX102:$GJ102)-X102-W102,0) -> 0 | Z102: =IF($A102>0,SUMIF('Age profile (years)'!$CT102:$GF102,"<" & U102+0.5,'Asset data'!$CX102:$GJ102)-Y102-X102-W102,0) -> 0 | AA102: 0 | AB102: 0 | AC102: 0 | AD102: 0 | AE102: 0 | AF102: 0 | AI102: =IF($A102>0,'RRR hist-forc'!K102,0) -> 0 | AJ102: 0
A103: ='Asset data'!A103 -> 6 | B103: ='Asset data'!B103 -> 0 | C103: ='Asset data'!C103 -> 0 | D103: ='Asset data'!E103 -> ˂ = 11 kV ; Fuse | E103: SWITCHGEAR | F103: =IF(A103>0,SUM('Asset data'!J103:CV103),0) -> 566 | G103: =IF(A103>0,'Asset data'!F103,0) -> 1.647177725 | H103: =IF(A103>0,SUM('Asset data'!CX103:GJ103),0) -> 932.3025925 | I103: 9.133884862e-05 | J103: 40 | K103: 0.001241695627 | L103: 1.647177725 | M103: =IF($A103>0,SUMPRODUCT('Age profile (years)'!$CT103:$GF103,'Asset data'!$CX103:$GJ103)/H103-0.5,0) -> 61.86925795 | N103: 57680.86958 | O103: =IF($A103>0,'Asset data'!G103,0) -> 88.91991912 | P103: 82900.27112 | Q103: 0.3042137402 | R103: 8.891991912 | S103: 17.78398382 | T103: 53.35195147 | U103: 71.1359353 | W103: =IF($A103>0,SUMIF('Age profile (years)'!$CT103:$GF103,"<" & R103+0.5,'Asset data'!$CX103:$GJ103),0) -> 31.29637678 | X103: =IF($A103>0,SUMIF('Age profile (years)'!$CT103:$GF103,"<" & S103+0.5,'Asset data'!$CX103:$GJ103)-W103,0) -> 0 | Y103: =IF($A103>0,SUMIF('Age profile (years)'!$CT103:$GF103,"<" & T103+0.5,'Asset data'!$CX103:$GJ103)-X103-W103,0) -> 69.18146446 | Z103: =IF($A103>0,SUMIF('Age profile (years)'!$CT103:$GF103,"<" & U103+0.5,'Asset data'!$CX103:$GJ103)-Y103-X103-W103,0) -> 680.2844005 | AA103: 151.5403507 | AB103: 0.03356890459 | AC103: 0 | AD103: 0.074204947 | AE103: 0.7296819788 | AF103: 0.1625441696 | AI103: =IF($A103>0,'RRR hist-forc'!K103,0) -> 88.91991912 | AJ103: 82900.27112
A104: ='Asset data'!A104 -> 6 | B104: ='Asset data'!B104 -> 0 | C104: ='Asset data'!C104 -> 0 | D104: ='Asset data'!E104 -> ˂ = 11 kV ; Switch | E104: SWITCHGEAR | F104: =IF(A104>0,SUM('Asset data'!J104:CV104),0) -> 113 | G104: =IF(A104>0,'Asset data'!F104,0) -> 10.33489734 | H104: =IF(A104>0,SUM('Asset data'!CX104:GJ104),0) -> 1167.843399 | I104: 0.0001144150754 | J104: 38 | K104: 0.001555402777 | L104: 10.33489734 | M104: =IF($A104>0,SUMPRODUCT('Age profile (years)'!$CT104:$GF104,'Asset data'!$CX104:$GJ104)/H104-0.5,0) -> 34.7300885 | N104: 40559.30461 | O104: =IF($A104>0,'Asset data'!G104,0) -> 89.43797771 | P104: 104449.5519 | Q104: 0.6116852216 | R104: 8.943797771 | S104: 17.88759554 | T104: 53.66278662 | U104: 71.55038217 | W104: =IF($A104>0,SUMIF('Age profile (years)'!$CT104:$GF104,"<" & R104+0.5,'Asset data'!$CX104:$GJ104),0) -> 51.67448669 | X104: =IF($A104>0,SUMIF('Age profile (years)'!$CT104:$GF104,"<" & S104+0.5,'Asset data'!$CX104:$GJ104)-W104,0) -> 382.3912015 | Y104: =IF($A104>0,SUMIF('Age profile (years)'!$CT104:$GF104,"<" & T104+0.5,'Asset data'!$CX104:$GJ104)-X104-W104,0) -> 475.4052776 | Z104: =IF($A104>0,SUMIF('Age profile (years)'!$CT104:$GF104,"<" & U104+0.5,'Asset data'!$CX104:$GJ104)-Y104-X104-W104,0) -> 31.00469202 | AA104: 227.3677415 | AB104: 0.04424778761 | AC104: 0.3274336283 | AD104: 0.407079646 | AE104: 0.02654867257 | AF104: 0.1946902655 | AI104: =IF($A104>0,'RRR hist-forc'!K104,0) -> 89.43797771 | AJ104: 104449.5519
A105: ='Asset data'!A105 -> 6 | B105: ='Asset data'!B105 -> 0 | C105: ='Asset data'!C105 -> 0 | D105: ='Asset data'!E105 -> ˂ = 11 kV ; Circuit Breaker | E105: SWITCHGEAR | F105: =IF(A105>0,SUM('Asset data'!J105:CV105),0) -> 72 | G105: =IF(A105>0,'Asset data'!F105,0) -> 96.71508106 | H105: =IF(A105>0,SUM('Asset data'!CX105:GJ105),0) -> 6963.485836 | I105: 0.0006822213987 | J105: 28 | K105: 0.009274381492 | L105: 96.71508106 | M105: =IF($A105>0,SUMPRODUCT('Age profile (years)'!$CT105:$GF105,'Asset data'!$CX105:$GJ105)/H105-0.5,0) -> 32.80555556 | N105: 228441.0215 | O105: =IF($A105>0,'Asset data'!G105,0) -> 84.00243144 | P105: 584949.7415 | Q105: 0.6094689761 | R105: 8.400243144 | S105: 16.80048629 | T105: 50.40145886 | U105: 67.20194515 | W105: =IF($A105>0,SUMIF('Age profile (years)'!$CT105:$GF105,"<" & R105+0.5,'Asset data'!$CX105:$GJ105),0) -> 1644.156378 | X105: =IF($A105>0,SUMIF('Age profile (years)'!$CT105:$GF105,"<" & S105+0.5,'Asset data'!$CX105:$GJ105)-W105,0) -> 193.4301621 | Y105: =IF($A105>0,SUMIF('Age profile (years)'!$CT105:$GF105,"<" & T105+0.5,'Asset data'!$CX105:$GJ105)-X105-W105,0) -> 3771.888161 | Z105: =IF($A105>0,SUMIF('Age profile (years)'!$CT105:$GF105,"<" & U105+0.5,'Asset data'!$CX105:$GJ105)-Y105-X105-W105,0) -> 96.71508106 | AA105: 1257.296054 | AB105: 0.2361111111 | AC105: 0.02777777778 | AD105: 0.5416666667 | AE105: 0.01388888889 | AF105: 0.1805555556 | AI105: =IF($A105>0,'RRR hist-forc'!K105,0) -> 84.00243144 | AJ105: 584949.7415
A106: ='Asset data'!A106 -> 6 | B106: ='Asset data'!B106 -> 0 | C106: ='Asset data'!C106 -> 0 | D106: ='Asset data'!E106 -> > 11 kV & < = 22 kV ; Switch | E106: SWITCHGEAR | F106: =IF(A106>0,SUM('Asset data'!J106:CV106),0) -> 107819 | G106: =IF(A106>0,'Asset data'!F106,0) -> 2.325231197 | H106: =IF(A106>0,SUM('Asset data'!CX106:GJ106),0) -> 250704.1025 | I106: 0.02456179383 | J106: 14 | K106: 0.3339025228 | L106: 2.325231197 | M106: =IF($A106>0,SUMPRODUCT('Age profile (years)'!$CT106:$GF106,'Asset data'!$CX106:$GJ106)/H106-0.5,0) -> 61.21164637 | N106: 15346010.86 | O106: =IF($A106>0,'Asset data'!G106,0) -> 90.63359661 | P106: 22722214.49 | Q106: 0.324625209 | R106: 9.063359661 | S106: 18.12671932 | T106: 54.38015797 | U106: 72.50687729 | W106: =IF($A106>0,SUMIF('Age profile (years)'!$CT106:$GF106,"<" & R106+0.5,'Asset data'!$CX106:$GJ106),0) -> 23882.44963 | X106: =IF($A106>0,SUMIF('Age profile (years)'!$CT106:$GF106,"<" & S106+0.5,'Asset data'!$CX106:$GJ106)-W106,0) -> 34.87846796 | Y106: =IF($A106>0,SUMIF('Age profile (years)'!$CT106:$GF106,"<" & T106+0.5,'Asset data'!$CX106:$GJ106)-X106-W106,0) -> 20938.70693 | Z106: =IF($A106>0,SUMIF('Age profile (years)'!$CT106:$GF106,"<" & U106+0.5,'Asset data'!$CX106:$GJ106)-Y106-X106-W106,0) -> 145675.7345 | AA106: 60172.33292 | AB106: 0.09526150307 | AC106: 0.0001391220471 | AD106: 0.0835196023 | AE106: 0.5810664169 | AF106: 0.2400133557 | AI106: =IF($A106>0,'RRR hist-forc'!K106,0) -> 90.63359661 | AJ106: 22722214.49
A107: ='Asset data'!A107 -> 6 | B107: ='Asset data'!B107 -> 0 | C107: ='Asset data'!C107 -> 0 | D107: ='Asset data'!E107 -> > 11 kV & < = 22 kV ; Circuit Breaker | E107: SWITCHGEAR | F107: =IF(A107>0,SUM('Asset data'!J107:CV107),0) -> 733 | G107: =IF(A107>0,'Asset data'!F107,0) -> 286.9032258 | H107: =IF(A107>0,SUM('Asset data'!CX107:GJ107),0) -> 210300.0645 | I107: 0.0206033598 | J107: 17 | K107: 0.28009004 | L107: 286.9032258 | M107: =IF($A107>0,SUMPRODUCT('Age profile (years)'!$CT107:$GF107,'Asset data'!$CX107:$GJ107)/H107-0.5,0) -> 48.75511596 | N107: 10253204.03 | O107: =IF($A107>0,'Asset data'!G107,0) -> 74.84460379 | P107: 15739825.01 | Q107: 0.3485820822 | R107: 7.484460379 | S107: 14.96892076 | T107: 44.90676227 | U107: 59.87568303 | W107: =IF($A107>0,SUMIF('Age profile (years)'!$CT107:$GF107,"<" & R107+0.5,'Asset data'!$CX107:$GJ107),0) -> 7172.580645 | X107: =IF($A107>0,SUMIF('Age profile (years)'!$CT107:$GF107,"<" & S107+0.5,'Asset data'!$CX107:$GJ107)-W107,0) -> 286.9032258 | Y107: =IF($A107>0,SUMIF('Age profile (years)'!$CT107:$GF107,"<" & T107+0.5,'Asset data'!$CX107:$GJ107)-X107-W107,0) -> 84636.45161 | Z107: =IF($A107>0,SUMIF('Age profile (years)'!$CT107:$GF107,"<" & U107+0.5,'Asset data'!$CX107:$GJ107)-Y107-X107-W107,0) -> 33854.58065 | AA107: 84349.54839 | AB107: 0.03410641201 | AC107: 0.00136425648 | AD107: 0.4024556617 | AE107: 0.1609822647 | AF107: 0.4010914052 | AI107: =IF($A107>0,'RRR hist-forc'!K107,0) -> 74.84460379 | AJ107: 15739825.01
A108: ='Asset data'!A108 -> 0 | B108: ='Asset data'!B108 -> 0 | C108: ='Asset data'!C108 -> 0 | D108: ='Asset data'!E108 -> > 22 kV & < = 33 kV ; Switch | E108: 0 | F108: =IF(A108>0,SUM('Asset data'!J108:CV108),0) -> 0 | G108: =IF(A108>0,'Asset data'!F108,0) -> 0 | H108: =IF(A108>0,SUM('Asset data'!CX108:GJ108),0) -> 0 | I108: 0 | J108: 0 | K108: 0 | L108: 0 | M108: =IF($A108>0,SUMPRODUCT('Age profile (years)'!$CT108:$GF108,'Asset data'!$CX108:$GJ108)/H108-0.5,0) -> 0 | N108: 0 | O108: =IF($A108>0,'Asset data'!G108,0) -> 0 | P108: 0 | Q108: 0 | R108: 0 | S108: 0 | T108: 0 | U108: 0 | W108: =IF($A108>0,SUMIF('Age profile (years)'!$CT108:$GF108,"<" & R108+0.5,'Asset data'!$CX108:$GJ108),0) -> 0 | X108: =IF($A108>0,SUMIF('Age profile (years)'!$CT108:$GF108,"<" & S108+0.5,'Asset data'!$CX108:$GJ108)-W108,0) -> 0 | Y108: =IF($A108>0,SUMIF('Age profile (years)'!$CT108:$GF108,"<" & T108+0.5,'Asset data'!$CX108:$GJ108)-X108-W108,0) -> 0 | Z108: =IF($A108>0,SUMIF('Age profile (years)'!$CT108:$GF108,"<" & U108+0.5,'Asset data'!$CX108:$GJ108)-Y108-X108-W108,0) -> 0 | AA108: 0 | AB108: 0 | AC108: 0 | AD108: 0 | AE108: 0 | AF108: 0 | AI108: =IF($A108>0,'RRR hist-forc'!K108,0) -> 0 | AJ108: 0
A109: ='Asset data'!A109 -> 0 | B109: ='Asset data'!B109 -> 0 | C109: ='Asset data'!C109 -> 0 | D109: ='Asset data'!E109 -> > 22 kV & < = 33 kV ; Circuit Breaker | E109: 0 | F109: =IF(A109>0,SUM('Asset data'!J109:CV109),0) -> 0 | G109: =IF(A109>0,'Asset data'!F109,0) -> 0 | H109: =IF(A109>0,SUM('Asset data'!CX109:GJ109),0) -> 0 | I109: 0 | J109: 0 | K109: 0 | L109: 0 | M109: =IF($A109>0,SUMPRODUCT('Age profile (years)'!$CT109:$GF109,'Asset data'!$CX109:$GJ109)/H109-0.5,0) -> 0 | N109: 0 | O109: =IF($A109>0,'Asset data'!G109,0) -> 0 | P109: 0 | Q109: 0 | R109: 0 | S109: 0 | T109: 0 | U109: 0 | W109: =IF($A109>0,SUMIF('Age profile (years)'!$CT109:$GF109,"<" & R109+0.5,'Asset data'!$CX109:$GJ109),0) -> 0 | X109: =IF($A109>0,SUMIF('Age profile (years)'!$CT109:$GF109,"<" & S109+0.5,'Asset data'!$CX109:$GJ109)-W109,0) -> 0 | Y109: =IF($A109>0,SUMIF('Age profile (years)'!$CT109:$GF109,"<" & T109+0.5,'Asset data'!$CX109:$GJ109)-X109-W109,0) -> 0 | Z109: =IF($A109>0,SUMIF('Age profile (years)'!$CT109:$GF109,"<" & U109+0.5,'Asset data'!$CX109:$GJ109)-Y109-X109-W109,0) -> 0 | AA109: 0 | AB109: 0 | AC109: 0 | AD109: 0 | AE109: 0 | AF109: 0 | AI109: =IF($A109>0,'RRR hist-forc'!K109,0) -> 0 | AJ109: 0
A110: ='Asset data'!A110 -> 6 | B110: ='Asset data'!B110 -> 0 | C110: ='Asset data'!C110 -> 0 | D110: ='Asset data'!E110 -> > 33 kV & < = 66 kV ; Switch | E110: SWITCHGEAR | F110: =IF(A110>0,SUM('Asset data'!J110:CV110),0) -> 4046 | G110: =IF(A110>0,'Asset data'!F110,0) -> 52.75454545 | H110: =IF(A110>0,SUM('Asset data'!CX110:GJ110),0) -> 213444.8909 | I110: 0.02091146237 | J110: 16 | K110: 0.2842785054 | L110: 52.75454545 | M110: =IF($A110>0,SUMPRODUCT('Age profile (years)'!$CT110:$GF110,'Asset data'!$CX110:$GJ110)/H110-0.5,0) -> 58.26668314 | N110: 12436725.83 | O110: =IF($A110>0,'Asset data'!G110,0) -> 91.47635476 | P110: 19525160.56 | Q110: 0.3630410471 | R110: 9.147635476 | S110: 18.29527095 | T110: 54.88581286 | U110: 73.18108381 | W110: =IF($A110>0,SUMIF('Age profile (years)'!$CT110:$GF110,"<" & R110+0.5,'Asset data'!$CX110:$GJ110),0) -> 23686.79091 | X110: =IF($A110>0,SUMIF('Age profile (years)'!$CT110:$GF110,"<" & S110+0.5,'Asset data'!$CX110:$GJ110)-W110,0) -> 0 | Y110: =IF($A110>0,SUMIF('Age profile (years)'!$CT110:$GF110,"<" & T110+0.5,'Asset data'!$CX110:$GJ110)-X110-W110,0) -> 30650.39091 | Z110: =IF($A110>0,SUMIF('Age profile (years)'!$CT110:$GF110,"<" & U110+0.5,'Asset data'!$CX110:$GJ110)-Y110-X110-W110,0) -> 107935.8 | AA110: 51171.90909 | AB110: 0.1109738013 | AC110: 0 | AD110: 0.1435986159 | AE110: 0.5056846268 | AF110: 0.239742956 | AI110: =IF($A110>0,'RRR hist-forc'!K110,0) -> 91.47635476 | AJ110: 19525160.56
A111: ='Asset data'!A111 -> 6 | B111: ='Asset data'!B111 -> 0 | C111: ='Asset data'!C111 -> 0 | D111: ='Asset data'!E111 -> > 33 kV & < = 66 kV ; Circuit Breaker | E111: SWITCHGEAR | F111: =IF(A111>0,SUM('Asset data'!J111:CV111),0) -> 172 | G111: =IF(A111>0,'Asset data'!F111,0) -> 391.3809524 | H111: =IF(A111>0,SUM('Asset data'!CX111:GJ111),0) -> 67317.52381 | I111: 0.006595181828 | J111: 23 | K111: 0.08965745197 | L111: 391.3809524 | M111: =IF($A111>0,SUMPRODUCT('Age profile (years)'!$CT111:$GF111,'Asset data'!$CX111:$GJ111)/H111-0.5,0) -> 36.13953488 | N111: 2432824 | O111: =IF($A111>0,'Asset data'!G111,0) -> 64.05559302 | P111: 4312063.909 | Q111: 0.4358098461 | R111: 6.405559302 | S111: 12.8111186 | T111: 38.43335581 | U111: 51.24447442 | W111: =IF($A111>0,SUMIF('Age profile (years)'!$CT111:$GF111,"<" & R111+0.5,'Asset data'!$CX111:$GJ111),0) -> 1956.904762 | X111: =IF($A111>0,SUMIF('Age profile (years)'!$CT111:$GF111,"<" & S111+0.5,'Asset data'!$CX111:$GJ111)-W111,0) -> 7044.857143 | Y111: =IF($A111>0,SUMIF('Age profile (years)'!$CT111:$GF111,"<" & T111+0.5,'Asset data'!$CX111:$GJ111)-X111-W111,0) -> 27005.28571 | Z111: =IF($A111>0,SUMIF('Age profile (years)'!$CT111:$GF111,"<" & U111+0.5,'Asset data'!$CX111:$GJ111)-Y111-X111-W111,0) -> 6653.47619 | AA111: 24657 | AB111: 0.02906976744 | AC111: 0.1046511628 | AD111: 0.4011627907 | AE111: 0.0988372093 | AF111: 0.3662790698 | AI111: =IF($A111>0,'RRR hist-forc'!K111,0) -> 64.05559302 | AJ111: 4312063.909
A112: ='Asset data'!A112 -> 0 | B112: ='Asset data'!B112 -> 0 | C112: ='Asset data'!C112 -> 0 | D112: ='Asset data'!E112 -> 0 | E112: 0 | F112: =IF(A112>0,SUM('Asset data'!J112:CV112),0) -> 0 | G112: =IF(A112>0,'Asset data'!F112,0) -> 0 | H112: =IF(A112>0,SUM('Asset data'!CX112:GJ112),0) -> 0 | I112: 0 | J112: 0 | K112: 0 | L112: 0 | M112: =IF($A112>0,SUMPRODUCT('Age profile (years)'!$CT112:$GF112,'Asset data'!$CX112:$GJ112)/H112-0.5,0) -> 0 | N112: 0 | O112: =IF($A112>0,'Asset data'!G112,0) -> 0 | P112: 0 | Q112: 0 | R112: 0 | S112: 0 | T112: 0 | U112: 0 | W112: =IF($A112>0,SUMIF('Age profile (years)'!$CT112:$GF112,"<" & R112+0.5,'Asset data'!$CX112:$GJ112),0) -> 0 | X112: =IF($A112>0,SUMIF('Age profile (years)'!$CT112:$GF112,"<" & S112+0.5,'Asset data'!$CX112:$GJ112)-W112,0) -> 0 | Y112: =IF($A112>0,SUMIF('Age profile (years)'!$CT112:$GF112,"<" & T112+0.5,'Asset data'!$CX112:$GJ112)-X112-W112,0) -> 0 | Z112: =IF($A112>0,SUMIF('Age profile (years)'!$CT112:$GF112,"<" & U112+0.5,'Asset data'!$CX112:$GJ112)-Y112-X112-W112,0) -> 0 | AA112: 0 | AB112: 0 | AC112: 0 | AD112: 0 | AE112: 0 | AF112: 0 | AI112: =IF($A112>0,'RRR hist-forc'!K112,0) -> 0 | AJ112: 0
A113: ='Asset data'!A113 -> 0 | B113: ='Asset data'!B113 -> 0 | C113: ='Asset data'!C113 -> 0 | D113: ='Asset data'!E113 -> 0 | E113: 0 | F113: =IF(A113>0,SUM('Asset data'!J113:CV113),0) -> 0 | G113: =IF(A113>0,'Asset data'!F113,0) -> 0 | H113: =IF(A113>0,SUM('Asset data'!CX113:GJ113),0) -> 0 | I113: 0 | J113: 0 | K113: 0 | L113: 0 | M113: =IF($A113>0,SUMPRODUCT('Age profile (years)'!$CT113:$GF113,'Asset data'!$CX113:$GJ113)/H113-0.5,0) -> 0 | N113: 0 | O113: =IF($A113>0,'Asset data'!G113,0) -> 0 | P113: 0 | Q113: 0 | R113: 0 | S113: 0 | T113: 0 | U113: 0 | W113: =IF($A113>0,SUMIF('Age profile (years)'!$CT113:$GF113,"<" & R113+0.5,'Asset data'!$CX113:$GJ113),0) -> 0 | X113: =IF($A113>0,SUMIF('Age profile (years)'!$CT113:$GF113,"<" & S113+0.5,'Asset data'!$CX113:$GJ113)-W113,0) -> 0 | Y113: =IF($A113>0,SUMIF('Age profile (years)'!$CT113:$GF113,"<" & T113+0.5,'Asset data'!$CX113:$GJ113)-X113-W113,0) -> 0 | Z113: =IF($A113>0,SUMIF('Age profile (years)'!$CT113:$GF113,"<" & U113+0.5,'Asset data'!$CX113:$GJ113)-Y113-X113-W113,0) -> 0 | AA113: 0 | AB113: 0 | AC113: 0 | AD113: 0 | AE113: 0 | AF113: 0 | AI113: =IF($A113>0,'RRR hist-forc'!K113,0) -> 0 | AJ113: 0
A114: ='Asset data'!A114 -> 0 | B114: ='Asset data'!B114 -> 0 | C114: ='Asset data'!C114 -> 0 | D114: ='Asset data'!E114 -> 0 | E114: 0 | F114: =IF(A114>0,SUM('Asset data'!J114:CV114),0) -> 0 | G114: =IF(A114>0,'Asset data'!F114,0) -> 0 | H114: =IF(A114>0,SUM('Asset data'!CX114:GJ114),0) -> 0 | I114: 0 | J114: 0 | K114: 0 | L114: 0 | M114: =IF($A114>0,SUMPRODUCT('Age profile (years)'!$CT114:$GF114,'Asset data'!$CX114:$GJ114)/H114-0.5,0) -> 0 | N114: 0 | O114: =IF($A114>0,'Asset data'!G114,0) -> 0 | P114: 0 | Q114: 0 | R114: 0 | S114: 0 | T114: 0 | U114: 0 | W114: =IF($A114>0,SUMIF('Age profile (years)'!$CT114:$GF114,"<" & R114+0.5,'Asset data'!$CX114:$GJ114),0) -> 0 | X114: =IF($A114>0,SUMIF('Age profile (years)'!$CT114:$GF114,"<" & S114+0.5,'Asset data'!$CX114:$GJ114)-W114,0) -> 0 | Y114: =IF($A114>0,SUMIF('Age profile (years)'!$CT114:$GF114,"<" & T114+0.5,'Asset data'!$CX114:$GJ114)-X114-W114,0) -> 0 | Z114: =IF($A114>0,SUMIF('Age profile (years)'!$CT114:$GF114,"<" & U114+0.5,'Asset data'!$CX114:$GJ114)-Y114-X114-W114,0) -> 0 | AA114: 0 | AB114: 0 | AC114: 0 | AD114: 0 | AE114: 0 | AF114: 0 | AI114: =IF($A114>0,'RRR hist-forc'!K114,0) -> 0 | AJ114: 0
A115: ='Asset data'!A115 -> 0 | B115: ='Asset data'!B115 -> 0 | C115: ='Asset data'!C115 -> 0 | D115: ='Asset data'!E115 -> 0 | E115: 0 | F115: =IF(A115>0,SUM('Asset data'!J115:CV115),0) -> 0 | G115: =IF(A115>0,'Asset data'!F115,0) -> 0 | H115: =IF(A115>0,SUM('Asset data'!CX115:GJ115),0) -> 0 | I115: 0 | J115: 0 | K115: 0 | L115: 0 | M115: =IF($A115>0,SUMPRODUCT('Age profile (years)'!$CT115:$GF115,'Asset data'!$CX115:$GJ115)/H115-0.5,0) -> 0 | N115: 0 | O115: =IF($A115>0,'Asset data'!G115,0) -> 0 | P115: 0 | Q115: 0 | R115: 0 | S115: 0 | T115: 0 | U115: 0 | W115: =IF($A115>0,SUMIF('Age profile (years)'!$CT115:$GF115,"<" & R115+0.5,'Asset data'!$CX115:$GJ115),0) -> 0 | X115: =IF($A115>0,SUMIF('Age profile (years)'!$CT115:$GF115,"<" & S115+0.5,'Asset data'!$CX115:$GJ115)-W115,0) -> 0 | Y115: =IF($A115>0,SUMIF('Age profile (years)'!$CT115:$GF115,"<" & T115+0.5,'Asset data'!$CX115:$GJ115)-X115-W115,0) -> 0 | Z115: =IF($A115>0,SUMIF('Age profile (years)'!$CT115:$GF115,"<" & U115+0.5,'Asset data'!$CX115:$GJ115)-Y115-X115-W115,0) -> 0 | AA115: 0 | AB115: 0 | AC115: 0 | AD115: 0 | AE115: 0 | AF115: 0 | AI115: =IF($A115>0,'RRR hist-forc'!K115,0) -> 0 | AJ115: 0
A116: ='Asset data'!A116 -> 0 | B116: ='Asset data'!B116 -> 0 | C116: ='Asset data'!C116 -> 0 | D116: ='Asset data'!E116 -> 0 | E116: 0 | F116: =IF(A116>0,SUM('Asset data'!J116:CV116),0) -> 0 | G116: =IF(A116>0,'Asset data'!F116,0) -> 0 | H116: =IF(A116>0,SUM('Asset data'!CX116:GJ116),0) -> 0 | I116: 0 | J116: 0 | K116: 0 | L116: 0 | M116: =IF($A116>0,SUMPRODUCT('Age profile (years)'!$CT116:$GF116,'Asset data'!$CX116:$GJ116)/H116-0.5,0) -> 0 | N116: 0 | O116: =IF($A116>0,'Asset data'!G116,0) -> 0 | P116: 0 | Q116: 0 | R116: 0 | S116: 0 | T116: 0 | U116: 0 | W116: =IF($A116>0,SUMIF('Age profile (years)'!$CT116:$GF116,"<" & R116+0.5,'Asset data'!$CX116:$GJ116),0) -> 0 | X116: =IF($A116>0,SUMIF('Age profile (years)'!$CT116:$GF116,"<" & S116+0.5,'Asset data'!$CX116:$GJ116)-W116,0) -> 0 | Y116: =IF($A116>0,SUMIF('Age profile (years)'!$CT116:$GF116,"<" & T116+0.5,'Asset data'!$CX116:$GJ116)-X116-W116,0) -> 0 | Z116: =IF($A116>0,SUMIF('Age profile (years)'!$CT116:$GF116,"<" & U116+0.5,'Asset data'!$CX116:$GJ116)-Y116-X116-W116,0) -> 0 | AA116: 0 | AB116: 0 | AC116: 0 | AD116: 0 | AE116: 0 | AF116: 0 | AI116: =IF($A116>0,'RRR hist-forc'!K116,0) -> 0 | AJ116: 0
A117: ='Asset data'!A117 -> 0 | B117: ='Asset data'!B117 -> 0 | C117: ='Asset data'!C117 -> 0 | D117: ='Asset data'!E117 -> 0 | E117: 0 | F117: =IF(A117>0,SUM('Asset data'!J117:CV117),0) -> 0 | G117: =IF(A117>0,'Asset data'!F117,0) -> 0 | H117: =IF(A117>0,SUM('Asset data'!CX117:GJ117),0) -> 0 | I117: 0 | J117: 0 | K117: 0 | L117: 0 | M117: =IF($A117>0,SUMPRODUCT('Age profile (years)'!$CT117:$GF117,'Asset data'!$CX117:$GJ117)/H117-0.5,0) -> 0 | N117: 0 | O117: =IF($A117>0,'Asset data'!G117,0) -> 0 | P117: 0 | Q117: 0 | R117: 0 | S117: 0 | T117: 0 | U117: 0 | W117: =IF($A117>0,SUMIF('Age profile (years)'!$CT117:$GF117,"<" & R117+0.5,'Asset data'!$CX117:$GJ117),0) -> 0 | X117: =IF($A117>0,SUMIF('Age profile (years)'!$CT117:$GF117,"<" & S117+0.5,'Asset data'!$CX117:$GJ117)-W117,0) -> 0 | Y117: =IF($A117>0,SUMIF('Age profile (years)'!$CT117:$GF117,"<" & T117+0.5,'Asset data'!$CX117:$GJ117)-X117-W117,0) -> 0 | Z117: =IF($A117>0,SUMIF('Age profile (years)'!$CT117:$GF117,"<" & U117+0.5,'Asset data'!$CX117:$GJ117)-Y117-X117-W117,0) -> 0 | AA117: 0 | AB117: 0 | AC117: 0 | AD117: 0 | AE117: 0 | AF117: 0 | AI117: =IF($A117>0,'RRR hist-forc'!K117,0) -> 0 | AJ117: 0
A118: ='Asset data'!A118 -> 0 | B118: ='Asset data'!B118 -> 0 | C118: ='Asset data'!C118 -> 0 | D118: ='Asset data'!E118 -> 0 | E118: 0 | F118: =IF(A118>0,SUM('Asset data'!J118:CV118),0) -> 0 | G118: =IF(A118>0,'Asset data'!F118,0) -> 0 | H118: =IF(A118>0,SUM('Asset data'!CX118:GJ118),0) -> 0 | I118: 0 | J118: 0 | K118: 0 | L118: 0 | M118: =IF($A118>0,SUMPRODUCT('Age profile (years)'!$CT118:$GF118,'Asset data'!$CX118:$GJ118)/H118-0.5,0) -> 0 | N118: 0 | O118: =IF($A118>0,'Asset data'!G118,0) -> 0 | P118: 0 | Q118: 0 | R118: 0 | S118: 0 | T118: 0 | U118: 0 | W118: =IF($A118>0,SUMIF('Age profile (years)'!$CT118:$GF118,"<" & R118+0.5,'Asset data'!$CX118:$GJ118),0) -> 0 | X118: =IF($A118>0,SUMIF('Age profile (years)'!$CT118:$GF118,"<" & S118+0.5,'Asset data'!$CX118:$GJ118)-W118,0) -> 0 | Y118: =IF($A118>0,SUMIF('Age profile (years)'!$CT118:$GF118,"<" & T118+0.5,'Asset data'!$CX118:$GJ118)-X118-W118,0) -> 0 | Z118: =IF($A118>0,SUMIF('Age profile (years)'!$CT118:$GF118,"<" & U118+0.5,'Asset data'!$CX118:$GJ118)-Y118-X118-W118,0) -> 0 | AA118: 0 | AB118: 0 | AC118: 0 | AD118: 0 | AE118: 0 | AF118: 0 | AI118: =IF($A118>0,'RRR hist-forc'!K118,0) -> 0 | AJ118: 0
A119: ='Asset data'!A119 -> 0 | B119: ='Asset data'!B119 -> 0 | C119: ='Asset data'!C119 -> 0 | D119: ='Asset data'!E119 -> 0 | E119: 0 | F119: =IF(A119>0,SUM('Asset data'!J119:CV119),0) -> 0 | G119: =IF(A119>0,'Asset data'!F119,0) -> 0 | H119: =IF(A119>0,SUM('Asset data'!CX119:GJ119),0) -> 0 | I119: 0 | J119: 0 | K119: 0 | L119: 0 | M119: =IF($A119>0,SUMPRODUCT('Age profile (years)'!$CT119:$GF119,'Asset data'!$CX119:$GJ119)/H119-0.5,0) -> 0 | N119: 0 | O119: =IF($A119>0,'Asset data'!G119,0) -> 0 | P119: 0 | Q119: 0 | R119: 0 | S119: 0 | T119: 0 | U119: 0 | W119: =IF($A119>0,SUMIF('Age profile (years)'!$CT119:$GF119,"<" & R119+0.5,'Asset data'!$CX119:$GJ119),0) -> 0 | X119: =IF($A119>0,SUMIF('Age profile (years)'!$CT119:$GF119,"<" & S119+0.5,'Asset data'!$CX119:$GJ119)-W119,0) -> 0 | Y119: =IF($A119>0,SUMIF('Age profile (years)'!$CT119:$GF119,"<" & T119+0.5,'Asset data'!$CX119:$GJ119)-X119-W119,0) -> 0 | Z119: =IF($A119>0,SUMIF('Age profile (years)'!$CT119:$GF119,"<" & U119+0.5,'Asset data'!$CX119:$GJ119)-Y119-X119-W119,0) -> 0 | AA119: 0 | AB119: 0 | AC119: 0 | AD119: 0 | AE119: 0 | AF119: 0 | AI119: =IF($A119>0,'RRR hist-forc'!K119,0) -> 0 | AJ119: 0
A120: ='Asset data'!A120 -> 0 | B120: ='Asset data'!B120 -> 0 | C120: ='Asset data'!C120 -> 0 | D120: ='Asset data'!E120 -> 0 | E120: 0 | F120: =IF(A120>0,SUM('Asset data'!J120:CV120),0) -> 0 | G120: =IF(A120>0,'Asset data'!F120,0) -> 0 | H120: =IF(A120>0,SUM('Asset data'!CX120:GJ120),0) -> 0 | I120: 0 | J120: 0 | K120: 0 | L120: 0 | M120: =IF($A120>0,SUMPRODUCT('Age profile (years)'!$CT120:$GF120,'Asset data'!$CX120:$GJ120)/H120-0.5,0) -> 0 | N120: 0 | O120: =IF($A120>0,'Asset data'!G120,0) -> 0 | P120: 0 | Q120: 0 | R120: 0 | S120: 0 | T120: 0 | U120: 0 | W120: =IF($A120>0,SUMIF('Age profile (years)'!$CT120:$GF120,"<" & R120+0.5,'Asset data'!$CX120:$GJ120),0) -> 0 | X120: =IF($A120>0,SUMIF('Age profile (years)'!$CT120:$GF120,"<" & S120+0.5,'Asset data'!$CX120:$GJ120)-W120,0) -> 0 | Y120: =IF($A120>0,SUMIF('Age profile (years)'!$CT120:$GF120,"<" & T120+0.5,'Asset data'!$CX120:$GJ120)-X120-W120,0) -> 0 | Z120: =IF($A120>0,SUMIF('Age profile (years)'!$CT120:$GF120,"<" & U120+0.5,'Asset data'!$CX120:$GJ120)-Y120-X120-W120,0) -> 0 | AA120: 0 | AB120: 0 | AC120: 0 | AD120: 0 | AE120: 0 | AF120: 0 | AI120: =IF($A120>0,'RRR hist-forc'!K120,0) -> 0 | AJ120: 0
A121: ='Asset data'!A121 -> 0 | B121: ='Asset data'!B121 -> 0 | C121: ='Asset data'!C121 -> 0 | D121: ='Asset data'!E121 -> 0 | E121: 0 | F121: =IF(A121>0,SUM('Asset data'!J121:CV121),0) -> 0 | G121: =IF(A121>0,'Asset data'!F121,0) -> 0 | H121: =IF(A121>0,SUM('Asset data'!CX121:GJ121),0) -> 0 | I121: 0 | J121: 0 | K121: 0 | L121: 0 | M121: =IF($A121>0,SUMPRODUCT('Age profile (years)'!$CT121:$GF121,'Asset data'!$CX121:$GJ121)/H121-0.5,0) -> 0 | N121: 0 | O121: =IF($A121>0,'Asset data'!G121,0) -> 0 | P121: 0 | Q121: 0 | R121: 0 | S121: 0 | T121: 0 | U121: 0 | W121: =IF($A121>0,SUMIF('Age profile (years)'!$CT121:$GF121,"<" & R121+0.5,'Asset data'!$CX121:$GJ121),0) -> 0 | X121: =IF($A121>0,SUMIF('Age profile (years)'!$CT121:$GF121,"<" & S121+0.5,'Asset data'!$CX121:$GJ121)-W121,0) -> 0 | Y121: =IF($A121>0,SUMIF('Age profile (years)'!$CT121:$GF121,"<" & T121+0.5,'Asset data'!$CX121:$GJ121)-X121-W121,0) -> 0 | Z121: =IF($A121>0,SUMIF('Age profile (years)'!$CT121:$GF121,"<" & U121+0.5,'Asset data'!$CX121:$GJ121)-Y121-X121-W121,0) -> 0 | AA121: 0 | AB121: 0 | AC121: 0 | AD121: 0 | AE121: 0 | AF121: 0 | AI121: =IF($A121>0,'RRR hist-forc'!K121,0) -> 0 | AJ121: 0
A122: ='Asset data'!A122 -> 0 | B122: ='Asset data'!B122 -> 0 | C122: ='Asset data'!C122 -> 0 | D122: ='Asset data'!E122 -> 0 | E122: 0 | F122: =IF(A122>0,SUM('Asset data'!J122:CV122),0) -> 0 | G122: =IF(A122>0,'Asset data'!F122,0) -> 0 | H122: =IF(A122>0,SUM('Asset data'!CX122:GJ122),0) -> 0 | I122: 0 | J122: 0 | K122: 0 | L122: 0 | M122: =IF($A122>0,SUMPRODUCT('Age profile (years)'!$CT122:$GF122,'Asset data'!$CX122:$GJ122)/H122-0.5,0) -> 0 | N122: 0 | O122: =IF($A122>0,'Asset data'!G122,0) -> 0 | P122: 0 | Q122: 0 | R122: 0 | S122: 0 | T122: 0 | U122: 0 | W122: =IF($A122>0,SUMIF('Age profile (years)'!$CT122:$GF122,"<" & R122+0.5,'Asset data'!$CX122:$GJ122),0) -> 0 | X122: =IF($A122>0,SUMIF('Age profile (years)'!$CT122:$GF122,"<" & S122+0.5,'Asset data'!$CX122:$GJ122)-W122,0) -> 0 | Y122: =IF($A122>0,SUMIF('Age profile (years)'!$CT122:$GF122,"<" & T122+0.5,'Asset data'!$CX122:$GJ122)-X122-W122,0) -> 0 | Z122: =IF($A122>0,SUMIF('Age profile (years)'!$CT122:$GF122,"<" & U122+0.5,'Asset data'!$CX122:$GJ122)-Y122-X122-W122,0) -> 0 | AA122: 0 | AB122: 0 | AC122: 0 | AD122: 0 | AE122: 0 | AF122: 0 | AI122: =IF($A122>0,'RRR hist-forc'!K122,0) -> 0 | AJ122: 0
A123: ='Asset data'!A123 -> 0 | B123: ='Asset data'!B123 -> 0 | C123: ='Asset data'!C123 -> 0 | D123: ='Asset data'!E123 -> 0 | E123: 0 | F123: =IF(A123>0,SUM('Asset data'!J123:CV123),0) -> 0 | G123: =IF(A123>0,'Asset data'!F123,0) -> 0 | H123: =IF(A123>0,SUM('Asset data'!CX123:GJ123),0) -> 0 | I123: 0 | J123: 0 | K123: 0 | L123: 0 | M123: =IF($A123>0,SUMPRODUCT('Age profile (years)'!$CT123:$GF123,'Asset data'!$CX123:$GJ123)/H123-0.5,0) -> 0 | N123: 0 | O123: =IF($A123>0,'Asset data'!G123,0) -> 0 | P123: 0 | Q123: 0 | R123: 0 | S123: 0 | T123: 0 | U123: 0 | W123: =IF($A123>0,SUMIF('Age profile (years)'!$CT123:$GF123,"<" & R123+0.5,'Asset data'!$CX123:$GJ123),0) -> 0 | X123: =IF($A123>0,SUMIF('Age profile (years)'!$CT123:$GF123,"<" & S123+0.5,'Asset data'!$CX123:$GJ123)-W123,0) -> 0 | Y123: =IF($A123>0,SUMIF('Age profile (years)'!$CT123:$GF123,"<" & T123+0.5,'Asset data'!$CX123:$GJ123)-X123-W123,0) -> 0 | Z123: =IF($A123>0,SUMIF('Age profile (years)'!$CT123:$GF123,"<" & U123+0.5,'Asset data'!$CX123:$GJ123)-Y123-X123-W123,0) -> 0 | AA123: 0 | AB123: 0 | AC123: 0 | AD123: 0 | AE123: 0 | AF123: 0 | AI123: =IF($A123>0,'RRR hist-forc'!K123,0) -> 0 | AJ123: 0
A124: ='Asset data'!A124 -> 0 | B124: ='Asset data'!B124 -> 0 | C124: ='Asset data'!C124 -> 0 | D124: ='Asset data'!E124 -> 0 | E124: 0 | F124: =IF(A124>0,SUM('Asset data'!J124:CV124),0) -> 0 | G124: =IF(A124>0,'Asset data'!F124,0) -> 0 | H124: =IF(A124>0,SUM('Asset data'!CX124:GJ124),0) -> 0 | I124: 0 | J124: 0 | K124: 0 | L124: 0 | M124: =IF($A124>0,SUMPRODUCT('Age profile (years)'!$CT124:$GF124,'Asset data'!$CX124:$GJ124)/H124-0.5,0) -> 0 | N124: 0 | O124: =IF($A124>0,'Asset data'!G124,0) -> 0 | P124: 0 | Q124: 0 | R124: 0 | S124: 0 | T124: 0 | U124: 0 | W124: =IF($A124>0,SUMIF('Age profile (years)'!$CT124:$GF124,"<" & R124+0.5,'Asset data'!$CX124:$GJ124),0) -> 0 | X124: =IF($A124>0,SUMIF('Age profile (years)'!$CT124:$GF124,"<" & S124+0.5,'Asset data'!$CX124:$GJ124)-W124,0) -> 0 | Y124: =IF($A124>0,SUMIF('Age profile (years)'!$CT124:$GF124,"<" & T124+0.5,'Asset data'!$CX124:$GJ124)-X124-W124,0) -> 0 | Z124: =IF($A124>0,SUMIF('Age profile (years)'!$CT124:$GF124,"<" & U124+0.5,'Asset data'!$CX124:$GJ124)-Y124-X124-W124,0) -> 0 | AA124: 0 | AB124: 0 | AC124: 0 | AD124: 0 | AE124: 0 | AF124: 0 | AI124: =IF($A124>0,'RRR hist-forc'!K124,0) -> 0 | AJ124: 0
A125: ='Asset data'!A125 -> 0 | B125: ='Asset data'!B125 -> 0 | C125: ='Asset data'!C125 -> 0 | D125: ='Asset data'!E125 -> 0 | E125: 0 | F125: =IF(A125>0,SUM('Asset data'!J125:CV125),0) -> 0 | G125: =IF(A125>0,'Asset data'!F125,0) -> 0 | H125: =IF(A125>0,SUM('Asset data'!CX125:GJ125),0) -> 0 | I125: 0 | J125: 0 | K125: 0 | L125: 0 | M125: =IF($A125>0,SUMPRODUCT('Age profile (years)'!$CT125:$GF125,'Asset data'!$CX125:$GJ125)/H125-0.5,0) -> 0 | N125: 0 | O125: =IF($A125>0,'Asset data'!G125,0) -> 0 | P125: 0 | Q125: 0 | R125: 0 | S125: 0 | T125: 0 | U125: 0 | W125: =IF($A125>0,SUMIF('Age profile (years)'!$CT125:$GF125,"<" & R125+0.5,'Asset data'!$CX125:$GJ125),0) -> 0 | X125: =IF($A125>0,SUMIF('Age profile (years)'!$CT125:$GF125,"<" & S125+0.5,'Asset data'!$CX125:$GJ125)-W125,0) -> 0 | Y125: =IF($A125>0,SUMIF('Age profile (years)'!$CT125:$GF125,"<" & T125+0.5,'Asset data'!$CX125:$GJ125)-X125-W125,0) -> 0 | Z125: =IF($A125>0,SUMIF('Age profile (years)'!$CT125:$GF125,"<" & U125+0.5,'Asset data'!$CX125:$GJ125)-Y125-X125-W125,0) -> 0 | AA125: 0 | AB125: 0 | AC125: 0 | AD125: 0 | AE125: 0 | AF125: 0 | AI125: =IF($A125>0,'RRR hist-forc'!K125,0) -> 0 | AJ125: 0
A126: ='Asset data'!A126 -> 0 | B126: ='Asset data'!B126 -> 0 | C126: ='Asset data'!C126 -> 0 | D126: ='Asset data'!E126 -> 0 | E126: 0 | F126: =IF(A126>0,SUM('Asset data'!J126:CV126),0) -> 0 | G126: =IF(A126>0,'Asset data'!F126,0) -> 0 | H126: =IF(A126>0,SUM('Asset data'!CX126:GJ126),0) -> 0 | I126: 0 | J126: 0 | K126: 0 | L126: 0 | M126: =IF($A126>0,SUMPRODUCT('Age profile (years)'!$CT126:$GF126,'Asset data'!$CX126:$GJ126)/H126-0.5,0) -> 0 | N126: 0 | O126: =IF($A126>0,'Asset data'!G126,0) -> 0 | P126: 0 | Q126: 0 | R126: 0 | S126: 0 | T126: 0 | U126: 0 | W126: =IF($A126>0,SUMIF('Age profile (years)'!$CT126:$GF126,"<" & R126+0.5,'Asset data'!$CX126:$GJ126),0) -> 0 | X126: =IF($A126>0,SUMIF('Age profile (years)'!$CT126:$GF126,"<" & S126+0.5,'Asset data'!$CX126:$GJ126)-W126,0) -> 0 | Y126: =IF($A126>0,SUMIF('Age profile (years)'!$CT126:$GF126,"<" & T126+0.5,'Asset data'!$CX126:$GJ126)-X126-W126,0) -> 0 | Z126: =IF($A126>0,SUMIF('Age profile (years)'!$CT126:$GF126,"<" & U126+0.5,'Asset data'!$CX126:$GJ126)-Y126-X126-W126,0) -> 0 | AA126: 0 | AB126: 0 | AC126: 0 | AD126: 0 | AE126: 0 | AF126: 0 | AI126: =IF($A126>0,'RRR hist-forc'!K126,0) -> 0 | AJ126: 0
A127: ='Asset data'!A127 -> 0 | B127: ='Asset data'!B127 -> 0 | C127: ='Asset data'!C127 -> 0 | D127: ='Asset data'!E127 -> 0 | E127: 0 | F127: =IF(A127>0,SUM('Asset data'!J127:CV127),0) -> 0 | G127: =IF(A127>0,'Asset data'!F127,0) -> 0 | H127: =IF(A127>0,SUM('Asset data'!CX127:GJ127),0) -> 0 | I127: 0 | J127: 0 | K127: 0 | L127: 0 | M127: =IF($A127>0,SUMPRODUCT('Age profile (years)'!$CT127:$GF127,'Asset data'!$CX127:$GJ127)/H127-0.5,0) -> 0 | N127: 0 | O127: =IF($A127>0,'Asset data'!G127,0) -> 0 | P127: 0 | Q127: 0 | R127: 0 | S127: 0 | T127: 0 | U127: 0 | W127: =IF($A127>0,SUMIF('Age profile (years)'!$CT127:$GF127,"<" & R127+0.5,'Asset data'!$CX127:$GJ127),0) -> 0 | X127: =IF($A127>0,SUMIF('Age profile (years)'!$CT127:$GF127,"<" & S127+0.5,'Asset data'!$CX127:$GJ127)-W127,0) -> 0 | Y127: =IF($A127>0,SUMIF('Age profile (years)'!$CT127:$GF127,"<" & T127+0.5,'Asset data'!$CX127:$GJ127)-X127-W127,0) -> 0 | Z127: =IF($A127>0,SUMIF('Age profile (years)'!$CT127:$GF127,"<" & U127+0.5,'Asset data'!$CX127:$GJ127)-Y127-X127-W127,0) -> 0 | AA127: 0 | AB127: 0 | AC127: 0 | AD127: 0 | AE127: 0 | AF127: 0 | AI127: =IF($A127>0,'RRR hist-forc'!K127,0) -> 0 | AJ127: 0
A128: ='Asset data'!A128 -> 0 | B128: ='Asset data'!B128 -> 0 | C128: ='Asset data'!C128 -> 0 | D128: ='Asset data'!E128 -> 0 | E128: 0 | F128: =IF(A128>0,SUM('Asset data'!J128:CV128),0) -> 0 | G128: =IF(A128>0,'Asset data'!F128,0) -> 0 | H128: =IF(A128>0,SUM('Asset data'!CX128:GJ128),0) -> 0 | I128: 0 | J128: 0 | K128: 0 | L128: 0 | M128: =IF($A128>0,SUMPRODUCT('Age profile (years)'!$CT128:$GF128,'Asset data'!$CX128:$GJ128)/H128-0.5,0) -> 0 | N128: 0 | O128: =IF($A128>0,'Asset data'!G128,0) -> 0 | P128: 0 | Q128: 0 | R128: 0 | S128: 0 | T128: 0 | U128: 0 | W128: =IF($A128>0,SUMIF('Age profile (years)'!$CT128:$GF128,"<" & R128+0.5,'Asset data'!$CX128:$GJ128),0) -> 0 | X128: =IF($A128>0,SUMIF('Age profile (years)'!$CT128:$GF128,"<" & S128+0.5,'Asset data'!$CX128:$GJ128)-W128,0) -> 0 | Y128: =IF($A128>0,SUMIF('Age profile (years)'!$CT128:$GF128,"<" & T128+0.5,'Asset data'!$CX128:$GJ128)-X128-W128,0) -> 0 | Z128: =IF($A128>0,SUMIF('Age profile (years)'!$CT128:$GF128,"<" & U128+0.5,'Asset data'!$CX128:$GJ128)-Y128-X128-W128,0) -> 0 | AA128: 0 | AB128: 0 | AC128: 0 | AD128: 0 | AE128: 0 | AF128: 0 | AI128: =IF($A128>0,'RRR hist-forc'!K128,0) -> 0 | AJ128: 0
A129: ='Asset data'!A129 -> 0 | B129: ='Asset data'!B129 -> 0 | C129: ='Asset data'!C129 -> 0 | D129: ='Asset data'!E129 -> 0 | E129: 0 | F129: =IF(A129>0,SUM('Asset data'!J129:CV129),0) -> 0 | G129: =IF(A129>0,'Asset data'!F129,0) -> 0 | H129: =IF(A129>0,SUM('Asset data'!CX129:GJ129),0) -> 0 | I129: 0 | J129: 0 | K129: 0 | L129: 0 | M129: =IF($A129>0,SUMPRODUCT('Age profile (years)'!$CT129:$GF129,'Asset data'!$CX129:$GJ129)/H129-0.5,0) -> 0 | N129: 0 | O129: =IF($A129>0,'Asset data'!G129,0) -> 0 | P129: 0 | Q129: 0 | R129: 0 | S129: 0 | T129: 0 | U129: 0 | W129: =IF($A129>0,SUMIF('Age profile (years)'!$CT129:$GF129,"<" & R129+0.5,'Asset data'!$CX129:$GJ129),0) -> 0 | X129: =IF($A129>0,SUMIF('Age profile (years)'!$CT129:$GF129,"<" & S129+0.5,'Asset data'!$CX129:$GJ129)-W129,0) -> 0 | Y129: =IF($A129>0,SUMIF('Age profile (years)'!$CT129:$GF129,"<" & T129+0.5,'Asset data'!$CX129:$GJ129)-X129-W129,0) -> 0 | Z129: =IF($A129>0,SUMIF('Age profile (years)'!$CT129:$GF129,"<" & U129+0.5,'Asset data'!$CX129:$GJ129)-Y129-X129-W129,0) -> 0 | AA129: 0 | AB129: 0 | AC129: 0 | AD129: 0 | AE129: 0 | AF129: 0 | AI129: =IF($A129>0,'RRR hist-forc'!K129,0) -> 0 | AJ129: 0
A130: ='Asset data'!A130 -> 0 | B130: ='Asset data'!B130 -> 0 | C130: ='Asset data'!C130 -> 0 | D130: ='Asset data'!E130 -> 0 | E130: 0 | F130: =IF(A130>0,SUM('Asset data'!J130:CV130),0) -> 0 | G130: =IF(A130>0,'Asset data'!F130,0) -> 0 | H130: =IF(A130>0,SUM('Asset data'!CX130:GJ130),0) -> 0 | I130: 0 | J130: 0 | K130: 0 | L130: 0 | M130: =IF($A130>0,SUMPRODUCT('Age profile (years)'!$CT130:$GF130,'Asset data'!$CX130:$GJ130)/H130-0.5,0) -> 0 | N130: 0 | O130: =IF($A130>0,'Asset data'!G130,0) -> 0 | P130: 0 | Q130: 0 | R130: 0 | S130: 0 | T130: 0 | U130: 0 | W130: =IF($A130>0,SUMIF('Age profile (years)'!$CT130:$GF130,"<" & R130+0.5,'Asset data'!$CX130:$GJ130),0) -> 0 | X130: =IF($A130>0,SUMIF('Age profile (years)'!$CT130:$GF130,"<" & S130+0.5,'Asset data'!$CX130:$GJ130)-W130,0) -> 0 | Y130: =IF($A130>0,SUMIF('Age profile (years)'!$CT130:$GF130,"<" & T130+0.5,'Asset data'!$CX130:$GJ130)-X130-W130,0) -> 0 | Z130: =IF($A130>0,SUMIF('Age profile (years)'!$CT130:$GF130,"<" & U130+0.5,'Asset data'!$CX130:$GJ130)-Y130-X130-W130,0) -> 0 | AA130: 0 | AB130: 0 | AC130: 0 | AD130: 0 | AE130: 0 | AF130: 0 | AI130: =IF($A130>0,'RRR hist-forc'!K130,0) -> 0 | AJ130: 0
A131: ='Asset data'!A131 -> 0 | B131: ='Asset data'!B131 -> 0 | C131: ='Asset data'!C131 -> 0 | D131: ='Asset data'!E131 -> 0 | E131: 0 | F131: =IF(A131>0,SUM('Asset data'!J131:CV131),0) -> 0 | G131: =IF(A131>0,'Asset data'!F131,0) -> 0 | H131: =IF(A131>0,SUM('Asset data'!CX131:GJ131),0) -> 0 | I131: 0 | J131: 0 | K131: 0 | L131: 0 | M131: =IF($A131>0,SUMPRODUCT('Age profile (years)'!$CT131:$GF131,'Asset data'!$CX131:$GJ131)/H131-0.5,0) -> 0 | N131: 0 | O131: =IF($A131>0,'Asset data'!G131,0) -> 0 | P131: 0 | Q131: 0 | R131: 0 | S131: 0 | T131: 0 | U131: 0 | W131: =IF($A131>0,SUMIF('Age profile (years)'!$CT131:$GF131,"<" & R131+0.5,'Asset data'!$CX131:$GJ131),0) -> 0 | X131: =IF($A131>0,SUMIF('Age profile (years)'!$CT131:$GF131,"<" & S131+0.5,'Asset data'!$CX131:$GJ131)-W131,0) -> 0 | Y131: =IF($A131>0,SUMIF('Age profile (years)'!$CT131:$GF131,"<" & T131+0.5,'Asset data'!$CX131:$GJ131)-X131-W131,0) -> 0 | Z131: =IF($A131>0,SUMIF('Age profile (years)'!$CT131:$GF131,"<" & U131+0.5,'Asset data'!$CX131:$GJ131)-Y131-X131-W131,0) -> 0 | AA131: 0 | AB131: 0 | AC131: 0 | AD131: 0 | AE131: 0 | AF131: 0 | AI131: =IF($A131>0,'RRR hist-forc'!K131,0) -> 0 | AJ131: 0
A132: ='Asset data'!A132 -> 0 | B132: ='Asset data'!B132 -> 0 | C132: ='Asset data'!C132 -> 0 | D132: ='Asset data'!E132 -> 0 | E132: 0 | F132: =IF(A132>0,SUM('Asset data'!J132:CV132),0) -> 0 | G132: =IF(A132>0,'Asset data'!F132,0) -> 0 | H132: =IF(A132>0,SUM('Asset data'!CX132:GJ132),0) -> 0 | I132: 0 | J132: 0 | K132: 0 | L132: 0 | M132: =IF($A132>0,SUMPRODUCT('Age profile (years)'!$CT132:$GF132,'Asset data'!$CX132:$GJ132)/H132-0.5,0) -> 0 | N132: 0 | O132: =IF($A132>0,'Asset data'!G132,0) -> 0 | P132: 0 | Q132: 0 | R132: 0 | S132: 0 | T132: 0 | U132: 0 | W132: =IF($A132>0,SUMIF('Age profile (years)'!$CT132:$GF132,"<" & R132+0.5,'Asset data'!$CX132:$GJ132),0) -> 0 | X132: =IF($A132>0,SUMIF('Age profile (years)'!$CT132:$GF132,"<" & S132+0.5,'Asset data'!$CX132:$GJ132)-W132,0) -> 0 | Y132: =IF($A132>0,SUMIF('Age profile (years)'!$CT132:$GF132,"<" & T132+0.5,'Asset data'!$CX132:$GJ132)-X132-W132,0) -> 0 | Z132: =IF($A132>0,SUMIF('Age profile (years)'!$CT132:$GF132,"<" & U132+0.5,'Asset data'!$CX132:$GJ132)-Y132-X132-W132,0) -> 0 | AA132: 0 | AB132: 0 | AC132: 0 | AD132: 0 | AE132: 0 | AF132: 0 | AI132: =IF($A132>0,'RRR hist-forc'!K132,0) -> 0 | AJ132: 0
A133: ='Asset data'!A133 -> 0 | B133: ='Asset data'!B133 -> 0 | C133: ='Asset data'!C133 -> 0 | D133: ='Asset data'!E133 -> 0 | E133: 0 | F133: =IF(A133>0,SUM('Asset data'!J133:CV133),0) -> 0 | G133: =IF(A133>0,'Asset data'!F133,0) -> 0 | H133: =IF(A133>0,SUM('Asset data'!CX133:GJ133),0) -> 0 | I133: 0 | J133: 0 | K133: 0 | L133: 0 | M133: =IF($A133>0,SUMPRODUCT('Age profile (years)'!$CT133:$GF133,'Asset data'!$CX133:$GJ133)/H133-0.5,0) -> 0 | N133: 0 | O133: =IF($A133>0,'Asset data'!G133,0) -> 0 | P133: 0 | Q133: 0 | R133: 0 | S133: 0 | T133: 0 | U133: 0 | W133: =IF($A133>0,SUMIF('Age profile (years)'!$CT133:$GF133,"<" & R133+0.5,'Asset data'!$CX133:$GJ133),0) -> 0 | X133: =IF($A133>0,SUMIF('Age profile (years)'!$CT133:$GF133,"<" & S133+0.5,'Asset data'!$CX133:$GJ133)-W133,0) -> 0 | Y133: =IF($A133>0,SUMIF('Age profile (years)'!$CT133:$GF133,"<" & T133+0.5,'Asset data'!$CX133:$GJ133)-X133-W133,0) -> 0 | Z133: =IF($A133>0,SUMIF('Age profile (years)'!$CT133:$GF133,"<" & U133+0.5,'Asset data'!$CX133:$GJ133)-Y133-X133-W133,0) -> 0 | AA133: 0 | AB133: 0 | AC133: 0 | AD133: 0 | AE133: 0 | AF133: 0 | AI133: =IF($A133>0,'RRR hist-forc'!K133,0) -> 0 | AJ133: 0
A134: ='Asset data'!A134 -> 0 | B134: ='Asset data'!B134 -> 0 | C134: ='Asset data'!C134 -> 0 | D134: ='Asset data'!E134 -> 0 | E134: 0 | F134: =IF(A134>0,SUM('Asset data'!J134:CV134),0) -> 0 | G134: =IF(A134>0,'Asset data'!F134,0) -> 0 | H134: =IF(A134>0,SUM('Asset data'!CX134:GJ134),0) -> 0 | I134: 0 | J134: 0 | K134: 0 | L134: 0 | M134: =IF($A134>0,SUMPRODUCT('Age profile (years)'!$CT134:$GF134,'Asset data'!$CX134:$GJ134)/H134-0.5,0) -> 0 | N134: 0 | O134: =IF($A134>0,'Asset data'!G134,0) -> 0 | P134: 0 | Q134: 0 | R134: 0 | S134: 0 | T134: 0 | U134: 0 | W134: =IF($A134>0,SUMIF('Age profile (years)'!$CT134:$GF134,"<" & R134+0.5,'Asset data'!$CX134:$GJ134),0) -> 0 | X134: =IF($A134>0,SUMIF('Age profile (years)'!$CT134:$GF134,"<" & S134+0.5,'Asset data'!$CX134:$GJ134)-W134,0) -> 0 | Y134: =IF($A134>0,SUMIF('Age profile (years)'!$CT134:$GF134,"<" & T134+0.5,'Asset data'!$CX134:$GJ134)-X134-W134,0) -> 0 | Z134: =IF($A134>0,SUMIF('Age profile (years)'!$CT134:$GF134,"<" & U134+0.5,'Asset data'!$CX134:$GJ134)-Y134-X134-W134,0) -> 0 | AA134: 0 | AB134: 0 | AC134: 0 | AD134: 0 | AE134: 0 | AF134: 0 | AI134: =IF($A134>0,'RRR hist-forc'!K134,0) -> 0 | AJ134: 0
A135: ='Asset data'!A135 -> 0 | B135: ='Asset data'!B135 -> 0 | C135: ='Asset data'!C135 -> 0 | D135: ='Asset data'!E135 -> 0 | E135: 0 | F135: =IF(A135>0,SUM('Asset data'!J135:CV135),0) -> 0 | G135: =IF(A135>0,'Asset data'!F135,0) -> 0 | H135: =IF(A135>0,SUM('Asset data'!CX135:GJ135),0) -> 0 | I135: 0 | J135: 0 | K135: 0 | L135: 0 | M135: =IF($A135>0,SUMPRODUCT('Age profile (years)'!$CT135:$GF135,'Asset data'!$CX135:$GJ135)/H135-0.5,0) -> 0 | N135: 0 | O135: =IF($A135>0,'Asset data'!G135,0) -> 0 | P135: 0 | Q135: 0 | R135: 0 | S135: 0 | T135: 0 | U135: 0 | W135: =IF($A135>0,SUMIF('Age profile (years)'!$CT135:$GF135,"<" & R135+0.5,'Asset data'!$CX135:$GJ135),0) -> 0 | X135: =IF($A135>0,SUMIF('Age profile (years)'!$CT135:$GF135,"<" & S135+0.5,'Asset data'!$CX135:$GJ135)-W135,0) -> 0 | Y135: =IF($A135>0,SUMIF('Age profile (years)'!$CT135:$GF135,"<" & T135+0.5,'Asset data'!$CX135:$GJ135)-X135-W135,0) -> 0 | Z135: =IF($A135>0,SUMIF('Age profile (years)'!$CT135:$GF135,"<" & U135+0.5,'Asset data'!$CX135:$GJ135)-Y135-X135-W135,0) -> 0 | AA135: 0 | AB135: 0 | AC135: 0 | AD135: 0 | AE135: 0 | AF135: 0 | AI135: =IF($A135>0,'RRR hist-forc'!K135,0) -> 0 | AJ135: 0
A136: ='Asset data'!A136 -> 0 | B136: ='Asset data'!B136 -> 0 | C136: ='Asset data'!C136 -> 0 | D136: ='Asset data'!E136 -> 0 | E136: 0 | F136: =IF(A136>0,SUM('Asset data'!J136:CV136),0) -> 0 | G136: =IF(A136>0,'Asset data'!F136,0) -> 0 | H136: =IF(A136>0,SUM('Asset data'!CX136:GJ136),0) -> 0 | I136: 0 | J136: 0 | K136: 0 | L136: 0 | M136: =IF($A136>0,SUMPRODUCT('Age profile (years)'!$CT136:$GF136,'Asset data'!$CX136:$GJ136)/H136-0.5,0) -> 0 | N136: 0 | O136: =IF($A136>0,'Asset data'!G136,0) -> 0 | P136: 0 | Q136: 0 | R136: 0 | S136: 0 | T136: 0 | U136: 0 | W136: =IF($A136>0,SUMIF('Age profile (years)'!$CT136:$GF136,"<" & R136+0.5,'Asset data'!$CX136:$GJ136),0) -> 0 | X136: =IF($A136>0,SUMIF('Age profile (years)'!$CT136:$GF136,"<" & S136+0.5,'Asset data'!$CX136:$GJ136)-W136,0) -> 0 | Y136: =IF($A136>0,SUMIF('Age profile (years)'!$CT136:$GF136,"<" & T136+0.5,'Asset data'!$CX136:$GJ136)-X136-W136,0) -> 0 | Z136: =IF($A136>0,SUMIF('Age profile (years)'!$CT136:$GF136,"<" & U136+0.5,'Asset data'!$CX136:$GJ136)-Y136-X136-W136,0) -> 0 | AA136: 0 | AB136: 0 | AC136: 0 | AD136: 0 | AE136: 0 | AF136: 0 | AI136: =IF($A136>0,'RRR hist-forc'!K136,0) -> 0 | AJ136: 0
A137: ='Asset data'!A137 -> 0 | B137: ='Asset data'!B137 -> 0 | C137: ='Asset data'!C137 -> 0 | D137: ='Asset data'!E137 -> 0 | E137: 0 | F137: =IF(A137>0,SUM('Asset data'!J137:CV137),0) -> 0 | G137: =IF(A137>0,'Asset data'!F137,0) -> 0 | H137: =IF(A137>0,SUM('Asset data'!CX137:GJ137),0) -> 0 | I137: 0 | J137: 0 | K137: 0 | L137: 0 | M137: =IF($A137>0,SUMPRODUCT('Age profile (years)'!$CT137:$GF137,'Asset data'!$CX137:$GJ137)/H137-0.5,0) -> 0 | N137: 0 | O137: =IF($A137>0,'Asset data'!G137,0) -> 0 | P137: 0 | Q137: 0 | R137: 0 | S137: 0 | T137: 0 | U137: 0 | W137: =IF($A137>0,SUMIF('Age profile (years)'!$CT137:$GF137,"<" & R137+0.5,'Asset data'!$CX137:$GJ137),0) -> 0 | X137: =IF($A137>0,SUMIF('Age profile (years)'!$CT137:$GF137,"<" & S137+0.5,'Asset data'!$CX137:$GJ137)-W137,0) -> 0 | Y137: =IF($A137>0,SUMIF('Age profile (years)'!$CT137:$GF137,"<" & T137+0.5,'Asset data'!$CX137:$GJ137)-X137-W137,0) -> 0 | Z137: =IF($A137>0,SUMIF('Age profile (years)'!$CT137:$GF137,"<" & U137+0.5,'Asset data'!$CX137:$GJ137)-Y137-X137-W137,0) -> 0 | AA137: 0 | AB137: 0 | AC137: 0 | AD137: 0 | AE137: 0 | AF137: 0 | AI137: =IF($A137>0,'RRR hist-forc'!K137,0) -> 0 | AJ137: 0
A138: ='Asset data'!A138 -> 0 | B138: ='Asset data'!B138 -> 0 | C138: ='Asset data'!C138 -> 0 | D138: ='Asset data'!E138 -> 0 | E138: 0 | F138: =IF(A138>0,SUM('Asset data'!J138:CV138),0) -> 0 | G138: =IF(A138>0,'Asset data'!F138,0) -> 0 | H138: =IF(A138>0,SUM('Asset data'!CX138:GJ138),0) -> 0 | I138: 0 | J138: 0 | K138: 0 | L138: 0 | M138: =IF($A138>0,SUMPRODUCT('Age profile (years)'!$CT138:$GF138,'Asset data'!$CX138:$GJ138)/H138-0.5,0) -> 0 | N138: 0 | O138: =IF($A138>0,'Asset data'!G138,0) -> 0 | P138: 0 | Q138: 0 | R138: 0 | S138: 0 | T138: 0 | U138: 0 | W138: =IF($A138>0,SUMIF('Age profile (years)'!$CT138:$GF138,"<" & R138+0.5,'Asset data'!$CX138:$GJ138),0) -> 0 | X138: =IF($A138>0,SUMIF('Age profile (years)'!$CT138:$GF138,"<" & S138+0.5,'Asset data'!$CX138:$GJ138)-W138,0) -> 0 | Y138: =IF($A138>0,SUMIF('Age profile (years)'!$CT138:$GF138,"<" & T138+0.5,'Asset data'!$CX138:$GJ138)-X138-W138,0) -> 0 | Z138: =IF($A138>0,SUMIF('Age profile (years)'!$CT138:$GF138,"<" & U138+0.5,'Asset data'!$CX138:$GJ138)-Y138-X138-W138,0) -> 0 | AA138: 0 | AB138: 0 | AC138: 0 | AD138: 0 | AE138: 0 | AF138: 0 | AI138: =IF($A138>0,'RRR hist-forc'!K138,0) -> 0 | AJ138: 0
A139: ='Asset data'!A139 -> 0 | B139: ='Asset data'!B139 -> 0 | C139: ='Asset data'!C139 -> 0 | D139: ='Asset data'!E139 -> 0 | E139: 0 | F139: =IF(A139>0,SUM('Asset data'!J139:CV139),0) -> 0 | G139: =IF(A139>0,'Asset data'!F139,0) -> 0 | H139: =IF(A139>0,SUM('Asset data'!CX139:GJ139),0) -> 0 | I139: 0 | J139: 0 | K139: 0 | L139: 0 | M139: =IF($A139>0,SUMPRODUCT('Age profile (years)'!$CT139:$GF139,'Asset data'!$CX139:$GJ139)/H139-0.5,0) -> 0 | N139: 0 | O139: =IF($A139>0,'Asset data'!G139,0) -> 0 | P139: 0 | Q139: 0 | R139: 0 | S139: 0 | T139: 0 | U139: 0 | W139: =IF($A139>0,SUMIF('Age profile (years)'!$CT139:$GF139,"<" & R139+0.5,'Asset data'!$CX139:$GJ139),0) -> 0 | X139: =IF($A139>0,SUMIF('Age profile (years)'!$CT139:$GF139,"<" & S139+0.5,'Asset data'!$CX139:$GJ139)-W139,0) -> 0 | Y139: =IF($A139>0,SUMIF('Age profile (years)'!$CT139:$GF139,"<" & T139+0.5,'Asset data'!$CX139:$GJ139)-X139-W139,0) -> 0 | Z139: =IF($A139>0,SUMIF('Age profile (years)'!$CT139:$GF139,"<" & U139+0.5,'Asset data'!$CX139:$GJ139)-Y139-X139-W139,0) -> 0 | AA139: 0 | AB139: 0 | AC139: 0 | AD139: 0 | AE139: 0 | AF139: 0 | AI139: =IF($A139>0,'RRR hist-forc'!K139,0) -> 0 | AJ139: 0
A140: ='Asset data'!A140 -> 0 | B140: ='Asset data'!B140 -> 0 | C140: ='Asset data'!C140 -> 0 | D140: ='Asset data'!E140 -> 0 | E140: 0 | F140: =IF(A140>0,SUM('Asset data'!J140:CV140),0) -> 0 | G140: =IF(A140>0,'Asset data'!F140,0) -> 0 | H140: =IF(A140>0,SUM('Asset data'!CX140:GJ140),0) -> 0 | I140: 0 | J140: 0 | K140: 0 | L140: 0 | M140: =IF($A140>0,SUMPRODUCT('Age profile (years)'!$CT140:$GF140,'Asset data'!$CX140:$GJ140)/H140-0.5,0) -> 0 | N140: 0 | O140: =IF($A140>0,'Asset data'!G140,0) -> 0 | P140: 0 | Q140: 0 | R140: 0 | S140: 0 | T140: 0 | U140: 0 | W140: =IF($A140>0,SUMIF('Age profile (years)'!$CT140:$GF140,"<" & R140+0.5,'Asset data'!$CX140:$GJ140),0) -> 0 | X140: =IF($A140>0,SUMIF('Age profile (years)'!$CT140:$GF140,"<" & S140+0.5,'Asset data'!$CX140:$GJ140)-W140,0) -> 0 | Y140: =IF($A140>0,SUMIF('Age profile (years)'!$CT140:$GF140,"<" & T140+0.5,'Asset data'!$CX140:$GJ140)-X140-W140,0) -> 0 | Z140: =IF($A140>0,SUMIF('Age profile (years)'!$CT140:$GF140,"<" & U140+0.5,'Asset data'!$CX140:$GJ140)-Y140-X140-W140,0) -> 0 | AA140: 0 | AB140: 0 | AC140: 0 | AD140: 0 | AE140: 0 | AF140: 0 | AI140: =IF($A140>0,'RRR hist-forc'!K140,0) -> 0 | AJ140: 0
A141: ='Asset data'!A141 -> 0 | B141: ='Asset data'!B141 -> 0 | C141: ='Asset data'!C141 -> 0 | D141: ='Asset data'!E141 -> 0 | E141: 0 | F141: =IF(A141>0,SUM('Asset data'!J141:CV141),0) -> 0 | G141: =IF(A141>0,'Asset data'!F141,0) -> 0 | H141: =IF(A141>0,SUM('Asset data'!CX141:GJ141),0) -> 0 | I141: 0 | J141: 0 | K141: 0 | L141: 0 | M141: =IF($A141>0,SUMPRODUCT('Age profile (years)'!$CT141:$GF141,'Asset data'!$CX141:$GJ141)/H141-0.5,0) -> 0 | N141: 0 | O141: =IF($A141>0,'Asset data'!G141,0) -> 0 | P141: 0 | Q141: 0 | R141: 0 | S141: 0 | T141: 0 | U141: 0 | W141: =IF($A141>0,SUMIF('Age profile (years)'!$CT141:$GF141,"<" & R141+0.5,'Asset data'!$CX141:$GJ141),0) -> 0 | X141: =IF($A141>0,SUMIF('Age profile (years)'!$CT141:$GF141,"<" & S141+0.5,'Asset data'!$CX141:$GJ141)-W141,0) -> 0 | Y141: =IF($A141>0,SUMIF('Age profile (years)'!$CT141:$GF141,"<" & T141+0.5,'Asset data'!$CX141:$GJ141)-X141-W141,0) -> 0 | Z141: =IF($A141>0,SUMIF('Age profile (years)'!$CT141:$GF141,"<" & U141+0.5,'Asset data'!$CX141:$GJ141)-Y141-X141-W141,0) -> 0 | AA141: 0 | AB141: 0 | AC141: 0 | AD141: 0 | AE141: 0 | AF141: 0 | AI141: =IF($A141>0,'RRR hist-forc'!K141,0) -> 0 | AJ141: 0
A142: ='Asset data'!A142 -> 0 | B142: ='Asset data'!B142 -> 0 | C142: ='Asset data'!C142 -> 0 | D142: ='Asset data'!E142 -> 0 | E142: 0 | F142: =IF(A142>0,SUM('Asset data'!J142:CV142),0) -> 0 | G142: =IF(A142>0,'Asset data'!F142,0) -> 0 | H142: =IF(A142>0,SUM('Asset data'!CX142:GJ142),0) -> 0 | I142: 0 | J142: 0 | K142: 0 | L142: 0 | M142: =IF($A142>0,SUMPRODUCT('Age profile (years)'!$CT142:$GF142,'Asset data'!$CX142:$GJ142)/H142-0.5,0) -> 0 | N142: 0 | O142: =IF($A142>0,'Asset data'!G142,0) -> 0 | P142: 0 | Q142: 0 | R142: 0 | S142: 0 | T142: 0 | U142: 0 | W142: =IF($A142>0,SUMIF('Age profile (years)'!$CT142:$GF142,"<" & R142+0.5,'Asset data'!$CX142:$GJ142),0) -> 0 | X142: =IF($A142>0,SUMIF('Age profile (years)'!$CT142:$GF142,"<" & S142+0.5,'Asset data'!$CX142:$GJ142)-W142,0) -> 0 | Y142: =IF($A142>0,SUMIF('Age profile (years)'!$CT142:$GF142,"<" & T142+0.5,'Asset data'!$CX142:$GJ142)-X142-W142,0) -> 0 | Z142: =IF($A142>0,SUMIF('Age profile (years)'!$CT142:$GF142,"<" & U142+0.5,'Asset data'!$CX142:$GJ142)-Y142-X142-W142,0) -> 0 | AA142: 0 | AB142: 0 | AC142: 0 | AD142: 0 | AE142: 0 | AF142: 0 | AI142: =IF($A142>0,'RRR hist-forc'!K142,0) -> 0 | AJ142: 0
AI206: =IF($A206>0,'RRR hist-forc'!K206,0) -> 0 | AJ206: =IF($A206>0,AI206*H206,0) -> 0

Sheet Asset data
A1: Meth all | D1: 3 | E1: =IF(D1=2,"all normal",IF(D1=1,"all deterministic","individual")) -> individual | L1: Profile type: | M1: 3 | N1: =VLOOKUP(APtype,IDtable,4) -> Installation date
F3: Unit | J3: Quantities | CX3: Replacement Cost (NOT depreciated)
F4: Cost | G4: Replacement life | I4: Rep | J4: =VLOOKUP(APtype,IDtable,4) -> Installation date | CX4: =VLOOKUP(APtype,IDtable,4) -> Installation date
A5: ID | B5: ID | C5: ID | D5: Asset category | E5: Asset ID | F5: $ ('000) | G5: mean | H5: SD | I5: Meth | J5: =IF(OR(APtype=1,APtype=2),0,IF(APtype=3,Now,9999)) -> 2014 | K5: =IF(OR(APtype=1,APtype=2),J5+1,IF(APtype=3,J5-1,9999)) -> 2013 | L5: 2012 | M5: 2011 | N5: 2010 | O5: 2009 | P5: 2008 | Q5: 2007 | R5: 2006 | S5: 2005 | T5: 2004 | U5: 2003 | V5: 2002 | W5: 2001 | X5: 2000 | Y5: 1999 | Z5: 1998 | AA5: 1997 | AB5: 1996 | AC5: 1995 | AD5: 1994 | AE5: 1993 | AF5: 1992 | AG5: 1991 | AH5: 1990 | AI5: 1989 | AJ5: 1988 | AK5: 1987 | AL5: 1986 | AM5: 1985 | AN5: 1984 | AO5: 1983 | AP5: 1982 | AQ5: =IF(OR(APtype=1,APtype=2),AP5+1,IF(APtype=3,AP5-1,9999)) -> 1981 | AR5: 1980 | AS5: 1979 | AT5: 1978 | AU5: 1977 | AV5: 1976 | AW5: 1975 | AX5: 1974 | AY5: 1973 | AZ5: 1972 | BA5: 1971 | BB5: 1970 | BC5: 1969 | BD5: 1968 | BE5: 1967 | BF5: 1966 | BG5: 1965 | BH5: 1964 | BI5: 1963 | BJ5: 1962 | BK5: 1961 | BL5: 1960 | BM5: 1959 | BN5: 1958 | BO5: 1957 | BP5: 1956 | BQ5: 1955 | BR5: 1954 | BS5: 1953 | BT5: 1952 | BU5: 1951 | BV5: 1950 | BW5: =IF(OR(APtype=1,APtype=2),BV5+1,IF(APtype=3,BV5-1,9999)) -> 1949 | BX5: 1948 | BY5: 1947 | BZ5: 1946 | CA5: 1945 | CB5: 1944 | CC5: 1943 | CD5: 1942 | CE5: 1941 | CF5: 1940 | CG5: 1939 | CH5: 1938 | CI5: 1937 | CJ5: 1936 | CK5: 1935 | CL5: 1934 | CM5: 1933 | CN5: 1932 | CO5: 1931 | CP5: 1930 | CQ5: 1929 | CR5: 1928 | CS5: 1927 | CT5: 1926 | CU5: 1925 | CV5: 1924 | CX5: =J5 -> 2014 | CY5: =K5 -> 2013 | CZ5: 2012 | DA5: 2011 | DB5: 2010 | DC5: 2009 | DD5: 2008 | DE5: 2007 | DF5: 2006 | DG5: 2005 | DH5: 2004 | DI5: 2003 | DJ5: 2002 | DK5: 2001 | DL5: 2000 | DM5: 1999 | DN5: 1998 | DO5: 1997 | DP5: 1996 | DQ5: 1995 | DR5: 1994 | DS5: 1993 | DT5: 1992 | DU5: 1991 | DV5: 1990 | DW5: 1989 | DX5: 1988 | DY5: 1987 | DZ5: 1986 | EA5: 1985 | EB5: 1984 | EC5: 1983 | ED5: 1982 | EE5: 1981 | EF5: 1980 | EG5: 1979 | EH5: 1978 | EI5: 1977 | EJ5: 1976 | EK5: 1975 | EL5: 1974 | EM5: 1973 | EN5: 1972 | EO5: 1971 | EP5: 1970 | EQ5: 1969 | ER5: 1968 | ES5: 1967 | ET5: 1966 | EU5: 1965 | EV5: 1964 | EW5: 1963 | EX5: 1962 | EY5: 1961 | EZ5: 1960 | FA5: 1959 | FB5: 1958 | FC5: 1957 | FD5: 1956 | FE5: 1955 | FF5: 1954 | FG5: 1953 | FH5: 1952 | FI5: 1951 | FJ5: 1950 | FK5: =BW5 -> 1949 | FL5: 1948 | FM5: 1947 | FN5: 1946 | FO5: 1945 | FP5: 1944 | FQ5: 1943 | FR5: 1942 | FS5: 1941 | FT5: 1940 | FU5: 1939 | FV5: 1938 | FW5: 1937 | FX5: 1936 | FY5: 1935 | FZ5: 1934 | GA5: 1933 | GB5: 1932 | GC5: 1931 | GD5: 1930 | GE5: 1929 | GF5: 1928 | GG5: 1927 | GH5: 1926 | GI5: 1925 | GJ5: 1924
A21: 1 | D21: POLES | E21: Staking of a wooden pole | F21: 11.83500536 | G21: 28.61407677 | H21: 5.349212725 | I21: 2 | J21: 2178 | K21: 984 | L21: 777 | M21: 512 | N21: 509 | O21: 473 | P21: 662 | Q21: 616 | R21: 701 | S21: 1257 | T21: 876 | U21: 372 | V21: 197 | W21: 731 | X21: 1693 | Y21: 2220 | Z21: 2854 | AA21: 1694 | AB21: 1179 | AC21: 1549 | AD21: 1412 | AE21: 1291 | AF21: 1447 | AG21: 1728 | AH21: 2497 | AI21: 3449 | AJ21: 1127 | AK21: 172 | AL21: 17 | AM21: 0 | AN21: 0 | AO21: 0 | AP21: 0 | AQ21: 0 | AR21: 0 | AS21: 0 | AT21: 0 | AU21: 0 | AV21: 0 | AW21: 0 | AX21: 0 | AY21: 0 | AZ21: 0 | BA21: 0 | BB21: 0 | BC21: 0 | BD21: 0 | BE21: 0 | BF21: 0 | BG21: 0 | BH21: 0 | BI21: 0 | BJ21: 0 | BK21: 0 | BL21: 0 | BM21: 0 | BN21: 0 | BO21: 0 | BP21: 0 | BQ21: 0 | BR21: 0 | BS21: 0 | BT21: 0 | BU21: 0 | BV21: 0 | BW21: 0 | BX21: 0 | BY21: 0 | BZ21: 0 | CA21: 0 | CB21: 0 | CC21: 0 | CD21: 0 | CE21: 0 | CF21: 0 | CG21: 0 | CH21: 0 | CI21: 0 | CJ21: 0 | CK21: 0 | CL21: 0 | CM21: 0 | CN21: 0 | CO21: 0 | CP21: 0 | CQ21: 0 | CR21: 0 | CS21: 0 | CT21: 0 | CU21: 0 | CV21: 0 | CX21: =$F21*J21 -> 25776.64167 | CY21: =$F21*K21 -> 11645.64527 | CZ21: 9195.799163 | DA21: 6059.522743 | DB21: 6024.017727 | DC21: 5597.957534 | DD21: 7834.773547 | DE21: 7290.3633 | DF21: 8296.338756 | DG21: 14876.60173 | DH21: 10367.46469 | DI21: 4402.621993 | DJ21: 2331.496056 | DK21: 8651.388917 | DL21: 20036.66407 | DM21: 26273.71189 | DN21: 33777.10529 | DO21: 20048.49908 | DP21: 13953.47132 | DQ21: 18332.4233 | DR21: 16711.02757 | DS21: 15278.99192 | DT21: 17125.25275 | DU21: 20450.88926 | DV21: 29552.00838 | DW21: 40818.93348 | DX21: 13338.05104 | DY21: 2035.620922 | DZ21: 201.1950911 | EA21: 0 | EB21: 0 | EC21: 0 | ED21: 0 | EE21: 0 | EF21: 0 | EG21: 0 | EH21: 0 | EI21: 0 | EJ21: 0 | EK21: 0 | EL21: 0 | EM21: 0 | EN21: 0 | EO21: 0 | EP21: 0 | EQ21: 0 | ER21: 0 | ES21: 0 | ET21: 0 | EU21: 0 | EV21: 0 | EW21: 0 | EX21: 0 | EY21: 0 | EZ21: 0 | FA21: 0 | FB21: 0 | FC21: 0 | FD21: 0 | FE21: 0 | FF21: 0 | FG21: 0 | FH21: 0 | FI21: 0 | FJ21: 0 | FK21: =$F21*BW21 -> 0 | FL21: 0 | FM21: 0 | FN21: 0 | FO21: 0 | FP21: 0 | FQ21: 0 | FR21: 0 | FS21: 0 | FT21: 0 | FU21: 0 | FV21: 0 | FW21: 0 | FX21: 0 | FY21: 0 | FZ21: 0 | GA21: 0 | GB21: 0 | GC21: 0 | GD21: 0 | GE21: 0 | GF21: 0 | GG21: 0 | GH21: 0 | GI21: 0 | GJ21: 0
A22: 1 | D22: POLES | E22: ˂ = 1 kV; Wood | F22: 5.760911369 | G22: 75.17768036 | H22: 8.670506349 | I22: 2 | J22: 522 | K22: 213 | L22: 233 | M22: 125 | N22: 129 | O22: 156 | P22: 287 | Q22: 309 | R22: 284 | S22: 320 | T22: 264 | U22: 175 | V22: 183 | W22: 123 | X22: 1176 | Y22: 287 | Z22: 204 | AA22: 233 | AB22: 118 | AC22: 70 | AD22: 40 | AE22: 79 | AF22: 49 | AG22: 87 | AH22: 482 | AI22: 682 | AJ22: 676 | AK22: 558 | AL22: 1556 | AM22: 1264 | AN22: 1436 | AO22: 1162 | AP22: 851 | AQ22: 1353 | AR22: 2273 | AS22: 1235 | AT22: 1391 | AU22: 1055 | AV22: 1790 | AW22: 1782 | AX22: 1470 | AY22: 1845 | AZ22: 1808 | BA22: 1284 | BB22: 1883 | BC22: 2098 | BD22: 2196 | BE22: 1981 | BF22: 1071 | BG22: 1594 | BH22: 1218 | BI22: 871 | BJ22: 1003 | BK22: 909 | BL22: 984 | BM22: 850 | BN22: 554 | BO22: 859 | BP22: 245 | BQ22: 176 | BR22: 166 | BS22: 134 | BT22: 245 | BU22: 150 | BV22: 221 | BW22: 113 | BX22: 82 | BY22: 142 | BZ22: 91 | CA22: 41 | CB22: 16 | CC22: 30 | CD22: 75 | CE22: 207 | CF22: 211 | CG22: 273 | CH22: 526 | CI22: 288 | CJ22: 293 | CK22: 205 | CL22: 215 | CM22: 124 | CN22: 26 | CO22: 10 | CP22: 26 | CQ22: 9 | CR22: 27 | CS22: 1 | CT22: 40 | CU22: 0 | CV22: 45 | CX22: =$F22*J22 -> 3007.195735 | CY22: =$F22*K22 -> 1227.074122 | CZ22: =$F22*L22 -> 1342.292349 | DA22: =$F22*M22 -> 720.1139211 | DB22: =$F22*N22 -> 743.1575666 | DC22: =$F22*O22 -> 898.7021735 | DD22: =$F22*P22 -> 1653.381563 | DE22: =$F22*Q22 -> 1780.121613 | DF22: =$F22*R22 -> 1636.098829 | DG22: =$F22*S22 -> 1843.491638 | DH22: =$F22*T22 -> 1520.880601 | DI22: =$F22*U22 -> 1008.15949 | DJ22: =$F22*V22 -> 1054.24678 | DK22: =$F22*W22 -> 708.5920984 | DL22: =$F22*X22 -> 6774.83177 | DM22: =$F22*Y22 -> 1653.381563 | DN22: =$F22*Z22 -> 1175.225919 | DO22: =$F22*AA22 -> 1342.292349 | DP22: =$F22*AB22 -> 679.7875415 | DQ22: =$F22*AC22 -> 403.2637958 | DR22: =$F22*AD22 -> 230.4364548 | DS22: =$F22*AE22 -> 455.1119981 | DT22: =$F22*AF22 -> 282.2846571 | DU22: =$F22*AG22 -> 501.1992891 | DV22: =$F22*AH22 -> 2776.75928 | DW22: =$F22*AI22 -> 3928.941554 | DX22: =$F22*AJ22 -> 3894.376085 | DY22: =$F22*AK22 -> 3214.588544 | DZ22: =$F22*AL22 -> 8963.97809 | EA22: =$F22*AM22 -> 7281.79197 | EB22: =$F22*AN22 -> 8272.668726 | EC22: =$F22*AO22 -> 6694.179011 | ED22: =$F22*AP22 -> 4902.535575 | EE22: =$F22*AQ22 -> 7794.513082 | EF22: =$F22*AR22 -> 13094.55154 | EG22: =$F22*AS22 -> 7114.72554 | EH22: =$F22*AT22 -> 8013.427714 | EI22: =$F22*AU22 -> 6077.761494 | EJ22: =$F22*AV22 -> 10312.03135 | EK22: =$F22*AW22 -> 10265.94406 | EL22: =$F22*AX22 -> 8468.539712 | EM22: =$F22*AY22 -> 10628.88148 | EN22: =$F22*AZ22 -> 10415.72775 | EO22: =$F22*BA22 -> 7397.010198 | EP22: =$F22*BB22 -> 10847.79611 | EQ22: =$F22*BC22 -> 12086.39205 | ER22: =$F22*BD22 -> 12650.96137 | ES22: =$F22*BE22 -> 11412.36542 | ET22: =$F22*BF22 -> 6169.936076 | EU22: =$F22*BG22 -> 9182.892722 | EV22: =$F22*BH22 -> 7016.790047 | EW22: =$F22*BI22 -> 5017.753802 | EX22: =$F22*BJ22 -> 5778.194103 | EY22: =$F22*BK22 -> 5236.668434 | EZ22: =$F22*BL22 -> 5668.736787 | FA22: =$F22*BM22 -> 4896.774663 | FB22: =$F22*BN22 -> 3191.544898 | FC22: =$F22*BO22 -> 4948.622866 | FD22: =$F22*BP22 -> 1411.423285 | FE22: =$F22*BQ22 -> 1013.920401 | FF22: =$F22*BR22 -> 956.3112872 | FG22: =$F22*BS22 -> 771.9621234 | FH22: =$F22*BT22 -> 1411.423285 | FI22: =$F22*BU22 -> 864.1367053 | FJ22: =$F22*BV22 -> 1273.161413 | FK22: =$F22*BW22 -> 650.9829847 | FL22: =$F22*BX22 -> 472.3947322 | FM22: =$F22*BY22 -> 818.0494144 | FN22: =$F22*BZ22 -> 524.2429346 | FO22: =$F22*CA22 -> 236.1973661 | FP22: =$F22*CB22 -> 92.1745819 | FQ22: =$F22*CC22 -> 172.8273411 | FR22: =$F22*CD22 -> 432.0683527 | FS22: =$F22*CE22 -> 1192.508653 | FT22: =$F22*CF22 -> 1215.552299 | FU22: =$F22*CG22 -> 1572.728804 | FV22: =$F22*CH22 -> 3030.23938 | FW22: =$F22*CI22 -> 1659.142474 | FX22: =$F22*CJ22 -> 1687.947031 | FY22: =$F22*CK22 -> 1180.986831 | FZ22: =$F22*CL22 -> 1238.595944 | GA22: =$F22*CM22 -> 714.3530097 | GB22: =$F22*CN22 -> 149.7836956 | GC22: =$F22*CO22 -> 57.60911369 | GD22: =$F22*CP22 -> 149.7836956 | GE22: =$F22*CQ22 -> 51.84820232 | GF22: =$F22*CR22 -> 155.544607 | GG22: =$F22*CS22 -> 5.760911369 | GH22: =$F22*CT22 -> 230.4364548 | GI22: =$F22*CU22 -> 0 | GJ22: =$F22*CV22 -> 259.2410116
A23: 1 | D23: POLES | E23: > 1 kV & < = 11 kV; Wood | F23: 5.7591419 | G23: 85.03587891 | H23: 9.221490059 | I23: 2 | J23: 2 | K23: 7 | L23: 8 | M23: 13 | N23: 0 | O23: 3 | P23: 6 | Q23: 4 | R23: 0 | S23: 4 | T23: 2 | U23: 3 | V23: 1 | W23: 1 | X23: 4 | Y23: 3 | Z23: 5 | AA23: 9 | AB23: 14 | AC23: 8 | AD23: 2 | AE23: 3 | AF23: 0 | AG23: 5 | AH23: 8 | AI23: 22 | AJ23: 29 | AK23: 16 | AL23: 45 | AM23: 21 | AN23: 28 | AO23: 40 | AP23: 31 | AQ23: 26 | AR23: 15 | AS23: 5 | AT23: 17 | AU23: 47 | AV23: 73 | AW23: 56 | AX23: 49 | AY23: 8 | AZ23: 6 | BA23: 10 | BB23: 24 | BC23: 10 | BD23: 11 | BE23: 27 | BF23: 10 | BG23: 23 | BH23: 15 | BI23: 9 | BJ23: 12 | BK23: 11 | BL23: 30 | BM23: 9 | BN23: 13 | BO23: 9 | BP23: 10 | BQ23: 0 | BR23: 5 | BS23: 0 | BT23: 1 | BU23: 1 | BV23: 0 | BW23: 15 | BX23: 0 | BY23: 2 | BZ23: 0 | CA23: 1 | CB23: 0 | CC23: 6 | CD23: 2 | CE23: 18 | CF23: 13 | CG23: 32 | CH23: 35 | CI23: 7 | CJ23: 4 | CK23: 8 | CL23: 15 | CM23: 10 | CN23: 1 | CO23: 0 | CP23: 0 | CQ23: 0 | CR23: 0 | CS23: 0 | CT23: 0 | CU23: 0 | CV23: 0 | CX23: 11.5182838 | CY23: 40.3139933 | CZ23: 46.0731352 | DA23: 74.8688447 | DB23: 0 | DC23: 17.2774257 | DD23: 34.5548514 | DE23: 23.0365676 | DF23: 0 | DG23: 23.0365676 | DH23: 11.5182838 | DI23: 17.2774257 | DJ23: 5.7591419 | DK23: 5.7591419 | DL23: 23.0365676 | DM23: 17.2774257 | DN23: 28.7957095 | DO23: 51.8322771 | DP23: 80.6279866 | DQ23: 46.0731352 | DR23: 11.5182838 | DS23: 17.2774257 | DT23: 0 | DU23: 28.7957095 | DV23: 46.0731352 | DW23: 126.7011218 | DX23: 167.0151151 | DY23: 92.1462704 | DZ23: 259.1613855 | EA23: 120.9419799 | EB23: 161.2559732 | EC23: 230.365676 | ED23: 178.5333989 | EE23: 149.7376894 | EF23: 86.3871285 | EG23: 28.7957095 | EH23: 97.9054123 | EI23: 270.6796693 | EJ23: 420.4173587 | EK23: 322.5119464 | EL23: 282.1979531 | EM23: 46.0731352 | EN23: 34.5548514 | EO23: 57.591419 | EP23: 138.2194056 | EQ23: 57.591419 | ER23: 63.3505609 | ES23: 155.4968313 | ET23: 57.591419 | EU23: 132.4602637 | EV23: 86.3871285 | EW23: 51.8322771 | EX23: 69.1097028 | EY23: 63.3505609 | EZ23: 172.774257 | FA23: 51.8322771 | FB23: 74.8688447 | FC23: 51.8322771 | FD23: 57.591419 | FE23: 0 | FF23: 28.7957095 | FG23: 0 | FH23: 5.7591419 | FI23: 5.7591419 | FJ23: 0 | FK23: 86.3871285 | FL23: 0 | FM23: 11.5182838 | FN23: 0 | FO23: 5.7591419 | FP23: 0 | FQ23: 34.5548514 | FR23: 11.5182838 | FS23: 103.6645542 | FT23: 74.8688447 | FU23: 184.2925408 | FV23: 201.5699665 | FW23: 40.3139933 | FX23: 23.0365676 | FY23: 46.0731352 | FZ23: 86.3871285 | GA23: 57.591419 | GB23: 5.7591419 | GC23: 0 | GD23: 0 | GE23: 0 | GF23: 0 | GG23: 0 | GH23: 0 | GI23: 0 | GJ23: 0
A24: 1 | D24: POLES | E24: ˃ 11 kV & < = 22 kV; Wood | F24: 5.762061216 | G24: 74.79332049 | H24: 8.648313158 | I24: 2 | J24: 788 | K24: 472 | L24: 328 | M24: 346 | N24: 379 | O24: 712 | P24: 1400 | Q24: 1632 | R24: 1289 | S24: 1259 | T24: 1009 | U24: 688 | V24: 477 | W24: 451 | X24: 1748 | Y24: 671 | Z24: 528 | AA24: 518 | AB24: 263 | AC24: 210 | AD24: 225 | AE24: 559 | AF24: 268 | AG24: 755 | AH24: 1754 | AI24: 1329 | AJ24: 1811 | AK24: 1260 | AL24: 3686 | AM24: 2685 | AN24: 3126 | AO24: 2918 | AP24: 2406 | AQ24: 3872 | AR24: 4158 | AS24: 1901 | AT24: 3234 | AU24: 3988 | AV24: 3956 | AW24: 2788 | AX24: 2292 | AY24: 1921 | AZ24: 2495 | BA24: 2552 | BB24: 2381 | BC24: 3495 | BD24: 2784 | BE24: 2582 | BF24: 2849 | BG24: 2953 | BH24: 2453 | BI24: 1513 | BJ24: 1268 | BK24: 1624 | BL24: 1104 | BM24: 866 | BN24: 597 | BO24: 1187 | BP24: 593 | BQ24: 427 | BR24: 540 | BS24: 587 | BT24: 283 | BU24: 163 | BV24: 335 | BW24: 169 | BX24: 307 | BY24: 85 | BZ24: 137 | CA24: 46 | CB24: 37 | CC24: 68 | CD24: 127 | CE24: 184 | CF24: 614 | CG24: 495 | CH24: 536 | CI24: 527 | CJ24: 544 | CK24: 399 | CL24: 299 | CM24: 277 | CN24: 9 | CO24: 4 | CP24: 13 | CQ24: 6 | CR24: 63 | CS24: 0 | CT24: 11 | CU24: 0 | CV24: 87 | CX24: 4540.504238 | CY24: 2719.692894 | CZ24: 1889.956079 | DA24: 1993.673181 | DB24: 2183.821201 | DC24: 4102.587586 | DD24: 8066.885702 | DE24: 9403.683904 | DF24: 7427.296907 | DG24: 7254.435071 | DH24: 5813.919767 | DI24: 3964.298116 | DJ24: 2748.5032 | DK24: 2598.689608 | DL24: 10072.08301 | DM24: 3866.343076 | DN24: 3042.368322 | DO24: 2984.74771 | DP24: 1515.4221 | DQ24: 1210.032855 | DR24: 1296.463774 | DS24: 3220.99222 | DT24: 1544.232406 | DU24: 4350.356218 | DV24: 10106.65537 | DW24: 7657.779356 | DX24: 10435.09286 | DY24: 7260.197132 | DZ24: 21238.95764 | EA24: 15471.13436 | EB24: 18012.20336 | EC24: 16813.69463 | ED24: 13863.51928 | EE24: 22310.70103 | EF24: 23958.65053 | EG24: 10953.67837 | EH24: 18634.50597 | EI24: 22979.10013 | EJ24: 22794.71417 | EK24: 16064.62667 | EL24: 13206.64431 | EM24: 11068.9196 | EN24: 14376.34273 | EO24: 14704.78022 | EP24: 13719.46775 | EQ24: 20138.40395 | ER24: 16041.57842 | ES24: 14877.64206 | ET24: 16416.1124 | EU24: 17015.36677 | EV24: 14134.33616 | EW24: 8717.998619 | EX24: 7306.293622 | EY24: 9357.587414 | EZ24: 6361.315582 | FA24: 4989.945013 | FB24: 3439.950546 | FC24: 6839.566663 | FD24: 3416.902301 | FE24: 2460.400139 | FF24: 3111.513056 | FG24: 3382.329934 | FH24: 1630.663324 | FI24: 939.2159782 | FJ24: 1930.290507 | FK24: 973.7883455 | FL24: 1768.952793 | FM24: 489.7752033 | FN24: 789.4023866 | FO24: 265.0548159 | FP24: 213.196265 | FQ24: 391.8201627 | FR24: 731.7817744 | FS24: 1060.219264 | FT24: 3537.905586 | FU24: 2852.220302 | FV24: 3088.464812 | FW24: 3036.606261 | FX24: 3134.561301 | FY24: 2299.062425 | FZ24: 1722.856303 | GA24: 1596.090957 | GB24: 51.85855094 | GC24: 23.04824486 | GD24: 74.9067958 | GE24: 34.57236729 | GF24: 363.0098566 | GG24: 0 | GH24: 63.38267337 | GI24: 0 | GJ24: 501.2993258
A25: 1 | D25: POLES | E25: > 22 kV & < = 66 kV; Wood | F25: 5.769616127 | G25: 71.51633892 | H25: 8.456733348 | I25: 2 | J25: 66 | K25: 52 | L25: 36 | M25: 29 | N25: 34 | O25: 60 | P25: 85 | Q25: 127 | R25: 100 | S25: 122 | T25: 27 | U25: 41 | V25: 34 | W25: 50 | X25: 133 | Y25: 47 | Z25: 18 | AA25: 12 | AB25: 6 | AC25: 6 | AD25: 20 | AE25: 24 | AF25: 5 | AG25: 23 | AH25: 114 | AI25: 47 | AJ25: 37 | AK25: 38 | AL25: 73 | AM25: 86 | AN25: 118 | AO25: 172 | AP25: 126 | AQ25: 834 | AR25: 242 | AS25: 267 | AT25: 192 | AU25: 884 | AV25: 1395 | AW25: 212 | AX25: 198 | AY25: 230 | AZ25: 244 | BA25: 93 | BB25: 117 | BC25: 202 | BD25: 107 | BE25: 362 | BF25: 199 | BG25: 157 | BH25: 50 | BI25: 83 | BJ25: 32 | BK25: 64 | BL25: 14 | BM25: 24 | BN25: 26 | BO25: 54 | BP25: 56 | BQ25: 168 | BR25: 3 | BS25: 11 | BT25: 1 | BU25: 0 | BV25: 1 | BW25: 7 | BX25: 6 | BY25: 1 | BZ25: 3 | CA25: 3 | CB25: 0 | CC25: 117 | CD25: 14 | CE25: 27 | CF25: 15 | CG25: 90 | CH25: 91 | CI25: 4 | CJ25: 5 | CK25: 0 | CL25: 1 | CM25: 0 | CN25: 0 | CO25: 0 | CP25: 0 | CQ25: 0 | CR25: 0 | CS25: 0 | CT25: 0 | CU25: 0 | CV25: 7 | CX25: 380.7946644 | CY25: 300.0200386 | CZ25: 207.7061806 | DA25: 167.3188677 | DB25: 196.1669483 | DC25: 346.1769676 | DD25: 490.4173708 | DE25: 732.7412481 | DF25: 576.9616127 | DG25: 703.8931675 | DH25: 155.7796354 | DI25: 236.5542612 | DJ25: 196.1669483 | DK25: 288.4808063 | DL25: 767.3589449 | DM25: 271.171958 | DN25: 103.8530903 | DO25: 69.23539352 | DP25: 34.61769676 | DQ25: 34.61769676 | DR25: 115.3923225 | DS25: 138.470787 | DT25: 28.84808063 | DU25: 132.7011709 | DV25: 657.7362385 | DW25: 271.171958 | DX25: 213.4757967 | DY25: 219.2454128 | DZ25: 421.1819773 | EA25: 496.1869869 | EB25: 680.814703 | EC25: 992.3739738 | ED25: 726.971632 | EE25: 4811.85985 | EF25: 1396.247103 | EG25: 1540.487506 | EH25: 1107.766296 | EI25: 5100.340656 | EJ25: 8048.614497 | EK25: 1223.158619 | EL25: 1142.383993 | EM25: 1327.011709 | EN25: 1407.786335 | EO25: 536.5742998 | EP25: 675.0450868 | EQ25: 1165.462458 | ER25: 617.3489256 | ES25: 2088.601038 | ET25: 1148.153609 | EU25: 905.8297319 | EV25: 288.4808063 | EW25: 478.8781385 | EX25: 184.6277161 | EY25: 369.2554321 | EZ25: 80.77462578 | FA25: 138.470787 | FB25: 150.0100193 | FC25: 311.5592709 | FD25: 323.0985031 | FE25: 969.2955093 | FF25: 17.30884838 | FG25: 63.4657774 | FH25: 5.769616127 | FI25: 0 | FJ25: 5.769616127 | FK25: 40.38731289 | FL25: 34.61769676 | FM25: 5.769616127 | FN25: 17.30884838 | FO25: 17.30884838 | FP25: 0 | FQ25: 675.0450868 | FR25: 80.77462578 | FS25: 155.7796354 | FT25: 86.5442419 | FU25: 519.2654514 | FV25: 525.0350675 | FW25: 23.07846451 | FX25: 28.84808063 | FY25: 0 | FZ25: 5.769616127 | GA25: 0 | GB25: 0 | GC25: 0 | GD25: 0 | GE25: 0 | GF25: 0 | GG25: 0 | GH25: 0 | GI25: 0 | GJ25: 40.38731289
E26: > 66 kV & < = 132 kV; Wood | F26: 9.381711267 | G26: 0 | H26: 0 | I26: 2
E27: > 132 kV; Wood | F27: 0.0001 | G27: 0 | H27: 0 | I27: 2
A28: 1 | D28: POLES | E28: ˂ = 1 kV; Concrete | F28: 10.21225459 | G28: 43.80402189 | H28: 6.618460689 | I28: 2 | J28: 371 | K28: 465 | L28: 372 | M28: 158 | N28: 125 | O28: 178 | P28: 138 | Q28: 56 | R28: 58 | S28: 49 | T28: 56 | U28: 41 | V28: 23 | W28: 21 | X28: 179 | Y28: 113 | Z28: 92 | AA28: 121 | AB28: 174 | AC28: 628 | AD28: 713 | AE28: 1294 | AF28: 1651 | AG28: 1213 | AH28: 1201 | AI28: 1884 | AJ28: 1668 | AK28: 1135 | AL28: 1271 | AM28: 1666 | AN28: 1380 | AO28: 533 | AP28: 225 | AQ28: 1218 | AR28: 797 | AS28: 11 | AT28: 806 | AU28: 728 | AV28: 522 | AW28: 177 | AX28: 4 | AY28: 65 | AZ28: 103 | BA28: 2 | BB28: 43 | BC28: 3 | BD28: 3 | BE28: 3 | BF28: 5 | BG28: 4 | BH28: 1 | BI28: 2 | BJ28: 4 | BK28: 1 | BL28: 0 | BM28: 2 | BN28: 2 | BO28: 1 | BP28: 2 | BQ28: 0 | BR28: 0 | BS28: 1 | BT28: 0 | BU28: 1 | BV28: 0 | BW28: 1 | BX28: 0 | BY28: 0 | BZ28: 0 | CA28: 0 | CB28: 0 | CC28: 0 | CD28: 0 | CE28: 0 | CF28: 0 | CG28: 0 | CH28: 1 | CI28: 2 | CJ28: 1 | CK28: 1 | CL28: 0 | CM28: 0 | CN28: 0 | CO28: 0 | CP28: 0 | CQ28: 0 | CR28: 1 | CS28: 0 | CT28: 0 | CU28: 0 | CV28: 17 | CX28: 3788.746453 | CY28: 4748.698384 | CZ28: 3798.958707 | DA28: 1613.536225 | DB28: 1276.531824 | DC28: 1817.781317 | DD28: 1409.291133 | DE28: 571.886257 | DF28: 592.3107662 | DG28: 500.4004749 | DH28: 571.886257 | DI28: 418.7024382 | DJ28: 234.8818556 | DK28: 214.4573464 | DL28: 1827.993572 | DM28: 1153.984769 | DN28: 939.5274223 | DO28: 1235.682805 | DP28: 1776.932299 | DQ28: 6413.295882 | DR28: 7281.337522 | DS28: 13214.65744 | DT28: 16860.43233 | DU28: 12387.46482 | DV28: 12264.91776 | DW28: 19239.88765 | DX28: 17034.04066 | DY28: 11590.90896 | DZ28: 12979.77558 | EA28: 17013.61615 | EB28: 14092.91133 | EC28: 5443.131696 | ED28: 2297.757283 | EE28: 12438.52609 | EF28: 8139.166908 | EG28: 112.3348005 | EH28: 8231.077199 | EI28: 7434.521341 | EJ28: 5330.796896 | EK28: 1807.569062 | EL28: 40.84901836 | EM28: 663.7965483 | EN28: 1051.862223 | EO28: 20.42450918 | EP28: 439.1269474 | EQ28: 30.63676377 | ER28: 30.63676377 | ES28: 30.63676377 | ET28: 51.06127295 | EU28: 40.84901836 | EV28: 10.21225459 | EW28: 20.42450918 | EX28: 40.84901836 | EY28: 10.21225459 | EZ28: 0 | FA28: 20.42450918 | FB28: 20.42450918 | FC28: 10.21225459 | FD28: 20.42450918 | FE28: 0 | FF28: 0 | FG28: 10.21225459 | FH28: 0 | FI28: 10.21225459 | FJ28: 0 | FK28: 10.21225459 | FL28: 0 | FM28: 0 | FN28: 0 | FO28: 0 | FP28: 0 | FQ28: 0 | FR28: 0 | FS28: 0 | FT28: 0 | FU28: 0 | FV28: 10.21225459 | FW28: 20.42450918 | FX28: 10.21225459 | FY28: 10.21225459 | FZ28: 0 | GA28: 0 | GB28: 0 | GC28: 0 | GD28: 0 | GE28: 0 | GF28: 10.21225459 | GG28: 0 | GH28: 0 | GI28: 0 | GJ28: 173.608328
A29: 1 | D29: POLES | E29: > 1 kV & < = 11 kV; Concrete | F29: 12.23133165 | G29: 54.76363746 | H29: 7.40024577 | I29: 2 | J29: 9 | K29: 13 | L29: 17 | M29: 5 | N29: 4 | O29: 1 | P29: 1 | Q29: 0 | R29: 0 | S29: 2 | T29: 2 | U29: 2 | V29: 1 | W29: 0 | X29: 0 | Y29: 4 | Z29: 2 | AA29: 1 | AB29: 2 | AC29: 16 | AD29: 19 | AE29: 15 | AF29: 22 | AG29: 3 | AH29: 6 | AI29: 10 | AJ29: 12 | AK29: 9 | AL29: 23 | AM29: 23 | AN29: 47 | AO29: 5 | AP29: 7 | AQ29: 11 | AR29: 11 | AS29: 0 | AT29: 6 | AU29: 7 | AV29: 1 | AW29: 0 | AX29: 0 | AY29: 0 | AZ29: 1 | BA29: 0 | BB29: 0 | BC29: 5 | BD29: 0 | BE29: 0 | BF29: 0 | BG29: 0 | BH29: 0 | BI29: 0 | BJ29: 0 | BK29: 0 | BL29: 0 | BM29: 1 | BN29: 0 | BO29: 0 | BP29: 0 | BQ29: 0 | BR29: 0 | BS29: 0 | BT29: 0 | BU29: 0 | BV29: 0 | BW29: 0 | BX29: 0 | BY29: 0 | BZ29: 0 | CA29: 0 | CB29: 0 | CC29: 0 | CD29: 0 | CE29: 0 | CF29: 0 | CG29: 0 | CH29: 2 | CI29: 0 | CJ29: 0 | CK29: 0 | CL29: 1 | CM29: 0 | CN29: 0 | CO29: 0 | CP29: 0 | CQ29: 0 | CR29: 0 | CS29: 0 | CT29: 0 | CU29: 0 | CV29: 2 | CX29: 110.0819849 | CY29: 159.0073115 | CZ29: 207.9326381 | DA29: 61.15665826 | DB29: 48.92532661 | DC29: 12.23133165 | DD29: 12.23133165 | DE29: 0 | DF29: 0 | DG29: 24.4626633 | DH29: 24.4626633 | DI29: 24.4626633 | DJ29: 12.23133165 | DK29: 0 | DL29: 0 | DM29: 48.92532661 | DN29: 24.4626633 | DO29: 12.23133165 | DP29: 24.4626633 | DQ29: 195.7013064 | DR29: 232.3953014 | DS29: 183.4699748 | DT29: 269.0892963 | DU29: 36.69399496 | DV29: 73.38798991 | DW29: 122.3133165 | DX29: 146.7759798 | DY29: 110.0819849 | DZ29: 281.320628 | EA29: 281.320628 | EB29: 574.8725876 | EC29: 61.15665826 | ED29: 85.61932156 | EE29: 134.5446482 | EF29: 134.5446482 | EG29: 0 | EH29: 73.38798991 | EI29: 85.61932156 | EJ29: 12.23133165 | EK29: 0 | EL29: 0 | EM29: 0 | EN29: 12.23133165 | EO29: 0 | EP29: 0 | EQ29: 61.15665826 | ER29: 0 | ES29: 0 | ET29: 0 | EU29: 0 | EV29: 0 | EW29: 0 | EX29: 0 | EY29: 0 | EZ29: 0 | FA29: 12.23133165 | FB29: 0 | FC29: 0 | FD29: 0 | FE29: 0 | FF29: 0 | FG29: 0 | FH29: 0 | FI29: 0 | FJ29: 0 | FK29: 0 | FL29: 0 | FM29: 0 | FN29: 0 | FO29: 0 | FP29: 0 | FQ29: 0 | FR29: 0 | FS29: 0 | FT29: 0 | FU29: 0 | FV29: 24.4626633 | FW29: 0 | FX29: 0 | FY29: 0 | FZ29: 12.23133165 | GA29: 0 | GB29: 0 | GC29: 0 | GD29: 0 | GE29: 0 | GF29: 0 | GG29: 0 | GH29: 0 | GI29: 0 | GJ29: 24.4626633
A30: 1 | D30: POLES | E30: ˃ 11 kV & < = 22 kV; Concrete | F30: 11.83434519 | G30: 40.08560116 | H30: 6.33131907 | I30: 2 | J30: 2212 | K30: 1883 | L30: 1292 | M30: 1070 | N30: 1167 | O30: 1026 | P30: 645 | Q30: 330 | R30: 312 | S30: 333 | T30: 319 | U30: 240 | V30: 203 | W30: 248 | X30: 951 | Y30: 891 | Z30: 967 | AA30: 1114 | AB30: 937 | AC30: 1936 | AD30: 2742 | AE30: 4524 | AF30: 4799 | AG30: 4037 | AH30: 4831 | AI30: 6072 | AJ30: 4917 | AK30: 4931 | AL30: 4088 | AM30: 4527 | AN30: 4505 | AO30: 2086 | AP30: 879 | AQ30: 4171 | AR30: 1757 | AS30: 69 | AT30: 1181 | AU30: 881 | AV30: 382 | AW30: 164 | AX30: 17 | AY30: 63 | AZ30: 58 | BA30: 15 | BB30: 81 | BC30: 32 | BD30: 13 | BE30: 38 | BF30: 12 | BG30: 16 | BH30: 8 | BI30: 10 | BJ30: 13 | BK30: 14 | BL30: 11 | BM30: 3 | BN30: 4 | BO30: 6 | BP30: 14 | BQ30: 9 | BR30: 10 | BS30: 2 | BT30: 2 | BU30: 3 | BV30: 3 | BW30: 3 | BX30: 0 | BY30: 1 | BZ30: 0 | CA30: 0 | CB30: 0 | CC30: 0 | CD30: 0 | CE30: 0 | CF30: 3 | CG30: 1 | CH30: 2 | CI30: 4 | CJ30: 0 | CK30: 2 | CL30: 31 | CM30: 0 | CN30: 0 | CO30: 0 | CP30: 0 | CQ30: 0 | CR30: 4 | CS30: 0 | CT30: 0 | CU30: 0 | CV30: 81 | CX30: 26177.57155 | CY30: 22284.07199 | CZ30: 15289.97398 | DA30: 12662.74935 | DB30: 13810.68083 | DC30: 12142.03816 | DD30: 7633.152645 | DE30: 3905.333912 | DF30: 3692.315698 | DG30: 3940.836947 | DH30: 3775.156114 | DI30: 2840.242845 | DJ30: 2402.372073 | DK30: 2934.917606 | DL30: 11254.46227 | DM30: 10544.40156 | DN30: 11443.8118 | DO30: 13183.46054 | DP30: 11088.78144 | DQ30: 22911.29228 | DR30: 32449.7745 | DS30: 53538.57762 | DT30: 56793.02255 | DU30: 47775.25152 | DV30: 57171.7216 | DW30: 71858.14397 | DX30: 58189.47528 | DY30: 58355.15611 | DZ30: 48378.80312 | EA30: 53574.08066 | EB30: 53313.72507 | EC30: 24686.44406 | ED30: 10402.38942 | EE30: 49361.05377 | EF30: 20792.94449 | EG30: 816.5698179 | EH30: 13976.36167 | EI30: 10426.05811 | EJ30: 4520.719861 | EK30: 1940.832611 | EL30: 201.1838682 | EM30: 745.5637467 | EN30: 686.3920208 | EO30: 177.5151778 | EP30: 958.5819601 | EQ30: 378.699046 | ER30: 153.8464874 | ES30: 449.7051171 | ET30: 142.0121422 | EU30: 189.349523 | EV30: 94.67476149 | EW30: 118.3434519 | EX30: 153.8464874 | EY30: 165.6808326 | EZ30: 130.1777971 | FA30: 35.50303556 | FB30: 47.33738075 | FC30: 71.00607112 | FD30: 165.6808326 | FE30: 106.5091067 | FF30: 118.3434519 | FG30: 23.66869037 | FH30: 23.66869037 | FI30: 35.50303556 | FJ30: 35.50303556 | FK30: 35.50303556 | FL30: 0 | FM30: 11.83434519 | FN30: 0 | FO30: 0 | FP30: 0 | FQ30: 0 | FR30: 0 | FS30: 0 | FT30: 35.50303556 | FU30: 11.83434519 | FV30: 23.66869037 | FW30: 47.33738075 | FX30: 0 | FY30: 23.66869037 | FZ30: 366.8647008 | GA30: 0 | GB30: 0 | GC30: 0 | GD30: 0 | GE30: 0 | GF30: 47.33738075 | GG30: 0 | GH30: 0 | GI30: 0 | GJ30: 958.5819601
A31: 1 | D31: POLES | E31: > 22 kV & < = 66 kV; Concrete | F31: 11.836 | G31: 40.98169491 | H31: 6.401694691 | I31: 2 | J31: 697 | K31: 306 | L31: 106 | M31: 195 | N31: 300 | O31: 202 | P31: 288 | Q31: 99 | R31: 198 | S31: 254 | T31: 80 | U31: 52 | V31: 26 | W31: 31 | X31: 155 | Y31: 173 | Z31: 56 | AA31: 75 | AB31: 68 | AC31: 316 | AD31: 205 | AE31: 333 | AF31: 274 | AG31: 191 | AH31: 605 | AI31: 630 | AJ31: 521 | AK31: 473 | AL31: 453 | AM31: 595 | AN31: 1197 | AO31: 227 | AP31: 155 | AQ31: 885 | AR31: 388 | AS31: 7 | AT31: 240 | AU31: 31 | AV31: 31 | AW31: 16 | AX31: 14 | AY31: 5 | AZ31: 30 | BA31: 14 | BB31: 30 | BC31: 5 | BD31: 4 | BE31: 7 | BF31: 2 | BG31: 21 | BH31: 1 | BI31: 0 | BJ31: 0 | BK31: 2 | BL31: 0 | BM31: 3 | BN31: 0 | BO31: 3 | BP31: 1 | BQ31: 3 | BR31: 1 | BS31: 1 | BT31: 1 | BU31: 0 | BV31: 0 | BW31: 0 | BX31: 0 | BY31: 0 | BZ31: 0 | CA31: 0 | CB31: 0 | CC31: 0 | CD31: 0 | CE31: 0 | CF31: 1 | CG31: 0 | CH31: 0 | CI31: 0 | CJ31: 0 | CK31: 0 | CL31: 0 | CM31: 0 | CN31: 0 | CO31: 0 | CP31: 0 | CQ31: 0 | CR31: 0 | CS31: 0 | CT31: 0 | CU31: 0 | CV31: 67 | CX31: 8249.692 | CY31: 3621.816 | CZ31: 1254.616 | DA31: 2308.02 | DB31: 3550.8 | DC31: 2390.872 | DD31: 3408.768 | DE31: 1171.764 | DF31: 2343.528 | DG31: 3006.344 | DH31: 946.88 | DI31: 615.472 | DJ31: 307.736 | DK31: 366.916 | DL31: 1834.58 | DM31: 2047.628 | DN31: 662.816 | DO31: 887.7 | DP31: 804.848 | DQ31: 3740.176 | DR31: 2426.38 | DS31: 3941.388 | DT31: 3243.064 | DU31: 2260.676 | DV31: 7160.78 | DW31: 7456.68 | DX31: 6166.556 | DY31: 5598.428 | DZ31: 5361.708 | EA31: 7042.42 | EB31: 14167.692 | EC31: 2686.772 | ED31: 1834.58 | EE31: 10474.86 | EF31: 4592.368 | EG31: 82.852 | EH31: 2840.64 | EI31: 366.916 | EJ31: 366.916 | EK31: 189.376 | EL31: 165.704 | EM31: 59.18 | EN31: 355.08 | EO31: 165.704 | EP31: 355.08 | EQ31: 59.18 | ER31: 47.344 | ES31: 82.852 | ET31: 23.672 | EU31: 248.556 | EV31: 11.836 | EW31: 0 | EX31: 0 | EY31: 23.672 | EZ31: 0 | FA31: 35.508 | FB31: 0 | FC31: 35.508 | FD31: 11.836 | FE31: 35.508 | FF31: 11.836 | FG31: 11.836 | FH31: 11.836 | FI31: 0 | FJ31: 0 | FK31: 0 | FL31: 0 | FM31: 0 | FN31: 0 | FO31: 0 | FP31: 0 | FQ31: 0 | FR31: 0 | FS31: 0 | FT31: 11.836 | FU31: 0 | FV31: 0 | FW31: 0 | FX31: 0 | FY31: 0 | FZ31: 0 | GA31: 0 | GB31: 0 | GC31: 0 | GD31: 0 | GE31: 0 | GF31: 0 | GG31: 0 | GH31: 0 | GI31: 0 | GJ31: 793.012
E32: > 66 kV & < = 132 kV; Concrete | F32: 21.21201926 | G32: 0 | H32: 0 | I32: 2
E33: > 132 kV; Concrete | F33: 1151.461797 | G33: 0 | H33: 0 | I33: 2
A34: 1 | D34: POLES | E34: ˂ = 1 kV; Steel | F34: 11.81211019 | G34: 32.73621523 | H34: 5.721557064 | I34: 2 | J34: 2217 | K34: 2095 | L34: 2920 | M34: 3024 | N34: 1915 | O34: 2264 | P34: 2451 | Q34: 1383 | R34: 983 | S34: 3960 | T34: 2206 | U34: 1423 | V34: 913 | W34: 505 | X34: 3388 | Y34: 1318 | Z34: 939 | AA34: 391 | AB34: 326 | AC34: 349 | AD34: 1018 | AE34: 873 | AF34: 547 | AG34: 460 | AH34: 1082 | AI34: 1349 | AJ34: 1071 | AK34: 361 | AL34: 953 | AM34: 819 | AN34: 150 | AO34: 14 | AP34: 102 | AQ34: 12 | AR34: 71 | AS34: 6 | AT34: 16 | AU34: 9 | AV34: 5 | AW34: 21 | AX34: 9 | AY34: 7 | AZ34: 1 | BA34: 5 | BB34: 3 | BC34: 0 | BD34: 0 | BE34: 0 | BF34: 1 | BG34: 0 | BH34: 0 | BI34: 0 | BJ34: 1 | BK34: 0 | BL34: 0 | BM34: 1 | BN34: 0 | BO34: 0 | BP34: 0 | BQ34: 0 | BR34: 0 | BS34: 0 | BT34: 0 | BU34: 0 | BV34: 0 | BW34: 0 | BX34: 0 | BY34: 0 | BZ34: 1 | CA34: 0 | CB34: 0 | CC34: 0 | CD34: 0 | CE34: 0 | CF34: 0 | CG34: 0 | CH34: 0 | CI34: 0 | CJ34: 0 | CK34: 0 | CL34: 0 | CM34: 0 | CN34: 0 | CO34: 0 | CP34: 0 | CQ34: 0 | CR34: 0 | CS34: 0 | CT34: 0 | CU34: 0 | CV34: 249 | CX34: 26187.44828 | CY34: 24746.37084 | CZ34: 34491.36175 | DA34: 35719.82121 | DB34: 22620.19101 | DC34: 26742.61746 | DD34: 28951.48207 | DE34: 16336.14839 | DF34: 11611.30431 | DG34: 46775.95634 | DH34: 26057.51507 | DI34: 16808.6328 | DJ34: 10784.4566 | DK34: 5965.115644 | DL34: 40019.42931 | DM34: 15568.36123 | DN34: 11091.57147 | DO34: 4618.535083 | DP34: 3850.747921 | DQ34: 4122.426455 | DR34: 12024.72817 | DS34: 10311.97219 | DT34: 6461.224272 | DU34: 5433.570686 | DV34: 12780.70322 | DW34: 15934.53664 | DX34: 12650.77001 | DY34: 4264.171778 | DZ34: 11256.94101 | EA34: 9674.118243 | EB34: 1771.816528 | EC34: 165.3695426 | ED34: 1204.835239 | EE34: 141.7453222 | EF34: 838.6598233 | EG34: 70.87266112 | EH34: 188.993763 | EI34: 106.3089917 | EJ34: 59.06055094 | EK34: 248.0543139 | EL34: 106.3089917 | EM34: 82.68477131 | EN34: 11.81211019 | EO34: 59.06055094 | EP34: 35.43633056 | EQ34: 0 | ER34: 0 | ES34: 0 | ET34: 11.81211019 | EU34: 0 | EV34: 0 | EW34: 0 | EX34: 11.81211019 | EY34: 0 | EZ34: 0 | FA34: 11.81211019 | FB34: 0 | FC34: 0 | FD34: 0 | FE34: 0 | FF34: 0 | FG34: 0 | FH34: 0 | FI34: 0 | FJ34: 0 | FK34: 0 | FL34: 0 | FM34: 0 | FN34: 11.81211019 | FO34: 0 | FP34: 0 | FQ34: 0 | FR34: 0 | FS34: 0 | FT34: 0 | FU34: 0 | FV34: 0 | FW34: 0 | FX34: 0 | FY34: 0 | FZ34: 0 | GA34: 0 | GB34: 0 | GC34: 0 | GD34: 0 | GE34: 0 | GF34: 0 | GG34: 0 | GH34: 0 | GI34: 0 | GJ34: 2941.215437
A35: 1 | D35: POLES | E35: > 1 kV & < = 11 kV; Steel | F35: 12.18181818 | G35: 86.23680571 | H35: 9.286377427 | I35: 2 | J35: 1 | K35: 0 | L35: 0 | M35: 0 | N35: 0 | O35: 0 | P35: 0 | Q35: 0 | R35: 0 | S35: 0 | T35: 0 | U35: 0 | V35: 0 | W35: 0 | X35: 0 | Y35: 0 | Z35: 0 | AA35: 0 | AB35: 0 | AC35: 0 | AD35: 0 | AE35: 0 | AF35: 0 | AG35: 0 | AH35: 0 | AI35: 0 | AJ35: 0 | AK35: 0 | AL35: 0 | AM35: 0 | AN35: 0 | AO35: 0 | AP35: 0 | AQ35: 0 | AR35: 0 | AS35: 0 | AT35: 0 | AU35: 0 | AV35: 0 | AW35: 0 | AX35: 0 | AY35: 0 | AZ35: 0 | BA35: 0 | BB35: 0 | BC35: 0 | BD35: 0 | BE35: 0 | BF35: 0 | BG35: 0 | BH35: 0 | BI35: 0 | BJ35: 0 | BK35: 0 | BL35: 0 | BM35: 0 | BN35: 0 | BO35: 0 | BP35: 0 | BQ35: 0 | BR35: 0 | BS35: 0 | BT35: 0 | BU35: 0 | BV35: 0 | BW35: 0 | BX35: 0 | BY35: 0 | BZ35: 0 | CA35: 0 | CB35: 0 | CC35: 0 | CD35: 0 | CE35: 0 | CF35: 0 | CG35: 0 | CH35: 0 | CI35: 0 | CJ35: 0 | CK35: 0 | CL35: 0 | CM35: 0 | CN35: 0 | CO35: 0 | CP35: 0 | CQ35: 0 | CR35: 0 | CS35: 0 | CT35: 0 | CU35: 0 | CV35: 2 | CX35: 12.18181818 | CY35: 0 | CZ35: 0 | DA35: 0 | DB35: 0 | DC35: 0 | DD35: 0 | DE35: 0 | DF35: 0 | DG35: 0 | DH35: 0 | DI35: 0 | DJ35: 0 | DK35: 0 | DL35: 0 | DM35: 0 | DN35: 0 | DO35: 0 | DP35: 0 | DQ35: 0 | DR35: 0 | DS35: 0 | DT35: 0 | DU35: 0 | DV35: 0 | DW35: 0 | DX35: 0 | DY35: 0 | DZ35: 0 | EA35: 0 | EB35: 0 | EC35: 0 | ED35: 0 | EE35: 0 | EF35: 0 | EG35: 0 | EH35: 0 | EI35: 0 | EJ35: 0 | EK35: 0 | EL35: 0 | EM35: 0 | EN35: 0 | EO35: 0 | EP35: 0 | EQ35: 0 | ER35: 0 | ES35: 0 | ET35: 0 | EU35: 0 | EV35: 0 | EW35: 0 | EX35: 0 | EY35: 0 | EZ35: 0 | FA35: 0 | FB35: 0 | FC35: 0 | FD35: 0 | FE35: 0 | FF35: 0 | FG35: 0 | FH35: 0 | FI35: 0 | FJ35: 0 | FK35: 0 | FL35: 0 | FM35: 0 | FN35: 0 | FO35: 0 | FP35: 0 | FQ35: 0 | FR35: 0 | FS35: 0 | FT35: 0 | FU35: 0 | FV35: 0 | FW35: 0 | FX35: 0 | FY35: 0 | FZ35: 0 | GA35: 0 | GB35: 0 | GC35: 0 | GD35: 0 | GE35: 0 | GF35: 0 | GG35: 0 | GH35: 0 | GI35: 0 | GJ35: 24.36363636
A36: 1 | D36: POLES | E36: ˃ 11 kV & < = 22 kV; Steel | F36: 11.83430045 | G36: 31.10793796 | H36: 5.577449055 | I36: 2 | J36: 576 | K36: 489 | L36: 845 | M36: 700 | N36: 364 | O36: 593 | P36: 713 | Q36: 302 | R36: 293 | S36: 1071 | T36: 489 | U36: 315 | V36: 163 | W36: 96 | X36: 796 | Y36: 364 | Z36: 246 | AA36: 82 | AB36: 74 | AC36: 80 | AD36: 179 | AE36: 236 | AF36: 126 | AG36: 142 | AH36: 284 | AI36: 417 | AJ36: 361 | AK36: 101 | AL36: 426 | AM36: 321 | AN36: 26 | AO36: 3 | AP36: 41 | AQ36: 2 | AR36: 25 | AS36: 1 | AT36: 2 | AU36: 1 | AV36: 2 | AW36: 1 | AX36: 0 | AY36: 0 | AZ36: 0 | BA36: 0 | BB36: 4 | BC36: 0 | BD36: 0 | BE36: 0 | BF36: 0 | BG36: 0 | BH36: 0 | BI36: 0 | BJ36: 0 | BK36: 0 | BL36: 0 | BM36: 0 | BN36: 0 | BO36: 0 | BP36: 0 | BQ36: 0 | BR36: 0 | BS36: 0 | BT36: 0 | BU36: 0 | BV36: 0 | BW36: 0 | BX36: 0 | BY36: 0 | BZ36: 0 | CA36: 0 | CB36: 0 | CC36: 0 | CD36: 0 | CE36: 0 | CF36: 0 | CG36: 0 | CH36: 0 | CI36: 0 | CJ36: 0 | CK36: 0 | CL36: 0 | CM36: 0 | CN36: 0 | CO36: 0 | CP36: 0 | CQ36: 0 | CR36: 0 | CS36: 0 | CT36: 0 | CU36: 0 | CV36: 69 | CX36: 6816.55706 | CY36: 5786.972921 | CZ36: 9999.983881 | DA36: 8284.010316 | DB36: 4307.685364 | DC36: 7017.740168 | DD36: 8437.856222 | DE36: 3573.958736 | DF36: 3467.450032 | DG36: 12674.53578 | DH36: 5786.972921 | DI36: 3727.804642 | DJ36: 1928.990974 | DK36: 1136.092843 | DL36: 9420.103159 | DM36: 4307.685364 | DN36: 2911.237911 | DO36: 970.412637 | DP36: 875.7382334 | DQ36: 946.7440361 | DR36: 2118.339781 | DS36: 2792.894907 | DT36: 1491.121857 | DU36: 1680.470664 | DV36: 3360.941328 | DW36: 4934.903288 | DX36: 4272.182463 | DY36: 1195.264346 | DZ36: 5041.411992 | EA36: 3798.810445 | EB36: 307.6918117 | EC36: 35.50290135 | ED36: 485.2063185 | EE36: 23.6686009 | EF36: 295.8575113 | EG36: 11.83430045 | EH36: 23.6686009 | EI36: 11.83430045 | EJ36: 23.6686009 | EK36: 11.83430045 | EL36: 0 | EM36: 0 | EN36: 0 | EO36: 0 | EP36: 47.33720181 | EQ36: 0 | ER36: 0 | ES36: 0 | ET36: 0 | EU36: 0 | EV36: 0 | EW36: 0 | EX36: 0 | EY36: 0 | EZ36: 0 | FA36: 0 | FB36: 0 | FC36: 0 | FD36: 0 | FE36: 0 | FF36: 0 | FG36: 0 | FH36: 0 | FI36: 0 | FJ36: 0 | FK36: 0 | FL36: 0 | FM36: 0 | FN36: 0 | FO36: 0 | FP36: 0 | FQ36: 0 | FR36: 0 | FS36: 0 | FT36: 0 | FU36: 0 | FV36: 0 | FW36: 0 | FX36: 0 | FY36: 0 | FZ36: 0 | GA36: 0 | GB36: 0 | GC36: 0 | GD36: 0 | GE36: 0 | GF36: 0 | GG36: 0 | GH36: 0 | GI36: 0 | GJ36: 816.5667311
A37: 1 | D37: POLES | E37: > 22 kV & < = 66 kV; Steel | F37: 11.80508475 | G37: 39.42992959 | H37: 6.279325568 | I37: 2 | J37: 29 | K37: 6 | L37: 3 | M37: 1 | N37: 3 | O37: 6 | P37: 21 | Q37: 9 | R37: 3 | S37: 20 | T37: 6 | U37: 2 | V37: 5 | W37: 0 | X37: 24 | Y37: 4 | Z37: 2 | AA37: 2 | AB37: 1 | AC37: 0 | AD37: 0 | AE37: 3 | AF37: 4 | AG37: 1 | AH37: 2 | AI37: 2 | AJ37: 2 | AK37: 1 | AL37: 0 | AM37: 10 | AN37: 0 | AO37: 0 | AP37: 0 | AQ37: 0 | AR37: 0 | AS37: 0 | AT37: 0 | AU37: 1 | AV37: 0 | AW37: 0 | AX37: 0 | AY37: 0 | AZ37: 0 | BA37: 0 | BB37: 0 | BC37: 0 | BD37: 0 | BE37: 0 | BF37: 0 | BG37: 0 | BH37: 0 | BI37: 0 | BJ37: 0 | BK37: 0 | BL37: 0 | BM37: 0 | BN37: 0 | BO37: 0 | BP37: 0 | BQ37: 0 | BR37: 0 | BS37: 0 | BT37: 0 | BU37: 0 | BV37: 0 | BW37: 0 | BX37: 0 | BY37: 0 | BZ37: 0 | CA37: 0 | CB37: 0 | CC37: 0 | CD37: 0 | CE37: 0 | CF37: 0 | CG37: 0 | CH37: 0 | CI37: 0 | CJ37: 0 | CK37: 0 | CL37: 0 | CM37: 0 | CN37: 0 | CO37: 0 | CP37: 0 | CQ37: 0 | CR37: 0 | CS37: 0 | CT37: 0 | CU37: 0 | CV37: 4 | CX37: 342.3474576 | CY37: 70.83050847 | CZ37: 35.41525424 | DA37: 11.80508475 | DB37: 35.41525424 | DC37: 70.83050847 | DD37: 247.9067797 | DE37: 106.2457627 | DF37: 35.41525424 | DG37: 236.1016949 | DH37: 70.83050847 | DI37: 23.61016949 | DJ37: 59.02542373 | DK37: 0 | DL37: 283.3220339 | DM37: 47.22033898 | DN37: 23.61016949 | DO37: 23.61016949 | DP37: 11.80508475 | DQ37: 0 | DR37: 0 | DS37: 35.41525424 | DT37: 47.22033898 | DU37: 11.80508475 | DV37: 23.61016949 | DW37: 23.61016949 | DX37: 23.61016949 | DY37: 11.80508475 | DZ37: 0 | EA37: 118.0508475 | EB37: 0 | EC37: 0 | ED37: 0 | EE37: 0 | EF37: 0 | EG37: 0 | EH37: 0 | EI37: 11.80508475 | EJ37: 0 | EK37: 0 | EL37: 0 | EM37: 0 | EN37: 0 | EO37: 0 | EP37: 0 | EQ37: 0 | ER37: 0 | ES37: 0 | ET37: 0 | EU37: 0 | EV37: 0 | EW37: 0 | EX37: 0 | EY37: 0 | EZ37: 0 | FA37: 0 | FB37: 0 | FC37: 0 | FD37: 0 | FE37: 0 | FF37: 0 | FG37: 0 | FH37: 0 | FI37: 0 | FJ37: 0 | FK37: 0 | FL37: 0 | FM37: 0 | FN37: 0 | FO37: 0 | FP37: 0 | FQ37: 0 | FR37: 0 | FS37: 0 | FT37: 0 | FU37: 0 | FV37: 0 | FW37: 0 | FX37: 0 | FY37: 0 | FZ37: 0 | GA37: 0 | GB37: 0 | GC37: 0 | GD37: 0 | GE37: 0 | GF37: 0 | GG37: 0 | GH37: 0 | GI37: 0 | GJ37: 47.22033898
E38: > 66 kV & < = 132 kV; Steel | F38: 17.14329826 | G38: 0 | H38: 0 | I38: 2
E39: > 132 kV; Steel | F39: 0.0001 | G39: 0 | H39: 0 | I39: 2
E40: Other | F40: 0.0001 | G40: 129.7635458 | H40: 11.39138033 | I40: 2
A41: 2 | D41: OVERHEAD CONDUCTORS | E41: ˂ = 1 kV | F41: 40.64137931 | G41: 114.7720837 | H41: 10.71317337 | I41: 2 | J41: 18.8799 | K41: 0 | L41: 0 | M41: 0 | N41: 0 | O41: 0 | P41: 0 | Q41: 0 | R41: 0 | S41: 0 | T41: 0 | U41: 0 | V41: 0 | W41: 0 | X41: 0 | Y41: 0 | Z41: 0 | AA41: 0 | AB41: 0 | AC41: 0 | AD41: 0 | AE41: 0 | AF41: 0 | AG41: 0 | AH41: 0 | AI41: 0 | AJ41: 0 | AK41: 0 | AL41: 0 | AM41: 0 | AN41: 0 | AO41: 0 | AP41: 0 | AQ41: 0 | AR41: 0 | AS41: 0 | AT41: 0 | AU41: 0 | AV41: 0 | AW41: 0 | AX41: 0 | AY41: 0 | AZ41: 0 | BA41: 0 | BB41: 0 | BC41: 0 | BD41: 0 | BE41: 0 | BF41: 0 | BG41: 0 | BH41: 0 | BI41: 0 | BJ41: 0 | BK41: 0 | BL41: 0 | BM41: 0 | BN41: 0 | BO41: 0 | BP41: 0 | BQ41: 0 | BR41: 0 | BS41: 0 | BT41: 0 | BU41: 0 | BV41: 0 | BW41: 0 | BX41: 0 | BY41: 0 | BZ41: 0 | CA41: 0 | CB41: 0 | CC41: 0 | CD41: 0 | CE41: 0 | CF41: 0 | CG41: 0 | CH41: 0 | CI41: 0 | CJ41: 0 | CK41: 0 | CL41: 0 | CM41: 0 | CN41: 0 | CO41: 0 | CP41: 0 | CQ41: 0 | CR41: 0 | CS41: 0 | CT41: 0 | CU41: 0 | CV41: 6720.9866 | CX41: 767.3051772 | CY41: 0 | CZ41: 0 | DA41: 0 | DB41: 0 | DC41: 0 | DD41: 0 | DE41: 0 | DF41: 0 | DG41: 0 | DH41: 0 | DI41: 0 | DJ41: 0 | DK41: 0 | DL41: 0 | DM41: 0 | DN41: 0 | DO41: 0 | DP41: 0 | DQ41: 0 | DR41: 0 | DS41: 0 | DT41: 0 | DU41: 0 | DV41: 0 | DW41: 0 | DX41: 0 | DY41: 0 | DZ41: 0 | EA41: 0 | EB41: 0 | EC41: 0 | ED41: 0 | EE41: 0 | EF41: 0 | EG41: 0 | EH41: 0 | EI41: 0 | EJ41: 0 | EK41: 0 | EL41: 0 | EM41: 0 | EN41: 0 | EO41: 0 | EP41: 0 | EQ41: 0 | ER41: 0 | ES41: 0 | ET41: 0 | EU41: 0 | EV41: 0 | EW41: 0 | EX41: 0 | EY41: 0 | EZ41: 0 | FA41: 0 | FB41: 0 | FC41: 0 | FD41: 0 | FE41: 0 | FF41: 0 | FG41: 0 | FH41: 0 | FI41: 0 | FJ41: 0 | FK41: 0 | FL41: 0 | FM41: 0 | FN41: 0 | FO41: 0 | FP41: 0 | FQ41: 0 | FR41: 0 | FS41: 0 | FT41: 0 | FU41: 0 | FV41: 0 | FW41: 0 | FX41: 0 | FY41: 0 | FZ41: 0 | GA41: 0 | GB41: 0 | GC41: 0 | GD41: 0 | GE41: 0 | GF41: 0 | GG41: 0 | GH41: 0 | GI41: 0 | GJ41: 273150.1658
A42: 2 | D42: OVERHEAD CONDUCTORS | E42: > 1 kV & < = 11 kV | F42: 71.62414072 | G42: 90.86897213 | H42: 9.532521814 | I42: 2 | J42: 2.0703 | K42: 0.5583 | L42: 0.1445 | M42: 0.0034 | N42: 0.1043 | O42: 0.1288 | P42: 0 | Q42: 1.9809 | R42: 1.5975 | S42: 1.1997 | T42: 0 | U42: 0.0757 | V42: 0.006 | W42: 0 | X42: 0.7052 | Y42: 0.223 | Z42: 2.8622 | AA42: 4.8438 | AB42: 2.6617 | AC42: 1.5742 | AD42: 0.1021 | AE42: 1.2456 | AF42: 2.3274 | AG42: 1.416 | AH42: 2.7384 | AI42: 1.9488 | AJ42: 2.6766 | AK42: 1.674 | AL42: 0.9214 | AM42: 1.0566 | AN42: 1.2227 | AO42: 0.3858 | AP42: 0.4485 | AQ42: 0.5085 | AR42: 2.6234 | AS42: 0.022 | AT42: 0.127 | AU42: 2.0048 | AV42: 2.3469 | AW42: 2.1186 | AX42: 1.1411 | AY42: 0.3402 | AZ42: 0.3933 | BA42: 1.3897 | BB42: 2.9877 | BC42: 1.2298 | BD42: 0.6193 | BE42: 0.6493 | BF42: 0.5418 | BG42: 1.0855 | BH42: 0.61 | BI42: 0.4325 | BJ42: 0.0922 | BK42: 0.6088 | BL42: 1.0368 | BM42: 0.3605 | BN42: 0.3449 | BO42: 0.2566 | BP42: 0.2565 | BQ42: 0 | BR42: 0.0915 | BS42: 0.0217 | BT42: 0.1605 | BU42: 0 | BV42: 0.0584 | BW42: 0.3606 | BX42: 0.0662 | BY42: 0.0618 | BZ42: 0.5603 | CA42: 0 | CB42: 0 | CC42: 0 | CD42: 0 | CE42: 0.6569 | CF42: 0.5135 | CG42: 0.729 | CH42: 0.844 | CI42: 0 | CJ42: 0.2849 | CK42: 0.2692 | CL42: 0.3207 | CM42: 0.0051 | CN42: 0.4764 | CO42: 0.0215 | CP42: 0.0343 | CQ42: 0.0125 | CR42: 0.009 | CS42: 0.0063 | CT42: 0.006 | CU42: 0.0233 | CV42: 9.157 | CX42: 148.2834585 | CY42: 39.98775777 | CZ42: 10.34968833 | DA42: 0.2435220785 | DB42: 7.470397877 | DC42: 9.225189325 | DD42: 0 | DE42: 141.8802604 | DF42: 114.4195648 | DG42: 85.92748162 | DH42: 0 | DI42: 5.421947453 | DJ42: 0.4297448443 | DK42: 0 | DL42: 50.50934404 | DM42: 15.97218338 | DN42: 205.0026156 | DO42: 346.9330128 | DP42: 190.6419754 | DQ42: 112.7507223 | DR42: 7.312824768 | DS42: 89.21502968 | DT42: 166.6980251 | DU42: 101.4197833 | DV42: 196.135547 | DW42: 139.5811254 | DX42: 191.7091751 | DY42: 119.8988116 | DZ42: 65.99448326 | EA42: 75.67806709 | EB42: 87.57483686 | EC42: 27.63259349 | ED42: 32.12342711 | EE42: 36.42087556 | EF42: 187.8987708 | EG42: 1.575731096 | EH42: 9.096265872 | EI42: 143.5920773 | EJ42: 168.0946959 | EK42: 151.7429045 | EL42: 81.73030698 | EM42: 24.36653267 | EN42: 28.16977455 | EO42: 99.53606836 | EP42: 213.9914452 | EQ42: 88.08336826 | ER42: 44.35683035 | ES42: 46.50555457 | ET42: 38.80595944 | EU42: 77.74800475 | EV42: 43.69072584 | EW42: 30.97744086 | EX42: 6.603745775 | EY42: 43.60477687 | EZ42: 74.2599091 | FA42: 25.82050273 | FB42: 24.70316614 | FC42: 18.37875451 | FD42: 18.3715921 | FE42: 0 | FF42: 6.553608876 | FG42: 1.554243854 | FH42: 11.49567459 | FI42: 0 | FJ42: 4.182849818 | FK42: 25.82766514 | FL42: 4.741518116 | FM42: 4.426371897 | FN42: 40.13100605 | FO42: 0 | FP42: 0 | FQ42: 0 | FR42: 0 | FS42: 47.04989804 | FT42: 36.77899626 | FU42: 52.21399859 | FV42: 60.45077477 | FW42: 0 | FX42: 20.40571769 | FY42: 19.28121868 | FZ42: 22.96986193 | GA42: 0.3652831177 | GB42: 34.12174064 | GC42: 1.539919026 | GD42: 2.456708027 | GE42: 0.895301759 | GF42: 0.6446172665 | GG42: 0.4512320865 | GH42: 0.4297448443 | GI42: 1.668842479 | GJ42: 655.8622566
A43: 2 | D43: OVERHEAD CONDUCTORS | E43: ˃ 11 kV & < = 22 kV ; SWER | F43: 48.6061674 | G43: 67.24101639 | H43: 8.200061975 | I43: 2 | J43: 222.9561 | K43: 4.8632 | L43: 69.0868 | M43: 16.5446 | N43: 13.8856 | O43: 15.3487 | P43: 24.6997 | Q43: 38.6438 | R43: 34.2257 | S43: 30.5547 | T43: 31.5675 | U43: 30.6828 | V43: 42.7208 | W43: 32.8138 | X43: 49.0449 | Y43: 62.7372 | Z43: 59.0197 | AA43: 74.6651 | AB43: 28.5133 | AC43: 22.5144 | AD43: 63.6258 | AE43: 50.1042 | AF43: 57.5838 | AG43: 51.9026 | AH43: 122.1199 | AI43: 84.5128 | AJ43: 74.3154 | AK43: 43.5468 | AL43: 149.7791 | AM43: 94.0451 | AN43: 97.4062 | AO43: 83.3552 | AP43: 57.7956 | AQ43: 119.9983 | AR43: 119.1542 | AS43: 47.4476 | AT43: 96.2324 | AU43: 113.8346 | AV43: 122.3637 | AW43: 140.8502 | AX43: 98.9604 | AY43: 71.6347 | AZ43: 104.1878 | BA43: 95.7585 | BB43: 82.3512 | BC43: 122.6485 | BD43: 292.284 | BE43: 225.0236 | BF43: 368.2215 | BG43: 270.0743 | BH43: 316.5485 | BI43: 287.556 | BJ43: 163.1033 | BK43: 192.7946 | BL43: 256.2918 | BM43: 150.5126 | BN43: 198.3275 | BO43: 267.7148 | BP43: 79.7916 | BQ43: 44.8817 | BR43: 4.0661 | BS43: 0.9582 | BT43: 1.9122 | BU43: 0.4177 | BV43: 1.2364 | BW43: 6.4858 | BX43: 0.4658 | BY43: 0.4294 | BZ43: 20.5969 | CA43: 0.2301 | CB43: 1.154 | CC43: 0 | CD43: 0.4288 | CE43: 6.0746 | CF43: 26.7067 | CG43: 0.0075 | CH43: 0.3252 | CI43: 0.1379 | CJ43: 0.1485 | CK43: 0 | CL43: 0 | CM43: 0 | CN43: 0 | CO43: 0 | CP43: 0 | CQ43: 0 | CR43: 0 | CS43: 0 | CT43: 0 | CU43: 0 | CV43: 98.385 | CX43: 10837.04152 | CY43: 236.3815133 | CZ43: 3358.044566 | DA43: 804.1695972 | DB43: 674.9257981 | DC43: 746.0414816 | DD43: 1200.557753 | DE43: 1878.327012 | DF43: 1663.580104 | DG43: 1485.146863 | DH43: 1534.375189 | DI43: 1491.373313 | DJ43: 2076.494356 | DK43: 1594.953056 | DL43: 2383.88462 | DM43: 3049.414845 | DN43: 2868.721418 | DO43: 3629.18435 | DP43: 1385.922233 | DQ43: 1094.338695 | DR43: 3092.606286 | DS43: 2435.373133 | DT43: 2798.927822 | DU43: 2522.786464 | DV43: 5935.780302 | DW43: 4107.843304 | DX43: 3612.186773 | DY43: 2116.643051 | DZ43: 7280.188008 | EA43: 4571.171874 | EB43: 4734.542063 | EC43: 4051.576805 | ED43: 2809.222609 | EE43: 5832.657458 | EF43: 5791.628992 | EG43: 2306.245988 | EH43: 4677.488144 | EI43: 5533.063624 | EJ43: 5947.630486 | EK43: 6846.1884 | EL43: 4810.085768 | EM43: 3481.88822 | EN43: 5064.169648 | EO43: 4654.453681 | EP43: 4002.776213 | EQ43: 5961.473522 | ER43: 14206.80503 | ES43: 10937.53477 | ET43: 17897.83587 | EU43: 13127.27664 | EV43: 15386.20938 | EW43: 13976.99507 | EX43: 7927.826303 | EY43: 9371.006602 | EZ43: 12457.36213 | FA43: 7315.840632 | FB43: 9639.939665 | FC43: 13012.59038 | FD43: 3878.363867 | FE43: 2181.527423 | FF43: 197.6375373 | FG43: 46.5744296 | FH43: 92.9447133 | FI43: 20.30279612 | FJ43: 60.09666537 | FK43: 315.2498805 | FL43: 22.64075278 | FM43: 20.87148828 | FN43: 1001.136369 | FO43: 11.18427912 | FP43: 56.09151718 | FQ43: 0 | FR43: 20.84232458 | FS43: 295.2630245 | FT43: 1298.110331 | FU43: 0.3645462555 | FV43: 15.80672564 | FW43: 6.702790485 | FX43: 7.218015859 | FY43: 0 | FZ43: 0 | GA43: 0 | GB43: 0 | GC43: 0 | GD43: 0 | GE43: 0 | GF43: 0 | GG43: 0 | GH43: 0 | GI43: 0 | GJ43: 4782.11778
E44: ˃ 11 kV & < = 22 kV ; Single-Phase | F44: 30.55047338 | G44: 0 | H44: 0 | I44: 2
A45: 2 | D45: OVERHEAD CONDUCTORS | E45: ˃ 11 kV & < = 22 kV ; Multiple-Phase | F45: 73.53952991 | G45: 74.60048119 | H45: 8.637157008 | I45: 2 | J45: 356.1216 | K45: 30.146 | L45: 265.7231 | M45: 130.1274 | N45: 175.1858 | O45: 161.5776 | P45: 179.0622 | Q45: 135.9869 | R45: 155.6743 | S45: 187.0055 | T45: 133.2478 | U45: 339.1826 | V45: 217.043 | W45: 166.8102 | X45: 240.3681 | Y45: 325.6969 | Z45: 313.3133 | AA45: 467.3063 | AB45: 107.424 | AC45: 133.6224 | AD45: 203.6859 | AE45: 278.3496 | AF45: 278.7919 | AG45: 278.7924 | AH45: 417.1069 | AI45: 461.3415 | AJ45: 427.803 | AK45: 409.4368 | AL45: 470.4411 | AM45: 507.0563 | AN45: 573.1894 | AO45: 348.2897 | AP45: 239.9475 | AQ45: 690.4427 | AR45: 515.9089 | AS45: 187.6672 | AT45: 397.0208 | AU45: 511.5899 | AV45: 512.2213 | AW45: 465.0848 | AX45: 411.0131 | AY45: 321.5731 | AZ45: 327.2867 | BA45: 455.708 | BB45: 517.9495 | BC45: 638.7785 | BD45: 704.8727 | BE45: 679.9389 | BF45: 639.4619 | BG45: 691.586 | BH45: 502.4231 | BI45: 299.777 | BJ45: 282.7148 | BK45: 395.8992 | BL45: 269.9527 | BM45: 193.449 | BN45: 194.6151 | BO45: 311.1083 | BP45: 272.3543 | BQ45: 319.2841 | BR45: 300.5385 | BS45: 236.6976 | BT45: 172.5949 | BU45: 104.1139 | BV45: 135.615 | BW45: 148.0007 | BX45: 196.678 | BY45: 124.6367 | BZ45: 87.7071 | CA45: 32.5994 | CB45: 20.6104 | CC45: 14.2241 | CD45: 24.4251 | CE45: 53.5997 | CF45: 169.9465 | CG45: 6.9655 | CH45: 29.5399 | CI45: 10.0727 | CJ45: 16.6164 | CK45: 27.1085 | CL45: 10.7143 | CM45: 4.9721 | CN45: 0.272 | CO45: 0.0423 | CP45: 0.5542 | CQ45: 0.0182 | CR45: 1.176 | CS45: 0 | CT45: 0.745 | CU45: 0 | CV45: 257.1288 | CX45: 26189.01506 | CY45: 2216.922669 | CZ45: 19541.15186 | DA45: 9569.507825 | DB45: 12883.08138 | DC45: 11882.34075 | DD45: 13168.15001 | DE45: 10000.4127 | DF45: 11448.21484 | DG45: 13752.29656 | DH45: 9798.980574 | DI45: 24943.32896 | DJ45: 15961.24019 | DK45: 12267.14369 | DL45: 17676.55708 | DM45: 23951.59692 | DN45: 23040.9128 | DO45: 34365.48563 | DP45: 7899.910462 | DQ45: 9826.528482 | DR45: 14978.96534 | DS45: 20469.69874 | DT45: 20502.22527 | DU45: 20502.26204 | DV45: 30673.84535 | DW45: 33926.83704 | DX45: 31460.43152 | DY45: 30109.7898 | DZ45: 34596.01735 | EA45: 37288.68194 | EB45: 42152.07903 | EC45: 25613.06081 | ED45: 17645.62635 | EE45: 50774.83159 | EF45: 37939.69798 | EG45: 13800.95767 | EH45: 29196.723 | EI45: 37622.08076 | EJ45: 37668.51361 | EK45: 34202.11756 | EL45: 30225.71016 | EM45: 23648.33461 | EN45: 24068.51007 | EO45: 33512.5521 | EP45: 38089.76275 | EQ45: 46975.47061 | ER45: 51836.00701 | ES45: 50002.38708 | ET45: 47025.72752 | EU45: 50858.90934 | EV45: 36947.95859 | EW45: 22045.45966 | EX45: 20790.71349 | EY45: 29114.24106 | EZ45: 19852.19466 | FA45: 14226.14852 | FB45: 14311.90297 | FC45: 22878.75813 | FD45: 20028.80719 | FE45: 23480.00262 | FF45: 22101.46001 | FG45: 17406.63024 | FH45: 12692.54781 | FI45: 7656.487264 | FJ45: 9973.063349 | FK45: 10883.90191 | FL45: 14463.60766 | FM45: 9165.724328 | FN45: 6449.938904 | FO45: 2397.344551 | FP45: 1515.679127 | FQ45: 1046.033627 | FR45: 1796.210372 | FS45: 3941.696742 | FT45: 12497.78572 | FU45: 512.2395956 | FV45: 2172.35036 | FW45: 740.741623 | FX45: 1221.962245 | FY45: 1993.546347 | FZ45: 787.9245854 | GA45: 365.6458967 | GB45: 20.00275214 | GC45: 3.110722115 | GD45: 40.75560748 | GE45: 1.338419444 | GF45: 86.48248718 | GG45: 0 | GH45: 54.78694979 | GI45: 0 | GJ45: 18909.13108
A46: 2 | D46: OVERHEAD CONDUCTORS | E46: > 22 kV & < = 66 kV | F46: 335.1917808 | G46: 89.17391238 | H46: 9.443193972 | I46: 2 | J46: 68.082 | K46: 0 | L46: 44.3752 | M46: 9.4009 | N46: 0.9391 | O46: 3.26 | P46: 12.245 | Q46: 3.7032 | R46: 8.5713 | S46: 24.0436 | T46: 8.0983 | U46: 68.1859 | V46: 14.7311 | W46: 19.3427 | X46: 20.9076 | Y46: 3.4437 | Z46: 84.0552 | AA46: 33.2012 | AB46: 1.8856 | AC46: 4.5123 | AD46: 0.2586 | AE46: 0.8383 | AF46: 7.7266 | AG46: 3.2635 | AH46: 30.7183 | AI46: 6.775 | AJ46: 13.2515 | AK46: 44.4377 | AL46: 12.3222 | AM46: 56.359 | AN46: 116.8938 | AO46: 16.9834 | AP46: 0 | AQ46: 60.4683 | AR46: 34.7745 | AS46: 37.2293 | AT46: 36.9479 | AU46: 3.4234 | AV46: 39.0188 | AW46: 82.5226 | AX46: 73.1126 | AY46: 107.7054 | AZ46: 8.4218 | BA46: 73.824 | BB46: 82.407 | BC46: 54.9507 | BD46: 66.6615 | BE46: 121.8765 | BF46: 62.8073 | BG46: 57.9028 | BH46: 14.125 | BI46: 28.4326 | BJ46: 27.309 | BK46: 79.0608 | BL46: 31.349 | BM46: 13.3748 | BN46: 33.6865 | BO46: 77.9406 | BP46: 6.5558 | BQ46: 72.8057 | BR46: 12.9658 | BS46: 8.4072 | BT46: 14.2454 | BU46: 24.1621 | BV46: 8.7724 | BW46: 47.2958 | BX46: 33.9065 | BY46: 13.9749 | BZ46: 4.5267 | CA46: 44.4045 | CB46: 1.1595 | CC46: 26.2437 | CD46: 9.3942 | CE46: 25.7049 | CF46: 43.823 | CG46: 0 | CH46: 0 | CI46: 0 | CJ46: 0 | CK46: 0 | CL46: 0.0271 | CM46: 0 | CN46: 0 | CO46: 0 | CP46: 0 | CQ46: 0 | CR46: 0 | CS46: 0 | CT46: 0 | CU46: 0 | CV46: 279.2247 | CX46: 22820.52682 | CY46: 0 | CZ46: 14874.20231 | DA46: 3151.104412 | DB46: 314.7786014 | DC46: 1092.725205 | DD46: 4104.423356 | DE46: 1241.282203 | DF46: 2873.029311 | DG46: 8059.217101 | DH46: 2714.483599 | DI46: 22855.35325 | DJ46: 4937.743642 | DK46: 6483.514059 | DL46: 7008.055677 | DM46: 1154.299936 | DN46: 28174.61218 | DO46: 11128.76935 | DP46: 632.0376219 | DQ46: 1512.485873 | DR46: 86.68059452 | DS46: 280.9912699 | DT46: 2589.892814 | DU46: 1093.898377 | DV46: 10296.52168 | DW46: 2270.924315 | DX46: 4441.793884 | DY46: 14895.1518 | DZ46: 4130.300162 | EA46: 18891.07358 | EB46: 39181.84099 | EC46: 5692.69609 | ED46: 0 | EE46: 20268.47716 | EF46: 11656.12658 | EG46: 12478.95537 | EH46: 12384.6324 | EI46: 1147.495542 | EJ46: 13078.78106 | EK46: 27660.89725 | EL46: 24506.74259 | EM46: 36101.96483 | EN46: 2822.91814 | EO46: 24745.19803 | EP46: 27622.14908 | EQ46: 18419.02299 | ER46: 22344.3869 | ES46: 40852.00108 | ET46: 21052.49074 | EU46: 19408.54265 | EV46: 4734.583904 | EW46: 9530.373827 | EX46: 9153.752342 | EY46: 26500.53035 | EZ46: 10507.92714 | FA46: 4483.12303 | FB46: 11291.43792 | FC46: 26125.04851 | FD46: 2197.450277 | FE46: 24403.87224 | FF46: 4346.029592 | FG46: 2818.02434 | FH46: 4774.940995 | FI46: 8098.937327 | FJ46: 2940.436378 | FK46: 15853.16343 | FL46: 11365.18012 | FM46: 4684.271618 | FN46: 1517.312634 | FO46: 14884.02343 | FP46: 388.6548699 | FQ46: 8796.672538 | FR46: 3148.858627 | FS46: 8616.071207 | FT46: 14689.10941 | FU46: 0 | FV46: 0 | FW46: 0 | FX46: 0 | FY46: 0 | FZ46: 9.08369726 | GA46: 0 | GB46: 0 | GC46: 0 | GD46: 0 | GE46: 0 | GF46: 0 | GG46: 0 | GH46: 0 | GI46: 0 | GJ46: 93593.82444
E47: > 66 kV & < = 132 kV | F47: 292.3861714 | G47: 0 | H47: 0 | I47: 2
E48: > 132 kV | F48: 911.106186 | G48: 0 | H48: 0 | I48: 2
E49: Other | F49: 0.0001 | G49: 0 | H49: 0 | I49: 2
A50: 3 | D50: UNDERGROUND CABLES | E50: ˂ = 1 kV | F50: 220.9071552 | G50: 86.07935865 | H50: 9.27789624 | I50: 2 | J50: 122.4035 | K50: 115.3388 | L50: 174.234 | M50: 197.5756 | N50: 108.4404 | O50: 86.1387 | P50: 48.766 | Q50: 48.2795 | R50: 62.4375 | S50: 70.535 | T50: 136.8744 | U50: 157.4749 | V50: 156.4163 | W50: 131.8973 | X50: 125.264 | Y50: 142.1833 | Z50: 110.4614 | AA50: 82.1962 | AB50: 36.5848 | AC50: 24.8962 | AD50: 18.6537 | AE50: 19.3307 | AF50: 18.9961 | AG50: 8.9518 | AH50: 11.6529 | AI50: 13.1463 | AJ50: 12.2491 | AK50: 13.969 | AL50: 17.5736 | AM50: 5.8825 | AN50: 8.9832 | AO50: 3.6532 | AP50: 4.778 | AQ50: 4.6882 | AR50: 1136.7724 | AS50: 0.3325 | AT50: 3.2363 | AU50: 6.2787 | AV50: 2.8279 | AW50: 1.6069 | AX50: 2.4698 | AY50: 7.2601 | AZ50: 1.851 | BA50: 1.1318 | BB50: 9.7252 | BC50: 0.1201 | BD50: 0.0228 | BE50: 0 | BF50: 0 | BG50: 0.0585 | BH50: 0 | BI50: 0 | BJ50: 0 | BK50: 0.0209 | BL50: 0 | BM50: 0 | BN50: 0 | BO50: 0 | BP50: 0 | BQ50: 0 | BR50: 0 | BS50: 0 | BT50: 0 | BU50: 0 | BV50: 0 | BW50: 0 | BX50: 0 | BY50: 0 | BZ50: 0 | CA50: 0 | CB50: 0 | CC50: 0 | CD50: 0 | CE50: 0 | CF50: 0 | CG50: 0 | CH50: 0 | CI50: 0 | CJ50: 0 | CK50: 0 | CL50: 0 | CM50: 0 | CN50: 0 | CO50: 0 | CP50: 0 | CQ50: 0 | CR50: 0 | CS50: 0 | CT50: 0 | CU50: 0 | CV50: 406.3822 | CX50: 27039.80898 | CY50: 25479.1662 | CZ50: 38489.53729 | DA50: 43645.86374 | DB50: 23955.26028 | DC50: 19028.65517 | DD50: 10772.75833 | DE50: 10665.287 | DF50: 13792.8905 | DG50: 15581.68619 | DH50: 30236.53433 | DI50: 34787.33218 | DJ50: 34553.47987 | DK50: 29137.05733 | DL50: 27671.71389 | DM50: 31409.30832 | DN50: 24401.71364 | DO50: 18157.72871 | DP50: 8081.844093 | DQ50: 5499.748718 | DR50: 4120.735802 | DS50: 4270.289946 | DT50: 4196.374412 | DU50: 1977.516672 | DV50: 2574.208989 | DW50: 2904.111735 | DX50: 2705.913835 | DY50: 3085.852051 | DZ50: 3882.133983 | EA50: 1299.486341 | EB50: 1984.453157 | EC50: 807.0180195 | ED50: 1055.494388 | EE50: 1035.656925 | EF50: 251121.157 | EG50: 73.45162912 | EH50: 714.9218265 | EI50: 1387.009756 | EJ50: 624.7033443 | EK50: 354.9757077 | EL50: 545.596492 | EM50: 1603.808038 | EN50: 408.8991443 | EO50: 250.0227183 | EP50: 2148.366266 | EQ50: 26.53094934 | ER50: 5.036683139 | ES50: 0 | ET50: 0 | EU50: 12.92306858 | EV50: 0 | EW50: 0 | EX50: 0 | EY50: 4.616959544 | EZ50: 0 | FA50: 0 | FB50: 0 | FC50: 0 | FD50: 0 | FE50: 0 | FF50: 0 | FG50: 0 | FH50: 0 | FI50: 0 | FJ50: 0 | FK50: 0 | FL50: 0 | FM50: 0 | FN50: 0 | FO50: 0 | FP50: 0 | FQ50: 0 | FR50: 0 | FS50: 0 | FT50: 0 | FU50: 0 | FV50: 0 | FW50: 0 | FX50: 0 | FY50: 0 | FZ50: 0 | GA50: 0 | GB50: 0 | GC50: 0 | GD50: 0 | GE50: 0 | GF50: 0 | GG50: 0 | GH50: 0 | GI50: 0 | GJ50: 89772.73574
A51: 3 | D51: UNDERGROUND CABLES | E51: > 1 kV & < = 11 kV | F51: 610.1107977 | G51: 86.08382465 | H51: 9.278136917 | I51: 2 | J51: 0.053 | K51: 0 | L51: 0 | M51: 0 | N51: 0 | O51: 0 | P51: 0 | Q51: 0 | R51: 0 | S51: 0 | T51: 0 | U51: 0 | V51: 0 | W51: 0 | X51: 0 | Y51: 0 | Z51: 0.0048 | AA51: 0 | AB51: 0 | AC51: 0 | AD51: 0 | AE51: 0 | AF51: 0 | AG51: 0 | AH51: 0 | AI51: 0 | AJ51: 0 | AK51: 0 | AL51: 0 | AM51: 0 | AN51: 0 | AO51: 0 | AP51: 0 | AQ51: 0 | AR51: 0.101 | AS51: 0 | AT51: 0 | AU51: 0 | AV51: 0 | AW51: 2.4956 | AX51: 0 | AY51: 0 | AZ51: 0 | BA51: 0 | BB51: 0.842 | BC51: 0 | BD51: 0 | BE51: 0 | BF51: 0 | BG51: 0 | BH51: 0 | BI51: 0 | BJ51: 0 | BK51: 0 | BL51: 0 | BM51: 0 | BN51: 0 | BO51: 0 | BP51: 0 | BQ51: 0 | BR51: 0 | BS51: 0 | BT51: 0 | BU51: 0 | BV51: 0 | BW51: 0 | BX51: 0 | BY51: 0 | BZ51: 0 | CA51: 0 | CB51: 0 | CC51: 0 | CD51: 0 | CE51: 0 | CF51: 0 | CG51: 0 | CH51: 0 | CI51: 0 | CJ51: 0 | CK51: 0 | CL51: 0 | CM51: 0 | CN51: 0 | CO51: 0 | CP51: 0 | CQ51: 0 | CR51: 0 | CS51: 0 | CT51: 0 | CU51: 0 | CV51: 0.835 | CX51: 32.33587228 | CY51: 0 | CZ51: 0 | DA51: 0 | DB51: 0 | DC51: 0 | DD51: 0 | DE51: 0 | DF51: 0 | DG51: 0 | DH51: 0 | DI51: 0 | DJ51: 0 | DK51: 0 | DL51: 0 | DM51: 0 | DN51: 2.928531829 | DO51: 0 | DP51: 0 | DQ51: 0 | DR51: 0 | DS51: 0 | DT51: 0 | DU51: 0 | DV51: 0 | DW51: 0 | DX51: 0 | DY51: 0 | DZ51: 0 | EA51: 0 | EB51: 0 | EC51: 0 | ED51: 0 | EE51: 0 | EF51: 61.62119057 | EG51: 0 | EH51: 0 | EI51: 0 | EJ51: 0 | EK51: 1522.592507 | EL51: 0 | EM51: 0 | EN51: 0 | EO51: 0 | EP51: 513.7132916 | EQ51: 0 | ER51: 0 | ES51: 0 | ET51: 0 | EU51: 0 | EV51: 0 | EW51: 0 | EX51: 0 | EY51: 0 | EZ51: 0 | FA51: 0 | FB51: 0 | FC51: 0 | FD51: 0 | FE51: 0 | FF51: 0 | FG51: 0 | FH51: 0 | FI51: 0 | FJ51: 0 | FK51: 0 | FL51: 0 | FM51: 0 | FN51: 0 | FO51: 0 | FP51: 0 | FQ51: 0 | FR51: 0 | FS51: 0 | FT51: 0 | FU51: 0 | FV51: 0 | FW51: 0 | FX51: 0 | FY51: 0 | FZ51: 0 | GA51: 0 | GB51: 0 | GC51: 0 | GD51: 0 | GE51: 0 | GF51: 0 | GG51: 0 | GH51: 0 | GI51: 0 | GJ51: 509.4425161
A52: 3 | D52: UNDERGROUND CABLES | E52: > 11 kV & < = 22 kV | F52: 489.4424242 | G52: 86.07551659 | H52: 9.277689184 | I52: 2 | J52: 84.9597 | K52: 63.7994 | L52: 88.2165 | M52: 70.7445 | N52: 48.9455 | O52: 45.35 | P52: 35.4255 | Q52: 36.6677 | R52: 30.7159 | S52: 43.1202 | T52: 44.0912 | U52: 50.2859 | V52: 57.6812 | W52: 47.3764 | X52: 54.7214 | Y52: 79.2488 | Z52: 61.2033 | AA52: 85.4268 | AB52: 28.4996 | AC52: 12.7215 | AD52: 12.6159 | AE52: 6.4233 | AF52: 6.4303 | AG52: 1.6395 | AH52: 5.0692 | AI52: 5.8037 | AJ52: 5.3838 | AK52: 3.8901 | AL52: 6.1416 | AM52: 1.878 | AN52: 3.1858 | AO52: 0.7713 | AP52: 1.1165 | AQ52: 4.7154 | AR52: 213.866 | AS52: 0 | AT52: 1.169 | AU52: 1.4311 | AV52: 0.797 | AW52: 0.2343 | AX52: 1.187 | AY52: 1.8328 | AZ52: 1.5993 | BA52: 0.1941 | BB52: 259.3004 | BC52: 0 | BD52: 0.2102 | BE52: 0 | BF52: 0 | BG52: 0 | BH52: 0 | BI52: 0 | BJ52: 0 | BK52: 0 | BL52: 0 | BM52: 0 | BN52: 0 | BO52: 0 | BP52: 0 | BQ52: 0 | BR52: 0 | BS52: 0 | BT52: 0 | BU52: 0 | BV52: 0 | BW52: 0 | BX52: 0 | BY52: 0 | BZ52: 0 | CA52: 0 | CB52: 0 | CC52: 0 | CD52: 0 | CE52: 0 | CF52: 0 | CG52: 0 | CH52: 0 | CI52: 0 | CJ52: 0 | CK52: 0 | CL52: 0 | CM52: 0 | CN52: 0 | CO52: 0 | CP52: 0 | CQ52: 0 | CR52: 0 | CS52: 0 | CT52: 0 | CU52: 0 | CV52: 214.9705 | CX52: 41582.88153 | CY52: 31226.133 | CZ52: 43176.89762 | DA52: 34625.35958 | DB52: 23956.00418 | DC52: 22196.21394 | DD52: 17338.7426 | DE52: 17946.72798 | DF52: 15033.66456 | DG52: 21104.85522 | DH52: 21580.10382 | DI52: 24612.0528 | DJ52: 28231.62636 | DK52: 23188.02007 | DL52: 26782.97467 | DM52: 38787.72479 | DN52: 29955.49152 | DO52: 41811.50009 | DP52: 13948.91331 | DQ52: 6226.4418 | DR52: 6174.75668 | DS52: 3143.835524 | DT52: 3147.261621 | DU52: 802.4408545 | DV52: 2481.081537 | DW52: 2840.576998 | DX52: 2635.060124 | DY52: 1903.979975 | DZ52: 3005.959593 | EA52: 919.1728727 | EB52: 1559.265675 | EC52: 377.5069418 | ED52: 546.4624667 | EE52: 2307.916807 | EF52: 104675.0935 | EG52: 0 | EH52: 572.1581939 | EI52: 700.4410533 | EJ52: 390.0856121 | EK52: 114.67636 | EL52: 580.9681576 | EM52: 897.0500752 | EN52: 782.7652691 | EO52: 95.00077455 | EP52: 126912.6164 | EQ52: 0 | ER52: 102.8807976 | ES52: 0 | ET52: 0 | EU52: 0 | EV52: 0 | EW52: 0 | EX52: 0 | EY52: 0 | EZ52: 0 | FA52: 0 | FB52: 0 | FC52: 0 | FD52: 0 | FE52: 0 | FF52: 0 | FG52: 0 | FH52: 0 | FI52: 0 | FJ52: 0 | FK52: 0 | FL52: 0 | FM52: 0 | FN52: 0 | FO52: 0 | FP52: 0 | FQ52: 0 | FR52: 0 | FS52: 0 | FT52: 0 | FU52: 0 | FV52: 0 | FW52: 0 | FX52: 0 | FY52: 0 | FZ52: 0 | GA52: 0 | GB52: 0 | GC52: 0 | GD52: 0 | GE52: 0 | GF52: 0 | GG52: 0 | GH52: 0 | GI52: 0 | GJ52: 105215.6827
E53: > 22 kV & < = 33 kV | F53: 1082.58162 | G53: 0 | H53: 0 | I53: 2
A54: 3 | D54: UNDERGROUND CABLES | E54: > 33 kV & < = 66 kV | F54: 156.9692204 | G54: 92.19234785 | H54: 9.601684636 | I54: 2 | J54: 1.2773 | K54: 0 | L54: 0 | M54: 0 | N54: 0 | O54: 0 | P54: 0 | Q54: 0 | R54: 0 | S54: 0.2019 | T54: 0 | U54: 0 | V54: 0 | W54: 0 | X54: 0 | Y54: 0 | Z54: 3.6637 | AA54: 0 | AB54: 0 | AC54: 0 | AD54: 0 | AE54: 0 | AF54: 0 | AG54: 0 | AH54: 0 | AI54: 0 | AJ54: 0 | AK54: 0 | AL54: 0 | AM54: 0 | AN54: 0 | AO54: 0 | AP54: 0 | AQ54: 0 | AR54: 0 | AS54: 0 | AT54: 0 | AU54: 0 | AV54: 0 | AW54: 0 | AX54: 0 | AY54: 0 | AZ54: 0 | BA54: 0 | BB54: 0.8892 | BC54: 0 | BD54: 0 | BE54: 0 | BF54: 0 | BG54: 0 | BH54: 0 | BI54: 0 | BJ54: 0 | BK54: 0 | BL54: 0 | BM54: 0 | BN54: 0 | BO54: 0 | BP54: 0 | BQ54: 0 | BR54: 0 | BS54: 0 | BT54: 0 | BU54: 0 | BV54: 0 | BW54: 0 | BX54: 0 | BY54: 0 | BZ54: 0 | CA54: 0 | CB54: 0 | CC54: 0 | CD54: 0 | CE54: 0 | CF54: 0 | CG54: 0 | CH54: 0 | CI54: 0 | CJ54: 0 | CK54: 0 | CL54: 0 | CM54: 0 | CN54: 0 | CO54: 0 | CP54: 0 | CQ54: 0 | CR54: 0 | CS54: 0 | CT54: 0 | CU54: 0 | CV54: 5.7263 | CX54: 200.4967852 | CY54: 0 | CZ54: 0 | DA54: 0 | DB54: 0 | DC54: 0 | DD54: 0 | DE54: 0 | DF54: 0 | DG54: 31.69208559 | DH54: 0 | DI54: 0 | DJ54: 0 | DK54: 0 | DL54: 0 | DM54: 0 | DN54: 575.0881326 | DO54: 0 | DP54: 0 | DQ54: 0 | DR54: 0 | DS54: 0 | DT54: 0 | DU54: 0 | DV54: 0 | DW54: 0 | DX54: 0 | DY54: 0 | DZ54: 0 | EA54: 0 | EB54: 0 | EC54: 0 | ED54: 0 | EE54: 0 | EF54: 0 | EG54: 0 | EH54: 0 | EI54: 0 | EJ54: 0 | EK54: 0 | EL54: 0 | EM54: 0 | EN54: 0 | EO54: 0 | EP54: 139.5770307 | EQ54: 0 | ER54: 0 | ES54: 0 | ET54: 0 | EU54: 0 | EV54: 0 | EW54: 0 | EX54: 0 | EY54: 0 | EZ54: 0 | FA54: 0 | FB54: 0 | FC54: 0 | FD54: 0 | FE54: 0 | FF54: 0 | FG54: 0 | FH54: 0 | FI54: 0 | FJ54: 0 | FK54: 0 | FL54: 0 | FM54: 0 | FN54: 0 | FO54: 0 | FP54: 0 | FQ54: 0 | FR54: 0 | FS54: 0 | FT54: 0 | FU54: 0 | FV54: 0 | FW54: 0 | FX54: 0 | FY54: 0 | FZ54: 0 | GA54: 0 | GB54: 0 | GC54: 0 | GD54: 0 | GE54: 0 | GF54: 0 | GG54: 0 | GH54: 0 | GI54: 0 | GJ54: 898.8528465
E55: > 66 kV & < = 132 kV | F55: 3019.570588 | G55: 0 | H55: 0 | I55: 2
E56: > 132 kV | F56: 0.0001 | G56: 0 | H56: 0 | I56: 2
E57: Other | F57: 0.0001 | G57: 0 | H57: 0 | I57: 2
A58: 4 | D58: SERVICE LINES | E58: ˂ = 11 kV ; Residential ; Simple Type | F58: 33.21825397 | G58: 95.47117493 | H58: 9.770935212 | I58: 2 | J58: 136 | K58: 125 | L58: 190 | M58: 184 | N58: 144 | O58: 139 | P58: 129 | Q58: 177 | R58: 184 | S58: 145 | T58: 204 | U58: 251 | V58: 224 | W58: 206 | X58: 230 | Y58: 270 | Z58: 251 | AA58: 792 | AB58: 84 | AC58: 67 | AD58: 53 | AE58: 43 | AF58: 66 | AG58: 52 | AH58: 48 | AI58: 46 | AJ58: 35 | AK58: 29 | AL58: 21 | AM58: 15 | AN58: 12 | AO58: 7 | AP58: 2 | AQ58: 2 | AR58: 2394 | AS58: 1 | AT58: 2 | AU58: 1 | AV58: 2 | AW58: 1 | AX58: 1 | AY58: 3 | AZ58: 1 | BA58: 0 | BB58: 382 | BC58: 0 | BD58: 0 | BE58: 0 | BF58: 0 | BG58: 1 | BH58: 0 | BI58: 0 | BJ58: 0 | BK58: 0 | BL58: 0 | BM58: 0 | BN58: 0 | BO58: 0 | BP58: 0 | BQ58: 0 | BR58: 0 | BS58: 0 | BT58: 0 | BU58: 0 | BV58: 0 | BW58: 0 | BX58: 0 | BY58: 0 | BZ58: 0 | CA58: 0 | CB58: 0 | CC58: 0 | CD58: 0 | CE58: 0 | CF58: 0 | CG58: 0 | CH58: 0 | CI58: 0 | CJ58: 0 | CK58: 0 | CL58: 0 | CM58: 0 | CN58: 0 | CO58: 0 | CP58: 0 | CQ58: 0 | CR58: 0 | CS58: 0 | CT58: 0 | CU58: 0 | CV58: 4002 | CX58: 4517.68254 | CY58: 4152.281746 | CZ58: 6311.468254 | DA58: 6112.15873 | DB58: 4783.428571 | DC58: 4617.337302 | DD58: 4285.154762 | DE58: 5879.630952 | DF58: 6112.15873 | DG58: 4816.646825 | DH58: 6776.52381 | DI58: 8337.781746 | DJ58: 7440.888889 | DK58: 6842.960317 | DL58: 7640.198413 | DM58: 8968.928571 | DN58: 8337.781746 | DO58: 26308.85714 | DP58: 2790.333333 | DQ58: 2225.623016 | DR58: 1760.56746 | DS58: 1428.384921 | DT58: 2192.404762 | DU58: 1727.349206 | DV58: 1594.47619 | DW58: 1528.039683 | DX58: 1162.638889 | DY58: 963.3293651 | DZ58: 697.5833333 | EA58: 498.2738095 | EB58: 398.6190476 | EC58: 232.5277778 | ED58: 66.43650794 | EE58: 66.43650794 | EF58: 79524.5 | EG58: 33.21825397 | EH58: 66.43650794 | EI58: 33.21825397 | EJ58: 66.43650794 | EK58: 33.21825397 | EL58: 33.21825397 | EM58: 99.6547619 | EN58: 33.21825397 | EO58: 0 | EP58: 12689.37302 | EQ58: 0 | ER58: 0 | ES58: 0 | ET58: 0 | EU58: 33.21825397 | EV58: 0 | EW58: 0 | EX58: 0 | EY58: 0 | EZ58: 0 | FA58: 0 | FB58: 0 | FC58: 0 | FD58: 0 | FE58: 0 | FF58: 0 | FG58: 0 | FH58: 0 | FI58: 0 | FJ58: 0 | FK58: 0 | FL58: 0 | FM58: 0 | FN58: 0 | FO58: 0 | FP58: 0 | FQ58: 0 | FR58: 0 | FS58: 0 | FT58: 0 | FU58: 0 | FV58: 0 | FW58: 0 | FX58: 0 | FY58: 0 | FZ58: 0 | GA58: 0 | GB58: 0 | GC58: 0 | GD58: 0 | GE58: 0 | GF58: 0 | GG58: 0 | GH58: 0 | GI58: 0 | GJ58: 132939.4524
A59: 4 | D59: SERVICE LINES | E59: ˂ = 11 kV ; Commercial & Industrial ; Simple Type | F59: 30.13953488 | G59: 94.98228087 | H59: 9.74588533 | I59: 2 | J59: 15 | K59: 14 | L59: 21 | M59: 21 | N59: 16 | O59: 16 | P59: 14 | Q59: 20 | R59: 21 | S59: 16 | T59: 23 | U59: 28 | V59: 25 | W59: 23 | X59: 26 | Y59: 30 | Z59: 28 | AA59: 89 | AB59: 9 | AC59: 8 | AD59: 6 | AE59: 5 | AF59: 7 | AG59: 6 | AH59: 5 | AI59: 5 | AJ59: 4 | AK59: 3 | AL59: 2 | AM59: 2 | AN59: 1 | AO59: 1 | AP59: 0 | AQ59: 0 | AR59: 270 | AS59: 0 | AT59: 0 | AU59: 0 | AV59: 0 | AW59: 0 | AX59: 0 | AY59: 0 | AZ59: 0 | BA59: 0 | BB59: 43 | BC59: 0 | BD59: 0 | BE59: 0 | BF59: 0 | BG59: 0 | BH59: 0 | BI59: 0 | BJ59: 0 | BK59: 0 | BL59: 0 | BM59: 0 | BN59: 0 | BO59: 0 | BP59: 0 | BQ59: 0 | BR59: 0 | BS59: 0 | BT59: 0 | BU59: 0 | BV59: 0 | BW59: 0 | BX59: 0 | BY59: 0 | BZ59: 0 | CA59: 0 | CB59: 0 | CC59: 0 | CD59: 0 | CE59: 0 | CF59: 0 | CG59: 0 | CH59: 0 | CI59: 0 | CJ59: 0 | CK59: 0 | CL59: 0 | CM59: 0 | CN59: 0 | CO59: 0 | CP59: 0 | CQ59: 0 | CR59: 0 | CS59: 0 | CT59: 0 | CU59: 0 | CV59: 451 | CX59: 452.0930233 | CY59: 421.9534884 | CZ59: 632.9302326 | DA59: 632.9302326 | DB59: 482.2325581 | DC59: 482.2325581 | DD59: 421.9534884 | DE59: 602.7906977 | DF59: 632.9302326 | DG59: 482.2325581 | DH59: 693.2093023 | DI59: 843.9069767 | DJ59: 753.4883721 | DK59: 693.2093023 | DL59: 783.627907 | DM59: 904.1860465 | DN59: 843.9069767 | DO59: 2682.418605 | DP59: 271.255814 | DQ59: 241.1162791 | DR59: 180.8372093 | DS59: 150.6976744 | DT59: 210.9767442 | DU59: 180.8372093 | DV59: 150.6976744 | DW59: 150.6976744 | DX59: 120.5581395 | DY59: 90.41860465 | DZ59: 60.27906977 | EA59: 60.27906977 | EB59: 30.13953488 | EC59: 30.13953488 | ED59: 0 | EE59: 0 | EF59: 8137.674419 | EG59: 0 | EH59: 0 | EI59: 0 | EJ59: 0 | EK59: 0 | EL59: 0 | EM59: 0 | EN59: 0 | EO59: 0 | EP59: 1296 | EQ59: 0 | ER59: 0 | ES59: 0 | ET59: 0 | EU59: 0 | EV59: 0 | EW59: 0 | EX59: 0 | EY59: 0 | EZ59: 0 | FA59: 0 | FB59: 0 | FC59: 0 | FD59: 0 | FE59: 0 | FF59: 0 | FG59: 0 | FH59: 0 | FI59: 0 | FJ59: 0 | FK59: 0 | FL59: 0 | FM59: 0 | FN59: 0 | FO59: 0 | FP59: 0 | FQ59: 0 | FR59: 0 | FS59: 0 | FT59: 0 | FU59: 0 | FV59: 0 | FW59: 0 | FX59: 0 | FY59: 0 | FZ59: 0 | GA59: 0 | GB59: 0 | GC59: 0 | GD59: 0 | GE59: 0 | GF59: 0 | GG59: 0 | GH59: 0 | GI59: 0 | GJ59: 13592.93023
E60: ˂ = 11 kV ; Residential ; Complex Type | F60: 0.4708645922 | G60: 0 | H60: 0 | I60: 2
E61: ˂ = 11 kV ; Commercial & Industrial ; Complex Type | F61: 0.5117431138 | G61: 0 | H61: 0 | I61: 2
E62: ˂ = 11 kV ; Subdivision ; Complex Type | F62: 0.0001 | G62: 0 | H62: 0 | I62: 2
E63: > 11 kV & < = 22 kV ; Commercial & Industrial | F63: 0.0001 | G63: 0 | H63: 0 | I63: 2
E64: > 11 kV & < = 22 kV ; Subdivision | F64: 0.0001 | G64: 0 | H64: 0 | I64: 2
E65: > 22 kV & < = 33 kV ; Commercial & Industrial | F65: 0.0001 | G65: 0 | H65: 0 | I65: 2
E66: > 22 kV & < = 33 kV ; Subdivision | F66: 0.0001 | G66: 0 | H66: 0 | I66: 2
E67: > 33 kV & < = 66 kV ; Commercial & Industrial | F67: 0.0001 | G67: 0 | H67: 0 | I67: 2
E68: > 33 kV & < = 66 kV ; Subdivision | F68: 0.0001 | G68: 0 | H68: 0 | I68: 2
E69: > 66 kV & < = 132 kV ; Commercial & Industrial | F69: 0.0001 | G69: 0 | H69: 0 | I69: 2
E70: > 66 kV & < = 132 kV ; Subdivision | F70: 0.0001 | G70: 0 | H70: 0 | I70: 2
E71: > 132 kV ; Commercial & Industrial | F71: 0.0001 | G71: 0 | H71: 0 | I71: 2
E72: > 132 kV ; Subdivision | F72: 0.0001 | G72: 0 | H72: 0 | I72: 2
E73: Other | F73: 0.0001 | G73: 0 | H73: 0 | I73: 2
A74: 5 | D74: TRANSFORMERS | E74: Pole Mounted ; < = 22kV ; < = 60 kVA ; Single Phase | F74: 7.742372881 | G74: 88.71760404 | H74: 9.419002285 | I74: 2 | J74: 386 | K74: 254 | L74: 298 | M74: 520 | N74: 584 | O74: 628 | P74: 603 | Q74: 571 | R74: 551 | S74: 635 | T74: 603 | U74: 712 | V74: 648 | W74: 517 | X74: 598 | Y74: 726 | Z74: 707 | AA74: 555 | AB74: 507 | AC74: 529 | AD74: 695 | AE74: 767 | AF74: 857 | AG74: 793 | AH74: 1075 | AI74: 1325 | AJ74: 1175 | AK74: 1291 | AL74: 1285 | AM74: 1256 | AN74: 1147 | AO74: 901 | AP74: 1027 | AQ74: 1437 | AR74: 1098 | AS74: 1058 | AT74: 918 | AU74: 850 | AV74: 851 | AW74: 365 | AX74: 322 | AY74: 342 | AZ74: 382 | BA74: 379 | BB74: 370 | BC74: 359 | BD74: 421 | BE74: 617 | BF74: 442 | BG74: 395 | BH74: 456 | BI74: 343 | BJ74: 287 | BK74: 211 | BL74: 140 | BM74: 98 | BN74: 92 | BO74: 74 | BP74: 28 | BQ74: 23 | BR74: 10 | BS74: 10 | BT74: 2 | BU74: 3 | BV74: 30 | BW74: 0 | BX74: 4 | BY74: 4 | BZ74: 0 | CA74: 3 | CB74: 0 | CC74: 0 | CD74: 0 | CE74: 0 | CF74: 0 | CG74: 3 | CH74: 1 | CI74: 0 | CJ74: 2 | CK74: 0 | CL74: 0 | CM74: 0 | CN74: 0 | CO74: 0 | CP74: 0 | CQ74: 1 | CR74: 0 | CS74: 0 | CT74: 0 | CU74: 0 | CV74: 2075 | CX74: 2988.555932 | CY74: 1966.562712 | CZ74: 2307.227119 | DA74: 4026.033898 | DB74: 4521.545763 | DC74: 4862.210169 | DD74: 4668.650847 | DE74: 4420.894915 | DF74: 4266.047458 | DG74: 4916.40678 | DH74: 4668.650847 | DI74: 5512.569492 | DJ74: 5017.057627 | DK74: 4002.80678 | DL74: 4629.938983 | DM74: 5620.962712 | DN74: 5473.857627 | DO74: 4297.016949 | DP74: 3925.383051 | DQ74: 4095.715254 | DR74: 5380.949153 | DS74: 5938.4 | DT74: 6635.213559 | DU74: 6139.701695 | DV74: 8323.050847 | DW74: 10258.64407 | DX74: 9097.288136 | DY74: 9995.40339 | DZ74: 9948.949153 | EA74: 9724.420339 | EB74: 8880.501695 | EC74: 6975.877966 | ED74: 7951.416949 | EE74: 11125.78983 | EF74: 8501.125424 | EG74: 8191.430508 | EH74: 7107.498305 | EI74: 6581.016949 | EJ74: 6588.759322 | EK74: 2825.966102 | EL74: 2493.044068 | EM74: 2647.891525 | EN74: 2957.586441 | EO74: 2934.359322 | EP74: 2864.677966 | EQ74: 2779.511864 | ER74: 3259.538983 | ES74: 4777.044068 | ET74: 3422.128814 | EU74: 3058.237288 | EV74: 3530.522034 | EW74: 2655.633898 | EX74: 2222.061017 | EY74: 1633.640678 | EZ74: 1083.932203 | FA74: 758.7525424 | FB74: 712.2983051 | FC74: 572.9355932 | FD74: 216.7864407 | FE74: 178.0745763 | FF74: 77.42372881 | FG74: 77.42372881 | FH74: 15.48474576 | FI74: 23.22711864 | FJ74: 232.2711864 | FK74: 0 | FL74: 30.96949153 | FM74: 30.96949153 | FN74: 0 | FO74: 23.22711864 | FP74: 0 | FQ74: 0 | FR74: 0 | FS74: 0 | FT74: 0 | FU74: 23.22711864 | FV74: 7.742372881 | FW74: 0 | FX74: 15.48474576 | FY74: 0 | FZ74: 0 | GA74: 0 | GB74: 0 | GC74: 0 | GD74: 0 | GE74: 7.742372881 | GF74: 0 | GG74: 0 | GH74: 0 | GI74: 0 | GJ74: 16065.42373
A75: 5 | D75: TRANSFORMERS | E75: Pole Mounted ; < = 22kV ; > 60 kVA and < = 600 kVA ; Single Phase | F75: 7.76 | G75: 76.58350183 | H75: 8.751200022 | I75: 2 | J75: 6 | K75: 25 | L75: 15 | M75: 9 | N75: 5 | O75: 23 | P75: 6 | Q75: 5 | R75: 4 | S75: 3 | T75: 3 | U75: 5 | V75: 2 | W75: 3 | X75: 4 | Y75: 4 | Z75: 1 | AA75: 4 | AB75: 2 | AC75: 0 | AD75: 0 | AE75: 0 | AF75: 0 | AG75: 0 | AH75: 3 | AI75: 1 | AJ75: 2 | AK75: 1 | AL75: 0 | AM75: 1 | AN75: 0 | AO75: 1 | AP75: 1 | AQ75: 1 | AR75: 2 | AS75: 3 | AT75: 2 | AU75: 0 | AV75: 1 | AW75: 1 | AX75: 1 | AY75: 0 | AZ75: 0 | BA75: 0 | BB75: 1 | BC75: 0 | BD75: 1 | BE75: 1 | BF75: 0 | BG75: 0 | BH75: 0 | BI75: 0 | BJ75: 0 | BK75: 0 | BL75: 0 | BM75: 0 | BN75: 1 | BO75: 0 | BP75: 0 | BQ75: 0 | BR75: 0 | BS75: 0 | BT75: 0 | BU75: 0 | BV75: 0 | BW75: 0 | BX75: 0 | BY75: 0 | BZ75: 0 | CA75: 0 | CB75: 0 | CC75: 0 | CD75: 0 | CE75: 0 | CF75: 0 | CG75: 0 | CH75: 0 | CI75: 0 | CJ75: 0 | CK75: 0 | CL75: 0 | CM75: 0 | CN75: 0 | CO75: 0 | CP75: 0 | CQ75: 0 | CR75: 0 | CS75: 0 | CT75: 0 | CU75: 0 | CV75: 5 | CX75: 46.56 | CY75: 194 | CZ75: 116.4 | DA75: 69.84 | DB75: 38.8 | DC75: 178.48 | DD75: 46.56 | DE75: 38.8 | DF75: 31.04 | DG75: 23.28 | DH75: 23.28 | DI75: 38.8 | DJ75: 15.52 | DK75: 23.28 | DL75: 31.04 | DM75: 31.04 | DN75: 7.76 | DO75: 31.04 | DP75: 15.52 | DQ75: 0 | DR75: 0 | DS75: 0 | DT75: 0 | DU75: 0 | DV75: 23.28 | DW75: 7.76 | DX75: 15.52 | DY75: 7.76 | DZ75: 0 | EA75: 7.76 | EB75: 0 | EC75: 7.76 | ED75: 7.76 | EE75: 7.76 | EF75: 15.52 | EG75: 23.28 | EH75: 15.52 | EI75: 0 | EJ75: 7.76 | EK75: 7.76 | EL75: 7.76 | EM75: 0 | EN75: 0 | EO75: 0 | EP75: 7.76 | EQ75: 0 | ER75: 7.76 | ES75: 7.76 | ET75: 0 | EU75: 0 | EV75: 0 | EW75: 0 | EX75: 0 | EY75: 0 | EZ75: 0 | FA75: 0 | FB75: 7.76 | FC75: 0 | FD75: 0 | FE75: 0 | FF75: 0 | FG75: 0 | FH75: 0 | FI75: 0 | FJ75: 0 | FK75: 0 | FL75: 0 | FM75: 0 | FN75: 0 | FO75: 0 | FP75: 0 | FQ75: 0 | FR75: 0 | FS75: 0 | FT75: 0 | FU75: 0 | FV75: 0 | FW75: 0 | FX75: 0 | FY75: 0 | FZ75: 0 | GA75: 0 | GB75: 0 | GC75: 0 | GD75: 0 | GE75: 0 | GF75: 0 | GG75: 0 | GH75: 0 | GI75: 0 | GJ75: 38.8
A76: 5 | D76: TRANSFORMERS | E76: Pole Mounted ; < = 22kV ; > 600 kVA ; Single Phase | F76: 0.0001 | G76: 14.44921429 | H76: 3.801212214 | I76: 2 | J76: 0 | K76: 0 | L76: 0 | M76: 1 | N76: 0 | O76: 1 | P76: 0 | Q76: 1 | R76: 0 | S76: 0 | T76: 0 | U76: 0 | V76: 0 | W76: 0 | X76: 1 | Y76: 0 | Z76: 0 | AA76: 0 | AB76: 0 | AC76: 0 | AD76: 0 | AE76: 0 | AF76: 0 | AG76: 0 | AH76: 0 | AI76: 0 | AJ76: 0 | AK76: 0 | AL76: 0 | AM76: 0 | AN76: 0 | AO76: 0 | AP76: 0 | AQ76: 0 | AR76: 0 | AS76: 0 | AT76: 0 | AU76: 0 | AV76: 0 | AW76: 0 | AX76: 0 | AY76: 0 | AZ76: 0 | BA76: 0 | BB76: 0 | BC76: 0 | BD76: 0 | BE76: 0 | BF76: 0 | BG76: 0 | BH76: 0 | BI76: 0 | BJ76: 0 | BK76: 0 | BL76: 0 | BM76: 0 | BN76: 0 | BO76: 0 | BP76: 0 | BQ76: 0 | BR76: 0 | BS76: 0 | BT76: 0 | BU76: 0 | BV76: 0 | BW76: 0 | BX76: 0 | BY76: 0 | BZ76: 0 | CA76: 0 | CB76: 0 | CC76: 0 | CD76: 0 | CE76: 0 | CF76: 0 | CG76: 0 | CH76: 0 | CI76: 0 | CJ76: 0 | CK76: 0 | CL76: 0 | CM76: 0 | CN76: 0 | CO76: 0 | CP76: 0 | CQ76: 0 | CR76: 0 | CS76: 0 | CT76: 0 | CU76: 0 | CV76: 0 | CX76: 0 | CY76: 0 | CZ76: 0 | DA76: 0.0001 | DB76: 0 | DC76: 0.0001 | DD76: 0 | DE76: 0.0001 | DF76: 0 | DG76: 0 | DH76: 0 | DI76: 0 | DJ76: 0 | DK76: 0 | DL76: 0.0001 | DM76: 0 | DN76: 0 | DO76: 0 | DP76: 0 | DQ76: 0 | DR76: 0 | DS76: 0 | DT76: 0 | DU76: 0 | DV76: 0 | DW76: 0 | DX76: 0 | DY76: 0 | DZ76: 0 | EA76: 0 | EB76: 0 | EC76: 0 | ED76: 0 | EE76: 0 | EF76: 0 | EG76: 0 | EH76: 0 | EI76: 0 | EJ76: 0 | EK76: 0 | EL76: 0 | EM76: 0 | EN76: 0 | EO76: 0 | EP76: 0 | EQ76: 0 | ER76: 0 | ES76: 0 | ET76: 0 | EU76: 0 | EV76: 0 | EW76: 0 | EX76: 0 | EY76: 0 | EZ76: 0 | FA76: 0 | FB76: 0 | FC76: 0 | FD76: 0 | FE76: 0 | FF76: 0 | FG76: 0 | FH76: 0 | FI76: 0 | FJ76: 0 | FK76: 0 | FL76: 0 | FM76: 0 | FN76: 0 | FO76: 0 | FP76: 0 | FQ76: 0 | FR76: 0 | FS76: 0 | FT76: 0 | FU76: 0 | FV76: 0 | FW76: 0 | FX76: 0 | FY76: 0 | FZ76: 0 | GA76: 0 | GB76: 0 | GC76: 0 | GD76: 0 | GE76: 0 | GF76: 0 | GG76: 0 | GH76: 0 | GI76: 0 | GJ76: 0
A77: 5 | D77: TRANSFORMERS | E77: Pole Mounted ; < = 22kV ; < = 60 kVA ; Multiple Phase | F77: 7.727272727 | G77: 87.61729169 | H77: 9.360410872 | I77: 2 | J77: 9 | K77: 17 | L77: 24 | M77: 59 | N77: 60 | O77: 74 | P77: 87 | Q77: 88 | R77: 78 | S77: 90 | T77: 99 | U77: 80 | V77: 102 | W77: 175 | X77: 246 | Y77: 257 | Z77: 253 | AA77: 170 | AB77: 164 | AC77: 188 | AD77: 257 | AE77: 192 | AF77: 179 | AG77: 212 | AH77: 243 | AI77: 278 | AJ77: 189 | AK77: 150 | AL77: 155 | AM77: 162 | AN77: 152 | AO77: 143 | AP77: 145 | AQ77: 194 | AR77: 123 | AS77: 122 | AT77: 103 | AU77: 84 | AV77: 81 | AW77: 35 | AX77: 39 | AY77: 62 | AZ77: 46 | BA77: 42 | BB77: 57 | BC77: 43 | BD77: 60 | BE77: 42 | BF77: 30 | BG77: 27 | BH77: 20 | BI77: 23 | BJ77: 22 | BK77: 13 | BL77: 5 | BM77: 4 | BN77: 7 | BO77: 1 | BP77: 0 | BQ77: 1 | BR77: 0 | BS77: 0 | BT77: 0 | BU77: 0 | BV77: 7 | BW77: 0 | BX77: 0 | BY77: 0 | BZ77: 0 | CA77: 0 | CB77: 0 | CC77: 0 | CD77: 0 | CE77: 0 | CF77: 0 | CG77: 0 | CH77: 0 | CI77: 0 | CJ77: 0 | CK77: 0 | CL77: 0 | CM77: 0 | CN77: 0 | CO77: 0 | CP77: 0 | CQ77: 0 | CR77: 0 | CS77: 0 | CT77: 0 | CU77: 1 | CV77: 95 | CX77: 69.54545455 | CY77: 131.3636364 | CZ77: 185.4545455 | DA77: 455.9090909 | DB77: 463.6363636 | DC77: 571.8181818 | DD77: 672.2727273 | DE77: 680 | DF77: 602.7272727 | DG77: 695.4545455 | DH77: 765 | DI77: 618.1818182 | DJ77: 788.1818182 | DK77: 1352.272727 | DL77: 1900.909091 | DM77: 1985.909091 | DN77: 1955 | DO77: 1313.636364 | DP77: 1267.272727 | DQ77: 1452.727273 | DR77: 1985.909091 | DS77: 1483.636364 | DT77: 1383.181818 | DU77: 1638.181818 | DV77: 1877.727273 | DW77: 2148.181818 | DX77: 1460.454545 | DY77: 1159.090909 | DZ77: 1197.727273 | EA77: 1251.818182 | EB77: 1174.545455 | EC77: 1105 | ED77: 1120.454545 | EE77: 1499.090909 | EF77: 950.4545455 | EG77: 942.7272727 | EH77: 795.9090909 | EI77: 649.0909091 | EJ77: 625.9090909 | EK77: 270.4545455 | EL77: 301.3636364 | EM77: 479.0909091 | EN77: 355.4545455 | EO77: 324.5454545 | EP77: 440.4545455 | EQ77: 332.2727273 | ER77: 463.6363636 | ES77: 324.5454545 | ET77: 231.8181818 | EU77: 208.6363636 | EV77: 154.5454545 | EW77: 177.7272727 | EX77: 170 | EY77: 100.4545455 | EZ77: 38.63636364 | FA77: 30.90909091 | FB77: 54.09090909 | FC77: 7.727272727 | FD77: 0 | FE77: 7.727272727 | FF77: 0 | FG77: 0 | FH77: 0 | FI77: 0 | FJ77: 54.09090909 | FK77: 0 | FL77: 0 | FM77: 0 | FN77: 0 | FO77: 0 | FP77: 0 | FQ77: 0 | FR77: 0 | FS77: 0 | FT77: 0 | FU77: 0 | FV77: 0 | FW77: 0 | FX77: 0 | FY77: 0 | FZ77: 0 | GA77: 0 | GB77: 0 | GC77: 0 | GD77: 0 | GE77: 0 | GF77: 0 | GG77: 0 | GH77: 0 | GI77: 7.727272727 | GJ77: 734.0909091
A78: 5 | D78: TRANSFORMERS | E78: Pole Mounted ; < = 22kV ; > 60 kVA and < = 600 kVA ; Multiple Phase | F78: 7.741935484 | G78: 57.87096909 | H78: 7.607297095 | I78: 2 | J78: 184 | K78: 268 | L78: 363 | M78: 531 | N78: 734 | O78: 542 | P78: 477 | Q78: 510 | R78: 481 | S78: 432 | T78: 324 | U78: 374 | V78: 293 | W78: 251 | X78: 250 | Y78: 231 | Z78: 222 | AA78: 179 | AB78: 145 | AC78: 159 | AD78: 167 | AE78: 163 | AF78: 171 | AG78: 151 | AH78: 256 | AI78: 289 | AJ78: 265 | AK78: 234 | AL78: 259 | AM78: 248 | AN78: 183 | AO78: 211 | AP78: 235 | AQ78: 322 | AR78: 239 | AS78: 252 | AT78: 249 | AU78: 293 | AV78: 280 | AW78: 108 | AX78: 91 | AY78: 70 | AZ78: 85 | BA78: 79 | BB78: 62 | BC78: 46 | BD78: 44 | BE78: 61 | BF78: 41 | BG78: 39 | BH78: 17 | BI78: 26 | BJ78: 20 | BK78: 16 | BL78: 29 | BM78: 6 | BN78: 12 | BO78: 2 | BP78: 5 | BQ78: 3 | BR78: 1 | BS78: 0 | BT78: 2 | BU78: 0 | BV78: 7 | BW78: 0 | BX78: 0 | BY78: 1 | BZ78: 0 | CA78: 0 | CB78: 0 | CC78: 1 | CD78: 0 | CE78: 0 | CF78: 0 | CG78: 0 | CH78: 0 | CI78: 0 | CJ78: 1 | CK78: 0 | CL78: 0 | CM78: 0 | CN78: 0 | CO78: 0 | CP78: 0 | CQ78: 0 | CR78: 0 | CS78: 0 | CT78: 0 | CU78: 0 | CV78: 134 | CX78: 1424.516129 | CY78: 2074.83871 | CZ78: 2810.322581 | DA78: 4110.967742 | DB78: 5682.580645 | DC78: 4196.129032 | DD78: 3692.903226 | DE78: 3948.387097 | DF78: 3723.870968 | DG78: 3344.516129 | DH78: 2508.387097 | DI78: 2895.483871 | DJ78: 2268.387097 | DK78: 1943.225806 | DL78: 1935.483871 | DM78: 1788.387097 | DN78: 1718.709677 | DO78: 1385.806452 | DP78: 1122.580645 | DQ78: 1230.967742 | DR78: 1292.903226 | DS78: 1261.935484 | DT78: 1323.870968 | DU78: 1169.032258 | DV78: 1981.935484 | DW78: 2237.419355 | DX78: 2051.612903 | DY78: 1811.612903 | DZ78: 2005.16129 | EA78: 1920 | EB78: 1416.774194 | EC78: 1633.548387 | ED78: 1819.354839 | EE78: 2492.903226 | EF78: 1850.322581 | EG78: 1950.967742 | EH78: 1927.741935 | EI78: 2268.387097 | EJ78: 2167.741935 | EK78: 836.1290323 | EL78: 704.516129 | EM78: 541.9354839 | EN78: 658.0645161 | EO78: 611.6129032 | EP78: 480 | EQ78: 356.1290323 | ER78: 340.6451613 | ES78: 472.2580645 | ET78: 317.4193548 | EU78: 301.9354839 | EV78: 131.6129032 | EW78: 201.2903226 | EX78: 154.8387097 | EY78: 123.8709677 | EZ78: 224.516129 | FA78: 46.4516129 | FB78: 92.90322581 | FC78: 15.48387097 | FD78: 38.70967742 | FE78: 23.22580645 | FF78: 7.741935484 | FG78: 0 | FH78: 15.48387097 | FI78: 0 | FJ78: 54.19354839 | FK78: 0 | FL78: 0 | FM78: 7.741935484 | FN78: 0 | FO78: 0 | FP78: 0 | FQ78: 7.741935484 | FR78: 0 | FS78: 0 | FT78: 0 | FU78: 0 | FV78: 0 | FW78: 0 | FX78: 7.741935484 | FY78: 0 | FZ78: 0 | GA78: 0 | GB78: 0 | GC78: 0 | GD78: 0 | GE78: 0 | GF78: 0 | GG78: 0 | GH78: 0 | GI78: 0 | GJ78: 1037.419355
A79: 5 | D79: TRANSFORMERS | E79: Pole Mounted ; < = 22kV ; > 600 kVA ; Multiple Phase | F79: 7.766666667 | G79: 51.42641742 | H79: 7.171221473 | I79: 2 | J79: 3 | K79: 9 | L79: 21 | M79: 68 | N79: 19 | O79: 21 | P79: 19 | Q79: 26 | R79: 42 | S79: 27 | T79: 9 | U79: 14 | V79: 21 | W79: 9 | X79: 53 | Y79: 12 | Z79: 49 | AA79: 14 | AB79: 10 | AC79: 9 | AD79: 12 | AE79: 10 | AF79: 5 | AG79: 2 | AH79: 4 | AI79: 10 | AJ79: 11 | AK79: 4 | AL79: 9 | AM79: 4 | AN79: 7 | AO79: 3 | AP79: 6 | AQ79: 5 | AR79: 11 | AS79: 6 | AT79: 9 | AU79: 14 | AV79: 7 | AW79: 1 | AX79: 2 | AY79: 3 | AZ79: 1 | BA79: 2 | BB79: 1 | BC79: 1 | BD79: 1 | BE79: 1 | BF79: 1 | BG79: 0 | BH79: 0 | BI79: 0 | BJ79: 0 | BK79: 1 | BL79: 0 | BM79: 0 | BN79: 0 | BO79: 0 | BP79: 0 | BQ79: 0 | BR79: 0 | BS79: 0 | BT79: 0 | BU79: 0 | BV79: 0 | BW79: 0 | BX79: 0 | BY79: 0 | BZ79: 0 | CA79: 0 | CB79: 0 | CC79: 0 | CD79: 0 | CE79: 0 | CF79: 0 | CG79: 0 | CH79: 0 | CI79: 0 | CJ79: 0 | CK79: 0 | CL79: 0 | CM79: 0 | CN79: 0 | CO79: 0 | CP79: 0 | CQ79: 0 | CR79: 0 | CS79: 0 | CT79: 0 | CU79: 0 | CV79: 6 | CX79: 23.3 | CY79: 69.9 | CZ79: 163.1 | DA79: 528.1333333 | DB79: 147.5666667 | DC79: 163.1 | DD79: 147.5666667 | DE79: 201.9333333 | DF79: 326.2 | DG79: 209.7 | DH79: 69.9 | DI79: 108.7333333 | DJ79: 163.1 | DK79: 69.9 | DL79: 411.6333333 | DM79: 93.2 | DN79: 380.5666667 | DO79: 108.7333333 | DP79: 77.66666667 | DQ79: 69.9 | DR79: 93.2 | DS79: 77.66666667 | DT79: 38.83333333 | DU79: 15.53333333 | DV79: 31.06666667 | DW79: 77.66666667 | DX79: 85.43333333 | DY79: 31.06666667 | DZ79: 69.9 | EA79: 31.06666667 | EB79: 54.36666667 | EC79: 23.3 | ED79: 46.6 | EE79: 38.83333333 | EF79: 85.43333333 | EG79: 46.6 | EH79: 69.9 | EI79: 108.7333333 | EJ79: 54.36666667 | EK79: 7.766666667 | EL79: 15.53333333 | EM79: 23.3 | EN79: 7.766666667 | EO79: 15.53333333 | EP79: 7.766666667 | EQ79: 7.766666667 | ER79: 7.766666667 | ES79: 7.766666667 | ET79: 7.766666667 | EU79: 0 | EV79: 0 | EW79: 0 | EX79: 0 | EY79: 7.766666667 | EZ79: 0 | FA79: 0 | FB79: 0 | FC79: 0 | FD79: 0 | FE79: 0 | FF79: 0 | FG79: 0 | FH79: 0 | FI79: 0 | FJ79: 0 | FK79: 0 | FL79: 0 | FM79: 0 | FN79: 0 | FO79: 0 | FP79: 0 | FQ79: 0 | FR79: 0 | FS79: 0 | FT79: 0 | FU79: 0 | FV79: 0 | FW79: 0 | FX79: 0 | FY79: 0 | FZ79: 0 | GA79: 0 | GB79: 0 | GC79: 0 | GD79: 0 | GE79: 0 | GF79: 0 | GG79: 0 | GH79: 0 | GI79: 0 | GJ79: 46.6
A80: 5 | D80: TRANSFORMERS | E80: Kiosk Mounted ; < = 22kV ; < = 60 kVA ; Single Phase | F80: 30.08150727 | G80: 76.27186356 | H80: 8.733376412 | I80: 2 | J80: 0 | K80: 0 | L80: 0 | M80: 0 | N80: 2 | O80: 2 | P80: 0 | Q80: 0 | R80: 1 | S80: 0 | T80: 1 | U80: 1 | V80: 2 | W80: 2 | X80: 2 | Y80: 1 | Z80: 5 | AA80: 2 | AB80: 0 | AC80: 1 | AD80: 0 | AE80: 0 | AF80: 0 | AG80: 0 | AH80: 0 | AI80: 0 | AJ80: 0 | AK80: 0 | AL80: 0 | AM80: 0 | AN80: 0 | AO80: 0 | AP80: 0 | AQ80: 0 | AR80: 0 | AS80: 0 | AT80: 0 | AU80: 0 | AV80: 0 | AW80: 0 | AX80: 0 | AY80: 0 | AZ80: 0 | BA80: 0 | BB80: 0 | BC80: 0 | BD80: 0 | BE80: 0 | BF80: 0 | BG80: 0 | BH80: 0 | BI80: 0 | BJ80: 0 | BK80: 0 | BL80: 0 | BM80: 0 | BN80: 0 | BO80: 0 | BP80: 0 | BQ80: 0 | BR80: 0 | BS80: 0 | BT80: 0 | BU80: 0 | BV80: 0 | BW80: 0 | BX80: 0 | BY80: 0 | BZ80: 0 | CA80: 0 | CB80: 0 | CC80: 0 | CD80: 0 | CE80: 0 | CF80: 0 | CG80: 0 | CH80: 0 | CI80: 0 | CJ80: 0 | CK80: 0 | CL80: 0 | CM80: 0 | CN80: 0 | CO80: 0 | CP80: 0 | CQ80: 0 | CR80: 0 | CS80: 0 | CT80: 0 | CU80: 0 | CV80: 0 | CX80: 0 | CY80: 0 | CZ80: 0 | DA80: 0 | DB80: 60.16301454 | DC80: 60.16301454 | DD80: 0 | DE80: 0 | DF80: 30.08150727 | DG80: 0 | DH80: 30.08150727 | DI80: 30.08150727 | DJ80: 60.16301454 | DK80: 60.16301454 | DL80: 60.16301454 | DM80: 30.08150727 | DN80: 150.4075363 | DO80: 60.16301454 | DP80: 0 | DQ80: 30.08150727 | DR80: 0 | DS80: 0 | DT80: 0 | DU80: 0 | DV80: 0 | DW80: 0 | DX80: 0 | DY80: 0 | DZ80: 0 | EA80: 0 | EB80: 0 | EC80: 0 | ED80: 0 | EE80: 0 | EF80: 0 | EG80: 0 | EH80: 0 | EI80: 0 | EJ80: 0 | EK80: 0 | EL80: 0 | EM80: 0 | EN80: 0 | EO80: 0 | EP80: 0 | EQ80: 0 | ER80: 0 | ES80: 0 | ET80: 0 | EU80: 0 | EV80: 0 | EW80: 0 | EX80: 0 | EY80: 0 | EZ80: 0 | FA80: 0 | FB80: 0 | FC80: 0 | FD80: 0 | FE80: 0 | FF80: 0 | FG80: 0 | FH80: 0 | FI80: 0 | FJ80: 0 | FK80: 0 | FL80: 0 | FM80: 0 | FN80: 0 | FO80: 0 | FP80: 0 | FQ80: 0 | FR80: 0 | FS80: 0 | FT80: 0 | FU80: 0 | FV80: 0 | FW80: 0 | FX80: 0 | FY80: 0 | FZ80: 0 | GA80: 0 | GB80: 0 | GC80: 0 | GD80: 0 | GE80: 0 | GF80: 0 | GG80: 0 | GH80: 0 | GI80: 0 | GJ80: 0
E81: Kiosk Mounted ; < = 22kV ; > 60 kVA and < = 600 kVA ; Single Phase | F81: 65.99544495 | G81: 0 | H81: 0 | I81: 2
A82: 5 | D82: TRANSFORMERS | E82: Kiosk Mounted ; < = 22kV ; > 600 kVA ; Single Phase | F82: 0.0001 | G82: 76.27186356 | H82: 8.733376412 | I82: 2 | J82: 0 | K82: 0 | L82: 0 | M82: 0 | N82: 0 | O82: 0 | P82: 0 | Q82: 0 | R82: 0 | S82: 0 | T82: 0 | U82: 0 | V82: 1 | W82: 0 | X82: 0 | Y82: 0 | Z82: 0 | AA82: 0 | AB82: 0 | AC82: 0 | AD82: 0 | AE82: 0 | AF82: 0 | AG82: 0 | AH82: 0 | AI82: 0 | AJ82: 0 | AK82: 0 | AL82: 0 | AM82: 0 | AN82: 0 | AO82: 0 | AP82: 0 | AQ82: 0 | AR82: 0 | AS82: 0 | AT82: 0 | AU82: 0 | AV82: 0 | AW82: 0 | AX82: 0 | AY82: 0 | AZ82: 0 | BA82: 0 | BB82: 0 | BC82: 0 | BD82: 0 | BE82: 0 | BF82: 0 | BG82: 0 | BH82: 0 | BI82: 0 | BJ82: 0 | BK82: 0 | BL82: 0 | BM82: 0 | BN82: 0 | BO82: 0 | BP82: 0 | BQ82: 0 | BR82: 0 | BS82: 0 | BT82: 0 | BU82: 0 | BV82: 0 | BW82: 0 | BX82: 0 | BY82: 0 | BZ82: 0 | CA82: 0 | CB82: 0 | CC82: 0 | CD82: 0 | CE82: 0 | CF82: 0 | CG82: 0 | CH82: 0 | CI82: 0 | CJ82: 0 | CK82: 0 | CL82: 0 | CM82: 0 | CN82: 0 | CO82: 0 | CP82: 0 | CQ82: 0 | CR82: 0 | CS82: 0 | CT82: 0 | CU82: 0 | CV82: 0 | CX82: 0 | CY82: 0 | CZ82: 0 | DA82: 0 | DB82: 0 | DC82: 0 | DD82: 0 | DE82: 0 | DF82: 0 | DG82: 0 | DH82: 0 | DI82: 0 | DJ82: 0.0001 | DK82: 0 | DL82: 0 | DM82: 0 | DN82: 0 | DO82: 0 | DP82: 0 | DQ82: 0 | DR82: 0 | DS82: 0 | DT82: 0 | DU82: 0 | DV82: 0 | DW82: 0 | DX82: 0 | DY82: 0 | DZ82: 0 | EA82: 0 | EB82: 0 | EC82: 0 | ED82: 0 | EE82: 0 | EF82: 0 | EG82: 0 | EH82: 0 | EI82: 0 | EJ82: 0 | EK82: 0 | EL82: 0 | EM82: 0 | EN82: 0 | EO82: 0 | EP82: 0 | EQ82: 0 | ER82: 0 | ES82: 0 | ET82: 0 | EU82: 0 | EV82: 0 | EW82: 0 | EX82: 0 | EY82: 0 | EZ82: 0 | FA82: 0 | FB82: 0 | FC82: 0 | FD82: 0 | FE82: 0 | FF82: 0 | FG82: 0 | FH82: 0 | FI82: 0 | FJ82: 0 | FK82: 0 | FL82: 0 | FM82: 0 | FN82: 0 | FO82: 0 | FP82: 0 | FQ82: 0 | FR82: 0 | FS82: 0 | FT82: 0 | FU82: 0 | FV82: 0 | FW82: 0 | FX82: 0 | FY82: 0 | FZ82: 0 | GA82: 0 | GB82: 0 | GC82: 0 | GD82: 0 | GE82: 0 | GF82: 0 | GG82: 0 | GH82: 0 | GI82: 0 | GJ82: 0
A83: 5 | D83: TRANSFORMERS | E83: Kiosk Mounted ; < = 22kV ; < = 60 kVA ; Multiple Phase | F83: 61.27796189 | G83: 18.05857428 | H83: 4.249538126 | I83: 2 | J83: 0 | K83: 1 | L83: 0 | M83: 2 | N83: 2 | O83: 2 | P83: 0 | Q83: 1 | R83: 0 | S83: 0 | T83: 1 | U83: 0 | V83: 0 | W83: 1 | X83: 4 | Y83: 0 | Z83: 0 | AA83: 0 | AB83: 0 | AC83: 0 | AD83: 0 | AE83: 0 | AF83: 0 | AG83: 0 | AH83: 0 | AI83: 0 | AJ83: 0 | AK83: 0 | AL83: 0 | AM83: 0 | AN83: 0 | AO83: 0 | AP83: 0 | AQ83: 0 | AR83: 0 | AS83: 0 | AT83: 0 | AU83: 0 | AV83: 0 | AW83: 0 | AX83: 0 | AY83: 0 | AZ83: 0 | BA83: 0 | BB83: 0 | BC83: 0 | BD83: 0 | BE83: 0 | BF83: 0 | BG83: 0 | BH83: 0 | BI83: 0 | BJ83: 0 | BK83: 0 | BL83: 0 | BM83: 0 | BN83: 0 | BO83: 0 | BP83: 0 | BQ83: 0 | BR83: 0 | BS83: 0 | BT83: 0 | BU83: 0 | BV83: 0 | BW83: 0 | BX83: 0 | BY83: 0 | BZ83: 0 | CA83: 0 | CB83: 0 | CC83: 0 | CD83: 0 | CE83: 0 | CF83: 0 | CG83: 0 | CH83: 0 | CI83: 0 | CJ83: 0 | CK83: 0 | CL83: 0 | CM83: 0 | CN83: 0 | CO83: 0 | CP83: 0 | CQ83: 0 | CR83: 0 | CS83: 0 | CT83: 0 | CU83: 0 | CV83: 0 | CX83: 0 | CY83: 61.27796189 | CZ83: 0 | DA83: 122.5559238 | DB83: 122.5559238 | DC83: 122.5559238 | DD83: 0 | DE83: 61.27796189 | DF83: 0 | DG83: 0 | DH83: 61.27796189 | DI83: 0 | DJ83: 0 | DK83: 61.27796189 | DL83: 245.1118476 | DM83: 0 | DN83: 0 | DO83: 0 | DP83: 0 | DQ83: 0 | DR83: 0 | DS83: 0 | DT83: 0 | DU83: 0 | DV83: 0 | DW83: 0 | DX83: 0 | DY83: 0 | DZ83: 0 | EA83: 0 | EB83: 0 | EC83: 0 | ED83: 0 | EE83: 0 | EF83: 0 | EG83: 0 | EH83: 0 | EI83: 0 | EJ83: 0 | EK83: 0 | EL83: 0 | EM83: 0 | EN83: 0 | EO83: 0 | EP83: 0 | EQ83: 0 | ER83: 0 | ES83: 0 | ET83: 0 | EU83: 0 | EV83: 0 | EW83: 0 | EX83: 0 | EY83: 0 | EZ83: 0 | FA83: 0 | FB83: 0 | FC83: 0 | FD83: 0 | FE83: 0 | FF83: 0 | FG83: 0 | FH83: 0 | FI83: 0 | FJ83: 0 | FK83: 0 | FL83: 0 | FM83: 0 | FN83: 0 | FO83: 0 | FP83: 0 | FQ83: 0 | FR83: 0 | FS83: 0 | FT83: 0 | FU83: 0 | FV83: 0 | FW83: 0 | FX83: 0 | FY83: 0 | FZ83: 0 | GA83: 0 | GB83: 0 | GC83: 0 | GD83: 0 | GE83: 0 | GF83: 0 | GG83: 0 | GH83: 0 | GI83: 0 | GJ83: 0
A84: 5 | D84: TRANSFORMERS | E84: Kiosk Mounted ; < = 22kV ; > 60 kVA and < = 600 kVA ; Multiple Phase | F84: 7.741935484 | G84: 53.78449511 | H84: 7.333791319 | I84: 2 | J84: 103 | K84: 40 | L84: 62 | M84: 180 | N84: 184 | O84: 221 | P84: 170 | Q84: 85 | R84: 41 | S84: 60 | T84: 61 | U84: 67 | V84: 41 | W84: 64 | X84: 76 | Y84: 32 | Z84: 20 | AA84: 20 | AB84: 14 | AC84: 22 | AD84: 25 | AE84: 15 | AF84: 27 | AG84: 34 | AH84: 44 | AI84: 49 | AJ84: 56 | AK84: 29 | AL84: 35 | AM84: 32 | AN84: 21 | AO84: 8 | AP84: 10 | AQ84: 13 | AR84: 13 | AS84: 19 | AT84: 18 | AU84: 23 | AV84: 12 | AW84: 0 | AX84: 0 | AY84: 0 | AZ84: 0 | BA84: 0 | BB84: 1 | BC84: 0 | BD84: 0 | BE84: 0 | BF84: 0 | BG84: 0 | BH84: 0 | BI84: 0 | BJ84: 0 | BK84: 0 | BL84: 0 | BM84: 0 | BN84: 0 | BO84: 0 | BP84: 0 | BQ84: 0 | BR84: 0 | BS84: 0 | BT84: 0 | BU84: 0 | BV84: 1 | BW84: 0 | BX84: 0 | BY84: 0 | BZ84: 0 | CA84: 0 | CB84: 0 | CC84: 0 | CD84: 0 | CE84: 0 | CF84: 0 | CG84: 0 | CH84: 0 | CI84: 0 | CJ84: 0 | CK84: 0 | CL84: 0 | CM84: 0 | CN84: 0 | CO84: 0 | CP84: 0 | CQ84: 0 | CR84: 0 | CS84: 0 | CT84: 0 | CU84: 0 | CV84: 17 | CX84: 797.4193548 | CY84: 309.6774194 | CZ84: 480 | DA84: 1393.548387 | DB84: 1424.516129 | DC84: 1710.967742 | DD84: 1316.129032 | DE84: 658.0645161 | DF84: 317.4193548 | DG84: 464.516129 | DH84: 472.2580645 | DI84: 518.7096774 | DJ84: 317.4193548 | DK84: 495.483871 | DL84: 588.3870968 | DM84: 247.7419355 | DN84: 154.8387097 | DO84: 154.8387097 | DP84: 108.3870968 | DQ84: 170.3225806 | DR84: 193.5483871 | DS84: 116.1290323 | DT84: 209.0322581 | DU84: 263.2258065 | DV84: 340.6451613 | DW84: 379.3548387 | DX84: 433.5483871 | DY84: 224.516129 | DZ84: 270.9677419 | EA84: 247.7419355 | EB84: 162.5806452 | EC84: 61.93548387 | ED84: 77.41935484 | EE84: 100.6451613 | EF84: 100.6451613 | EG84: 147.0967742 | EH84: 139.3548387 | EI84: 178.0645161 | EJ84: 92.90322581 | EK84: 0 | EL84: 0 | EM84: 0 | EN84: 0 | EO84: 0 | EP84: 7.741935484 | EQ84: 0 | ER84: 0 | ES84: 0 | ET84: 0 | EU84: 0 | EV84: 0 | EW84: 0 | EX84: 0 | EY84: 0 | EZ84: 0 | FA84: 0 | FB84: 0 | FC84: 0 | FD84: 0 | FE84: 0 | FF84: 0 | FG84: 0 | FH84: 0 | FI84: 0 | FJ84: 7.741935484 | FK84: 0 | FL84: 0 | FM84: 0 | FN84: 0 | FO84: 0 | FP84: 0 | FQ84: 0 | FR84: 0 | FS84: 0 | FT84: 0 | FU84: 0 | FV84: 0 | FW84: 0 | FX84: 0 | FY84: 0 | FZ84: 0 | GA84: 0 | GB84: 0 | GC84: 0 | GD84: 0 | GE84: 0 | GF84: 0 | GG84: 0 | GH84: 0 | GI84: 0 | GJ84: 131.6129032
A85: 5 | D85: TRANSFORMERS | E85: Kiosk Mounted ; < = 22kV ; > 600 kVA ; Multiple Phase | F85: 7.8 | G85: 87.78698887 | H85: 9.369471109 | I85: 2 | J85: 6 | K85: 13 | L85: 10 | M85: 7 | N85: 4 | O85: 9 | P85: 6 | Q85: 5 | R85: 2 | S85: 2 | T85: 7 | U85: 3 | V85: 3 | W85: 6 | X85: 4 | Y85: 2 | Z85: 2 | AA85: 1 | AB85: 1 | AC85: 1 | AD85: 3 | AE85: 5 | AF85: 0 | AG85: 6 | AH85: 4 | AI85: 2 | AJ85: 1 | AK85: 0 | AL85: 0 | AM85: 0 | AN85: 0 | AO85: 0 | AP85: 0 | AQ85: 0 | AR85: 0 | AS85: 0 | AT85: 0 | AU85: 0 | AV85: 0 | AW85: 0 | AX85: 0 | AY85: 1 | AZ85: 0 | BA85: 0 | BB85: 0 | BC85: 0 | BD85: 0 | BE85: 0 | BF85: 0 | BG85: 0 | BH85: 0 | BI85: 0 | BJ85: 0 | BK85: 0 | BL85: 0 | BM85: 0 | BN85: 0 | BO85: 0 | BP85: 0 | BQ85: 0 | BR85: 0 | BS85: 0 | BT85: 0 | BU85: 0 | BV85: 0 | BW85: 0 | BX85: 0 | BY85: 0 | BZ85: 0 | CA85: 0 | CB85: 0 | CC85: 0 | CD85: 0 | CE85: 2 | CF85: 0 | CG85: 0 | CH85: 0 | CI85: 0 | CJ85: 0 | CK85: 1 | CL85: 0 | CM85: 0 | CN85: 0 | CO85: 0 | CP85: 0 | CQ85: 0 | CR85: 0 | CS85: 0 | CT85: 0 | CU85: 0 | CV85: 1 | CX85: 46.8 | CY85: 101.4 | CZ85: 78 | DA85: 54.6 | DB85: 31.2 | DC85: 70.2 | DD85: 46.8 | DE85: 39 | DF85: 15.6 | DG85: 15.6 | DH85: 54.6 | DI85: 23.4 | DJ85: 23.4 | DK85: 46.8 | DL85: 31.2 | DM85: 15.6 | DN85: 15.6 | DO85: 7.8 | DP85: 7.8 | DQ85: 7.8 | DR85: 23.4 | DS85: 39 | DT85: 0 | DU85: 46.8 | DV85: 31.2 | DW85: 15.6 | DX85: 7.8 | DY85: 0 | DZ85: 0 | EA85: 0 | EB85: 0 | EC85: 0 | ED85: 0 | EE85: 0 | EF85: 0 | EG85: 0 | EH85: 0 | EI85: 0 | EJ85: 0 | EK85: 0 | EL85: 0 | EM85: 7.8 | EN85: 0 | EO85: 0 | EP85: 0 | EQ85: 0 | ER85: 0 | ES85: 0 | ET85: 0 | EU85: 0 | EV85: 0 | EW85: 0 | EX85: 0 | EY85: 0 | EZ85: 0 | FA85: 0 | FB85: 0 | FC85: 0 | FD85: 0 | FE85: 0 | FF85: 0 | FG85: 0 | FH85: 0 | FI85: 0 | FJ85: 0 | FK85: 0 | FL85: 0 | FM85: 0 | FN85: 0 | FO85: 0 | FP85: 0 | FQ85: 0 | FR85: 0 | FS85: 15.6 | FT85: 0 | FU85: 0 | FV85: 0 | FW85: 0 | FX85: 0 | FY85: 7.8 | FZ85: 0 | GA85: 0 | GB85: 0 | GC85: 0 | GD85: 0 | GE85: 0 | GF85: 0 | GG85: 0 | GH85: 0 | GI85: 0 | GJ85: 7.8
E86: Ground Outdoor / Indoor Chamber Mounted; ˂ 22 kV ; < = 60 kVA ; Single Phase | F86: 16.94501973 | G86: 0 | H86: 0 | I86: 2 | CX86: =$F86*J86 ->  | CY86: =$F86*K86 ->  | CZ86: =$F86*L86 ->  | DA86: =$F86*M86 ->  | DB86: =$F86*N86 ->  | DC86: =$F86*O86 ->  | DD86: =$F86*P86 ->  | DE86: =$F86*Q86 ->  | DF86: =$F86*R86 ->  | DG86: =$F86*S86 ->  | DH86: =$F86*T86 ->  | DI86: =$F86*U86 ->  | DJ86: =$F86*V86 ->  | DK86: =$F86*W86 ->  | DL86: =$F86*X86 ->  | DM86: =$F86*Y86 ->  | DN86: =$F86*Z86 ->  | DO86: =$F86*AA86 ->  | DP86: =$F86*AB86 ->  | DQ86: =$F86*AC86 ->  | DR86: =$F86*AD86 ->  | DS86: =$F86*AE86 ->  | DT86: =$F86*AF86 ->  | DU86: =$F86*AG86 ->  | DV86: =$F86*AH86 ->  | DW86: =$F86*AI86 ->  | DX86: =$F86*AJ86 ->  | DY86: =$F86*AK86 ->  | DZ86: =$F86*AL86 ->  | EA86: =$F86*AM86 ->  | EB86: =$F86*AN86 ->  | EC86: =$F86*AO86 ->  | ED86: =$F86*AP86 ->  | EE86: =$F86*AQ86 ->  | EF86: =$F86*AR86 ->  | EG86: =$F86*AS86 ->  | EH86: =$F86*AT86 ->  | EI86: =$F86*AU86 ->  | EJ86: =$F86*AV86 ->  | EK86: =$F86*AW86 ->  | EL86: =$F86*AX86 ->  | EM86: =$F86*AY86 ->  | EN86: =$F86*AZ86 ->  | EO86: =$F86*BA86 ->  | EP86: =$F86*BB86 ->  | EQ86: =$F86*BC86 ->  | ER86: =$F86*BD86 ->  | ES86: =$F86*BE86 ->  | ET86: =$F86*BF86 ->  | EU86: =$F86*BG86 ->  | EV86: =$F86*BH86 ->  | EW86: =$F86*BI86 ->  | EX86: =$F86*BJ86 ->  | EY86: =$F86*BK86 ->  | EZ86: =$F86*BL86 ->  | FA86: =$F86*BM86 ->  | FB86: =$F86*BN86 ->  | FC86: =$F86*BO86 ->  | FD86: =$F86*BP86 ->  | FE86: =$F86*BQ86 ->  | FF86: =$F86*BR86 ->  | FG86: =$F86*BS86 ->  | FH86: =$F86*BT86 ->  | FI86: =$F86*BU86 ->  | FJ86: =$F86*BV86 ->  | FK86: =$F86*BW86 ->  | FL86: =$F86*BX86 ->  | FM86: =$F86*BY86 ->  | FN86: =$F86*BZ86 ->  | FO86: =$F86*CA86 ->  | FP86: =$F86*CB86 ->  | FQ86: =$F86*CC86 ->  | FR86: =$F86*CD86 ->  | FS86: =$F86*CE86 ->  | FT86: =$F86*CF86 ->  | FU86: =$F86*CG86 ->  | FV86: =$F86*CH86 ->  | FW86: =$F86*CI86 ->  | FX86: =$F86*CJ86 ->  | FY86: =$F86*CK86 ->  | FZ86: =$F86*CL86 ->  | GA86: =$F86*CM86 ->  | GB86: =$F86*CN86 ->  | GC86: =$F86*CO86 ->  | GD86: =$F86*CP86 ->  | GE86: =$F86*CQ86 ->  | GF86: =$F86*CR86 ->  | GG86: =$F86*CS86 ->  | GH86: =$F86*CT86 ->  | GI86: =$F86*CU86 ->  | GJ86: =$F86*CV86 -> 
E87: Ground Outdoor / Indoor Chamber Mounted; ˂ 22 kV ; > 60 kVA and < = 600 kVA ; Single Phase | F87: 147.2963158 | G87: 0 | H87: 0 | I87: 2
E88: Ground Outdoor / Indoor Chamber Mounted; ˂ 22 kV ; > 600 kVA ; Single Phase | F88: 0.0001 | G88: 0 | H88: 0 | I88: 2
A89: 5 | D89: TRANSFORMERS | E89: Ground Outdoor / Indoor Chamber Mounted; ˂ 22 kV ; < = 60 kVA ; Multiple Phase | F89: 108.9735123 | G89: 76.27186356 | H89: 8.733376412 | I89: 2 | J89: 0 | K89: 0 | L89: 0 | M89: 0 | N89: 0 | O89: 0 | P89: 0 | Q89: 0 | R89: 0 | S89: 0 | T89: 0 | U89: 0 | V89: 0 | W89: 0 | X89: 0 | Y89: 0 | Z89: 0 | AA89: 0 | AB89: 0 | AC89: 0 | AD89: 0 | AE89: 0 | AF89: 0 | AG89: 0 | AH89: 0 | AI89: 0 | AJ89: 0 | AK89: 0 | AL89: 0 | AM89: 0 | AN89: 0 | AO89: 0 | AP89: 0 | AQ89: 0 | AR89: 0 | AS89: 0 | AT89: 0 | AU89: 0 | AV89: 0 | AW89: 0 | AX89: 0 | AY89: 0 | AZ89: 0 | BA89: 0 | BB89: 0 | BC89: 0 | BD89: 0 | BE89: 0 | BF89: 0 | BG89: 0 | BH89: 0 | BI89: 0 | BJ89: 2 | BK89: 0 | BL89: 0 | BM89: 2 | BN89: 0 | BO89: 0 | BP89: 0 | BQ89: 0 | BR89: 0 | BS89: 0 | BT89: 0 | BU89: 0 | BV89: 0 | BW89: 0 | BX89: 0 | BY89: 0 | BZ89: 0 | CA89: 0 | CB89: 0 | CC89: 0 | CD89: 0 | CE89: 0 | CF89: 0 | CG89: 0 | CH89: 0 | CI89: 0 | CJ89: 0 | CK89: 0 | CL89: 0 | CM89: 0 | CN89: 0 | CO89: 0 | CP89: 0 | CQ89: 0 | CR89: 0 | CS89: 0 | CT89: 0 | CU89: 0 | CV89: 0 | CX89: 0 | CY89: 0 | CZ89: 0 | DA89: 0 | DB89: 0 | DC89: 0 | DD89: 0 | DE89: 0 | DF89: 0 | DG89: 0 | DH89: 0 | DI89: 0 | DJ89: 0 | DK89: 0 | DL89: 0 | DM89: 0 | DN89: 0 | DO89: 0 | DP89: 0 | DQ89: 0 | DR89: 0 | DS89: 0 | DT89: 0 | DU89: 0 | DV89: 0 | DW89: 0 | DX89: 0 | DY89: 0 | DZ89: 0 | EA89: 0 | EB89: 0 | EC89: 0 | ED89: 0 | EE89: 0 | EF89: 0 | EG89: 0 | EH89: 0 | EI89: 0 | EJ89: 0 | EK89: 0 | EL89: 0 | EM89: 0 | EN89: 0 | EO89: 0 | EP89: 0 | EQ89: 0 | ER89: 0 | ES89: 0 | ET89: 0 | EU89: 0 | EV89: 0 | EW89: 0 | EX89: 217.9470245 | EY89: 0 | EZ89: 0 | FA89: 217.9470245 | FB89: 0 | FC89: 0 | FD89: 0 | FE89: 0 | FF89: 0 | FG89: 0 | FH89: 0 | FI89: 0 | FJ89: 0 | FK89: 0 | FL89: 0 | FM89: 0 | FN89: 0 | FO89: 0 | FP89: 0 | FQ89: 0 | FR89: 0 | FS89: 0 | FT89: 0 | FU89: 0 | FV89: 0 | FW89: 0 | FX89: 0 | FY89: 0 | FZ89: 0 | GA89: 0 | GB89: 0 | GC89: 0 | GD89: 0 | GE89: 0 | GF89: 0 | GG89: 0 | GH89: 0 | GI89: 0 | GJ89: 0
E90: Ground Outdoor / Indoor Chamber Mounted; ˂ 22 kV ; > 60 kVA and < = 600 kVA ; Multiple Phase | F90: 69.10119907 | G90: 0 | H90: 0 | I90: 2
E91: Ground Outdoor / Indoor Chamber Mounted; ˂ 22 kV ; > 600 kVA ; Multiple Phase | F91: 120.2413178 | G91: 0 | H91: 0 | I91: 2
A92: 5 | D92: TRANSFORMERS | E92: Ground Outdoor / Indoor Chamber Mounted; > = 22 kV & < = 33 kV ; < = 15 MVA | F92: 373.0151742 | G92: 76.27186356 | H92: 8.733376412 | I92: 2 | J92: 0 | K92: 0 | L92: 0 | M92: 0 | N92: 0 | O92: 0 | P92: 0 | Q92: 0 | R92: 0 | S92: 0 | T92: 0 | U92: 0 | V92: 0 | W92: 0 | X92: 0 | Y92: 0 | Z92: 0 | AA92: 0 | AB92: 0 | AC92: 0 | AD92: 0 | AE92: 0 | AF92: 0 | AG92: 1 | AH92: 0 | AI92: 0 | AJ92: 9 | AK92: 0 | AL92: 0 | AM92: 0 | AN92: 0 | AO92: 0 | AP92: 0 | AQ92: 0 | AR92: 0 | AS92: 0 | AT92: 0 | AU92: 0 | AV92: 0 | AW92: 0 | AX92: 0 | AY92: 0 | AZ92: 0 | BA92: 0 | BB92: 0 | BC92: 0 | BD92: 0 | BE92: 0 | BF92: 0 | BG92: 0 | BH92: 0 | BI92: 0 | BJ92: 0 | BK92: 0 | BL92: 0 | BM92: 0 | BN92: 0 | BO92: 0 | BP92: 0 | BQ92: 0 | BR92: 0 | BS92: 0 | BT92: 0 | BU92: 0 | BV92: 0 | BW92: 0 | BX92: 0 | BY92: 0 | BZ92: 0 | CA92: 0 | CB92: 0 | CC92: 0 | CD92: 0 | CE92: 0 | CF92: 0 | CG92: 0 | CH92: 0 | CI92: 0 | CJ92: 0 | CK92: 0 | CL92: 0 | CM92: 0 | CN92: 0 | CO92: 0 | CP92: 0 | CQ92: 0 | CR92: 0 | CS92: 0 | CT92: 0 | CU92: 0 | CV92: 0 | CX92: 0 | CY92: 0 | CZ92: 0 | DA92: 0 | DB92: 0 | DC92: 0 | DD92: 0 | DE92: 0 | DF92: 0 | DG92: 0 | DH92: 0 | DI92: 0 | DJ92: 0 | DK92: 0 | DL92: 0 | DM92: 0 | DN92: 0 | DO92: 0 | DP92: 0 | DQ92: 0 | DR92: 0 | DS92: 0 | DT92: 0 | DU92: 373.0151742 | DV92: 0 | DW92: 0 | DX92: 3357.136568 | DY92: 0 | DZ92: 0 | EA92: 0 | EB92: 0 | EC92: 0 | ED92: 0 | EE92: 0 | EF92: 0 | EG92: 0 | EH92: 0 | EI92: 0 | EJ92: 0 | EK92: 0 | EL92: 0 | EM92: 0 | EN92: 0 | EO92: 0 | EP92: 0 | EQ92: 0 | ER92: 0 | ES92: 0 | ET92: 0 | EU92: 0 | EV92: 0 | EW92: 0 | EX92: 0 | EY92: 0 | EZ92: 0 | FA92: 0 | FB92: 0 | FC92: 0 | FD92: 0 | FE92: 0 | FF92: 0 | FG92: 0 | FH92: 0 | FI92: 0 | FJ92: 0 | FK92: 0 | FL92: 0 | FM92: 0 | FN92: 0 | FO92: 0 | FP92: 0 | FQ92: 0 | FR92: 0 | FS92: 0 | FT92: 0 | FU92: 0 | FV92: 0 | FW92: 0 | FX92: 0 | FY92: 0 | FZ92: 0 | GA92: 0 | GB92: 0 | GC92: 0 | GD92: 0 | GE92: 0 | GF92: 0 | GG92: 0 | GH92: 0 | GI92: 0 | GJ92: 0
E93: Ground Outdoor / Indoor Chamber Mounted; > = 22 kV & < = 33 kV ; > 15 MVA and < = 40 MVA | F93: 1844.005796 | G93: 0 | H93: 0 | I93: 2
E94: Ground Outdoor / Indoor Chamber Mounted; > = 22 kV & < = 33 kV ; > 40 MVA | F94: 634.3753382 | G94: 0 | H94: 0 | I94: 2
A95: 5 | D95: TRANSFORMERS | E95: Ground Outdoor / Indoor Chamber Mounted; > 33 kV & < = 66 kV ; < = 15 MVA | F95: 1236.257379 | G95: 76.27186356 | H95: 8.733376412 | I95: 2 | J95: 0 | K95: 0 | L95: 0 | M95: 0 | N95: 0 | O95: 0 | P95: 0 | Q95: 1 | R95: 0 | S95: 0 | T95: 0 | U95: 0 | V95: 0 | W95: 0 | X95: 0 | Y95: 1 | Z95: 1 | AA95: 0 | AB95: 0 | AC95: 0 | AD95: 0 | AE95: 0 | AF95: 0 | AG95: 0 | AH95: 0 | AI95: 0 | AJ95: 0 | AK95: 0 | AL95: 0 | AM95: 0 | AN95: 0 | AO95: 1 | AP95: 0 | AQ95: 0 | AR95: 0 | AS95: 1 | AT95: 1 | AU95: 2 | AV95: 3 | AW95: 2 | AX95: 0 | AY95: 0 | AZ95: 0 | BA95: 0 | BB95: 0 | BC95: 0 | BD95: 3 | BE95: 3 | BF95: 2 | BG95: 3 | BH95: 1 | BI95: 1 | BJ95: 7 | BK95: 0 | BL95: 3 | BM95: 0 | BN95: 0 | BO95: 0 | BP95: 0 | BQ95: 2 | BR95: 0 | BS95: 0 | BT95: 2 | BU95: 0 | BV95: 3 | BW95: 4 | BX95: 0 | BY95: 1 | BZ95: 2 | CA95: 1 | CB95: 0 | CC95: 2 | CD95: 0 | CE95: 2 | CF95: 0 | CG95: 0 | CH95: 0 | CI95: 0 | CJ95: 2 | CK95: 0 | CL95: 0 | CM95: 0 | CN95: 0 | CO95: 0 | CP95: 0 | CQ95: 0 | CR95: 0 | CS95: 0 | CT95: 2 | CU95: 0 | CV95: 0 | CX95: 0 | CY95: 0 | CZ95: 0 | DA95: 0 | DB95: 0 | DC95: 0 | DD95: 0 | DE95: 1236.257379 | DF95: 0 | DG95: 0 | DH95: 0 | DI95: 0 | DJ95: 0 | DK95: 0 | DL95: 0 | DM95: 1236.257379 | DN95: 1236.257379 | DO95: 0 | DP95: 0 | DQ95: 0 | DR95: 0 | DS95: 0 | DT95: 0 | DU95: 0 | DV95: 0 | DW95: 0 | DX95: 0 | DY95: 0 | DZ95: 0 | EA95: 0 | EB95: 0 | EC95: 1236.257379 | ED95: 0 | EE95: 0 | EF95: 0 | EG95: 1236.257379 | EH95: 1236.257379 | EI95: 2472.514757 | EJ95: 3708.772136 | EK95: 2472.514757 | EL95: 0 | EM95: 0 | EN95: 0 | EO95: 0 | EP95: 0 | EQ95: 0 | ER95: 3708.772136 | ES95: 3708.772136 | ET95: 2472.514757 | EU95: 3708.772136 | EV95: 1236.257379 | EW95: 1236.257379 | EX95: 8653.801651 | EY95: 0 | EZ95: 3708.772136 | FA95: 0 | FB95: 0 | FC95: 0 | FD95: 0 | FE95: 2472.514757 | FF95: 0 | FG95: 0 | FH95: 2472.514757 | FI95: 0 | FJ95: 3708.772136 | FK95: 4945.029515 | FL95: 0 | FM95: 1236.257379 | FN95: 2472.514757 | FO95: 1236.257379 | FP95: 0 | FQ95: 2472.514757 | FR95: 0 | FS95: 2472.514757 | FT95: 0 | FU95: 0 | FV95: 0 | FW95: 0 | FX95: 2472.514757 | FY95: 0 | FZ95: 0 | GA95: 0 | GB95: 0 | GC95: 0 | GD95: 0 | GE95: 0 | GF95: 0 | GG95: 0 | GH95: 2472.514757 | GI95: 0 | GJ95: 0
A96: 5 | D96: TRANSFORMERS | E96: Ground Outdoor / Indoor Chamber Mounted; > 33 kV & < = 66 kV ; > 15 MVA and < = 40 MVA | F96: 2294.714286 | G96: 61.51995238 | H96: 7.843465585 | I96: 2 | J96: 3 | K96: 0 | L96: 0 | M96: 2 | N96: 3 | O96: 0 | P96: 1 | Q96: 0 | R96: 0 | S96: 3 | T96: 0 | U96: 1 | V96: 2 | W96: 2 | X96: 0 | Y96: 1 | Z96: 0 | AA96: 0 | AB96: 1 | AC96: 0 | AD96: 0 | AE96: 0 | AF96: 0 | AG96: 0 | AH96: 0 | AI96: 1 | AJ96: 0 | AK96: 0 | AL96: 2 | AM96: 2 | AN96: 2 | AO96: 6 | AP96: 2 | AQ96: 6 | AR96: 2 | AS96: 0 | AT96: 3 | AU96: 2 | AV96: 0 | AW96: 0 | AX96: 0 | AY96: 0 | AZ96: 0 | BA96: 0 | BB96: 0 | BC96: 3 | BD96: 2 | BE96: 1 | BF96: 2 | BG96: 0 | BH96: 0 | BI96: 0 | BJ96: 2 | BK96: 0 | BL96: 0 | BM96: 0 | BN96: 0 | BO96: 0 | BP96: 0 | BQ96: 0 | BR96: 0 | BS96: 0 | BT96: 0 | BU96: 0 | BV96: 0 | BW96: 1 | BX96: 1 | BY96: 0 | BZ96: 0 | CA96: 0 | CB96: 0 | CC96: 0 | CD96: 0 | CE96: 0 | CF96: 0 | CG96: 0 | CH96: 0 | CI96: 0 | CJ96: 0 | CK96: 0 | CL96: 0 | CM96: 0 | CN96: 0 | CO96: 0 | CP96: 0 | CQ96: 0 | CR96: 0 | CS96: 0 | CT96: 0 | CU96: 0 | CV96: 1 | CX96: 6884.142857 | CY96: 0 | CZ96: 0 | DA96: 4589.428571 | DB96: 6884.142857 | DC96: 0 | DD96: 2294.714286 | DE96: 0 | DF96: 0 | DG96: 6884.142857 | DH96: 0 | DI96: 2294.714286 | DJ96: 4589.428571 | DK96: 4589.428571 | DL96: 0 | DM96: 2294.714286 | DN96: 0 | DO96: 0 | DP96: 2294.714286 | DQ96: 0 | DR96: 0 | DS96: 0 | DT96: 0 | DU96: 0 | DV96: 0 | DW96: 2294.714286 | DX96: 0 | DY96: 0 | DZ96: 4589.428571 | EA96: 4589.428571 | EB96: 4589.428571 | EC96: 13768.28571 | ED96: 4589.428571 | EE96: 13768.28571 | EF96: 4589.428571 | EG96: 0 | EH96: 6884.142857 | EI96: 4589.428571 | EJ96: 0 | EK96: 0 | EL96: 0 | EM96: 0 | EN96: 0 | EO96: 0 | EP96: 0 | EQ96: 6884.142857 | ER96: 4589.428571 | ES96: 2294.714286 | ET96: 4589.428571 | EU96: 0 | EV96: 0 | EW96: 0 | EX96: 4589.428571 | EY96: 0 | EZ96: 0 | FA96: 0 | FB96: 0 | FC96: 0 | FD96: 0 | FE96: 0 | FF96: 0 | FG96: 0 | FH96: 0 | FI96: 0 | FJ96: 0 | FK96: 2294.714286 | FL96: 2294.714286 | FM96: 0 | FN96: 0 | FO96: 0 | FP96: 0 | FQ96: 0 | FR96: 0 | FS96: 0 | FT96: 0 | FU96: 0 | FV96: 0 | FW96: 0 | FX96: 0 | FY96: 0 | FZ96: 0 | GA96: 0 | GB96: 0 | GC96: 0 | GD96: 0 | GE96: 0 | GF96: 0 | GG96: 0 | GH96: 0 | GI96: 0 | GJ96: 2294.714286
A97: 5 | D97: TRANSFORMERS | E97: Ground Outdoor / Indoor Chamber Mounted; > 33 kV & < = 66 kV ; > 40 MVA | F97: 8 | G97: 60.86464034 | H97: 7.801579349 | I97: 2 | J97: 1 | K97: 3 | L97: 2 | M97: 0 | N97: 3 | O97: 3 | P97: 0 | Q97: 0 | R97: 3 | S97: 1 | T97: 2 | U97: 0 | V97: 0 | W97: 0 | X97: 0 | Y97: 0 | Z97: 0 | AA97: 0 | AB97: 0 | AC97: 0 | AD97: 0 | AE97: 0 | AF97: 0 | AG97: 0 | AH97: 0 | AI97: 0 | AJ97: 0 | AK97: 0 | AL97: 0 | AM97: 0 | AN97: 0 | AO97: 0 | AP97: 0 | AQ97: 0 | AR97: 0 | AS97: 0 | AT97: 0 | AU97: 0 | AV97: 0 | AW97: 0 | AX97: 0 | AY97: 0 | AZ97: 0 | BA97: 0 | BB97: 0 | BC97: 0 | BD97: 0 | BE97: 0 | BF97: 0 | BG97: 0 | BH97: 0 | BI97: 0 | BJ97: 0 | BK97: 0 | BL97: 0 | BM97: 0 | BN97: 0 | BO97: 1 | BP97: 0 | BQ97: 0 | BR97: 0 | BS97: 0 | BT97: 0 | BU97: 1 | BV97: 2 | BW97: 0 | BX97: 0 | BY97: 0 | BZ97: 0 | CA97: 0 | CB97: 0 | CC97: 0 | CD97: 0 | CE97: 0 | CF97: 0 | CG97: 0 | CH97: 0 | CI97: 0 | CJ97: 0 | CK97: 0 | CL97: 0 | CM97: 0 | CN97: 0 | CO97: 0 | CP97: 0 | CQ97: 0 | CR97: 0 | CS97: 0 | CT97: 0 | CU97: 0 | CV97: 0 | CX97: 8 | CY97: 24 | CZ97: 16 | DA97: 0 | DB97: 24 | DC97: 24 | DD97: 0 | DE97: 0 | DF97: 24 | DG97: 8 | DH97: 16 | DI97: 0 | DJ97: 0 | DK97: 0 | DL97: 0 | DM97: 0 | DN97: 0 | DO97: 0 | DP97: 0 | DQ97: 0 | DR97: 0 | DS97: 0 | DT97: 0 | DU97: 0 | DV97: 0 | DW97: 0 | DX97: 0 | DY97: 0 | DZ97: 0 | EA97: 0 | EB97: 0 | EC97: 0 | ED97: 0 | EE97: 0 | EF97: 0 | EG97: 0 | EH97: 0 | EI97: 0 | EJ97: 0 | EK97: 0 | EL97: 0 | EM97: 0 | EN97: 0 | EO97: 0 | EP97: 0 | EQ97: 0 | ER97: 0 | ES97: 0 | ET97: 0 | EU97: 0 | EV97: 0 | EW97: 0 | EX97: 0 | EY97: 0 | EZ97: 0 | FA97: 0 | FB97: 0 | FC97: 8 | FD97: 0 | FE97: 0 | FF97: 0 | FG97: 0 | FH97: 0 | FI97: 8 | FJ97: 16 | FK97: 0 | FL97: 0 | FM97: 0 | FN97: 0 | FO97: 0 | FP97: 0 | FQ97: 0 | FR97: 0 | FS97: 0 | FT97: 0 | FU97: 0 | FV97: 0 | FW97: 0 | FX97: 0 | FY97: 0 | FZ97: 0 | GA97: 0 | GB97: 0 | GC97: 0 | GD97: 0 | GE97: 0 | GF97: 0 | GG97: 0 | GH97: 0 | GI97: 0 | GJ97: 0
E98: Ground Outdoor / Indoor Chamber Mounted; > 66 kV & < = 132 kV ; < = 100 MVA | F98: 3122.741652 | G98: 0 | H98: 0 | I98: 2
E99: Ground Outdoor / Indoor Chamber Mounted; > 66 kV & < = 132 kV ; > 100 MVA | F99: 4267.16617 | G99: 0 | H99: 0 | I99: 2
E100: Ground Outdoor / Indoor Chamber Mounted; > 132 kV ; < = 100 MVA | F100: 0.0001 | G100: 0 | H100: 0 | I100: 2
E101: Ground Outdoor / Indoor Chamber Mounted; > 132 kV ; > 100 MVA | F101: 0.0001 | G101: 0 | H101: 0 | I101: 2
E102: Other | F102: 0.0001 | G102: 0 | H102: 0 | I102: 2
A103: 6 | D103: SWITCHGEAR | E103: ˂ = 11 kV ; Fuse | F103: 1.647177725 | G103: 88.91991912 | H103: 9.429735899 | I103: 2 | J103: 15 | K103: 7 | L103: 17 | M103: 15 | N103: 6 | O103: 0 | P103: 15 | Q103: 0 | R103: 0 | S103: 2 | T103: 6 | U103: 3 | V103: 3 | W103: 0 | X103: 0 | Y103: 3 | Z103: 0 | AA103: 0 | AB103: 3 | AC103: 9 | AD103: 6 | AE103: 6 | AF103: 6 | AG103: 2 | AH103: 10 | AI103: 20 | AJ103: 88 | AK103: 9 | AL103: 166 | AM103: 6 | AN103: 29 | AO103: 11 | AP103: 9 | AQ103: 18 | AR103: 12 | AS103: 3 | AT103: 3 | AU103: 12 | AV103: 12 | AW103: 3 | AX103: 3 | AY103: 0 | AZ103: 9 | BA103: 0 | BB103: 0 | BC103: 0 | BD103: 0 | BE103: 0 | BF103: 0 | BG103: 0 | BH103: 0 | BI103: 0 | BJ103: 0 | BK103: 0 | BL103: 0 | BM103: 0 | BN103: 0 | BO103: 0 | BP103: 0 | BQ103: 0 | BR103: 0 | BS103: 0 | BT103: 0 | BU103: 0 | BV103: 0 | BW103: 0 | BX103: 0 | BY103: 0 | BZ103: 0 | CA103: 0 | CB103: 0 | CC103: 0 | CD103: 0 | CE103: 0 | CF103: 0 | CG103: 0 | CH103: 0 | CI103: 0 | CJ103: 0 | CK103: 0 | CL103: 0 | CM103: 0 | CN103: 0 | CO103: 0 | CP103: 0 | CQ103: 0 | CR103: 0 | CS103: 0 | CT103: 0 | CU103: 0 | CV103: 19 | CX103: 24.70766588 | CY103: 11.53024408 | CZ103: 28.00202133 | DA103: 24.70766588 | DB103: 9.883066351 | DC103: 0 | DD103: 24.70766588 | DE103: 0 | DF103: 0 | DG103: 3.29435545 | DH103: 9.883066351 | DI103: 4.941533176 | DJ103: 4.941533176 | DK103: 0 | DL103: 0 | DM103: 4.941533176 | DN103: 0 | DO103: 0 | DP103: 4.941533176 | DQ103: 14.82459953 | DR103: 9.883066351 | DS103: 9.883066351 | DT103: 9.883066351 | DU103: 3.29435545 | DV103: 16.47177725 | DW103: 32.9435545 | DX103: 144.9516398 | DY103: 14.82459953 | DZ103: 273.4315024 | EA103: 9.883066351 | EB103: 47.76815403 | EC103: 18.11895498 | ED103: 14.82459953 | EE103: 29.64919905 | EF103: 19.7661327 | EG103: 4.941533176 | EH103: 4.941533176 | EI103: 19.7661327 | EJ103: 19.7661327 | EK103: 4.941533176 | EL103: 4.941533176 | EM103: 0 | EN103: 14.82459953 | EO103: 0 | EP103: 0 | EQ103: 0 | ER103: 0 | ES103: 0 | ET103: 0 | EU103: 0 | EV103: 0 | EW103: 0 | EX103: 0 | EY103: 0 | EZ103: 0 | FA103: 0 | FB103: 0 | FC103: 0 | FD103: 0 | FE103: 0 | FF103: 0 | FG103: 0 | FH103: 0 | FI103: 0 | FJ103: 0 | FK103: 0 | FL103: 0 | FM103: 0 | FN103: 0 | FO103: 0 | FP103: 0 | FQ103: 0 | FR103: 0 | FS103: 0 | FT103: 0 | FU103: 0 | FV103: 0 | FW103: 0 | FX103: 0 | FY103: 0 | FZ103: 0 | GA103: 0 | GB103: 0 | GC103: 0 | GD103: 0 | GE103: 0 | GF103: 0 | GG103: 0 | GH103: 0 | GI103: 0 | GJ103: 31.29637678
A104: 6 | D104: SWITCHGEAR | E104: ˂ = 11 kV ; Switch | F104: 10.33489734 | G104: 89.43797771 | H104: 9.457165416 | I104: 2 | J104: 0 | K104: 4 | L104: 2 | M104: 0 | N104: 1 | O104: 0 | P104: 0 | Q104: 2 | R104: 12 | S104: 0 | T104: 0 | U104: 1 | V104: 0 | W104: 0 | X104: 0 | Y104: 0 | Z104: 0 | AA104: 0 | AB104: 0 | AC104: 0 | AD104: 0 | AE104: 0 | AF104: 0 | AG104: 0 | AH104: 0 | AI104: 0 | AJ104: 0 | AK104: 0 | AL104: 0 | AM104: 0 | AN104: 0 | AO104: 0 | AP104: 3 | AQ104: 0 | AR104: 0 | AS104: 0 | AT104: 0 | AU104: 2 | AV104: 0 | AW104: 0 | AX104: 0 | AY104: 0 | AZ104: 3 | BA104: 3 | BB104: 0 | BC104: 0 | BD104: 0 | BE104: 0 | BF104: 11 | BG104: 1 | BH104: 0 | BI104: 0 | BJ104: 0 | BK104: 2 | BL104: 0 | BM104: 0 | BN104: 0 | BO104: 0 | BP104: 0 | BQ104: 0 | BR104: 0 | BS104: 0 | BT104: 0 | BU104: 0 | BV104: 24 | BW104: 0 | BX104: 0 | BY104: 0 | BZ104: 0 | CA104: 0 | CB104: 0 | CC104: 0 | CD104: 0 | CE104: 0 | CF104: 0 | CG104: 0 | CH104: 0 | CI104: 37 | CJ104: 0 | CK104: 0 | CL104: 0 | CM104: 0 | CN104: 0 | CO104: 0 | CP104: 0 | CQ104: 0 | CR104: 0 | CS104: 0 | CT104: 0 | CU104: 0 | CV104: 5 | CX104: 0 | CY104: 41.33958936 | CZ104: 20.66979468 | DA104: 0 | DB104: 10.33489734 | DC104: 0 | DD104: 0 | DE104: 20.66979468 | DF104: 124.0187681 | DG104: 0 | DH104: 0 | DI104: 10.33489734 | DJ104: 0 | DK104: 0 | DL104: 0 | DM104: 0 | DN104: 0 | DO104: 0 | DP104: 0 | DQ104: 0 | DR104: 0 | DS104: 0 | DT104: 0 | DU104: 0 | DV104: 0 | DW104: 0 | DX104: 0 | DY104: 0 | DZ104: 0 | EA104: 0 | EB104: 0 | EC104: 0 | ED104: 31.00469202 | EE104: 0 | EF104: 0 | EG104: 0 | EH104: 0 | EI104: 20.66979468 | EJ104: 0 | EK104: 0 | EL104: 0 | EM104: 0 | EN104: 31.00469202 | EO104: 31.00469202 | EP104: 0 | EQ104: 0 | ER104: 0 | ES104: 0 | ET104: 113.6838707 | EU104: 10.33489734 | EV104: 0 | EW104: 0 | EX104: 0 | EY104: 20.66979468 | EZ104: 0 | FA104: 0 | FB104: 0 | FC104: 0 | FD104: 0 | FE104: 0 | FF104: 0 | FG104: 0 | FH104: 0 | FI104: 0 | FJ104: 248.0375361 | FK104: 0 | FL104: 0 | FM104: 0 | FN104: 0 | FO104: 0 | FP104: 0 | FQ104: 0 | FR104: 0 | FS104: 0 | FT104: 0 | FU104: 0 | FV104: 0 | FW104: 382.3912015 | FX104: 0 | FY104: 0 | FZ104: 0 | GA104: 0 | GB104: 0 | GC104: 0 | GD104: 0 | GE104: 0 | GF104: 0 | GG104: 0 | GH104: 0 | GI104: 0 | GJ104: 51.67448669
A105: 6 | D105: SWITCHGEAR | E105: ˂ = 11 kV ; Circuit Breaker | F105: 96.71508106 | G105: 84.00243144 | H105: 9.165284035 | I105: 2 | J105: 0 | K105: 0 | L105: 0 | M105: 0 | N105: 0 | O105: 0 | P105: 0 | Q105: 0 | R105: 13 | S105: 0 | T105: 0 | U105: 0 | V105: 0 | W105: 0 | X105: 0 | Y105: 0 | Z105: 0 | AA105: 0 | AB105: 0 | AC105: 0 | AD105: 0 | AE105: 0 | AF105: 0 | AG105: 0 | AH105: 0 | AI105: 0 | AJ105: 0 | AK105: 0 | AL105: 0 | AM105: 0 | AN105: 0 | AO105: 1 | AP105: 0 | AQ105: 0 | AR105: 0 | AS105: 0 | AT105: 0 | AU105: 0 | AV105: 0 | AW105: 10 | AX105: 4 | AY105: 0 | AZ105: 0 | BA105: 4 | BB105: 0 | BC105: 0 | BD105: 0 | BE105: 0 | BF105: 0 | BG105: 0 | BH105: 0 | BI105: 0 | BJ105: 0 | BK105: 0 | BL105: 0 | BM105: 0 | BN105: 0 | BO105: 6 | BP105: 0 | BQ105: 0 | BR105: 0 | BS105: 0 | BT105: 0 | BU105: 0 | BV105: 0 | BW105: 15 | BX105: 0 | BY105: 0 | BZ105: 0 | CA105: 0 | CB105: 0 | CC105: 0 | CD105: 0 | CE105: 0 | CF105: 0 | CG105: 2 | CH105: 0 | CI105: 0 | CJ105: 17 | CK105: 0 | CL105: 0 | CM105: 0 | CN105: 0 | CO105: 0 | CP105: 0 | CQ105: 0 | CR105: 0 | CS105: 0 | CT105: 0 | CU105: 0 | CV105: 0 | CX105: 0 | CY105: 0 | CZ105: 0 | DA105: 0 | DB105: 0 | DC105: 0 | DD105: 0 | DE105: 0 | DF105: 1257.296054 | DG105: 0 | DH105: 0 | DI105: 0 | DJ105: 0 | DK105: 0 | DL105: 0 | DM105: 0 | DN105: 0 | DO105: 0 | DP105: 0 | DQ105: 0 | DR105: 0 | DS105: 0 | DT105: 0 | DU105: 0 | DV105: 0 | DW105: 0 | DX105: 0 | DY105: 0 | DZ105: 0 | EA105: 0 | EB105: 0 | EC105: 96.71508106 | ED105: 0 | EE105: 0 | EF105: 0 | EG105: 0 | EH105: 0 | EI105: 0 | EJ105: 0 | EK105: 967.1508106 | EL105: 386.8603242 | EM105: 0 | EN105: 0 | EO105: 386.8603242 | EP105: 0 | EQ105: 0 | ER105: 0 | ES105: 0 | ET105: 0 | EU105: 0 | EV105: 0 | EW105: 0 | EX105: 0 | EY105: 0 | EZ105: 0 | FA105: 0 | FB105: 0 | FC105: 580.2904864 | FD105: 0 | FE105: 0 | FF105: 0 | FG105: 0 | FH105: 0 | FI105: 0 | FJ105: 0 | FK105: 1450.726216 | FL105: 0 | FM105: 0 | FN105: 0 | FO105: 0 | FP105: 0 | FQ105: 0 | FR105: 0 | FS105: 0 | FT105: 0 | FU105: 193.4301621 | FV105: 0 | FW105: 0 | FX105: 1644.156378 | FY105: 0 | FZ105: 0 | GA105: 0 | GB105: 0 | GC105: 0 | GD105: 0 | GE105: 0 | GF105: 0 | GG105: 0 | GH105: 0 | GI105: 0 | GJ105: 0
A106: 6 | D106: SWITCHGEAR | E106: > 11 kV & < = 22 kV ; Switch | F106: 2.325231197 | G106: 90.63359661 | H106: 9.520167888 | I106: 2 | J106: 1407 | K106: 3395 | L106: 2326 | M106: 1307 | N106: 1575 | O106: 1202 | P106: 2220 | Q106: 1281 | R106: 1099 | S106: 1498 | T106: 1034 | U106: 1036 | V106: 475 | W106: 674 | X106: 1481 | Y106: 1121 | Z106: 1173 | AA106: 1574 | AB106: 988 | AC106: 1268 | AD106: 1727 | AE106: 2515 | AF106: 2596 | AG106: 2435 | AH106: 3635 | AI106: 4439 | AJ106: 16388 | AK106: 2514 | AL106: 13724 | AM106: 1620 | AN106: 1933 | AO106: 893 | AP106: 1513 | AQ106: 1236 | AR106: 1874 | AS106: 475 | AT106: 877 | AU106: 1495 | AV106: 760 | AW106: 469 | AX106: 315 | AY106: 212 | AZ106: 1698 | BA106: 134 | BB106: 865 | BC106: 131 | BD106: 466 | BE106: 278 | BF106: 429 | BG106: 252 | BH106: 245 | BI106: 835 | BJ106: 48 | BK106: 76 | BL106: 16 | BM106: 52 | BN106: 0 | BO106: 3 | BP106: 13 | BQ106: 59 | BR106: 0 | BS106: 0 | BT106: 20 | BU106: 3 | BV106: 85 | BW106: 0 | BX106: 46 | BY106: 0 | BZ106: 0 | CA106: 0 | CB106: 0 | CC106: 0 | CD106: 0 | CE106: 2 | CF106: 0 | CG106: 13 | CH106: 0 | CI106: 0 | CJ106: 0 | CK106: 0 | CL106: 0 | CM106: 0 | CN106: 0 | CO106: 0 | CP106: 0 | CQ106: 0 | CR106: 0 | CS106: 0 | CT106: 0 | CU106: 0 | CV106: 10271 | CX106: 3271.600295 | CY106: 7894.159915 | CZ106: 5408.487765 | DA106: 3039.077175 | DB106: 3662.239136 | DC106: 2794.927899 | DD106: 5162.013258 | DE106: 2978.621164 | DF106: 2555.429086 | DG106: 3483.196334 | DH106: 2404.289058 | DI106: 2408.93952 | DJ106: 1104.484819 | DK106: 1567.205827 | DL106: 3443.667403 | DM106: 2606.584172 | DN106: 2727.496194 | DO106: 3659.913905 | DP106: 2297.328423 | DQ106: 2948.393158 | DR106: 4015.674278 | DS106: 5847.956461 | DT106: 6036.300188 | DU106: 5661.937965 | DV106: 8452.215402 | DW106: 10321.70128 | DX106: 38105.88886 | DY106: 5845.63123 | DZ106: 31911.47295 | EA106: 3766.87454 | EB106: 4494.671904 | EC106: 2076.431459 | ED106: 3518.074802 | EE106: 2873.98576 | EF106: 4357.483264 | EG106: 1104.484819 | EH106: 2039.22776 | EI106: 3476.22064 | EJ106: 1767.17571 | EK106: 1090.533432 | EL106: 732.4478272 | EM106: 492.9490138 | EN106: 3948.242573 | EO106: 311.5809804 | EP106: 2011.324986 | EQ106: 304.6052868 | ER106: 1083.557738 | ES106: 646.4142729 | ET106: 997.5241836 | EU106: 585.9582617 | EV106: 569.6816433 | EW106: 1941.56805 | EX106: 111.6110975 | EY106: 176.717571 | EZ106: 37.20369916 | FA106: 120.9120223 | FB106: 0 | FC106: 6.975693592 | FD106: 30.22800557 | FE106: 137.1886406 | FF106: 0 | FG106: 0 | FH106: 46.50462395 | FI106: 6.975693592 | FJ106: 197.6446518 | FK106: 0 | FL106: 106.9606351 | FM106: 0 | FN106: 0 | FO106: 0 | FP106: 0 | FQ106: 0 | FR106: 0 | FS106: 4.650462395 | FT106: 0 | FU106: 30.22800557 | FV106: 0 | FW106: 0 | FX106: 0 | FY106: 0 | FZ106: 0 | GA106: 0 | GB106: 0 | GC106: 0 | GD106: 0 | GE106: 0 | GF106: 0 | GG106: 0 | GH106: 0 | GI106: 0 | GJ106: 23882.44963
A107: 6 | D107: SWITCHGEAR | E107: > 11 kV & < = 22 kV ; Circuit Breaker | F107: 286.9032258 | G107: 74.84460379 | H107: 8.651277581 | I107: 2 | J107: 36 | K107: 10 | L107: 30 | M107: 4 | N107: 51 | O107: 15 | P107: 1 | Q107: 31 | R107: 17 | S107: 42 | T107: 4 | U107: 10 | V107: 4 | W107: 34 | X107: 5 | Y107: 18 | Z107: 39 | AA107: 0 | AB107: 17 | AC107: 0 | AD107: 1 | AE107: 2 | AF107: 0 | AG107: 0 | AH107: 0 | AI107: 5 | AJ107: 1 | AK107: 26 | AL107: 6 | AM107: 3 | AN107: 7 | AO107: 14 | AP107: 0 | AQ107: 42 | AR107: 0 | AS107: 8 | AT107: 40 | AU107: 0 | AV107: 40 | AW107: 0 | AX107: 0 | AY107: 0 | AZ107: 0 | BA107: 0 | BB107: 4 | BC107: 31 | BD107: 8 | BE107: 11 | BF107: 6 | BG107: 16 | BH107: 12 | BI107: 4 | BJ107: 25 | BK107: 12 | BL107: 4 | BM107: 1 | BN107: 4 | BO107: 0 | BP107: 4 | BQ107: 2 | BR107: 1 | BS107: 0 | BT107: 0 | BU107: 0 | BV107: 0 | BW107: 0 | BX107: 0 | BY107: 0 | BZ107: 0 | CA107: 0 | CB107: 0 | CC107: 0 | CD107: 0 | CE107: 0 | CF107: 0 | CG107: 0 | CH107: 0 | CI107: 0 | CJ107: 0 | CK107: 0 | CL107: 0 | CM107: 0 | CN107: 0 | CO107: 0 | CP107: 0 | CQ107: 0 | CR107: 0 | CS107: 0 | CT107: 0 | CU107: 0 | CV107: 25 | CX107: 10328.51613 | CY107: 2869.032258 | CZ107: 8607.096774 | DA107: 1147.612903 | DB107: 14632.06452 | DC107: 4303.548387 | DD107: 286.9032258 | DE107: 8894 | DF107: 4877.354839 | DG107: 12049.93548 | DH107: 1147.612903 | DI107: 2869.032258 | DJ107: 1147.612903 | DK107: 9754.709677 | DL107: 1434.516129 | DM107: 5164.258065 | DN107: 11189.22581 | DO107: 0 | DP107: 4877.354839 | DQ107: 0 | DR107: 286.9032258 | DS107: 573.8064516 | DT107: 0 | DU107: 0 | DV107: 0 | DW107: 1434.516129 | DX107: 286.9032258 | DY107: 7459.483871 | DZ107: 1721.419355 | EA107: 860.7096774 | EB107: 2008.322581 | EC107: 4016.645161 | ED107: 0 | EE107: 12049.93548 | EF107: 0 | EG107: 2295.225806 | EH107: 11476.12903 | EI107: 0 | EJ107: 11476.12903 | EK107: 0 | EL107: 0 | EM107: 0 | EN107: 0 | EO107: 0 | EP107: 1147.612903 | EQ107: 8894 | ER107: 2295.225806 | ES107: 3155.935484 | ET107: 1721.419355 | EU107: 4590.451613 | EV107: 3442.83871 | EW107: 1147.612903 | EX107: 7172.580645 | EY107: 3442.83871 | EZ107: 1147.612903 | FA107: 286.9032258 | FB107: 1147.612903 | FC107: 0 | FD107: 1147.612903 | FE107: 573.8064516 | FF107: 286.9032258 | FG107: 0 | FH107: 0 | FI107: 0 | FJ107: 0 | FK107: 0 | FL107: 0 | FM107: 0 | FN107: 0 | FO107: 0 | FP107: 0 | FQ107: 0 | FR107: 0 | FS107: 0 | FT107: 0 | FU107: 0 | FV107: 0 | FW107: 0 | FX107: 0 | FY107: 0 | FZ107: 0 | GA107: 0 | GB107: 0 | GC107: 0 | GD107: 0 | GE107: 0 | GF107: 0 | GG107: 0 | GH107: 0 | GI107: 0 | GJ107: 7172.580645
E108: > 22 kV & < = 33 kV ; Switch | F108: 58.72116244 | G108: 0 | H108: 0 | I108: 2
E109: > 22 kV & < = 33 kV ; Circuit Breaker | F109: 211.5176893 | G109: 0 | H109: 0 | I109: 2
A110: 6 | D110: SWITCHGEAR | E110: > 33 kV & < = 66 kV ; Switch | F110: 52.75454545 | G110: 91.47635476 | H110: 9.564327199 | I110: 2 | J110: 32 | K110: 69 | L110: 26 | M110: 70 | N110: 81 | O110: 45 | P110: 67 | Q110: 65 | R110: 58 | S110: 85 | T110: 54 | U110: 57 | V110: 35 | W110: 58 | X110: 61 | Y110: 61 | Z110: 8 | AA110: 38 | AB110: 36 | AC110: 41 | AD110: 35 | AE110: 63 | AF110: 52 | AG110: 37 | AH110: 122 | AI110: 99 | AJ110: 432 | AK110: 65 | AL110: 561 | AM110: 27 | AN110: 106 | AO110: 39 | AP110: 83 | AQ110: 117 | AR110: 71 | AS110: 60 | AT110: 33 | AU110: 59 | AV110: 69 | AW110: 8 | AX110: 5 | AY110: 8 | AZ110: 45 | BA110: 0 | BB110: 64 | BC110: 9 | BD110: 24 | BE110: 39 | BF110: 39 | BG110: 21 | BH110: 52 | BI110: 33 | BJ110: 0 | BK110: 26 | BL110: 0 | BM110: 2 | BN110: 4 | BO110: 0 | BP110: 0 | BQ110: 0 | BR110: 0 | BS110: 0 | BT110: 0 | BU110: 4 | BV110: 31 | BW110: 0 | BX110: 5 | BY110: 1 | BZ110: 0 | CA110: 0 | CB110: 0 | CC110: 0 | CD110: 0 | CE110: 0 | CF110: 0 | CG110: 0 | CH110: 0 | CI110: 0 | CJ110: 0 | CK110: 0 | CL110: 0 | CM110: 0 | CN110: 0 | CO110: 0 | CP110: 0 | CQ110: 0 | CR110: 0 | CS110: 0 | CT110: 0 | CU110: 0 | CV110: 449 | CX110: 1688.145455 | CY110: 3640.063636 | CZ110: 1371.618182 | DA110: 3692.818182 | DB110: 4273.118182 | DC110: 2373.954545 | DD110: 3534.554545 | DE110: 3429.045455 | DF110: 3059.763636 | DG110: 4484.136364 | DH110: 2848.745455 | DI110: 3007.009091 | DJ110: 1846.409091 | DK110: 3059.763636 | DL110: 3218.027273 | DM110: 3218.027273 | DN110: 422.0363636 | DO110: 2004.672727 | DP110: 1899.163636 | DQ110: 2162.936364 | DR110: 1846.409091 | DS110: 3323.536364 | DT110: 2743.236364 | DU110: 1951.918182 | DV110: 6436.054545 | DW110: 5222.7 | DX110: 22789.96364 | DY110: 3429.045455 | DZ110: 29595.3 | EA110: 1424.372727 | EB110: 5591.981818 | EC110: 2057.427273 | ED110: 4378.627273 | EE110: 6172.281818 | EF110: 3745.572727 | EG110: 3165.272727 | EH110: 1740.9 | EI110: 3112.518182 | EJ110: 3640.063636 | EK110: 422.0363636 | EL110: 263.7727273 | EM110: 422.0363636 | EN110: 2373.954545 | EO110: 0 | EP110: 3376.290909 | EQ110: 474.7909091 | ER110: 1266.109091 | ES110: 2057.427273 | ET110: 2057.427273 | EU110: 1107.845455 | EV110: 2743.236364 | EW110: 1740.9 | EX110: 0 | EY110: 1371.618182 | EZ110: 0 | FA110: 105.5090909 | FB110: 211.0181818 | FC110: 0 | FD110: 0 | FE110: 0 | FF110: 0 | FG110: 0 | FH110: 0 | FI110: 211.0181818 | FJ110: 1635.390909 | FK110: 0 | FL110: 263.7727273 | FM110: 52.75454545 | FN110: 0 | FO110: 0 | FP110: 0 | FQ110: 0 | FR110: 0 | FS110: 0 | FT110: 0 | FU110: 0 | FV110: 0 | FW110: 0 | FX110: 0 | FY110: 0 | FZ110: 0 | GA110: 0 | GB110: 0 | GC110: 0 | GD110: 0 | GE110: 0 | GF110: 0 | GG110: 0 | GH110: 0 | GI110: 0 | GJ110: 23686.79091
A111: 6 | D111: SWITCHGEAR | E111: > 33 kV & < = 66 kV ; Circuit Breaker | F111: 391.3809524 | G111: 64.05559302 | H111: 8.00347381 | I111: 2 | J111: 6 | K111: 3 | L111: 0 | M111: 7 | N111: 11 | O111: 7 | P111: 5 | Q111: 4 | R111: 2 | S111: 13 | T111: 2 | U111: 3 | V111: 0 | W111: 7 | X111: 1 | Y111: 8 | Z111: 0 | AA111: 0 | AB111: 1 | AC111: 0 | AD111: 0 | AE111: 0 | AF111: 0 | AG111: 0 | AH111: 0 | AI111: 0 | AJ111: 0 | AK111: 1 | AL111: 2 | AM111: 1 | AN111: 0 | AO111: 2 | AP111: 12 | AQ111: 4 | AR111: 0 | AS111: 0 | AT111: 2 | AU111: 8 | AV111: 0 | AW111: 2 | AX111: 0 | AY111: 0 | AZ111: 0 | BA111: 0 | BB111: 0 | BC111: 8 | BD111: 0 | BE111: 9 | BF111: 11 | BG111: 3 | BH111: 4 | BI111: 9 | BJ111: 5 | BK111: 0 | BL111: 3 | BM111: 0 | BN111: 0 | BO111: 1 | BP111: 0 | BQ111: 0 | BR111: 1 | BS111: 0 | BT111: 0 | BU111: 0 | BV111: 0 | BW111: 0 | BX111: 0 | BY111: 1 | BZ111: 0 | CA111: 0 | CB111: 0 | CC111: 0 | CD111: 0 | CE111: 0 | CF111: 0 | CG111: 0 | CH111: 0 | CI111: 1 | CJ111: 0 | CK111: 0 | CL111: 0 | CM111: 0 | CN111: 0 | CO111: 0 | CP111: 0 | CQ111: 0 | CR111: 0 | CS111: 0 | CT111: 0 | CU111: 0 | CV111: 2 | CX111: 2348.285714 | CY111: 1174.142857 | CZ111: 0 | DA111: 2739.666667 | DB111: 4305.190476 | DC111: 2739.666667 | DD111: 1956.904762 | DE111: 1565.52381 | DF111: 782.7619048 | DG111: 5087.952381 | DH111: 782.7619048 | DI111: 1174.142857 | DJ111: 0 | DK111: 2739.666667 | DL111: 391.3809524 | DM111: 3131.047619 | DN111: 0 | DO111: 0 | DP111: 391.3809524 | DQ111: 0 | DR111: 0 | DS111: 0 | DT111: 0 | DU111: 0 | DV111: 0 | DW111: 0 | DX111: 0 | DY111: 391.3809524 | DZ111: 782.7619048 | EA111: 391.3809524 | EB111: 0 | EC111: 782.7619048 | ED111: 4696.571429 | EE111: 1565.52381 | EF111: 0 | EG111: 0 | EH111: 782.7619048 | EI111: 3131.047619 | EJ111: 0 | EK111: 782.7619048 | EL111: 0 | EM111: 0 | EN111: 0 | EO111: 0 | EP111: 0 | EQ111: 3131.047619 | ER111: 0 | ES111: 3522.428571 | ET111: 4305.190476 | EU111: 1174.142857 | EV111: 1565.52381 | EW111: 3522.428571 | EX111: 1956.904762 | EY111: 0 | EZ111: 1174.142857 | FA111: 0 | FB111: 0 | FC111: 391.3809524 | FD111: 0 | FE111: 0 | FF111: 391.3809524 | FG111: 0 | FH111: 0 | FI111: 0 | FJ111: 0 | FK111: 0 | FL111: 0 | FM111: 391.3809524 | FN111: 0 | FO111: 0 | FP111: 0 | FQ111: 0 | FR111: 0 | FS111: 0 | FT111: 0 | FU111: 0 | FV111: 0 | FW111: 391.3809524 | FX111: 0 | FY111: 0 | FZ111: 0 | GA111: 0 | GB111: 0 | GC111: 0 | GD111: 0 | GE111: 0 | GF111: 0 | GG111: 0 | GH111: 0 | GI111: 0 | GJ111: 782.7619048
CX112: 0 | CY112: 0 | CZ112: 0 | DA112: 0 | DB112: 0 | DC112: 0 | DD112: 0 | DE112: 0 | DF112: 0 | DG112: 0 | DH112: 0 | DI112: 0 | DJ112: 0 | DK112: 0 | DL112: 0 | DM112: 0 | DN112: 0 | DO112: 0 | DP112: 0 | DQ112: 0 | DR112: 0 | DS112: 0 | DT112: 0 | DU112: 0 | DV112: 0 | DW112: 0 | DX112: 0 | DY112: 0 | DZ112: 0 | EA112: 0 | EB112: 0 | EC112: 0 | ED112: 0 | EE112: 0 | EF112: 0 | EG112: 0 | EH112: 0 | EI112: 0 | EJ112: 0 | EK112: 0 | EL112: 0 | EM112: 0 | EN112: 0 | EO112: 0 | EP112: 0 | EQ112: 0 | ER112: 0 | ES112: 0 | ET112: 0 | EU112: 0 | EV112: 0 | EW112: 0 | EX112: 0 | EY112: 0 | EZ112: 0 | FA112: 0 | FB112: 0 | FC112: 0 | FD112: 0 | FE112: 0 | FF112: 0 | FG112: 0 | FH112: 0 | FI112: 0 | FJ112: 0 | FK112: 0 | FL112: 0 | FM112: 0 | FN112: 0 | FO112: 0 | FP112: 0 | FQ112: 0 | FR112: 0 | FS112: 0 | FT112: 0 | FU112: 0 | FV112: 0 | FW112: 0 | FX112: 0 | FY112: 0 | FZ112: 0 | GA112: 0 | GB112: 0 | GC112: 0 | GD112: 0 | GE112: 0 | GF112: 0 | GG112: 0 | GH112: 0 | GI112: 0 | GJ112: 0
CX113: 0 | CY113: 0 | CZ113: 0 | DA113: 0 | DB113: 0 | DC113: 0 | DD113: 0 | DE113: 0 | DF113: 0 | DG113: 0 | DH113: 0 | DI113: 0 | DJ113: 0 | DK113: 0 | DL113: 0 | DM113: 0 | DN113: 0 | DO113: 0 | DP113: 0 | DQ113: 0 | DR113: 0 | DS113: 0 | DT113: 0 | DU113: 0 | DV113: 0 | DW113: 0 | DX113: 0 | DY113: 0 | DZ113: 0 | EA113: 0 | EB113: 0 | EC113: 0 | ED113: 0 | EE113: 0 | EF113: 0 | EG113: 0 | EH113: 0 | EI113: 0 | EJ113: 0 | EK113: 0 | EL113: 0 | EM113: 0 | EN113: 0 | EO113: 0 | EP113: 0 | EQ113: 0 | ER113: 0 | ES113: 0 | ET113: 0 | EU113: 0 | EV113: 0 | EW113: 0 | EX113: 0 | EY113: 0 | EZ113: 0 | FA113: 0 | FB113: 0 | FC113: 0 | FD113: 0 | FE113: 0 | FF113: 0 | FG113: 0 | FH113: 0 | FI113: 0 | FJ113: 0 | FK113: 0 | FL113: 0 | FM113: 0 | FN113: 0 | FO113: 0 | FP113: 0 | FQ113: 0 | FR113: 0 | FS113: 0 | FT113: 0 | FU113: 0 | FV113: 0 | FW113: 0 | FX113: 0 | FY113: 0 | FZ113: 0 | GA113: 0 | GB113: 0 | GC113: 0 | GD113: 0 | GE113: 0 | GF113: 0 | GG113: 0 | GH113: 0 | GI113: 0 | GJ113: 0
CX114: 0 | CY114: 0 | CZ114: 0 | DA114: 0 | DB114: 0 | DC114: 0 | DD114: 0 | DE114: 0 | DF114: 0 | DG114: 0 | DH114: 0 | DI114: 0 | DJ114: 0 | DK114: 0 | DL114: 0 | DM114: 0 | DN114: 0 | DO114: 0 | DP114: 0 | DQ114: 0 | DR114: 0 | DS114: 0 | DT114: 0 | DU114: 0 | DV114: 0 | DW114: 0 | DX114: 0 | DY114: 0 | DZ114: 0 | EA114: 0 | EB114: 0 | EC114: 0 | ED114: 0 | EE114: 0 | EF114: 0 | EG114: 0 | EH114: 0 | EI114: 0 | EJ114: 0 | EK114: 0 | EL114: 0 | EM114: 0 | EN114: 0 | EO114: 0 | EP114: 0 | EQ114: 0 | ER114: 0 | ES114: 0 | ET114: 0 | EU114: 0 | EV114: 0 | EW114: 0 | EX114: 0 | EY114: 0 | EZ114: 0 | FA114: 0 | FB114: 0 | FC114: 0 | FD114: 0 | FE114: 0 | FF114: 0 | FG114: 0 | FH114: 0 | FI114: 0 | FJ114: 0 | FK114: 0 | FL114: 0 | FM114: 0 | FN114: 0 | FO114: 0 | FP114: 0 | FQ114: 0 | FR114: 0 | FS114: 0 | FT114: 0 | FU114: 0 | FV114: 0 | FW114: 0 | FX114: 0 | FY114: 0 | FZ114: 0 | GA114: 0 | GB114: 0 | GC114: 0 | GD114: 0 | GE114: 0 | GF114: 0 | GG114: 0 | GH114: 0 | GI114: 0 | GJ114: 0
CX115: 0 | CY115: 0 | CZ115: 0 | DA115: 0 | DB115: 0 | DC115: 0 | DD115: 0 | DE115: 0 | DF115: 0 | DG115: 0 | DH115: 0 | DI115: 0 | DJ115: 0 | DK115: 0 | DL115: 0 | DM115: 0 | DN115: 0 | DO115: 0 | DP115: 0 | DQ115: 0 | DR115: 0 | DS115: 0 | DT115: 0 | DU115: 0 | DV115: 0 | DW115: 0 | DX115: 0 | DY115: 0 | DZ115: 0 | EA115: 0 | EB115: 0 | EC115: 0 | ED115: 0 | EE115: 0 | EF115: 0 | EG115: 0 | EH115: 0 | EI115: 0 | EJ115: 0 | EK115: 0 | EL115: 0 | EM115: 0 | EN115: 0 | EO115: 0 | EP115: 0 | EQ115: 0 | ER115: 0 | ES115: 0 | ET115: 0 | EU115: 0 | EV115: 0 | EW115: 0 | EX115: 0 | EY115: 0 | EZ115: 0 | FA115: 0 | FB115: 0 | FC115: 0 | FD115: 0 | FE115: 0 | FF115: 0 | FG115: 0 | FH115: 0 | FI115: 0 | FJ115: 0 | FK115: 0 | FL115: 0 | FM115: 0 | FN115: 0 | FO115: 0 | FP115: 0 | FQ115: 0 | FR115: 0 | FS115: 0 | FT115: 0 | FU115: 0 | FV115: 0 | FW115: 0 | FX115: 0 | FY115: 0 | FZ115: 0 | GA115: 0 | GB115: 0 | GC115: 0 | GD115: 0 | GE115: 0 | GF115: 0 | GG115: 0 | GH115: 0 | GI115: 0 | GJ115: 0
CX116: 0 | CY116: 0 | CZ116: 0 | DA116: 0 | DB116: 0 | DC116: 0 | DD116: 0 | DE116: 0 | DF116: 0 | DG116: 0 | DH116: 0 | DI116: 0 | DJ116: 0 | DK116: 0 | DL116: 0 | DM116: 0 | DN116: 0 | DO116: 0 | DP116: 0 | DQ116: 0 | DR116: 0 | DS116: 0 | DT116: 0 | DU116: 0 | DV116: 0 | DW116: 0 | DX116: 0 | DY116: 0 | DZ116: 0 | EA116: 0 | EB116: 0 | EC116: 0 | ED116: 0 | EE116: 0 | EF116: 0 | EG116: 0 | EH116: 0 | EI116: 0 | EJ116: 0 | EK116: 0 | EL116: 0 | EM116: 0 | EN116: 0 | EO116: 0 | EP116: 0 | EQ116: 0 | ER116: 0 | ES116: 0 | ET116: 0 | EU116: 0 | EV116: 0 | EW116: 0 | EX116: 0 | EY116: 0 | EZ116: 0 | FA116: 0 | FB116: 0 | FC116: 0 | FD116: 0 | FE116: 0 | FF116: 0 | FG116: 0 | FH116: 0 | FI116: 0 | FJ116: 0 | FK116: 0 | FL116: 0 | FM116: 0 | FN116: 0 | FO116: 0 | FP116: 0 | FQ116: 0 | FR116: 0 | FS116: 0 | FT116: 0 | FU116: 0 | FV116: 0 | FW116: 0 | FX116: 0 | FY116: 0 | FZ116: 0 | GA116: 0 | GB116: 0 | GC116: 0 | GD116: 0 | GE116: 0 | GF116: 0 | GG116: 0 | GH116: 0 | GI116: 0 | GJ116: 0
CX117: 0 | CY117: 0 | CZ117: 0 | DA117: 0 | DB117: 0 | DC117: 0 | DD117: 0 | DE117: 0 | DF117: 0 | DG117: 0 | DH117: 0 | DI117: 0 | DJ117: 0 | DK117: 0 | DL117: 0 | DM117: 0 | DN117: 0 | DO117: 0 | DP117: 0 | DQ117: 0 | DR117: 0 | DS117: 0 | DT117: 0 | DU117: 0 | DV117: 0 | DW117: 0 | DX117: 0 | DY117: 0 | DZ117: 0 | EA117: 0 | EB117: 0 | EC117: 0 | ED117: 0 | EE117: 0 | EF117: 0 | EG117: 0 | EH117: 0 | EI117: 0 | EJ117: 0 | EK117: 0 | EL117: 0 | EM117: 0 | EN117: 0 | EO117: 0 | EP117: 0 | EQ117: 0 | ER117: 0 | ES117: 0 | ET117: 0 | EU117: 0 | EV117: 0 | EW117: 0 | EX117: 0 | EY117: 0 | EZ117: 0 | FA117: 0 | FB117: 0 | FC117: 0 | FD117: 0 | FE117: 0 | FF117: 0 | FG117: 0 | FH117: 0 | FI117: 0 | FJ117: 0 | FK117: 0 | FL117: 0 | FM117: 0 | FN117: 0 | FO117: 0 | FP117: 0 | FQ117: 0 | FR117: 0 | FS117: 0 | FT117: 0 | FU117: 0 | FV117: 0 | FW117: 0 | FX117: 0 | FY117: 0 | FZ117: 0 | GA117: 0 | GB117: 0 | GC117: 0 | GD117: 0 | GE117: 0 | GF117: 0 | GG117: 0 | GH117: 0 | GI117: 0 | GJ117: 0
CX118: 0 | CY118: 0 | CZ118: 0 | DA118: 0 | DB118: 0 | DC118: 0 | DD118: 0 | DE118: 0 | DF118: 0 | DG118: 0 | DH118: 0 | DI118: 0 | DJ118: 0 | DK118: 0 | DL118: 0 | DM118: 0 | DN118: 0 | DO118: 0 | DP118: 0 | DQ118: 0 | DR118: 0 | DS118: 0 | DT118: 0 | DU118: 0 | DV118: 0 | DW118: 0 | DX118: 0 | DY118: 0 | DZ118: 0 | EA118: 0 | EB118: 0 | EC118: 0 | ED118: 0 | EE118: 0 | EF118: 0 | EG118: 0 | EH118: 0 | EI118: 0 | EJ118: 0 | EK118: 0 | EL118: 0 | EM118: 0 | EN118: 0 | EO118: 0 | EP118: 0 | EQ118: 0 | ER118: 0 | ES118: 0 | ET118: 0 | EU118: 0 | EV118: 0 | EW118: 0 | EX118: 0 | EY118: 0 | EZ118: 0 | FA118: 0 | FB118: 0 | FC118: 0 | FD118: 0 | FE118: 0 | FF118: 0 | FG118: 0 | FH118: 0 | FI118: 0 | FJ118: 0 | FK118: 0 | FL118: 0 | FM118: 0 | FN118: 0 | FO118: 0 | FP118: 0 | FQ118: 0 | FR118: 0 | FS118: 0 | FT118: 0 | FU118: 0 | FV118: 0 | FW118: 0 | FX118: 0 | FY118: 0 | FZ118: 0 | GA118: 0 | GB118: 0 | GC118: 0 | GD118: 0 | GE118: 0 | GF118: 0 | GG118: 0 | GH118: 0 | GI118: 0 | GJ118: 0
CX119: 0 | CY119: 0 | CZ119: 0 | DA119: 0 | DB119: 0 | DC119: 0 | DD119: 0 | DE119: 0 | DF119: 0 | DG119: 0 | DH119: 0 | DI119: 0 | DJ119: 0 | DK119: 0 | DL119: 0 | DM119: 0 | DN119: 0 | DO119: 0 | DP119: 0 | DQ119: 0 | DR119: 0 | DS119: 0 | DT119: 0 | DU119: 0 | DV119: 0 | DW119: 0 | DX119: 0 | DY119: 0 | DZ119: 0 | EA119: 0 | EB119: 0 | EC119: 0 | ED119: 0 | EE119: 0 | EF119: 0 | EG119: 0 | EH119: 0 | EI119: 0 | EJ119: 0 | EK119: 0 | EL119: 0 | EM119: 0 | EN119: 0 | EO119: 0 | EP119: 0 | EQ119: 0 | ER119: 0 | ES119: 0 | ET119: 0 | EU119: 0 | EV119: 0 | EW119: 0 | EX119: 0 | EY119: 0 | EZ119: 0 | FA119: 0 | FB119: 0 | FC119: 0 | FD119: 0 | FE119: 0 | FF119: 0 | FG119: 0 | FH119: 0 | FI119: 0 | FJ119: 0 | FK119: 0 | FL119: 0 | FM119: 0 | FN119: 0 | FO119: 0 | FP119: 0 | FQ119: 0 | FR119: 0 | FS119: 0 | FT119: 0 | FU119: 0 | FV119: 0 | FW119: 0 | FX119: 0 | FY119: 0 | FZ119: 0 | GA119: 0 | GB119: 0 | GC119: 0 | GD119: 0 | GE119: 0 | GF119: 0 | GG119: 0 | GH119: 0 | GI119: 0 | GJ119: 0
CX120: 0 | CY120: 0 | CZ120: 0 | DA120: 0 | DB120: 0 | DC120: 0 | DD120: 0 | DE120: 0 | DF120: 0 | DG120: 0 | DH120: 0 | DI120: 0 | DJ120: 0 | DK120: 0 | DL120: 0 | DM120: 0 | DN120: 0 | DO120: 0 | DP120: 0 | DQ120: 0 | DR120: 0 | DS120: 0 | DT120: 0 | DU120: 0 | DV120: 0 | DW120: 0 | DX120: 0 | DY120: 0 | DZ120: 0 | EA120: 0 | EB120: 0 | EC120: 0 | ED120: 0 | EE120: 0 | EF120: 0 | EG120: 0 | EH120: 0 | EI120: 0 | EJ120: 0 | EK120: 0 | EL120: 0 | EM120: 0 | EN120: 0 | EO120: 0 | EP120: 0 | EQ120: 0 | ER120: 0 | ES120: 0 | ET120: 0 | EU120: 0 | EV120: 0 | EW120: 0 | EX120: 0 | EY120: 0 | EZ120: 0 | FA120: 0 | FB120: 0 | FC120: 0 | FD120: 0 | FE120: 0 | FF120: 0 | FG120: 0 | FH120: 0 | FI120: 0 | FJ120: 0 | FK120: 0 | FL120: 0 | FM120: 0 | FN120: 0 | FO120: 0 | FP120: 0 | FQ120: 0 | FR120: 0 | FS120: 0 | FT120: 0 | FU120: 0 | FV120: 0 | FW120: 0 | FX120: 0 | FY120: 0 | FZ120: 0 | GA120: 0 | GB120: 0 | GC120: 0 | GD120: 0 | GE120: 0 | GF120: 0 | GG120: 0 | GH120: 0 | GI120: 0 | GJ120: 0
CX121: 0 | CY121: 0 | CZ121: 0 | DA121: 0 | DB121: 0 | DC121: 0 | DD121: 0 | DE121: 0 | DF121: 0 | DG121: 0 | DH121: 0 | DI121: 0 | DJ121: 0 | DK121: 0 | DL121: 0 | DM121: 0 | DN121: 0 | DO121: 0 | DP121: 0 | DQ121: 0 | DR121: 0 | DS121: 0 | DT121: 0 | DU121: 0 | DV121: 0 | DW121: 0 | DX121: 0 | DY121: 0 | DZ121: 0 | EA121: 0 | EB121: 0 | EC121: 0 | ED121: 0 | EE121: 0 | EF121: 0 | EG121: 0 | EH121: 0 | EI121: 0 | EJ121: 0 | EK121: 0 | EL121: 0 | EM121: 0 | EN121: 0 | EO121: 0 | EP121: 0 | EQ121: 0 | ER121: 0 | ES121: 0 | ET121: 0 | EU121: 0 | EV121: 0 | EW121: 0 | EX121: 0 | EY121: 0 | EZ121: 0 | FA121: 0 | FB121: 0 | FC121: 0 | FD121: 0 | FE121: 0 | FF121: 0 | FG121: 0 | FH121: 0 | FI121: 0 | FJ121: 0 | FK121: 0 | FL121: 0 | FM121: 0 | FN121: 0 | FO121: 0 | FP121: 0 | FQ121: 0 | FR121: 0 | FS121: 0 | FT121: 0 | FU121: 0 | FV121: 0 | FW121: 0 | FX121: 0 | FY121: 0 | FZ121: 0 | GA121: 0 | GB121: 0 | GC121: 0 | GD121: 0 | GE121: 0 | GF121: 0 | GG121: 0 | GH121: 0 | GI121: 0 | GJ121: 0
CX122: 0 | CY122: 0 | CZ122: 0 | DA122: 0 | DB122: 0 | DC122: 0 | DD122: 0 | DE122: 0 | DF122: 0 | DG122: 0 | DH122: 0 | DI122: 0 | DJ122: 0 | DK122: 0 | DL122: 0 | DM122: 0 | DN122: 0 | DO122: 0 | DP122: 0 | DQ122: 0 | DR122: 0 | DS122: 0 | DT122: 0 | DU122: 0 | DV122: 0 | DW122: 0 | DX122: 0 | DY122: 0 | DZ122: 0 | EA122: 0 | EB122: 0 | EC122: 0 | ED122: 0 | EE122: 0 | EF122: 0 | EG122: 0 | EH122: 0 | EI122: 0 | EJ122: 0 | EK122: 0 | EL122: 0 | EM122: 0 | EN122: 0 | EO122: 0 | EP122: 0 | EQ122: 0 | ER122: 0 | ES122: 0 | ET122: 0 | EU122: 0 | EV122: 0 | EW122: 0 | EX122: 0 | EY122: 0 | EZ122: 0 | FA122: 0 | FB122: 0 | FC122: 0 | FD122: 0 | FE122: 0 | FF122: 0 | FG122: 0 | FH122: 0 | FI122: 0 | FJ122: 0 | FK122: 0 | FL122: 0 | FM122: 0 | FN122: 0 | FO122: 0 | FP122: 0 | FQ122: 0 | FR122: 0 | FS122: 0 | FT122: 0 | FU122: 0 | FV122: 0 | FW122: 0 | FX122: 0 | FY122: 0 | FZ122: 0 | GA122: 0 | GB122: 0 | GC122: 0 | GD122: 0 | GE122: 0 | GF122: 0 | GG122: 0 | GH122: 0 | GI122: 0 | GJ122: 0
CX123: 0 | CY123: 0 | CZ123: 0 | DA123: 0 | DB123: 0 | DC123: 0 | DD123: 0 | DE123: 0 | DF123: 0 | DG123: 0 | DH123: 0 | DI123: 0 | DJ123: 0 | DK123: 0 | DL123: 0 | DM123: 0 | DN123: 0 | DO123: 0 | DP123: 0 | DQ123: 0 | DR123: 0 | DS123: 0 | DT123: 0 | DU123: 0 | DV123: 0 | DW123: 0 | DX123: 0 | DY123: 0 | DZ123: 0 | EA123: 0 | EB123: 0 | EC123: 0 | ED123: 0 | EE123: 0 | EF123: 0 | EG123: 0 | EH123: 0 | EI123: 0 | EJ123: 0 | EK123: 0 | EL123: 0 | EM123: 0 | EN123: 0 | EO123: 0 | EP123: 0 | EQ123: 0 | ER123: 0 | ES123: 0 | ET123: 0 | EU123: 0 | EV123: 0 | EW123: 0 | EX123: 0 | EY123: 0 | EZ123: 0 | FA123: 0 | FB123: 0 | FC123: 0 | FD123: 0 | FE123: 0 | FF123: 0 | FG123: 0 | FH123: 0 | FI123: 0 | FJ123: 0 | FK123: 0 | FL123: 0 | FM123: 0 | FN123: 0 | FO123: 0 | FP123: 0 | FQ123: 0 | FR123: 0 | FS123: 0 | FT123: 0 | FU123: 0 | FV123: 0 | FW123: 0 | FX123: 0 | FY123: 0 | FZ123: 0 | GA123: 0 | GB123: 0 | GC123: 0 | GD123: 0 | GE123: 0 | GF123: 0 | GG123: 0 | GH123: 0 | GI123: 0 | GJ123: 0
